Workbook

Sheet Supplementary Table 1.
A1: Table S1. Categorical clinical characteristics of samples derived from male and female patients in the TCGA LIHC cohort. The following symbols are used to indicate statistical significance: * = p ≤ 0.10, ** = p ≤ 0.05, *** = p ≤ 0.01.
C3: All tumor samples | I3: Paired samples
C4: Female (119) | E4: Male (248) | I4: Female (22) | K4: Male (28)
C5: Count | D5: Proportion (%) | E5: Count | F5: Proportion (%) | G5: Fisher's exact test p-value | H5: Significance | I5: Count | J5: Proportion (%) | K5: Count | L5: Proportion (%) | M5: Fisher's exact test p-value | N5: Significance
A6: Race | B6: White | C6: 80 | D6: =C6/119*100 -> 67.23 | E6: 103 | F6: =E6/248*100 -> 41.53 | G6: 2.76E-05 | H6: *** | I6: 18 | J6: =I6/22*100 -> 81.82 | K6: 16 | L6: =K6/28*100 -> 57.14 | M6: 3.65E-02 | N6: **
B7: Black or African American | C7: 3 | D7: 2.52 | E7: 14 | F7: =E7/248*100 -> 5.65 | I7: 2 | J7: 9.09 | K7: 5 | L7: 17.86
B8: Asian | C8: 33 | D8: 27.73 | E8: 121 | F8: 48.79 | I8: 0 | J8: 0.00 | K8: 6 | L8: 21.43
B9: Native American | C9: 0 | D9: 0.00 | E9: 2 | F9: 0.81 | I9: 0 | J9: 0.00 | K9: 0 | L9: 0.00
B10: NA | C10: 3 | D10: 2.52 | E10: 8 | F10: 3.23 | I10: 2 | J10: 9.09 | K10: 1 | L10: 3.57
A11: Ethnicity | B11: Hispanic or latino | C11: 6 | D11: 5.04 | E11: 12 | F11: =E11/248*100 -> 4.84 | G11: 1.00E+00 | I11: 0 | J11: 0.00 | K11: 0 | L11: 0.00 | M11: 1.00E+00
B12: Not hispanic or latino | C12: 105 | D12: 88.24 | E12: 224 | F12: =E12/248*100 -> 90.32 | I12: 19 | J12: 86.36 | K12: 26 | L12: 92.86
B13: NA | C13: 8 | D13: 6.72 | E13: 12 | F13: 4.84 | I13: 3 | J13: 13.64 | K13: 2 | L13: 7.14
A14: Vital status | B14: Dead | C14: 37 | D14: 31.09 | E14: 51 | F14: 20.56 | G14: 3.62E-02 | H14: ** | I14: 10 | J14: 45.45 | K14: 10 | L14: 35.71 | M14: 5.67E-01
B15: Alive | C15: 82 | D15: 68.91 | E15: 197 | F15: 79.44 | I15: 12 | J15: 54.55 | K15: 18 | L15: 64.29
A16: Risk factors | B16: Family history | C16: 48 | D16: 40.34 | E16: 62 | F16: 25.00 | G16: 6.12E-03 | H16: *** | I16: 11 | J16: 50.00 | K16: 13 | L16: 46.43 | M16: 5.43E-01
B17: Hepatitis B | C17: 19 | D17: 15.97 | E17: 83 | F17: 33.47 | G17: 1.42E-01 | I17: 5 | J17: 22.73 | K17: 14 | L17: 50.00 | M17: 0.07797 | N17: *
B18: Hepatitis C | C18: 28 | D18: 23.53 | E18: 30 | F18: 12.10 | G18: 6.92E-02 | H18: * | I18: 1 | J18: 4.55 | K18: 4 | L18: 14.29 | M18: 3.68E-01
B19: Alcohol consumption | C19: 14 | D19: 11.76 | E19: 103 | F19: 41.53 | G19: 4.69E-09 | H19: *** | I19: 3 | J19: 13.64 | K19: 6 | L19: 21.43 | M19: 7.13E-01
B20: NAFLD | C20: 7 | D20: 5.88 | E20: 7 | F20: 2.82 | G20: 8.02E-01 | I20: 1 | J20: 4.55 | K20: 2 | L20: 7.14 | M20: 1.00E+00
B21: Hemachromatosis | C21: 1 | D21: 0.84 | E21: 4 | F21: 1.61 | G21: 1.00E+00 | I21: 0 | J21: 0.00 | K21: 0 | L21: 0.00 | M21: 1.00E+00
A22: Treatment | B22: Radiation treatment | C22: 3 | D22: 2.52 | E22: 1 | F22: 0.40 | G22: 8.86E-02 | H22: * | I22: 0 | J22: 0.00 | K22: 0 | L22: 0.00 | M22: 1.00E+00
B23: Pharmaceutical treatment | C23: 8 | D23: 6.72 | E23: 7 | F23: 2.82 | G23: 4.05E-02 | H23: ** | I23: 0 | J23: 0.00 | K23: 2 | L23: 7.14 | M23: 1.00E+00
B24: Ablation embolizatio | C24: 3 | D24: 2.52 | E24: 10 | F24: 4.03 | G24: 7.60E-01 | I24: 0 | J24: 0.00 | K24: 1 | L24: 3.57 | M24: 1.00E+00
A25: Tumor grade | B25: G1 | C25: 16 | D25: 13.45 | E25: 39 | F25: 15.73 | G25: 7.76E-01 | I25: 2 | J25: =I25/22*100 -> 9.09 | K25: 3 | L25: =K25/28*100 -> 10.71 | M25: 9.08E-03 | N25: ***
B26: G2 | C26: 54 | D26: 45.38 | E26: 121 | F26: 48.79 | I26: 16 | J26: =I26/22*100 -> 72.73 | K26: 11 | L26: =K26/28*100 -> 39.29
B27: G3 | C27: 41 | D27: 34.45 | E27: 79 | F27: 31.85 | I27: 2 | J27: 9.09 | K27: 13 | L27: 46.43
B28: G4 | C28: 5 | D28: 4.20 | E28: 7 | F28: 2.82 | I28: 0 | J28: 0.00 | K28: 0 | L28: 0.00
B29: NA | C29: 3 | D29: 2.52 | E29: 2 | F29: 0.81 | I29: 2 | J29: 9.09 | K29: 1 | L29: 3.57
A30: AJCC tumor pathologic | B30: T0 | C30: 1 | D30: 0.84 | E30: 0 | F30: 0.00 | G30: 9.79E-02 | H30: * | I30: 0 | J30: 0.00 | K30: 0 | L30: 0.00 | M30: 5.21E-01
B31: T1 | C31: 56 | D31: 47.06 | E31: 124 | F31: 50.00 | I31: 9 | J31: 40.91 | K31: 11 | L31: 39.29
B32: T2 | C32: 29 | D32: 24.37 | E32: 61 | F32: 24.60 | I32: 8 | J32: 36.36 | K32: 6 | L32: 21.43
B33: T2a | C33: 0 | D33: 0.00 | E33: 1 | F33: 0.40 | I33: 0 | J33: 0.00 | K33: 0 | L33: 0.00
B34: T2b | C34: 1 | D34: 0.84 | E34: 0 | F34: 0.00 | I34: 0 | J34: 0.00 | K34: 0 | L34: 0.00
B35: T3 | C35: 10 | D35: 8.40 | E35: 34 | F35: 13.71 | I35: 4 | J35: 18.18 | K35: 4 | L35: 14.29
B36: T3a | C36: 14 | D36: 11.76 | E36: 15 | F36: 6.05 | I36: 1 | J36: 4.55 | K36: 3 | L36: 10.71
B37: T3b | C37: 1 | D37: 0.84 | E37: 5 | F37: 2.02 | I37: 0 | J37: 0.00 | K37: 1 | L37: 3.57
B38: T4 | C38: 6 | D38: 5.04 | E38: 7 | F38: 2.82 | I38: 0 | J38: 0.00 | K38: 3 | L38: 10.71
B39: TX | C39: 1 | D39: 0.84 | E39: 0 | F39: 0.00 | I39: 0 | J39: 0.00 | K39: 0 | L39: 0.00
B40: NA | C40: 0 | D40: 0.00 | E40: 1 | F40: 0.40 | I40: 0 | J40: 0.00 | K40: 0 | L40: 0.00
A41: AJCC nodes pathologic | B41: N0 | C41: 77 | D41: 64.71 | E41: 171 | F41: 68.95 | G41: 1.53E-01 | I41: 14 | J41: 63.64 | K41: 17 | L41: 60.71 | M41: 7.53E-01
B42: N1 | C42: 3 | D42: 2.52 | E42: 1 | F42: 0.40 | I42: 1 | J42: 4.55 | K42: 0 | L42: 0.00
B43: NX | C43: 39 | D43: 32.77 | E43: 75 | F43: 30.24 | I43: 7 | J43: 31.82 | K43: 10 | L43: 35.71
B44: NA | C44: 0 | D44: 0.00 | E44: 1 | F44: 0.40 | I44: 0 | J44: 0.00 | K44: 1 | L44: 3.57
A45: AJCC metastasis pathologic | B45: M0 | C45: 83 | D45: 69.75 | E45: 179 | F45: 72.18 | G45: 1.99E-01 | I45: 16 | J45: 72.73 | K45: 17 | L45: 60.71
B46: M1 | C46: 3 | D46: 2.52 | E46: 1 | F46: 0.40 | I46: 0 | J46: 0.00 | K46: 1 | L46: 3.57
B47: MX | C47: 33 | D47: 27.73 | E47: 68 | F47: 27.42 | I47: 6 | J47: 27.27 | K47: 10 | L47: 35.71
B48: NA | C48: 0 | D48: 0.00 | E48: 0 | F48: 0.00 | I48: 0 | J48: 0.00 | K48: 0 | L48: 0.00
A49: AJCC pathologic tumor stage | B49: Stage I | C49: 49 | D49: 41.18 | E49: 121 | F49: 48.79 | G49: 1.48E-01 | I49: 7 | J49: 31.82 | K49: 11 | L49: 39.29 | M49: 3.31E-01
B50: Stage II | C50: 28 | D50: 23.53 | E50: 57 | F50: 22.98 | I50: 7 | J50: 31.82 | K50: 4 | L50: 14.29
B51: Stage III | C51: 2 | D51: 1.68 | E51: 1 | F51: 0.40 | I51: 2 | J51: 9.09 | K51: 1 | L51: 3.57
B52: Stage IIIA | C52: 19 | D52: 15.97 | E52: 45 | F52: 18.15 | I52: 2 | J52: 9.09 | K52: 6 | L52: 21.43
B53: Stage IIIB | C53: 3 | D53: 2.52 | E53: 5 | F53: 2.02 | I53: 0 | J53: 0.00 | K53: 0 | L53: 0.00
B54: Stage IIIC | C54: 5 | D54: 4.20 | E54: 4 | F54: 1.61 | I54: 1 | J54: 4.55 | K54: 0 | L54: 0.00
B55: Stage IV | C55: 1 | D55: 0.84 | E55: 2 | F55: 0.81 | I55: 0 | J55: 0.00 | K55: 1 | L55: 3.57
B56: Stage IVA | C56: 1 | D56: 0.84 | E56: 0 | F56: 0.00 | I56: 0 | J56: 0.00 | K56: 0 | L56: 0.00
B57: Stage IVB | C57: 2 | D57: 1.68 | E57: 0 | F57: 0.00 | I57: 0 | J57: 0.00 | K57: 0 | L57: 0.00
B58: NA | C58: 9 | D58: 7.56 | E58: 13 | F58: 5.24 | I58: 3 | J58: 13.64 | K58: 5 | L58: 17.86
A59: Vascular invasion | B59: None | C59: 71 | D59: 59.66 | E59: 63 | F59: 25.40 | G59: 7.03E-01 | I59: 15 | J59: 68.18 | K59: 15 | L59: 53.57 | M59: 2.79E-01
B60: Micro | C60: 28 | D60: 23.53 | E60: 134 | F60: 54.03 | I60: 6 | J60: 27.27 | K60: 4 | L60: 14.29
B61: Macro | C61: 6 | D61: 5.04 | E61: 9 | F61: 3.63 | I61: 0 | J61: 0.00 | K61: 3 | L61: 10.71
B62: NA | C62: 14 | D62: 11.76 | E62: 42 | F62: 16.94 | I62: 1 | J62: 4.55 | K62: 6 | L62: 21.43

Sheet Supplementary Table 2.
A1: Table S2. Continuous clinical characteristics of samples derived from male and female patients in the TCGA LIHC cohort.
B3: Female (119) | D3: Male (248) | J3: Female (18) | L3: Male (26)
B4: Mean | C4: SD | D4: Mean | E4: SD | F4: t | G4: df | H4: p-value | I4: Significance | J4: Mean | K4: SD | L4: Mean | M4: SD | N4: t | O4: df | P4: p-value
A5: Age at diagnosis | B5: 60.95798 | C5: 14.90785 | D5: 58.56275 | E5: 12.7924 | F5: 1.5058 | G5: 204.24 | H5: 0.1337 | J5: 62.86364 | K5: 15.99493 | L5: 60.75 | M5: 16.44885 | N5: 0.45806 | O5: 45.802 | P5: 0.6491
A6: % normal cells | B6: 0.6302521 | C6: 4.938375 | D6: 0.7692308 | E6: 4.610807 | F6: -0.25763 | G6: 219.37 | H6: 0.7969 | J6: 1.11111111 | K6: 4.714045 | L6: 0.07692308 | M6: 0.3922323 | N6: 0.366 | O6: 17.163 | P6: 0.366
A7: % monocyte infiltration | B7: 0.3559322 | C7: 0.6733692 | D7: 0.4338843 | E7: 0.867682 | F7: -0.93481 | G7: 290.65 | H7: 0.3507 | J7: 0.2222222 | K7: 0.5483189 | L7: 0..2307692 | M7: 0.4296689 | N7: -0.055398 | O7: 30.747 | P7: 0.9562
A8: % lymphocyte infiltration | B8: 2.127119 | C8: 2.583798 | D8: 3.181818 | E8: 8.989621 | F8: -1.6878 | G8: 311.18 | H8: 0.09246 | I8: * | J8: 1.777778 | K8: 1.800508 | L8: 1.692308 | M8: 1.87124 | N8: 0.15234 | O8: 37.624 | P8: 0.8797
A9: % neutrophil infiltration | B9: 0.3305085 | C9: 0.7402366 | D9: 0.5247934 | E9: 0.9903083 | F9: -2.0834 | G9: 299.56 | H9: 0.03806 | I9: ** | J9: 0 | K9: 0 | L9: 0.1538462 | M9: 0.4640955 | N9: -1.6903 | O9: 25 | P9: 0.1034
A10: % necrosis | B10: 1.378151 | C10: 3.572474 | D10: 1.396761 | E10: 3.391235 | F10: -0.047452 | G10: 222.57 | H10: 0.9622 | J10: 0.9444444 | K10: 1.731107 | L10: 0.3846154 | M10: 1.168826 | N10: 1.1962 | O10: 27.558 | P10: 0.2418
A11: % stromal cells | B11: 10.16807 | C11: 12.74676 | D11: 10.69231 | E11: 11.51186 | F11: -0.38013 | G11: 213.17 | H11: 0.7042 | J11: 8.722222 | K11: 9.981191 | L11: 10.730769 | M11: 8.865924 | N11: -0.68659 | O11: 33.789 | P11: 0.497
A12: % tumor cells | B12: 87.82353 | C12: 14.01128 | D12: 87.1417 | E12: 12.98781 | F12: 0.44643 | G12: 218 | H12: 0.6557 | J12: 89.22222 | K12: 11.18589 | L12: 88.80769 | M12: 8.840901 | N12: 0.13136 | O12: 30.947 | P12: 0.8963

Sheet Supplementary Table 3.
A1: Table S3. Sex-biased gene expression in the GTEx liver tissue samples with an FDR-adjusted p-value ≤ 0.1 and absolute log2 fold-change ≥ 0. N males = 91, N females = 45.
A3: Chromosome | B3: Gene name | C3: log2FC | D3: Average expression | E3: t-statistic | F3: p-value | G3: FDR adjusted p-value | H3: B-statistic
A4: chrY | B4: RPS4Y1 | C4: 13.31254337 | D4: 1.9651056 | E4: 72.90145941 | F4: 9.51E-163 | G4: 1.06E-158 | H4: 345.4987603
A5: chrY | B5: DDX3Y | C5: 11.65285429 | D5: 0.9716040316 | E5: 62.86758264 | F5: 1.91E-148 | G5: 1.07E-144 | H5: 317.2472922
A6: chrY | B6: TXLNGY | C6: 11.27382886 | D6: 0.3606183928 | E6: 61.00969178 | F6: 1.42E-145 | G6: 5.30E-142 | H6: 311.3877504
A7: chrY | B7: KDM5D | C7: 11.55674712 | D7: 0.6360050705 | E7: 59.86808782 | F7: 9.02E-144 | G7: 2.52E-140 | H7: 307.7088662
A8: chrX | B8: XIST_intron | C8: -9.712635663 | D8: -2.340660249 | E8: -56.12254141 | F8: 1.23E-137 | G8: 2.74E-134 | H8: 299.4229554
A9: chrY | B9: EIF1AY | C9: 9.800686434 | D9: 0.03308326057 | E9: 54.31380309 | F9: 1.51E-134 | G9: 2.81E-131 | H9: 288.3770374
A10: chrX | B10: Xist_exon4 | C10: -8.763996707 | D10: -2.713150182 | E10: -48.28951849 | F10: 1.37E-123 | G10: 2.20E-120 | H10: 268.3380217
A11: chrX | B11: TSIX | C11: -10.41502939 | D11: 1.808032162 | E11: -46.69755955 | F11: 2.13E-120 | G11: 2.64E-117 | H11: 262.4274672
A12: chrY | B12: PSMA6P1 | C12: 7.481628574 | D12: -1.142808218 | E12: 46.71284316 | F12: 1.56E-120 | G12: 2.18E-117 | H12: 258.2232843
A13: chrX | B13: XIST | C13: -10.24705668 | D13: 1.879792421 | E13: -42.15613146 | F13: 4.40E-111 | G13: 4.92E-108 | H13: 241.6744546
A14: chrY | B14: EIF4A1P2 | C14: 5.765780585 | D14: -2.018733671 | E14: 36.06915714 | F14: 1.72E-97 | G14: 1.74E-94 | H14: 208.1730137
A15: chrY | B15: VDAC1P6 | C15: 4.980489245 | D15: -2.621716426 | E15: 30.51490343 | F15: 1.74E-83 | G15: 1.63E-80 | H15: 177.3120667
A16: chrY | B16: RP11-576C2.1 | C16: 4.577269965 | D16: -3.753305694 | E16: 28.21336343 | F16: 3.23E-77 | G16: 2.78E-74 | H16: 163.3986965
A17: chrY | B17: RP11-115H13.1 | C17: 6.291054091 | D17: -2.468903589 | E17: 27.1593327 | F17: 2.98E-74 | G17: 2.38E-71 | H17: 157.0000726
A18: chrX | B18: Xist_exon1 | C18: -4.09136025 | D18: -4.507595086 | E18: -24.30647622 | F18: 6.37E-66 | G18: 4.75E-63 | H18: 138.5686268
A19: chrY | B19: KRT18P10 | C19: 4.985563771 | D19: -2.128598656 | E19: 21.42326574 | F19: 4.62E-57 | G19: 3.23E-54 | H19: 118.4511779
A20: chrY | B20: RNU6-941P | C20: 2.389104977 | D20: -4.655700014 | E20: 14.46704517 | F20: 2.64E-34 | G20: 1.74E-31 | H20: 67.08498588
A21: chrX | B21: KDM5C | C21: -0.766642996 | D21: 5.295467268 | E21: -13.36330346 | F21: 1.22E-30 | G21: 7.61E-28 | H21: 58.5560734
A22: chrY | B22: CD24P4 | C22: 2.709747677 | D22: -3.481889097 | E22: 9.202182443 | F22: 2.03E-17 | G22: 1.14E-14 | H22: 28.96612607
A23: chrX | B23: EIF1AX | C23: -0.5005984542 | D23: 5.35618851 | E23: -9.242079313 | F23: 1.55E-17 | G23: 9.11E-15 | H23: 28.53982826
A24: chrX | B24: RPS4X | C24: -0.5985173735 | D24: 8.017276713 | E24: -8.51300364 | F24: 2.07E-15 | G24: 1.10E-12 | H24: 23.89624263
A25: chrX | B25: PIN4 | C25: -0.5658093689 | D25: 8.095068666 | E25: -8.330590644 | F25: 6.85E-15 | G25: 3.48E-12 | H25: 22.72410337
A26: chrX | B26: ARSD | C26: -0.7592658871 | D26: 5.441866646 | E26: -8.310235934 | F26: 7.82E-15 | G26: 3.80E-12 | H26: 22.38800756
A27: chr12 | B27: PZP | C27: -2.067938754 | D27: 5.54344639 | E27: -7.951219995 | F27: 7.92E-14 | G27: 3.69E-11 | H27: 20.18596463
A28: chr12 | B28: TPT1P12 | C28: -1.782680244 | D28: -1.946005944 | E28: -6.566210149 | F28: 3.31E-10 | G28: 1.43E-07 | H28: 12.54287823
A29: chrX | B29: ARSD-AS1 | C29: -0.7457289621 | D29: 3.428078431 | E29: -6.576821036 | F29: 3.11E-10 | G29: 1.39E-07 | H29: 12.10926462
A30: chrX | B30: CD99 | C30: 0.3385871366 | D30: 6.445280986 | E30: 6.541117067 | F30: 3.81E-10 | G30: 1.58E-07 | H30: 11.77823941
A31: chrX | B31: GYG2 | C31: -0.7771027444 | D31: 4.209586392 | E31: -6.347315496 | F31: 1.13E-09 | G31: 4.51E-07 | H31: 10.69443532
A32: chrX | B32: MIR6894 | C32: -1.102268068 | D32: -3.175953154 | E32: -6.013573045 | F32: 6.93E-09 | G32: 2.67E-06 | H32: 9.686546057
A33: chr4 | B33: RP11-362F19.1 | C33: 1.969935541 | D33: 0.1263244624 | E33: 5.806592463 | F33: 2.07E-08 | G33: 7.73E-06 | H33: 8.373092334
A34: chr11 | B34: VWCE | C34: 1.356190289 | D34: 3.59985467 | E34: 5.567161932 | F34: 7.10E-08 | G34: 2.56E-05 | H34: 6.779933866
A35: chrX | B35: MIR6895 | C35: -0.8979744878 | D35: -4.40156096 | E35: -5.399096334 | F35: 1.64E-07 | G35: 5.75E-05 | H35: 6.724405022
A36: chrX | B36: JPX_1 | C36: -0.4869492847 | D36: -0.1101104906 | E36: -5.367293367 | F36: 1.92E-07 | G36: 6.52E-05 | H36: 6.322685108
A37: chrX | B37: CXorf38 | C37: -0.3177080291 | D37: 3.35393775 | E37: -5.264967281 | F37: 3.18E-07 | G37: 0.0001044802811 | H37: 5.364787602
A38: chrX | B38: DDX3X | C38: -0.4833621866 | D38: 6.852059413 | E38: -5.227917338 | F38: 3.80E-07 | G38: 0.0001214854524 | H38: 5.120691826
A39: chr12 | B39: ASCL1 | C39: -2.887021717 | D39: -2.146522211 | E39: -5.063123645 | F39: 8.37E-07 | G39: 0.0002531491929 | H39: 4.994922594
A40: chr1 | B40: PEX10 | C40: 0.3422540548 | D40: 5.295874826 | E40: 5.153546397 | F40: 5.44E-07 | G40: 0.0001689677263 | H40: 4.643257459
A41: chrX | B41: RP13-36G14.4 | C41: -0.5391332679 | D41: 0.5443151233 | E41: -4.995932434 | F41: 1.15E-06 | G41: 0.0003290033618 | H41: 4.455950036
A42: chrX | B42: SMC1A | C42: -0.3865993201 | D42: 5.165074943 | E42: -5.057014257 | F42: 8.61E-07 | G42: 0.0002533592863 | H42: 4.205276189
A43: chr14 | B43: PLEK2 | C43: -1.175196868 | D43: 2.506523216 | E43: -4.937496944 | F43: 1.51E-06 | G43: 0.0004217338263 | H43: 3.904885431
A44: chr5 | B44: CDHR2 | C44: 1.08203588 | D44: 4.713655048 | E44: 4.891630311 | F44: 1.86E-06 | G44: 0.0005086487316 | H44: 3.479906357
A45: chrX | B45: EIF2S3 | C45: -0.2290706989 | D45: 6.023591717 | E45: -4.845694945 | F45: 2.30E-06 | G45: 0.0006124107396 | H45: 3.276859932
A46: chrX | B46: OFD1 | C46: -0.3515167402 | D46: 3.774881561 | E46: -4.740717761 | F46: 3.70E-06 | G46: 0.0009633121963 | H46: 2.841024324
A47: chrX | B47: UBA1 | C47: -0.281492993 | D47: 6.926662123 | E47: -4.67796798 | F47: 4.90E-06 | G47: 0.001246966865 | H47: 2.640210151
A48: chr7 | B48: TSPAN13 | C48: 1.128992581 | D48: 4.220068081 | E48: 4.636176828 | F48: 5.91E-06 | G48: 0.001469427263 | H48: 2.471196626
A49: chrX | B49: JPX_2 | C49: -0.5267042127 | D49: 0.1929239064 | E49: -4.418771693 | F49: 1.52E-05 | G49: 0.003695589947 | H49: 2.084537379
A50: chr2 | B50: VIL1 | C50: -0.8511440481 | D50: 4.17565122 | E50: -4.342779323 | F50: 2.10E-05 | G50: 0.004996045124 | H50: 1.203100546
A51: chr20 | B51: RPS4XP3 | C51: -0.8573418686 | D51: -1.824286103 | E51: -4.005357895 | F51: 8.32E-05 | G51: 0.01862488752 | H51: 0.6863189856
A52: chr2 | B52: SLC23A3 | C52: -0.6426918201 | D52: 1.140862393 | E52: -4.115936462 | F52: 5.35E-05 | G52: 0.01221195408 | H52: 0.6402332965
A53: chrX | B53: RP11-706O15.1 | C53: -0.338530299 | D53: 3.055107728 | E53: -4.173837827 | F53: 4.23E-05 | G53: 0.009852644862 | H53: 0.6042878289
A54: chr1 | B54: RPS15AP10 | C54: -0.6587429337 | D54: -3.493895916 | E54: -3.793223751 | F54: 0.0001894054042 | G54: 0.03852850295 | H54: -0.04372646795
A55: chr9 | B55: RP11-101E3.5 | C55: 0.2873526586 | D55: 4.321421629 | E55: 3.973630941 | F55: 9.43E-05 | G55: 0.0206945777 | H55: -0.2298272607
A56: chrX | B56: CA5BP1 | C56: -0.2500007525 | D56: 3.339559936 | E56: -3.944053239 | F56: 0.0001059381853 | G56: 0.02236295127 | H56: -0.2705655657
A57: chr2 | B57: CNPPD1 | C57: -0.2391091216 | D57: 4.816028127 | E57: -3.967731856 | F57: 9.65E-05 | G57: 0.02077276577 | H57: -0.3108651013
A58: chr12 | B58: FGF23 | C58: -1.795036081 | D58: -2.250638717 | E58: -3.667748025 | F58: 0.0003031405437 | G58: 0.05748366784 | H58: -0.6138063276
A59: chr11 | B59: BCO2 | C59: -0.7060272029 | D59: 4.919102924 | E59: -3.868948286 | F59: 0.0001418684593 | G59: 0.02939304302 | H59: -0.6185889151
A60: chr10 | B60: RP11-227H15.5 | C60: -1.541475328 | D60: 0.8270621813 | E60: -3.686792361 | F60: 0.0002825008414 | G60: 0.05544946341 | H60: -0.7366186078
A61: chr8 | B61: DEFA3 | C61: -1.412850797 | D61: -0.9726842351 | E61: -3.679665286 | F61: 0.000290064733 | G61: 0.05595248678 | H61: -0.7699825331
A62: chr5 | B62: KRT18P16 | C62: -0.9139369976 | D62: -1.634544802 | E62: -3.581663031 | F62: 0.0004153080616 | G62: 0.07040100899 | H62: -0.8776892012
A63: chr7 | B63: RPL7P60 | C63: -0.8792666064 | D63: -1.135604907 | E63: -3.590556841 | F63: 0.0004021464915 | G63: 0.06948670196 | H63: -0.9291052007
A64: chr1 | B64: SNORA58 | C64: -0.6638639529 | D64: -3.375991778 | E64: -3.53137162 | F64: 0.0004979164521 | G64: 0.08314461592 | H64: -0.9384723279
A65: chr19 | B65: DHX34 | C65: -0.2903743533 | D65: 3.882829481 | E65: -3.781735418 | F65: 0.0001978328382 | G65: 0.03952417489 | H65: -0.9511620104
A66: chr8 | B66: DEFA1B | C66: -1.366726762 | D66: -0.9898046255 | E66: -3.604870447 | F66: 0.0003818342588 | G66: 0.06780891568 | H66: -1.03056228
A67: chr9 | B67: FAM95C | C67: -0.7581440586 | D67: 0.1263233059 | E67: -3.62765946 | F67: 0.0003513021192 | G67: 0.06443226409 | H67: -1.09780885
A68: chr20 | B68: FAM210B | C68: 0.3000261293 | D68: 5.666158388 | E68: 3.652761451 | F68: 0.0003202378902 | G68: 0.05971369192 | H68: -1.465041454
A69: chr2 | B69: XPO1 | C69: -0.2775336368 | D69: 5.855197819 | E69: -3.6228015 | F69: 0.0003574796505 | G69: 0.06450777951 | H69: -1.532530032
A70: chr1 | B70: MTCO2P12 | C70: 0.6187434823 | D70: 7.028426306 | E70: 3.589568396 | F70: 0.0004037035777 | G70: 0.06948670196 | H70: -1.640945222

Sheet Supplementary Table 4.
A1: Table S4. Sex-biased gene expression in the TCGA LIHC tumor-adjacent samples with an FDR-adjusted p-value ≤ 0.1 and an absolute log2 fold-change ≥ 0. N males = 22, N females = 18.
A3: Chromosome | B3: Gene name | C3: log2FC | D3: Average expression | E3: t-statistic | F3: p-value | G3: FDR adjusted p-value | H3: B-statistic
A4: chrY | B4: PSMA6P1 | C4: 8.453713381 | D4: -1.223911734 | E4: 60.06511757 | F4: 3.22E-69 | G4: 2.90E-65 | H4: 135.4585317
A5: chrY | B5: AC006386.1 | C5: 8.850858711 | D5: -1.270563573 | E5: 48.07750491 | F5: 1.47E-61 | G5: 6.61E-58 | H5: 122.3854124
A6: chrY | B6: DDX3Y | C6: 11.36452021 | D6: 0.03605248472 | E6: 46.26606968 | F6: 3.01E-60 | G6: 9.02E-57 | H6: 122.3385139
A7: chrY | B7: RPS4Y1 | C7: 13.13710085 | D7: 1.049517921 | E7: 45.10056871 | F7: 2.23E-59 | G7: 4.01E-56 | H7: 120.4198381
A8: chrY | B8: EIF4A1P2 | C8: 7.42308897 | D8: -1.945368033 | E8: 45.61463901 | F8: 9.16E-60 | G8: 2.06E-56 | H8: 117.5569531
A9: chrY | B9: KRT18P10 | C9: 8.611126529 | D9: -1.340304914 | E9: 37.08315074 | F9: 8.95E-53 | G9: 1.34E-49 | H9: 105.70747
A10: chrY | B10: EIF1AY | C10: 10.41368256 | D10: -0.5159282105 | E10: 36.36333268 | F10: 4.04E-52 | G10: 5.18E-49 | H10: 105.4605763
A11: chrY | B11: AC012005.1 | C11: 6.624014081 | D11: -2.491359734 | E11: 34.48642311 | F11: 2.33E-50 | G11: 2.62E-47 | H11: 99.03340434
A12: chrY | B12: VDAC1P6 | C12: 6.321009829 | D12: -2.607147755 | E12: 30.72033373 | F12: 1.48E-46 | G12: 1.47E-43 | H12: 91.44587161
A13: chrX | B13: XIST_intron | C13: -8.390510249 | D13: -2.988830317 | E13: -28.3974399 | F13: 5.19E-44 | G13: 4.67E-41 | H13: 85.31153755
A14: chrX | B14: TSIX | C14: -10.17252919 | D14: 0.6612198279 | E14: -21.56613673 | F14: 2.45E-35 | G14: 2.00E-32 | H14: 68.76218741
A15: chrX | B15: XIST | C15: -11.15552421 | D15: 0.2843584225 | E15: -20.22945556 | F15: 2.05E-33 | G15: 1.53E-30 | H15: 64.56104723
A16: chrX | B16: Xist_exon4 | C16: -7.060569256 | D16: -3.43532418 | E16: -18.24665609 | F16: 1.65E-30 | G16: 1.14E-27 | H16: 57.54383668
A17: chrY | B17: CD24P4 | C17: 5.695283409 | D17: -2.834315273 | E17: 11.02412872 | F17: 8.40E-18 | G17: 5.40E-15 | H17: 29.97160228
A18: chrX | B18: Xist_exon1 | C18: -3.116751165 | D18: -5.23648532 | E18: -10.44862984 | F18: 1.06E-16 | G18: 6.32E-14 | H18: 27.30791624
A19: chrX | B19: EIF1AX | C19: -0.7511742823 | D19: 5.535219661 | E19: -8.386450423 | F19: 1.25E-12 | G19: 7.03E-10 | H19: 18.02486458
A20: chrX | B20: PNPLA4 | C20: -0.8592276601 | D20: 3.860520563 | E20: -8.018960511 | F20: 6.67E-12 | G20: 3.53E-09 | H20: 16.43322947
A21: chr1 | B21: EIF1AXP1 | C21: -0.8392776019 | D21: 2.221852316 | E21: -6.415888109 | F21: 8.66E-09 | G21: 4.33E-06 | H21: 9.540919657
A22: chrY | B22: ACTG1P2 | C22: 5.867437992 | D22: -3.724384864 | E22: 6.07683879 | F22: 3.81E-08 | G22: 1.71E-05 | H22: 8.482488418
A23: chr1 | B23: RP5-875O13.7 | C23: -0.746664128 | D23: 3.960548223 | E23: -6.179270163 | F23: 2.42E-08 | G23: 1.14E-05 | H23: 8.346735831
A24: chrY | B24: ACTG1P11 | C24: 5.871144669 | D24: -3.75307148 | E24: 5.943767598 | F24: 6.71E-08 | G24: 2.87E-05 | H24: 7.940849624
A25: chrX | B25: RP13-36G14.4 | C25: -1.172431284 | D25: 0.01098362836 | E25: -5.853479022 | F25: 9.72E-08 | G25: 3.80E-05 | H25: 7.362403516
A26: chrX | B26: ARSD | C26: -0.8671842361 | D26: 5.750188458 | E26: -5.856963572 | F26: 9.58E-08 | G26: 3.80E-05 | H26: 6.920000443
A27: chr4 | B27: MFSD7 | C27: 1.484368902 | D27: 2.379487841 | E27: 5.731008716 | F27: 1.64E-07 | G27: 6.12E-05 | H27: 6.610745384
A28: chrX | B28: ARSD-AS1 | C28: -1.010110253 | D28: 3.850117476 | E28: -5.56519209 | F28: 3.26E-07 | G28: 0.0001170294676 | H28: 5.769598484
A29: chr14 | B29: RP11-796G6.1 | C29: -0.8286456408 | D29: 0.7670470962 | E29: -5.461959939 | F29: 4.99E-07 | G29: 0.0001724773056 | H29: 5.706614121
A30: chr9 | B30: RP11-196I18.3 | C30: -0.9586533988 | D30: -0.9570497726 | E30: -5.171425288 | F30: 1.63E-06 | G30: 0.0005232415202 | H30: 4.742382032
A31: chrX | B31: JPX_1 | C31: -0.6919070612 | D31: 0.1425480319 | E31: -5.145195073 | F31: 1.81E-06 | G31: 0.0005614098163 | H31: 4.53351079
A32: chr22 | B32: IGLV7-46 | C32: 2.36243257 | D32: -1.967649657 | E32: 5.082354091 | F32: 2.34E-06 | G32: 0.0006798610258 | H32: 4.377437985
A33: chrX | B33: KDM5C | C33: -0.5790518335 | D33: 4.983014108 | E33: -5.223567733 | F33: 1.32E-06 | G33: 0.0004396542456 | H33: 4.358776039
A34: chr14 | B34: PLEK2 | C34: -2.309403334 | D34: 2.02975278 | E34: -5.125456573 | F34: 1.98E-06 | G34: 0.0005922716573 | H34: 4.210538943
A35: chr8 | B35: RP11-613H2.2 | C35: -0.8790535829 | D35: -0.2506865528 | E35: -4.997569159 | F35: 3.27E-06 | G35: 0.0009010290859 | H35: 3.980675673
A36: chrX | B36: LINC00890 | C36: -3.728554579 | D36: -0.6759451459 | E36: -4.996171882 | F36: 3.31E-06 | G36: 0.0009010290859 | H36: 3.903744313
A37: chr20 | B37: RP3-453C12.14 | C37: -1.603278969 | D37: -2.283109141 | E37: -4.691591641 | F37: 1.08E-05 | G37: 0.002852039752 | H37: 2.970702199
A38: chr17 | B38: RP11-567L7.5 | C38: -1.004847818 | D38: 3.309389536 | E38: -4.647699293 | F38: 1.28E-05 | G38: 0.003281029242 | H38: 2.266028741
A39: chr2 | B39: IGKV1D-13 | C39: 2.355527688 | D39: -1.434064428 | E39: 4.45968837 | F39: 2.62E-05 | G39: 0.006530923394 | H39: 2.036873642
A40: chr12 | B40: RP11-729I10.3 | C40: -1.623503863 | D40: -4.06716804 | E40: -4.327099714 | F40: 4.26E-05 | G40: 0.009338025728 | H40: 1.817111852
A41: chrX | B41: JPX_2 | C41: -0.7755426769 | D41: 0.3733787385 | E41: -4.341043925 | F41: 4.05E-05 | G41: 0.009091456694 | H41: 1.51849926
A42: chr1 | B42: SNORA62 | C42: -1.341800812 | D42: -3.341189597 | E42: -4.207335248 | F42: 6.60E-05 | G42: 0.0128997291 | H42: 1.397853025
A43: chr17 | B43: KRT16P2 | C43: -3.518449139 | D43: -4.446577821 | E43: -4.188823629 | F43: 7.09E-05 | G43: 0.01355909571 | H43: 1.27252834
A44: chr11 | B44: VSIG2 | C44: 1.83730688 | D44: 0.1569532229 | E44: 4.258446905 | F44: 5.51E-05 | G44: 0.011369852 | H44: 1.176101394
A45: chr9 | B45: AL513122.2 | C45: 1.000559072 | D45: 6.086626019 | E45: 4.3750938 | F45: 3.58E-05 | G45: 0.008634498976 | H45: 1.167097865
A46: chr9 | B46: GSN | C46: 0.9959646453 | D46: 6.166457268 | E46: 4.365779508 | F46: 3.71E-05 | G46: 0.008634498976 | H46: 1.139365666
A47: chr17 | B47: AC005822.1 | C47: -0.6105249867 | D47: -0.10108317 | E47: -4.222650349 | F47: 6.24E-05 | G47: 0.01247254153 | H47: 1.127263841
A48: chr9 | B48: AL513122.1 | C48: 0.9935185321 | D48: 6.095792131 | E48: 4.362818596 | F48: 3.75E-05 | G48: 0.008634498976 | H48: 1.124008931
A49: chr12 | B49: RP11-611O2.2 | C49: -1.93755604 | D49: -0.7044597768 | E49: -4.172750906 | F49: 7.51E-05 | G49: 0.01407071375 | H49: 1.0065832
A50: chr6 | B50: RP3-391O22.3 | C50: -2.378550532 | D50: -2.717105984 | E50: -4.070149075 | F50: 0.0001084422902 | G50: 0.0177214419 | H50: 0.9089813822
A51: chr16 | B51: RP11-249C24.12 | C51: -2.927717144 | D51: -1.847739641 | E51: -4.12759872 | F51: 8.84E-05 | G51: 0.01589173393 | H51: 0.8263762363
A52: chr6 | B52: PNRC1 | C52: -1.145030384 | D52: 6.154164797 | E52: -4.255430786 | F52: 5.57E-05 | G52: 0.011369852 | H52: 0.7715197667
A53: chr11 | B53: ST3GAL4-AS1 | C53: -0.8063331212 | D53: 4.311859196 | E53: -4.258543062 | F53: 5.48E-05 | G53: 0.011369852 | H53: 0.7587504464
A54: chr14 | B54: GZMH | C54: 1.248814751 | D54: -0.01373370509 | E54: 4.075999737 | F54: 0.0001059086765 | G54: 0.01762791082 | H54: 0.5725162841
A55: chrX | B55: VDAC1P3 | C55: -0.8133666531 | D55: -0.3966712351 | E55: -4.024455173 | F55: 0.0001271971852 | G55: 0.02034717999 | H55: 0.5009397421
A56: chr14 | B56: IGHJ1 | C56: 1.737560212 | D56: -3.498729997 | E56: 3.955777444 | F56: 0.0001620164853 | G56: 0.0242700695 | H56: 0.4687585911
A57: chr17 | B57: RASD1 | C57: -1.887452797 | D57: 4.579424551 | E57: -4.137497854 | F57: 8.53E-05 | G57: 0.0156497431 | H57: 0.3536950435
A58: chr11 | B58: APOA4 | C58: -2.715934573 | D58: 2.926306265 | E58: -4.100145867 | F58: 9.75E-05 | G58: 0.01718999861 | H58: 0.3228567518
A59: chr2 | B59: IGKV2-24 | C59: 1.874497714 | D59: -1.161017181 | E59: 3.969293105 | F59: 0.0001550597613 | G59: 0.02362164635 | H59: 0.2889373171
A60: chr3 | B60: SNORA18 | C60: -0.8585064009 | D60: -1.754275037 | E60: -3.916908591 | F60: 0.0001855949276 | G60: 0.02690527757 | H60: 0.277075649
A61: chr14 | B61: AL928768.3 | C61: 1.914937195 | D61: -3.313092151 | E61: 3.881917705 | F61: 0.0002097039257 | G61: 0.02945029507 | H61: 0.2717682903
A62: chrX | B62: DDX3X | C62: -0.6315678195 | D62: 6.843128838 | E62: -4.07924604 | F62: 0.0001046892488 | G62: 0.01762791082 | H62: 0.1993682715
A63: chr14 | B63: IGHV3-20 | C63: 2.38538955 | D63: -2.033480502 | E63: 3.87323876 | F63: 0.0002167059929 | G63: 0.02996543791 | H63: 0.1356504842
A64: chrX | B64: WDR13 | C64: 0.5987674631 | D64: 5.646290752 | E64: 4.082622041 | F64: 0.0001034354962 | G64: 0.01762791082 | H64: 0.1164668958
A65: chr2 | B65: IGKV2-30 | C65: 1.760786408 | D65: -0.3859441461 | E65: 3.926361045 | F65: 0.0001801896491 | G65: 0.02654991091 | H65: 0.03887143067
A66: chr11 | B66: SNORD6 | C66: -1.2781698 | D66: -4.347981765 | E66: -3.759323293 | F66: 0.000319351112 | G66: 0.03795066403 | H66: -0.03779314051
A67: KI270728.1 | B67: AC141272.1 | C67: 1.921987895 | D67: -2.931574938 | E67: 3.790408622 | F67: 0.0002875369175 | G67: 0.03543919294 | H67: -0.04515802498
A68: chr9 | B68: NFIL3 | C68: -1.00849926 | D68: 5.17254402 | E68: -4.02144163 | F68: 0.0001290375233 | G68: 0.02034717999 | H68: -0.08611399596
A69: chr16 | B69: IGHV3OR16-9 | C69: 1.991938932 | D69: -3.229620685 | E69: 3.753615733 | F69: 0.0003260389641 | G69: 0.03795066403 | H69: -0.1376143129
A70: chr11 | B70: DCPS | C70: -0.834651278 | D70: 4.910141023 | E70: -4.003338358 | F70: 0.0001373429991 | G70: 0.0212834289 | H70: -0.1586596594
A71: chr2 | B71: IGKV2D-30 | C71: 1.637037738 | D71: -1.460688461 | E71: 3.816329283 | F71: 0.0002634674688 | G71: 0.03431950159 | H71: -0.1732387224
A72: chr14 | B72: IGHV3-74 | C72: 1.829529452 | D72: -0.829312583 | E72: 3.824442015 | F72: 0.000256401755 | G72: 0.03389027903 | H72: -0.2618297683
A73: chr17 | B73: DUSP14 | C73: -0.7085645002 | D73: 3.372147572 | E73: -3.902256782 | F73: 0.0001953083515 | G73: 0.02786399149 | H73: -0.3881025032
A74: chr10 | B74: IGKV1OR10-1 | C74: 1.744401438 | D74: -3.688297947 | E74: 3.660623951 | F74: 0.0004455905593 | G74: 0.04721628535 | H74: -0.4031133105
A75: chr14 | B75: IGHV3-62 | C75: 1.620328024 | D75: -3.877179203 | E75: 3.639276406 | F75: 0.0004785409013 | G75: 0.04943822553 | H75: -0.4423809586
A76: chr5 | B76: MTND4P35 | C76: -2.003814349 | D76: 0.7187218755 | E76: -3.790679525 | F76: 0.0002878350116 | G76: 0.03543919294 | H76: -0.4766960266
A77: chr16 | B77: RP11-345J4.6 | C77: 1.368144007 | D77: -2.30040088 | E77: 3.670011031 | F77: 0.0004317944911 | G77: 0.04675866127 | H77: -0.4781721074
A78: chr2 | B78: IGKV1D-42 | C78: 1.82821717 | D78: -2.435375812 | E78: 3.685083528 | F78: 0.0004113934321 | G78: 0.04509273375 | H78: -0.4812243303
A79: chr21 | B79: ZBTB21 | C79: -1.036596225 | D79: 3.469574542 | E79: -3.868713337 | F79: 0.0002201245598 | G79: 0.02997696278 | H79: -0.4965285807
A80: chr12 | B80: TPT1P12 | C80: -1.509664904 | D80: -3.266365122 | E80: -3.631497946 | F80: 0.0004911125492 | G80: 0.05016044991 | H80: -0.5022690929
A81: chr12 | B81: ASCL1 | C81: -4.019801499 | D81: -2.8078238 | E81: -3.641540506 | F81: 0.0004761997891 | G81: 0.04943822553 | H81: -0.5609478806
A82: chr11 | B82: CTSD | C82: 0.590327422 | D82: 9.810090938 | E82: 3.757587277 | F82: 0.0003212424555 | G82: 0.03795066403 | H82: -0.6207489139
A83: chr11 | B83: RP11-295K3.1 | C83: 0.5923638124 | D83: 9.833219421 | E83: 3.742801464 | F83: 0.000337789622 | G83: 0.03795066403 | H83: -0.6665956783
A84: chr18 | B84: KDSR | C84: -0.4741463204 | D84: 5.597841036 | E84: -3.846241353 | F84: 0.000237121445 | G84: 0.0318096649 | H84: -0.6767712597
A85: chr10 | B85: CH25H | C85: 1.493118696 | D85: -0.2981530766 | E85: 3.660639943 | F85: 0.0004465269531 | G85: 0.04721628535 | H85: -0.7321692308
A86: chr18 | B86: SOCS6 | C86: -0.5935428424 | D86: 4.545775297 | E86: -3.795377307 | F86: 0.0002823894592 | G86: 0.03543919294 | H86: -0.835855827
A87: chr14 | B87: IGHV3-43 | C87: 2.026385219 | D87: -2.053935195 | E87: 3.55868599 | F87: 0.0006265417799 | G87: 0.06188304964 | H87: -0.8533609737
A88: chr12 | B88: TMEM263 | C88: -0.5312896906 | D88: 5.126480103 | E88: -3.79215118 | F88: 0.0002855228661 | G88: 0.03543919294 | H88: -0.8608140686
A89: chr1 | B89: ID3 | C89: 0.7396307191 | D89: 3.530937496 | E89: 3.750726481 | F89: 0.000328822108 | G89: 0.03795066403 | H89: -0.8790006775
A90: KI270726.1 | B90: AC233755.2 | C90: 1.92179841 | D90: -2.545633684 | E90: 3.522784162 | F90: 0.0007044540804 | G90: 0.06735780079 | H90: -0.9132665313
A91: chr14 | B91: IGHV3-66 | C91: 1.783507181 | D91: -1.910708338 | E91: 3.540680854 | F91: 0.0006644165406 | G91: 0.06421264373 | H91: -0.9336729295
A92: chr16 | B92: RP11-1166P10.8 | C92: 1.79205735 | D92: -3.799049595 | E92: 3.457573627 | F92: 0.0008692331854 | G92: 0.07478655265 | H92: -0.9880604256
A93: chr2 | B93: RP11-423P10.2 | C93: -0.5011400599 | D93: 3.149739769 | E93: -3.691755355 | F93: 0.000401380451 | G93: 0.04453836412 | H93: -0.9880919411
A94: chr10 | B94: NRBF2 | C94: -0.5403887429 | D94: 4.298489615 | E94: -3.742934943 | F94: 0.0003376366738 | G94: 0.03795066403 | H94: -0.9923035364
A95: chr7 | B95: PLOD3 | C95: 0.4723185606 | D95: 5.837176377 | E95: 3.74476911 | F95: 0.0003355416431 | G95: 0.03795066403 | H95: -0.9991584382
A96: chr22 | B96: IGLV2-5 | C96: 1.430577225 | D96: -3.832000549 | E96: 3.462612769 | F96: 0.0008551268975 | G96: 0.07478655265 | H96: -0.9994180309
A97: chr14 | B97: IGHV3-65 | C97: 1.69267223 | D97: -3.780055603 | E97: 3.439939544 | F97: 0.000920073482 | G97: 0.07657055978 | H97: -1.033304421
A98: chr7 | B98: TRBJ2-3 | C98: 1.149729048 | D98: -2.919456994 | E98: 3.455976174 | F98: 0.0008736746805 | G98: 0.07478655265 | H98: -1.093646468
A99: chr22 | B99: IGLV2-28 | C99: 1.935330605 | D99: -1.764904333 | E99: 3.472803707 | F99: 0.0008292382525 | G99: 0.07478655265 | H99: -1.12602321
A100: chr22 | B100: IGLV2-34 | C100: 1.626693331 | D100: -1.722030219 | E100: 3.46567382 | F100: 0.00084821457 | G100: 0.07478655265 | H100: -1.199137603
A101: chr14 | B101: IGHV1-24 | C101: 1.889617025 | D101: -1.894555759 | E101: 3.462651805 | F101: 0.0008569327164 | G101: 0.07478655265 | H101: -1.213034645
A102: chr6 | B102: SNORA8 | C102: -0.7356208188 | D102: -1.32010562 | E102: -3.4427495 | F102: 0.0009117788764 | G102: 0.07657055978 | H102: -1.224785211
A103: chr11 | B103: RPS12P21 | C103: -1.135248504 | D103: -2.453566049 | E103: -3.445434899 | F103: 0.000903917933 | G103: 0.07657055978 | H103: -1.236314375
A104: chr2 | B104: IGKV1D-37 | C104: 1.709727368 | D104: -2.637972113 | E104: 3.406705434 | F104: 0.00102519823 | G104: 0.08227215797 | H104: -1.291297075
A105: chr22 | B105: IGLV2-18 | C105: 1.688655885 | D105: -1.15938937 | E105: 3.463404343 | F105: 0.0008548501739 | G105: 0.07478655265 | H105: -1.324309445
A106: chr12 | B106: RP11-603J24.14 | C106: 0.7759021255 | D106: 4.019303038 | E106: 3.59836552 | F106: 0.0005485012171 | G106: 0.05539245999 | H106: -1.352235321
A107: chrX | B107: RP5-1172N10.4 | C107: -0.5544100225 | D107: 2.428653225 | E107: -3.545928049 | F107: 0.0006517736648 | G107: 0.06367545326 | H107: -1.371916681
A108: chr1 | B108: SNORA40 | C108: -0.6838407185 | D108: -1.563651512 | E108: -3.386328399 | F108: 0.001092632795 | G108: 0.08539637876 | H108: -1.389986577
A109: chr15 | B109: RP11-294C11.2 | C109: 1.906918155 | D109: -3.152488011 | E109: 3.340000872 | F109: 0.001267682647 | G109: 0.09106845118 | H109: -1.394266118
A110: chr8 | B110: SNORD87 | C110: -0.9587735949 | D110: -2.414277994 | E110: -3.352666365 | F110: 0.001216102754 | G110: 0.08991960888 | H110: -1.410243575
A111: chr4 | B111: RP11-756P10.6 | C111: -0.5250790827 | D111: 1.201704871 | E111: -3.479731855 | F111: 0.0008089848695 | G111: 0.07478655265 | H111: -1.418391294
A112: chrX | B112: CD99 | C112: 0.3270343598 | D112: 6.716020001 | E112: 3.582308617 | F112: 0.000578173292 | G112: 0.05774023943 | H112: -1.451336579
A113: chr21 | B113: MIR6815 | C113: -1.38220663 | D113: -3.376792974 | E113: -3.296149163 | F113: 0.001453362035 | G113: 0.09748371618 | H113: -1.453418898
A114: chr17 | B114: SNORD10 | C114: -1.059467633 | D114: -2.348318393 | E114: -3.352758221 | F114: 0.001215748641 | G114: 0.08991960888 | H114: -1.459201459
A115: chr11 | B115: RP11-819M15.2 | C115: -0.6309397849 | D115: -0.2469211964 | E115: -3.396842385 | F115: 0.001056554362 | G115: 0.08330097023 | H115: -1.497156515
A116: chr22 | B116: IGLV2-8 | C116: 1.60047575 | D116: 0.352769696 | E116: 3.457916864 | F116: 0.0008701463185 | G116: 0.07478655265 | H116: -1.505118198
A117: chr15 | B117: IGHV1OR15-1 | C117: 1.388507435 | D117: -2.738192783 | E117: 3.304261983 | F117: 0.001416818148 | G117: 0.09644330837 | H117: -1.529094923
A118: chr2 | B118: IGKV1-6 | C118: 1.930196603 | D118: -0.2927078877 | E118: 3.428336148 | F118: 0.0009571520674 | G118: 0.07892553011 | H118: -1.535416341
A119: chr22 | B119: IGLV10-54 | C119: 2.235735185 | D119: -3.456971876 | E119: 3.282245502 | F119: 0.001520890253 | G119: 0.09947036081 | H119: -1.537803303
A120: chr16 | B120: IGHV3OR16-8 | C120: 1.569488413 | D120: -3.303224298 | E120: 3.285698108 | F120: 0.001501886546 | G120: 0.09947036081 | H120: -1.554870298
A121: chr3 | B121: MIR570 | C121: -1.050761366 | D121: -2.669947813 | E121: -3.278490322 | F121: 0.001535986024 | G121: 0.09947036081 | H121: -1.583300258
A122: chr22 | B122: IGLV1-41 | C122: 1.614686268 | D122: -1.390476028 | E122: 3.328836019 | F122: 0.001313888906 | G122: 0.09225963659 | H122: -1.649736461
A123: chr11 | B123: RP11-619A14.2 | C123: -1.828673356 | D123: -0.5182275844 | E123: -3.322943883 | F123: 0.001338521972 | G123: 0.09254334985 | H123: -1.712058911
A124: chr12 | B124: A2M | C124: 0.9668303506 | D124: 10.86278148 | E124: 3.338484244 | F124: 0.001271955306 | G124: 0.09106845118 | H124: -1.82080236
A125: chr2 | B125: IGKV2D-28 | C125: 1.512924618 | D125: -0.2710682269 | E125: 3.314110211 | F125: 0.00137626688 | G125: 0.09442661617 | H125: -1.867569218
A126: chr2 | B126: NOP58 | C126: -0.5286341796 | D126: 4.835178972 | E126: -3.466665631 | F126: 0.0008439836176 | G126: 0.07478655265 | H126: -1.870318111
A127: chr5 | B127: MTND4P12 | C127: -1.681267313 | D127: 6.506113049 | E127: -3.417330701 | F127: 0.0009915687621 | G127: 0.08029027058 | H127: -1.87730211
A128: chr10 | B128: AS3MT | C128: -0.6528021885 | D128: 5.321658119 | E128: -3.463078096 | F128: 0.000854124304 | G128: 0.07478655265 | H128: -1.888747998
A129: chr22 | B129: IGLV2-23 | C129: 1.813750265 | D129: 1.348024848 | E129: 3.352150139 | F129: 0.001220537637 | G129: 0.08991960888 | H129: -1.914974973
A130: chrX | B130: RPS4X | C130: -0.4501175854 | D130: 8.668065093 | E130: -3.369607114 | F130: 0.001152410605 | G130: 0.08852877365 | H130: -1.92020048
A131: chr4 | B131: ENAM | C131: 1.379850251 | D131: 3.409509856 | E131: 3.398953026 | F131: 0.001051654291 | G131: 0.08330097023 | H131: -1.996381133
A132: chr11 | B132: RAB6A | C132: -0.3953109245 | D132: 5.829148877 | E132: -3.423717314 | F132: 0.0009693684632 | G132: 0.07920621588 | H132: -1.996666957
A133: chr22 | B133: IGLC6 | C133: 1.757084437 | D133: 2.160082463 | E133: 3.35908542 | F133: 0.001193995591 | G133: 0.08991960888 | H133: -2.00744552
A134: chr10 | B134: OTUD1 | C134: -0.5705586634 | D134: 2.739639952 | E134: -3.331784826 | F134: 0.00129916913 | G134: 0.09194434759 | H134: -2.060556366
A135: chr3 | B135: TFRC | C135: -0.9462544647 | D135: 5.097194983 | E135: -3.384122364 | F135: 0.001102627518 | G135: 0.0854346218 | H135: -2.098629816
A136: chr2 | B136: IL1RN | C136: -1.335985201 | D136: 5.261714657 | E136: -3.363142402 | F136: 0.001178721858 | G136: 0.08978264454 | H136: -2.155756351
A137: chr5 | B137: TGFBI | C137: 0.6638448389 | D137: 6.69400502 | E137: 3.323582912 | F137: 0.001333232057 | G137: 0.09254334985 | H137: -2.197026904
A138: chr11 | B138: CD151 | C138: 0.7075400953 | D138: 6.747790018 | E138: 3.337534304 | F138: 0.001276660531 | G138: 0.09106845118 | H138: -2.207377983
A139: chr20 | B139: SRSF6 | C139: -0.3800474451 | D139: 5.981494495 | E139: -3.34594464 | F139: 0.001242280378 | G139: 0.09077736617 | H139: -2.214695835
A140: chr22 | B140: IGLC5 | C140: 1.705873775 | D140: 2.059205549 | E140: 3.272414137 | F140: 0.001568314205 | G140: 0.09947036081 | H140: -2.253568232
A141: chr12 | B141: MTERF2 | C141: -0.4277239507 | D141: 3.033331261 | E141: -3.268507265 | F141: 0.001584624813 | G141: 0.09958686859 | H141: -2.262343852
A142: chr8 | B142: TRIB1 | C142: -0.8737044513 | D142: 6.598782759 | E142: -3.285007993 | F142: 0.001507808827 | G142: 0.09947036081 | H142: -2.309577329
A143: chr21 | B143: AP001615.9 | C143: -0.7946507663 | D143: 3.76617458 | E143: -3.302456328 | F143: 0.001427120607 | G143: 0.09644330837 | H143: -2.31995804
A144: chr4 | B144: JCHAIN | C144: 1.460421221 | D144: 2.804166431 | E144: 3.275685519 | F144: 0.001552382063 | G144: 0.09947036081 | H144: -2.33878355
A145: chr6 | B145: HCG4P5 | C145: 0.8951083272 | D145: 6.524549104 | E145: 3.274731297 | F145: 0.00155701352 | G145: 0.09947036081 | H145: -2.39080467
A146: chr8 | B146: DGAT1 | C146: -0.5232843158 | D146: 5.527022439 | E146: -3.271169117 | F146: 0.001571516604 | G146: 0.09947036081 | H146: -2.467371417
A147: chr19 | B147: MAN2B1 | C147: 0.4423776775 | D147: 5.68781515 | E147: 3.266311023 | F147: 0.001595517254 | G147: 0.09958686859 | H147: -2.472411638

Sheet Supplementary Table 5.
A1: Table S5. Sex-biased gene expression in TCGA LIHC tumor samples with an FDR-adjusted p-value ≤ 0.01 and an absolute log2 fold-change ≥ 2. N males = 22, N females = 18.
A3: Chromosome | B3: Gene name | C3: log2FC | D3: Average expression | E3: t-statistic | F3: p-value | G3: FDR adjusted p-value | H3: B-statistic
A4: chrY | B4: PSMA6P1 | C4: 9.116527579 | D4: -1.414744341 | E4: 43.32103708 | F4: 4.44E-58 | G4: 5.28E-54 | H4: 103.4071609
A5: chrY | B5: EIF4A1P2 | C5: 7.642641636 | D5: -2.147605267 | E5: 33.8320132 | F5: 8.85E-50 | G5: 5.27E-46 | H5: 90.85215115
A6: chrY | B6: AC006386.1 | C6: 8.745121841 | D6: -1.464800377 | E6: 31.04180816 | F6: 6.02E-47 | G6: 2.39E-43 | H6: 86.66501051
A7: chrY | B7: AC012005.1 | C7: 6.825499427 | D7: -2.685658366 | E7: 26.96297985 | F7: 2.15E-42 | G7: 6.39E-39 | H7: 78.0856114
A8: chrY | B8: VDAC1P6 | C8: 6.575945792 | D8: -2.800582977 | E8: 25.8812665 | F8: 4.29E-41 | G8: 1.02E-37 | H8: 75.67900682
A9: chrY | B9: KRT18P10 | C9: 8.428618485 | D9: -1.540807675 | E9: 24.58146106 | F9: 1.79E-39 | G9: 3.56E-36 | H9: 73.43541345
A10: chrY | B10: RPS4Y1 | C10: 12.66175846 | D10: 0.8373223278 | E10: 24.37889481 | F10: 3.26E-39 | G10: 5.54E-36 | H10: 72.93347789
A11: chrY | B11: DDX3Y | C11: 10.79707594 | D11: -0.1732584895 | E11: 23.88161513 | F11: 1.42E-38 | G11: 2.12E-35 | H11: 71.68630454
A12: chrX | B12: XIST_intron | C12: -8.053559208 | D12: -3.218751258 | E12: -22.7663112 | F12: 4.26E-37 | G12: 5.64E-34 | H12: 68.16818728
A13: chrY | B13: EIF1AY | C13: 9.907722821 | D13: -0.7242442671 | E13: 19.52735714 | F13: 1.71E-32 | G13: 2.03E-29 | H13: 60.02970851
A14: chrX | B14: TSIX | C14: -9.480674677 | D14: 0.6529273792 | E14: -18.66497493 | F14: 3.99E-31 | G14: 4.31E-28 | H14: 58.76864128
A15: chrX | B15: XIST | C15: -10.91488215 | D15: 0.2102547292 | E15: -17.69390778 | F15: 1.39E-29 | G15: 1.38E-26 | H15: 55.28623534
A16: chrX | B16: Xist_exon4 | C16: -6.986714836 | D16: -3.63811601 | E16: -14.76169413 | F16: 9.39E-25 | G16: 8.60E-22 | H16: 43.85243048
A17: chrX | B17: Xist_exon1 | C17: -3.296846671 | D17: -5.476436642 | E17: -9.558869955 | F17: 5.85E-15 | G17: 4.97E-12 | H17: 22.93941813
A18: chrY | B18: CD24P4 | C18: 5.759239544 | D18: -3.034024747 | E18: 8.805873743 | F18: 1.86E-13 | G18: 1.48E-10 | H18: 19.97521781
A19: chr14 | B19: AE000658.22 | C19: -2.023525156 | D19: -0.8594094375 | E19: -5.636501722 | F19: 2.41E-07 | G19: 0.0001247577196 | H19: 6.681385646
A20: chr19 | B20: CYP4F22 | C20: -2.308097348 | D20: 2.33365 | E20: -5.653825929 | F20: 2.27E-07 | G20: 0.0001227716785 | H20: 6.445169967
A21: chr12 | B21: DTX1 | C21: -2.093744009 | D21: 3.596428728 | E21: -5.518847507 | F21: 3.97E-07 | G21: 0.000181993369 | H21: 5.759383501
A22: chr1 | B22: ADORA2BP1 | C22: 2.230652643 | D22: -0.2726909347 | E22: 5.371217602 | F22: 7.24E-07 | G22: 0.0002837206827 | H22: 5.594943469
A23: chrY | B23: ACTG1P2 | C23: 6.281343604 | D23: -3.960180612 | E23: 5.325204199 | F23: 8.80E-07 | G23: 0.0003174679099 | H23: 5.536430451
A24: chr6 | B24: CD24 | C24: -3.015807421 | D24: 4.621288222 | E24: -5.365553165 | F24: 7.46E-07 | G24: 0.0002837206827 | H24: 5.134931798
A25: chr20 | B25: RP4-568C11.4 | C25: -2.188098257 | D25: 0.3700621642 | E25: -5.147579492 | F25: 1.81E-06 | G25: 0.0005241314017 | H25: 4.608159736
A26: chrY | B26: ACTG1P11 | C26: 6.122395645 | D26: -4.006211797 | E26: 5.076814167 | F26: 2.40E-06 | G26: 0.000679162413 | H26: 4.606046706
A27: chr10 | B27: LINC00844 | C27: 3.266851715 | D27: 2.051758153 | E27: 5.157150237 | F27: 1.74E-06 | G27: 0.0005169762154 | H27: 4.597992762
A28: chrX | B28: ZCCHC16 | C28: 3.015410237 | D28: -1.611457612 | E28: 5.005671529 | F28: 3.18E-06 | G28: 0.0008402717877 | H28: 4.282252308
A29: chr5 | B29: CXCL14 | C29: -2.013643486 | D29: 1.328652378 | E29: -4.9997098 | F29: 3.26E-06 | G29: 0.0008425573435 | H29: 3.959422565
A30: chrX | B30: BEX1 | C30: -2.527134781 | D30: -1.004902391 | E30: -4.940422818 | F30: 4.11E-06 | G30: 0.0008747751897 | H30: 3.939010271
A31: chr19 | B31: ATF5 | C31: -2.248468739 | D31: 8.009022354 | E31: -4.98986181 | F31: 3.39E-06 | G31: 0.0008557802437 | H31: 3.85271045
A32: chr19 | B32: CTC-326K19.6 | C32: -2.159432197 | D32: 8.08111895 | E32: -4.985026886 | F32: 3.45E-06 | G32: 0.0008557802437 | H32: 3.838263465
A33: chr10 | B33: FGFR2 | C33: -2.262377203 | D33: 4.412170276 | E33: -4.733140789 | F33: 9.24E-06 | G33: 0.001616823833 | H33: 2.688607797
A34: chr21 | B34: LINC01436 | C34: -2.659434992 | D34: -3.932051902 | E34: -4.527995955 | F34: 2.01E-05 | G34: 0.002574304297 | H34: 2.612138014
A35: chr1 | B35: RP4-580N22.2 | C35: 2.171587261 | D35: 1.432468339 | E35: 4.590125201 | F35: 1.60E-05 | G35: 0.002251592993 | H35: 2.460932991
A36: chr12 | B36: NTS | C36: -2.551507532 | D36: -1.916899579 | E36: -4.363180916 | F36: 3.74E-05 | G36: 0.00365080446 | H36: 1.89122025
A37: chr19 | B37: HAMP | C37: -3.36534555 | D37: 4.22030435 | E37: -4.451864572 | F37: 2.69E-05 | G37: 0.003050847193 | H37: 1.868442324
A38: chr17 | B38: GGT6 | C38: -2.113178389 | D38: -2.27758771 | E38: -4.326020314 | F38: 4.27E-05 | G38: 0.004013296649 | H38: 1.817199417
A39: chr7 | B39: GPR37 | C39: -2.400120335 | D39: 2.772897743 | E39: -4.451768284 | F39: 2.69E-05 | G39: 0.003050847193 | H39: 1.782391442
A40: chr14 | B40: IGHJ3 | C40: -2.823121571 | D40: -0.4431823575 | E40: -4.315677094 | F40: 4.46E-05 | G40: 0.004095759456 | H40: 1.601618818
A41: chr1 | B41: RP11-495P10.9 | C41: 3.476893164 | D41: -5.05691204 | E41: 4.146370365 | F41: 8.25E-05 | G41: 0.006135675938 | H41: 1.362717242
A42: chr3 | B42: COL7A1 | C42: 2.160154139 | D42: 0.4091563252 | E42: 4.229256661 | F42: 6.12E-05 | G42: 0.00509152299 | H42: 1.236999434
A43: chr14 | B43: IGHV1-69 | C43: -3.015149603 | D43: -0.9619801919 | E43: -4.183887125 | F43: 7.21E-05 | G43: 0.005646975018 | H43: 1.224581981
A44: chr14 | B44: IGHV1-46 | C44: -2.568463407 | D44: -1.30408054 | E44: -4.163269306 | F44: 7.77E-05 | G44: 0.00592754473 | H44: 1.181274159
A45: chr11 | B45: APOA4 | C45: -3.20000867 | D45: 2.824447753 | E45: -4.263174877 | F45: 5.40E-05 | G45: 0.004730778166 | H45: 1.106995588
A46: chr6 | B46: VNN1 | C46: -2.507725493 | D46: 6.181607076 | E46: -4.219941003 | F46: 6.33E-05 | G46: 0.005151171597 | H46: 0.9008186609
A47: chr7 | B47: RP5-907C10.3 | C47: -2.020063493 | D47: -0.6586302252 | E47: -4.076932756 | F47: 0.0001057969108 | G47: 0.007280417473 | H47: 0.8534476648
A48: chr14 | B48: RP11-731F5.2 | C48: -2.349808608 | D48: 2.599418622 | E48: -4.17215951 | F48: 7.52E-05 | G48: 0.005814936001 | H48: 0.7745396854
A49: chr14 | B49: IGHV5-51 | C49: -2.415310162 | D49: -0.3309614194 | E49: -4.042462847 | F49: 0.0001196602504 | G49: 0.007914196007 | H49: 0.6765807971
A50: chrX | B50: RP11-431J24.2 | C50: 3.072112378 | D50: -2.021768711 | E50: 3.943429741 | F50: 0.0001696066447 | G50: 0.009721619878 | H50: 0.5448386817
A51: chr14 | B51: IGHV3-7 | C51: -2.35610282 | D51: -0.2760254008 | E51: -3.980712106 | F51: 0.0001488213381 | G51: 0.009035370584 | H51: 0.4533832055
A52: chr16 | B52: IGFALS | C52: -2.123580203 | D52: 3.889900835 | E52: -4.050046929 | F52: 0.0001164822547 | G52: 0.007790568775 | H52: 0.3199821421
A53: chr2 | B53: IGKV3-15 | C53: -2.504722529 | D53: 1.13680061 | E53: -3.986136012 | F53: 0.0001460089257 | G53: 0.008959980723 | H53: 0.3029247536
A54: chr2 | B54: IGKV4-1 | C54: -2.192987321 | D54: 1.600916269 | E54: -3.962909283 | F54: 0.0001584221201 | G54: 0.009383160895 | H54: 0.1695645126
A55: chr3 | B55: UROC1 | C55: -2.359972286 | D55: 4.355602786 | E55: -3.982091493 | F55: 0.0001481012104 | G55: 0.009035370584 | H55: 0.0883212245

Sheet Supplementary Table 6.
A1: Table S6. Differentially expressed genes between matched tumor and tumor-adjacent samples in the combined analysis of male and female samples with an FDR-adjusted p-value ≤ 0.01 and an absolute log2 fold-change ≥ 2. N male sample pairs = 22, N female sample pairs = 18.
A3: Chromosome | B3: Gene name | C3: log2FC | D3: Average expression | E3: t-statistic | F3: p-value | G3: FDR adjusted p-value | H3: B-statistic
A4: chr10 | B4: GDF2 | C4: -8.176824877 | D4: -0.7929489346 | E4: -30.81164797 | F4: 2.59E-47 | G4: 3.12E-43 | H4: 95.92566214
A5: chr1 | B5: ECM1 | C5: -3.718475049 | D5: 3.367762887 | E5: -28.02460925 | F5: 3.10E-44 | G5: 1.87E-40 | H5: 90.44265356
A6: chr19 | B6: CLEC4G | C6: -7.546541431 | D6: 1.383892673 | E6: -27.80928473 | F6: 7.48E-44 | G6: 3.01E-40 | H6: 89.2270617
A7: chr5 | B7: CXCL14 | C7: -6.755072263 | D7: 1.336212172 | E7: -27.48739366 | F7: 1.79E-43 | G7: 5.41E-40 | H7: 88.39589198
A8: chr8 | B8: RP11-278I4.2 | C8: -5.154547971 | D8: -0.6568866193 | E8: -25.20702866 | F8: 8.54E-41 | G8: 2.06E-37 | H8: 81.94145069
A9: chr5 | B9: CRHBP | C9: -5.978016465 | D9: 2.459890556 | E9: -25.02399724 | F9: 1.91E-40 | G9: 3.84E-37 | H9: 81.74348989
A10: chr19 | B10: CLEC4M | C10: -8.435423422 | D10: -0.006415347405 | E10: -24.57419886 | F10: 7.20E-40 | G10: 1.24E-36 | H10: 79.91337707
A11: chr9 | B11: FCN2 | C11: -6.46459211 | D11: 1.778842179 | E11: -23.14554899 | F11: 5.58E-38 | G11: 8.42E-35 | H11: 76.08980234
A12: chrX | B12: CFP | C12: -4.04605251 | D12: 2.314978078 | E12: -22.18544361 | F12: 1.12E-36 | G12: 1.51E-33 | H12: 73.16982544
A13: chr1 | B13: FCN3 | C13: -5.400841482 | D13: 3.521930965 | E13: -21.87785472 | F13: 3.13E-36 | G13: 3.78E-33 | H13: 72.15549699
A14: chr2 | B14: MARCO | C14: -7.010568277 | D14: 1.937632605 | E14: -21.71876619 | F14: 5.25E-36 | G14: 5.76E-33 | H14: 71.58691603
A15: chr10 | B15: SFRP5 | C15: -6.13664206 | D15: 0.3258883851 | E15: -20.90405009 | F15: 7.74E-35 | G15: 7.79E-32 | H15: 68.81362717
A16: chr12 | B16: RP11-341G23.4 | C16: -4.32178128 | D16: 1.435671244 | E16: -20.12221926 | F16: 1.10E-33 | G16: 1.02E-30 | H16: 66.31429588
A17: chr16 | B17: RP11-510M2.5 | C17: -5.009068529 | D17: -1.275885419 | E17: -19.54141878 | F17: 7.15E-33 | G17: 6.17E-30 | H17: 64.14666535
A18: chr19 | B18: PLVAP | C18: 2.976698587 | D18: 4.191640042 | E18: 19.22231311 | F18: 2.21E-32 | G18: 1.78E-29 | H18: 63.33679916
A19: chr4 | B19: LINC01093 | C19: -5.474958758 | D19: 1.521336979 | E19: -19.1676806 | F19: 3.06E-32 | G19: 2.31E-29 | H19: 63.01078639
A20: chr14 | B20: RP11-614O9.1 | C20: -4.845511283 | D20: -2.128606978 | E20: -18.18595472 | F20: 8.89E-31 | G20: 6.31E-28 | H20: 59.26842126
A21: chr8 | B21: NAT2 | C21: -4.366517664 | D21: 2.540327047 | E21: -17.91606958 | F21: 2.84E-30 | G21: 1.91E-27 | H21: 58.50583643
A22: chr3 | B22: SLC26A6 | C22: 2.346819081 | D22: 2.132899807 | E22: 17.63720125 | F22: 6.80E-30 | G22: 4.32E-27 | H22: 57.64254983
A23: chr16 | B23: CHST4 | C23: -4.471926907 | D23: 0.5030109509 | E23: -17.44952293 | F23: 1.61E-29 | G23: 9.75E-27 | H23: 56.76724047
A24: chr11 | B24: IGF2-AS | C24: -6.020068417 | D24: 0.7543092457 | E24: -17.29314643 | F24: 2.91E-29 | G24: 1.67E-26 | H24: 56.19292558
A25: chr17 | B25: NGFR | C25: -2.824932405 | D25: 2.998964979 | E25: -16.94557555 | F25: 1.04E-28 | G25: 5.45E-26 | H25: 54.89606585
A26: chr17 | B26: BIRC5 | C26: 3.730830696 | D26: 0.9141152017 | E26: 16.86409864 | F26: 1.36E-28 | G26: 6.57E-26 | H26: 54.65284804
A27: chr18 | B27: SMUG1P1 | C27: -4.91520901 | D27: -1.828349448 | E27: -16.91330397 | F27: 1.12E-28 | G27: 5.65E-26 | H27: 54.62765512
A28: chr3 | B28: DNASE1L3 | C28: -3.616183782 | D28: 4.200096335 | E28: -16.79033278 | F28: 1.97E-28 | G28: 9.14E-26 | H28: 54.24543745
A29: chr5 | B29: PTTG1 | C29: 3.282723523 | D29: 0.8050333326 | E29: 16.49674292 | F29: 5.32E-28 | G29: 2.14E-25 | H29: 53.29706993
A30: chr11 | B30: TTC36 | C30: -4.168808913 | D30: 3.403564162 | E30: -16.53806208 | F30: 5.20E-28 | G30: 2.14E-25 | H30: 53.28853201
A31: chr5 | B31: KIF20A | C31: 2.724340572 | D31: 0.8829165377 | E31: 16.43903345 | F31: 6.61E-28 | G31: 2.57E-25 | H31: 53.08337407
A32: chr5 | B32: RP11-175K6.2 | C32: 3.990136565 | D32: -3.763399988 | E32: 16.66325423 | F32: 2.77E-28 | G32: 1.24E-25 | H32: 52.89944766
A33: chr11 | B33: BCO2 | C33: -3.511581216 | D33: 3.3331472 | E33: -16.41686248 | F33: 8.31E-28 | G33: 3.14E-25 | H33: 52.81941356
A34: chr1 | B34: FCGR2B | C34: -3.311257175 | D34: 2.325486085 | E34: -16.17424907 | F34: 2.14E-27 | G34: 7.60E-25 | H34: 51.89455091
A35: chr19 | B35: HAMP | C35: -7.333467678 | D35: 4.226977895 | E35: -16.16017716 | F35: 2.26E-27 | G35: 7.80E-25 | H35: 51.86968431
A36: chr6 | B36: KIFC1 | C36: 2.44549682 | D36: 1.505370816 | E36: 16.09145 | F36: 2.58E-27 | G36: 8.64E-25 | H36: 51.7468333
A37: chr16 | B37: PLK1 | C37: 3.189740701 | D37: 0.4191690938 | E37: 15.98102423 | F37: 3.98E-27 | G37: 1.27E-24 | H37: 51.28858523
A38: chr1 | B38: CD5L | C38: -4.97176714 | D38: 2.816829015 | E38: -15.94849398 | F38: 5.19E-27 | G38: 1.53E-24 | H38: 51.01004405
A39: chr12 | B39: TROAP | C39: 3.805883049 | D39: -0.4701184902 | E39: 15.92318534 | F39: 5.05E-27 | G39: 1.52E-24 | H39: 50.99515396
A40: chr4 | B40: AADAT | C40: -3.15973244 | D40: 3.22688448 | E40: -15.93387682 | F40: 5.50E-27 | G40: 1.58E-24 | H40: 50.9231893
A41: chr15 | B41: PRC1 | C41: 2.929919581 | D41: 1.640520416 | E41: 15.87311155 | F41: 6.19E-27 | G41: 1.74E-24 | H41: 50.87807213
A42: chr20 | B42: UBE2C | C42: 3.799360426 | D42: 0.2672866622 | E42: 15.87807067 | F42: 6.33E-27 | G42: 1.74E-24 | H42: 50.82890629
A43: chr17 | B43: AURKB | C43: 2.973192204 | D43: -0.1539342401 | E43: 15.82619841 | F43: 7.36E-27 | G43: 1.97E-24 | H43: 50.65107573
A44: chr5 | B44: CCNB1 | C44: 2.848012778 | D44: 1.580333656 | E44: 15.75144214 | F44: 9.96E-27 | G44: 2.51E-24 | H44: 50.40598243
A45: chr12 | B45: CDCA3 | C45: 2.796423975 | D45: 0.0212622343 | E45: 15.75312208 | F45: 9.84E-27 | G45: 2.51E-24 | H45: 50.36580304
A46: chr10 | B46: CXCL12 | C46: -3.395063887 | D46: 5.548015189 | E46: -15.78971039 | F46: 9.73E-27 | G46: 2.51E-24 | H46: 50.35426929
A47: chr15 | B47: PRC1-AS1 | C47: 2.925108219 | D47: 1.526982931 | E47: 15.6441318 | F47: 1.54E-26 | G47: 3.72E-24 | H47: 49.97400451
A48: chr11 | B48: FAM99A | C48: -4.921390538 | D48: 1.937674411 | E48: -15.67756247 | F48: 1.52E-26 | G48: 3.72E-24 | H48: 49.95449931
A49: chr16 | B49: LCAT | C49: -3.155678035 | D49: 5.384085566 | E49: -15.64254475 | F49: 1.75E-26 | G49: 4.13E-24 | H49: 49.75860841
A50: chr12 | B50: FOXM1 | C50: 3.065111748 | D50: 1.766927364 | E50: 15.53984666 | F50: 2.43E-26 | G50: 5.55E-24 | H50: 49.51756972
A51: chr16 | B51: MT1F | C51: -5.48094438 | D51: 4.017553706 | E51: -15.539356 | F51: 2.63E-26 | G51: 5.89E-24 | H51: 49.39287494
A52: chr1 | B52: CD34 | C52: 2.237568668 | D52: 3.516915038 | E52: 15.49748956 | F52: 2.74E-26 | G52: 6.01E-24 | H52: 49.35336008
A53: chr1 | B53: CDC20 | C53: 3.818631128 | D53: 0.4525864365 | E53: 15.4420367 | F53: 3.72E-26 | G53: 7.87E-24 | H53: 49.08898322
A54: chr2 | B54: PLGLA | C54: -2.35942525 | D54: 4.178931788 | E54: -15.47082241 | F54: 3.33E-26 | G54: 7.19E-24 | H54: 49.0851788
A55: chr4 | B55: HAND2 | C55: -3.52472713 | D55: 0.2460669383 | E55: -15.39386777 | F55: 4.39E-26 | G55: 8.98E-24 | H55: 48.93255636
A56: chr12 | B56: GPR182 | C56: -4.378402786 | D56: -0.5182988914 | E56: -15.41253736 | F56: 4.37E-26 | G56: 8.98E-24 | H56: 48.92591069
A57: chr11 | B57: RPS12P21 | C57: -3.675140446 | D57: -2.603965308 | E57: -15.28392801 | F57: 6.46E-26 | G57: 1.30E-23 | H57: 48.34010121
A58: chr1 | B58: UBE2T | C58: 3.148159006 | D58: 0.3817997005 | E58: 15.12839359 | F58: 1.21E-25 | G58: 2.33E-23 | H58: 47.91576396
A59: chr10 | B59: CDK1 | C59: 3.325725096 | D59: 0.7843817704 | E59: 15.02748064 | F59: 1.93E-25 | G59: 3.63E-23 | H59: 47.4694342
A60: chr16 | B60: CTD-2196E14.5 | C60: 3.597592366 | D60: -2.400099655 | E60: 14.83662572 | F60: 3.99E-25 | G60: 7.19E-23 | H60: 46.47806412
A61: chr12 | B61: APOF | C61: -4.033734217 | D61: 5.528870427 | E61: -14.77847216 | F61: 5.70E-25 | G61: 1.01E-22 | H61: 46.30256627
A62: chr11 | B62: FAM99B | C62: -4.255318337 | D62: 0.600631185 | E62: -14.71700356 | F62: 7.34E-25 | G62: 1.28E-22 | H62: 46.1364233
A63: chr8 | B63: ADRA1A | C63: -3.891296848 | D63: 4.463800662 | E63: -14.43272897 | F63: 2.36E-24 | G63: 3.81E-22 | H63: 44.85831313
A64: chr18 | B64: CNDP1 | C64: -5.698648545 | D64: 2.077325598 | E64: -14.39483788 | F64: 2.77E-24 | G64: 4.39E-22 | H64: 44.77532605
A65: chr1 | B65: RP11-25K21.1 | C65: -3.275387913 | D65: 0.3998209698 | E65: -14.33047038 | F65: 3.49E-24 | G65: 5.40E-22 | H65: 44.59621828
A66: chr1 | B66: CD1D | C66: -2.282176609 | D66: 2.210078191 | E66: -14.03676927 | F66: 1.13E-23 | G66: 1.65E-21 | H66: 43.3586608
A67: chr16 | B67: MT1E | C67: -4.914635843 | D67: 5.984768823 | E67: -14.04519516 | F67: 1.18E-23 | G67: 1.70E-21 | H67: 43.31117417
A68: chr16 | B68: MT1G | C68: -6.301985623 | D68: 5.714263859 | E68: -13.99621864 | F68: 1.45E-23 | G68: 2.07E-21 | H68: 43.12824877
A69: chr17 | B69: TOP2A | C69: 3.641724438 | D69: 2.085064717 | E69: 13.96141303 | F69: 1.68E-23 | G69: 2.34E-21 | H69: 43.00942299
A70: chr15 | B70: CYP1A2 | C70: -6.704838219 | D70: 4.499522369 | E70: -13.73869307 | F70: 4.29E-23 | G70: 5.64E-21 | H70: 42.04611997
A71: chr16 | B71: IGFALS | C71: -4.550402746 | D71: 3.891292654 | E71: -13.74930759 | F71: 4.11E-23 | G71: 5.45E-21 | H71: 42.02230679
A72: chr1 | B72: DIRAS3 | C72: -3.738998619 | D72: 0.2278893405 | E72: -13.59297607 | F72: 7.95E-23 | G72: 1.01E-20 | H72: 41.50170543
A73: chr16 | B73: MT1M | C73: -5.662788697 | D73: 3.136264002 | E73: -13.49697222 | F73: 1.20E-22 | G73: 1.47E-20 | H73: 40.99485327
A74: chr14 | B74: GSTZ1 | C74: -2.24854571 | D74: 5.178390702 | E74: -13.4357368 | F74: 1.55E-22 | G74: 1.89E-20 | H74: 40.6388782
A75: chr16 | B75: CETP | C75: -2.868119054 | D75: 2.697040595 | E75: -13.3865223 | F75: 1.91E-22 | G75: 2.31E-20 | H75: 40.49768941
A76: chr6 | B76: TCF19 | C76: 2.400169038 | D76: 1.76675613 | E76: 13.32619421 | F76: 2.26E-22 | G76: 2.66E-20 | H76: 40.42889439
A77: chr8 | B77: C8orf4 | C77: -2.587162788 | D77: 5.016811664 | E77: -13.37469646 | F77: 2.01E-22 | G77: 2.41E-20 | H77: 40.38611761
A78: chr16 | B78: KDM8 | C78: -2.754645976 | D78: 4.155497285 | E78: -13.36638883 | F78: 2.08E-22 | G78: 2.47E-20 | H78: 40.35766676
A79: chr16 | B79: MT1JP | C79: -5.675240606 | D79: 1.903619185 | E79: -13.32001783 | F79: 2.54E-22 | G79: 2.95E-20 | H79: 40.28221144
A80: chr16 | B80: PKMYT1 | C80: 2.148642167 | D80: 2.085164834 | E80: 13.28019561 | F80: 2.73E-22 | G80: 3.14E-20 | H80: 40.23075537
A81: chr12 | B81: SLCO1B3 | C81: -5.421264125 | D81: 3.534496945 | E81: -13.28269543 | F81: 2.98E-22 | G81: 3.40E-20 | H81: 40.07279653
A82: chr19 | B82: CTD-2527I21.5 | C82: -3.46301611 | D82: 3.402463845 | E82: -13.25063334 | F82: 3.42E-22 | G82: 3.86E-20 | H82: 39.8857653
A83: chr17 | B83: UBE2SP2 | C83: 2.016751723 | D83: -1.691522363 | E83: 13.13192132 | F83: 5.17E-22 | G83: 5.63E-20 | H83: 39.59149802
A84: chr4 | B84: FAM13A-AS1 | C84: -2.476721648 | D84: 3.959293404 | E84: -13.12621028 | F84: 5.83E-22 | G84: 6.28E-20 | H84: 39.32417054
A85: chr20 | B85: E2F1 | C85: 3.590338506 | D85: 0.9730264793 | E85: 13.07779666 | F85: 7.17E-22 | G85: 7.56E-20 | H85: 39.31525052
A86: chr3 | B86: CSRNP1 | C86: -2.119875654 | D86: 4.940411962 | E86: -13.0754639 | F86: 7.20E-22 | G86: 7.56E-20 | H86: 39.09898523
A87: chr10 | B87: MKI67 | C87: 3.188535989 | D87: 1.893603274 | E87: 13.02019413 | F87: 9.19E-22 | G87: 9.41E-20 | H87: 39.03249593
A88: chr19 | B88: NOTCH3 | C88: 2.28476977 | D88: 3.45273303 | E88: 12.98956892 | F88: 1.02E-21 | G88: 1.03E-19 | H88: 38.85628263
A89: chr19 | B89: FOSB | C89: -4.180840728 | D89: 4.009974296 | E89: -12.9889802 | F89: 1.05E-21 | G89: 1.06E-19 | H89: 38.77377214
A90: chr17 | B90: CCL14 | C90: -2.209572273 | D90: 4.828644359 | E90: -12.9618852 | F90: 1.18E-21 | G90: 1.16E-19 | H90: 38.60083372
A91: chr17 | B91: CTB-186H2.3 | C91: -2.193528236 | D91: 4.831170824 | E91: -12.91332622 | F91: 1.46E-21 | G91: 1.42E-19 | H91: 38.39072869
A92: chr1 | B92: TMEM82 | C92: -3.006111738 | D92: 3.104347059 | E92: -12.87190751 | F92: 1.74E-21 | G92: 1.68E-19 | H92: 38.26147879
A93: chr18 | B93: RP11-231E4.3 | C93: -5.514649419 | D93: -1.604120445 | E93: -12.76116883 | F93: 2.82E-21 | G93: 2.62E-19 | H93: 37.96963262
A94: chr4 | B94: MT2P1 | C94: -3.906194997 | D94: 2.173795316 | E94: -12.78062154 | F94: 2.59E-21 | G94: 2.42E-19 | H94: 37.94534505
A95: chr16 | B95: MT1H | C95: -6.921834015 | D95: 2.233472977 | E95: -12.73720666 | F95: 3.12E-21 | G95: 2.86E-19 | H95: 37.79591384
A96: chr12 | B96: NDUFA4L2 | C96: 2.354507529 | D96: 1.898583507 | E96: 12.69470201 | F96: 3.50E-21 | G96: 3.18E-19 | H96: 37.70651244
A97: chr2 | B97: RRM2 | C97: 3.109829658 | D97: 1.950173264 | E97: 12.65231053 | F97: 4.52E-21 | G97: 3.98E-19 | H97: 37.4522978
A98: chr12 | B98: SPX | C98: -2.645246183 | D98: 4.351184158 | E98: -12.68101488 | F98: 3.99E-21 | G98: 3.54E-19 | H98: 37.39109473
A99: chr14 | B99: ASPG | C99: -4.27341486 | D99: 3.662075882 | E99: -12.60930389 | F99: 5.45E-21 | G99: 4.73E-19 | H99: 37.13154251
A100: chr1 | B100: RAB25 | C100: -3.953620691 | D100: -1.464746838 | E100: -12.54799988 | F100: 7.09E-21 | G100: 5.91E-19 | H100: 37.06404901
A101: chr1 | B101: HAO2 | C101: -4.005017989 | D101: 4.939418697 | E101: -12.57443049 | F101: 6.34E-21 | G101: 5.35E-19 | H101: 36.97679927
A102: chr2 | B102: SRD5A2 | C102: -3.265501457 | D102: 3.688789208 | E102: -12.57611404 | F102: 6.29E-21 | G102: 5.35E-19 | H102: 36.95808194
A103: chr11 | B103: MDK | C103: 3.272497808 | D103: 3.90156194 | E103: 12.54462323 | F103: 7.22E-21 | G103: 5.97E-19 | H103: 36.89448125
A104: chr20 | B104: RP4-568C11.4 | C104: -3.357790499 | D104: 0.370956809 | E104: -12.48193976 | F104: 9.49E-21 | G104: 7.30E-19 | H104: 36.74918466
A105: chr16 | B105: MT1X | C105: -4.289168346 | D105: 6.419929347 | E105: -12.5013293 | F105: 8.72E-21 | G105: 6.98E-19 | H105: 36.70815864
A106: chr16 | B106: RP11-343H19.2 | C106: -4.292781957 | D106: 6.423668635 | E106: -12.49626928 | F106: 8.92E-21 | G106: 7.04E-19 | H106: 36.68632772
A107: chr17 | B107: C1QTNF1 | C107: -2.310275934 | D107: 4.331794583 | E107: -12.50820316 | F107: 8.46E-21 | G107: 6.81E-19 | H107: 36.63307493
A108: chr16 | B108: CDT1 | C108: 3.173943667 | D108: 0.2762196936 | E108: 12.42000367 | F108: 1.19E-20 | G108: 8.79E-19 | H108: 36.55494267
A109: chr20 | B109: AURKA | C109: 2.274299661 | D109: 1.713848984 | E109: 12.41697423 | F109: 1.17E-20 | G109: 8.73E-19 | H109: 36.50327877
A110: chr20 | B110: MT1P3 | C110: -3.505388773 | D110: -0.3118851905 | E110: -12.40705457 | F110: 1.31E-20 | G110: 9.56E-19 | H110: 36.46072307
A111: chr5 | B111: CDHR2 | C111: -3.672363871 | D111: 3.8616535 | E111: -12.40153329 | F111: 1.35E-20 | G111: 9.82E-19 | H111: 36.21774453
A112: chr1 | B112: RP11-169K16.4 | C112: -2.569370972 | D112: 3.454388172 | E112: -12.38368291 | F112: 1.46E-20 | G112: 1.05E-18 | H112: 36.11713344
A113: chr1 | B113: TNFRSF4 | C113: 2.539281242 | D113: -0.6630982872 | E113: 12.24169354 | F113: 2.50E-20 | G113: 1.69E-18 | H113: 35.8175878
A114: chr12 | B114: DCN | C114: -3.551832341 | D114: 5.707233002 | E114: -12.3007207 | F114: 2.10E-20 | G114: 1.47E-18 | H114: 35.78591604
A115: chr11 | B115: RP11-334E6.12 | C115: 2.788793713 | D115: 2.896760152 | E115: 12.25208808 | F115: 2.60E-20 | G115: 1.73E-18 | H115: 35.65314697
A116: chr3 | B116: UROC1 | C116: -4.502948603 | D116: 4.356889515 | E116: -12.25079423 | F116: 2.61E-20 | G116: 1.73E-18 | H116: 35.56810674
A117: chr12 | B117: PMCH | C117: 2.492283794 | D117: -1.447387412 | E117: 12.16790961 | F117: 3.47E-20 | G117: 2.25E-18 | H117: 35.47650667
A118: chr12 | B118: NXPH4 | C118: 3.682237174 | D118: -2.332357277 | E118: 12.15692123 | F118: 3.64E-20 | G118: 2.34E-18 | H118: 35.3726759
A119: chr7 | B119: IGFBP3 | C119: -2.271728905 | D119: 7.285488898 | E119: -12.13740263 | F119: 4.23E-20 | G119: 2.66E-18 | H119: 35.14951489
A120: chr10 | B120: CYP2C19 | C120: -2.980495594 | D120: 4.566259673 | E120: -12.14343006 | F120: 4.19E-20 | G120: 2.65E-18 | H120: 35.04869365
A121: chr6 | B121: RP11-349J5.2 | C121: -2.119719965 | D121: 1.611330231 | E121: -12.08916787 | F121: 5.02E-20 | G121: 3.12E-18 | H121: 35.02375104
A122: chr16 | B122: C16orf59 | C122: 2.756373832 | D122: -0.4845052241 | E122: 12.02863324 | F122: 6.42E-20 | G122: 3.92E-18 | H122: 34.8886292
A123: chr17 | B123: GGT6 | C123: -3.497871659 | D123: -2.275455534 | E123: -12.01929577 | F123: 6.81E-20 | G123: 4.07E-18 | H123: 34.8124458
A124: chr11 | B124: THY1 | C124: 2.768621022 | D124: 3.460443494 | E124: 12.06564673 | F124: 5.90E-20 | G124: 3.62E-18 | H124: 34.80462306
A125: chr21 | B125: RCAN1 | C125: -2.143746256 | D125: 5.773402399 | E125: -12.07668815 | F125: 5.62E-20 | G125: 3.48E-18 | H125: 34.76698599
A126: chr5 | B126: TSLP | C126: -2.785578068 | D126: 0.8160329381 | E126: -11.9864173 | F126: 8.34E-20 | G126: 4.84E-18 | H126: 34.55941493
A127: chr16 | B127: MT2A | C127: -3.505823492 | D127: 8.08213748 | E127: -11.96615199 | F127: 9.16E-20 | G127: 5.20E-18 | H127: 34.42422058
A128: chr19 | B128: LILRB5 | C128: -2.051608806 | D128: 2.445605904 | E128: -11.96563203 | F128: 8.94E-20 | G128: 5.09E-18 | H128: 34.37230214
A129: chr1 | B129: MT1XP1 | C129: -4.01343891 | D129: -0.352147584 | E129: -11.87292008 | F129: 1.38E-19 | G129: 7.67E-18 | H129: 34.11777255
A130: chr1 | B130: RP11-196G18.24 | C130: 2.367418219 | D130: -1.196415593 | E130: 11.7752588 | F130: 1.98E-19 | G130: 1.02E-17 | H130: 33.7747652
A131: chr17 | B131: CDC6 | C131: 2.75537136 | D131: 0.8939958932 | E131: 11.78722083 | F131: 1.95E-19 | G131: 1.02E-17 | H131: 33.75969843
A132: chr1 | B132: MFSD2A | C132: -3.508665991 | D132: 4.641367159 | E132: -11.84327365 | F132: 1.58E-19 | G132: 8.59E-18 | H132: 33.74360939
A133: chr7 | B133: HOXA13 | C133: 6.091914061 | D133: -2.873845667 | E133: 11.79795119 | F133: 1.93E-19 | G133: 1.01E-17 | H133: 33.73924978
A134: chr12 | B134: GYS2 | C134: -3.045160106 | D134: 4.973519061 | E134: -11.82230073 | F134: 1.73E-19 | G134: 9.22E-18 | H134: 33.63986256
A135: chr1 | B135: CDKN2C | C135: 2.074682762 | D135: 1.887180639 | E135: 11.7637017 | F135: 2.10E-19 | G135: 1.08E-17 | H135: 33.62006051
A136: chr2 | B136: HOXD9 | C136: 4.344985746 | D136: -3.102065588 | E136: 11.74207751 | F136: 2.38E-19 | G136: 1.20E-17 | H136: 33.51792163
A137: chrX | B137: APLN | C137: 3.684734074 | D137: -0.3814347555 | E137: 11.68911989 | F137: 3.13E-19 | G137: 1.55E-17 | H137: 33.32711955
A138: chr16 | B138: RP11-715J22.4 | C138: 2.116220811 | D138: 0.3227105223 | E138: 11.61193155 | F138: 4.11E-19 | G138: 1.98E-17 | H138: 33.04090848
A139: chr20 | B139: FOXS1 | C139: 2.981702958 | D139: -1.728370253 | E139: 11.52385282 | F139: 6.09E-19 | G139: 2.85E-17 | H139: 32.65766175
A140: chr2 | B140: SLC19A3 | C140: -2.080575936 | D140: 3.45666303 | E140: -11.58034492 | F140: 5.09E-19 | G140: 2.40E-17 | H140: 32.57620197
A141: chr1 | B141: TACSTD2 | C141: -3.503323823 | D141: 0.7926461798 | E141: -11.52080872 | F141: 6.64E-19 | G141: 3.05E-17 | H141: 32.50581481
A142: chr16 | B142: MT1L | C142: -3.848799232 | D142: 2.062124097 | E142: -11.53414289 | F142: 6.25E-19 | G142: 2.92E-17 | H142: 32.48717258
A143: chr17 | B143: MFAP4 | C143: -2.907859265 | D143: 3.059097674 | E143: -11.52482488 | F143: 6.52E-19 | G143: 3.01E-17 | H143: 32.3509456
A144: chr11 | B144: MOGAT2 | C144: -3.161395902 | D144: 4.303477723 | E144: -11.53267635 | F144: 6.29E-19 | G144: 2.92E-17 | H144: 32.34694032
A145: chr6 | B145: ALDH8A1 | C145: -2.00693905 | D145: 6.131636218 | E145: -11.52300024 | F145: 6.54E-19 | G145: 3.01E-17 | H145: 32.3356386
A146: chr20 | B146: RP4-616B8.5 | C146: 2.968127818 | D146: -4.240693468 | E146: 11.46648856 | F146: 7.88E-19 | G146: 3.54E-17 | H146: 32.23593384
A147: chr2 | B147: PLGLB2 | C147: -2.20248976 | D147: 5.520394071 | E147: -11.49996147 | F147: 7.28E-19 | G147: 3.31E-17 | H147: 32.20217164
A148: chr5 | B148: CTD-2201I18.1 | C148: 3.605012911 | D148: 0.6074464817 | E148: 11.39281334 | F148: 1.18E-18 | G148: 5.07E-17 | H148: 31.98724466
A149: chr8 | B149: LY6E | C149: -3.285628633 | D149: 6.307798213 | E149: -11.41646436 | F149: 1.06E-18 | G149: 4.61E-17 | H149: 31.89036529
A150: chr5 | B150: C9 | C150: -3.238730425 | D150: 8.043305236 | E150: -11.3695693 | F150: 1.31E-18 | G150: 5.57E-17 | H150: 31.78886966
A151: chr4 | B151: MAD2L1 | C151: 2.040172912 | D151: 0.8797837401 | E151: 11.32042175 | F151: 1.52E-18 | G151: 6.37E-17 | H151: 31.72106618
A152: chr14 | B152: FOS | C152: -3.379053482 | D152: 6.002447316 | E152: -11.37756355 | F152: 1.26E-18 | G152: 5.39E-17 | H152: 31.7087296
A153: chr4 | B153: RP11-6E9.4 | C153: -2.15397227 | D153: 3.995138457 | E153: -11.39074533 | F153: 1.19E-18 | G153: 5.10E-17 | H153: 31.69630625
A154: chr10 | B154: ZWINT | C154: 2.199497673 | D154: 1.588890818 | E154: 11.32807984 | F154: 1.50E-18 | G154: 6.29E-17 | H154: 31.68776361
A155: chr1 | B155: RP11-196G18.22 | C155: 2.082872269 | D155: 0.6632220691 | E155: 11.29506676 | F155: 1.70E-18 | G155: 7.08E-17 | H155: 31.606662
A156: chr5 | B156: GHR | C156: -2.528646501 | D156: 5.815880595 | E156: -11.36037411 | F156: 1.36E-18 | G156: 5.79E-17 | H156: 31.58727968
A157: chr11 | B157: MUC6 | C157: -4.964970822 | D157: 0.5795685355 | E157: -11.24233262 | F157: 2.31E-18 | G157: 9.27E-17 | H157: 31.28840483
A158: chr7 | B158: TFPI2 | C158: -2.882118656 | D158: 0.6919455469 | E158: -11.23917202 | F158: 2.34E-18 | G158: 9.37E-17 | H158: 31.27094796
A159: chr10 | B159: HOGA1 | C159: -2.299152827 | D159: 4.152088717 | E159: -11.29264741 | F159: 1.84E-18 | G159: 7.55E-17 | H159: 31.2548566
A160: chr8 | B160: PTP4A3 | C160: 2.300049512 | D160: 2.292876291 | E160: 11.18908034 | F160: 2.90E-18 | G160: 1.12E-16 | H160: 30.98579615
A161: chr2 | B161: AC104809.2 | C161: -5.661850457 | D161: -0.8637671313 | E161: -11.16237307 | F161: 3.31E-18 | G161: 1.25E-16 | H161: 30.98509186
A162: chr1 | B162: ALPL | C162: -2.402026458 | D162: 4.837272736 | E162: -11.22307397 | F162: 2.52E-18 | G162: 9.88E-17 | H162: 30.94455319
A163: chr4 | B163: MFAP3L | C163: -2.113825256 | D163: 4.06401819 | E163: -11.21227769 | F163: 2.64E-18 | G163: 1.03E-16 | H163: 30.89256481
A164: chr7 | B164: AC092171.4 | C164: 2.343112868 | D164: 1.149184472 | E164: 11.12120056 | F164: 3.80E-18 | G164: 1.43E-16 | H164: 30.8030851
A165: chr4 | B165: FGFBP2 | C165: -2.245728892 | D165: -0.2243337393 | E165: -11.10528349 | F165: 4.01E-18 | G165: 1.49E-16 | H165: 30.78082594
A166: chr2 | B166: ADRA2B | C166: -2.144258415 | D166: 0.9014718956 | E166: -11.09376728 | F166: 4.25E-18 | G166: 1.57E-16 | H166: 30.66727873
A167: chr7 | B167: AKR1D1 | C167: -3.073991887 | D167: 5.199643166 | E167: -11.1042459 | F167: 4.30E-18 | G167: 1.59E-16 | H167: 30.44314058
A168: chr1 | B168: CDA | C168: -2.051959071 | D168: 3.510799795 | E168: -11.07773739 | F168: 4.85E-18 | G168: 1.77E-16 | H168: 30.31031207
A169: chr10 | B169: CLRN3 | C169: -3.297536566 | D169: 2.585444568 | E169: -11.0540355 | F169: 5.39E-18 | G169: 1.94E-16 | H169: 30.29677018
A170: chr19 | B170: LGI4 | C170: -2.886359999 | D170: 5.364069684 | E170: -11.0261569 | F170: 6.12E-18 | G170: 2.17E-16 | H170: 30.08435301
A171: chr15 | B171: CTD-2026K11.1 | C171: 2.59148258 | D171: -1.492186896 | E171: 10.9389061 | F171: 8.50E-18 | G171: 2.86E-16 | H171: 30.07438926
A172: chr4 | B172: HSD17B13 | C172: -4.92609167 | D172: 5.657517988 | E172: -10.97441225 | F172: 7.72E-18 | G172: 2.64E-16 | H172: 29.92511409
A173: chr3 | B173: MCM2 | C173: 2.253824425 | D173: 2.592727174 | E173: 10.95109485 | F173: 8.53E-18 | G173: 2.86E-16 | H173: 29.89926779
A174: chr19 | B174: FXYD1 | C174: -3.156769598 | D174: 5.286184113 | E174: -10.95522219 | F174: 8.42E-18 | G174: 2.84E-16 | H174: 29.7702801
A175: chr19 | B175: CTD-2527I21.4 | C175: -3.147106483 | D175: 5.298778536 | E175: -10.95066257 | F175: 8.60E-18 | G175: 2.88E-16 | H175: 29.74982728
A176: chr4 | B176: SLC34A2 | C176: -3.483518722 | D176: -0.3480917419 | E176: -10.82411819 | F176: 1.52E-17 | G176: 4.75E-16 | H176: 29.47406102
A177: chr17 | B177: CTD-2510F5.4 | C177: 2.377996952 | D177: -1.521540032 | E177: 10.79999456 | F177: 1.60E-17 | G177: 4.91E-16 | H177: 29.45561403
A178: chr1 | B178: CYP4A22-AS1 | C178: -2.243835524 | D178: 6.893910869 | E178: -10.85126535 | F178: 1.35E-17 | G178: 4.27E-16 | H178: 29.36451424
A179: chrX | B179: GSPT2 | C179: -2.09449946 | D179: 2.168935311 | E179: -10.83407655 | F179: 1.43E-17 | G179: 4.50E-16 | H179: 29.36205063
A180: chr9 | B180: MT1P1 | C180: -3.34052305 | D180: -0.7662960083 | E180: -10.78406361 | F180: 1.83E-17 | G180: 5.54E-16 | H180: 29.30001558
A181: chr7 | B181: STEAP4 | C181: -2.072744237 | D181: 3.776226213 | E181: -10.84868377 | F181: 1.36E-17 | G181: 4.31E-16 | H181: 29.25662293
A182: chr9 | B182: DBH | C182: -2.046224612 | D182: 3.864152518 | E182: -10.81635267 | F182: 1.58E-17 | G182: 4.89E-16 | H182: 29.11325201
A183: chr1 | B183: CYP4A22 | C183: -2.27467173 | D183: 6.858060812 | E183: -10.78106292 | F183: 1.85E-17 | G183: 5.60E-16 | H183: 29.04619574
A184: chr20 | B184: ID1 | C184: -2.325199676 | D184: 4.118319377 | E184: -10.78843331 | F184: 1.79E-17 | G184: 5.45E-16 | H184: 28.9812969
A185: chr2 | B185: STEAP3-AS1 | C185: -2.004113304 | D185: 3.566496181 | E185: -10.76408518 | F185: 2.00E-17 | G185: 5.98E-16 | H185: 28.90755929
A186: chr14 | B186: SLC25A47 | C186: -4.463183475 | D186: 5.701030281 | E186: -10.72371913 | F186: 2.40E-17 | G186: 7.06E-16 | H186: 28.78630388
A187: chr16 | B187: CTD-3203P2.1 | C187: -2.607598713 | D187: 1.206632405 | E187: -10.68899733 | F187: 2.81E-17 | G187: 8.03E-16 | H187: 28.77503681
A188: chr16 | B188: ZG16 | C188: -2.999154383 | D188: 2.586226934 | E188: -10.71710559 | F188: 2.48E-17 | G188: 7.24E-16 | H188: 28.75032302
A189: chr13 | B189: ZIC2 | C189: 5.300913773 | D189: -3.019504123 | E189: 10.65123408 | F189: 3.34E-17 | G189: 9.33E-16 | H189: 28.66415198
A190: chr12 | B190: PZP | C190: -2.355938666 | D190: 5.40333345 | E190: -10.71206841 | F190: 2.53E-17 | G190: 7.37E-16 | H190: 28.64065066
A191: chr6 | B191: IYD | C191: -2.150580578 | D191: 3.843758919 | E191: -10.70483415 | F191: 2.62E-17 | G191: 7.56E-16 | H191: 28.61789663
A192: chr5 | B192: CTC-505O3.2 | C192: -2.761186403 | D192: 2.131705432 | E192: -10.6648192 | F192: 3.14E-17 | G192: 8.83E-16 | H192: 28.54872398
A193: chr16 | B193: PRSS8 | C193: -3.589991521 | D193: 2.320905225 | E193: -10.65205108 | F193: 3.33E-17 | G193: 9.32E-16 | H193: 28.49669412
A194: chr17 | B194: KRT19 | C194: -4.563843252 | D194: 0.978393668 | E194: -10.62624941 | F194: 3.74E-17 | G194: 1.03E-15 | H194: 28.49304
A195: chr4 | B195: JCHAIN | C195: -3.703445954 | D195: 2.666380469 | E195: -10.64056821 | F195: 3.50E-17 | G195: 9.77E-16 | H195: 28.40327836
A196: chr17 | B196: GCGR | C196: -3.740125303 | D196: 3.499296347 | E196: -10.61281091 | F196: 3.97E-17 | G196: 1.09E-15 | H196: 28.2275731
A197: chr2 | B197: CXCR2P1 | C197: -2.593831399 | D197: 0.5847190356 | E197: -10.5564139 | F197: 5.14E-17 | G197: 1.37E-15 | H197: 28.18335815
A198: chr4 | B198: CXCL2 | C198: -2.737989743 | D198: 4.299718353 | E198: -10.51776333 | F198: 6.12E-17 | G198: 1.59E-15 | H198: 27.76324123
A199: chr16 | B199: PRSS22 | C199: -3.495456975 | D199: -2.380625881 | E199: -10.42044024 | F199: 9.37E-17 | G199: 2.35E-15 | H199: 27.71802571
A200: chr11 | B200: RP11-382M14.1 | C200: -2.104105836 | D200: 1.577872025 | E200: -10.4584071 | F200: 7.88E-17 | G200: 2.01E-15 | H200: 27.70628904
A201: chr22 | B201: MMP11 | C201: 2.787869694 | D201: 1.11458179 | E201: 10.42709274 | F201: 9.25E-17 | G201: 2.33E-15 | H201: 27.62788474
... 493 more rows

Sheet Supplementary Table 7.
A1: Table S7. Differentially expressed genes between matched male tumor and tumor-adjacent samples with an FDR-adjusted p-value ≤ 0.01 and an absolute log2 fold-change ≥ 2. N sample pairs = 22.
A3: Chromosome | B3: Gene name | C3: log2FC | D3: Average expression | E3: t-statistic | F3: p-value | G3: FDR adjusted p-value | H3: B-statistic
A4: chr1 | B4: ECM1 | C4: -4.211329653 | D4: 3.367762887 | E4: -23.02270455 | F4: 1.96E-37 | G4: 2.37E-33 | H4: 74.69702637
A5: chr10 | B5: GDF2 | C5: -8.436907737 | D5: -0.7929489346 | E5: -21.00256022 | F5: 1.35E-34 | G5: 8.18E-31 | H5: 66.63615521
A6: chr19 | B6: CLEC4G | C6: -7.820331166 | D6: 1.383892673 | E6: -19.54541811 | F6: 1.97E-32 | G6: 7.94E-29 | H6: 62.99904199
A7: chr5 | B7: CXCL14 | C7: -7.308610379 | D7: 1.336212172 | E7: -19.32616213 | F7: 4.20E-32 | G7: 1.27E-28 | H7: 62.15900758
A8: chr5 | B8: CRHBP | C8: -6.416836231 | D8: 2.459890556 | E8: -18.33718825 | F8: 1.36E-30 | G8: 3.28E-27 | H8: 59.12359588
A9: chr8 | B9: RP11-278I4.2 | C9: -5.297143715 | D9: -0.6568866193 | E9: -18.05640821 | F9: 3.14E-30 | G9: 6.31E-27 | H9: 57.69044078
A10: chr1 | B10: FCN3 | C10: -6.025129709 | D10: 3.521930965 | E10: -17.02879574 | F10: 1.62E-28 | G10: 2.80E-25 | H10: 54.46576605
A11: chr19 | B11: CLEC4M | C11: -8.907978227 | D11: -0.006415347405 | E11: -16.82652891 | F11: 3.46E-28 | G11: 5.23E-25 | H11: 53.05935523
A12: chrX | B12: CFP | C12: -4.301378655 | D12: 2.314978078 | E12: -16.6250919 | F12: 7.30E-28 | G12: 9.79E-25 | H12: 52.98238525
A13: chr9 | B13: FCN2 | C13: -6.298943547 | D13: 1.778842179 | E13: -16.13867123 | F13: 4.74E-27 | G13: 5.73E-24 | H13: 51.08847957
A14: chr10 | B14: SFRP5 | C14: -6.56666279 | D14: 0.3258883851 | E14: -15.54795733 | F14: 4.71E-26 | G14: 5.17E-23 | H14: 48.62183342
A15: chr12 | B15: RP11-341G23.4 | C15: -4.733259489 | D15: 1.435671244 | E15: -15.42164802 | F15: 7.73E-26 | G15: 7.78E-23 | H15: 48.33232065
A16: chr2 | B16: MARCO | C16: -7.279844645 | D16: 1.937632605 | E16: -15.21879413 | F16: 1.72E-25 | G16: 1.49E-22 | H16: 47.52226841
A17: chr16 | B17: RP11-510M2.5 | C17: -5.546052099 | D17: -1.275885419 | E17: -15.22987795 | F17: 1.50E-25 | G17: 1.39E-22 | H17: 47.18800641
A18: chr19 | B18: PLVAP | C18: 2.94235515 | D18: 4.191640042 | E18: 14.77572042 | F18: 9.23E-25 | G18: 6.96E-22 | H18: 45.92741433
A19: chr1 | B19: FCGR2B | C19: -3.980280854 | D19: 2.325486085 | E19: -14.1990463 | F19: 1.05E-23 | G19: 7.46E-21 | H19: 43.52055044
A20: chr3 | B20: SLC26A6 | C20: 2.416159156 | D20: 2.132899807 | E20: 13.83359202 | F20: 4.24E-23 | G20: 2.56E-20 | H20: 42.13197183
A21: chr16 | B21: CHST4 | C21: -4.948381059 | D21: 0.5030109509 | E21: -13.83954194 | F21: 4.61E-23 | G21: 2.65E-20 | H21: 41.97304002
A22: chr19 | B22: HAMP | C22: -8.725251017 | D22: 4.226977895 | E22: -13.51352969 | F22: 1.79E-22 | G22: 9.40E-20 | H22: 40.70714443
A23: chr10 | B23: CXCL12 | C23: -3.838146187 | D23: 5.548015189 | E23: -13.49540848 | F23: 1.93E-22 | G23: 9.72E-20 | H23: 40.61422812
A24: chr4 | B24: LINC01093 | C24: -5.259618328 | D24: 1.521336979 | E24: -13.44914711 | F24: 2.34E-22 | G24: 1.13E-19 | H24: 40.44103207
A25: chr5 | B25: RP11-175K6.2 | C25: 4.229908158 | D25: -3.763399988 | E25: 13.71912933 | F25: 6.83E-23 | G25: 3.75E-20 | H25: 40.31934907
A26: chr17 | B26: NGFR | C26: -3.064379546 | D26: 2.998964979 | E26: -13.20218632 | F26: 6.49E-22 | G26: 2.80E-19 | H26: 39.42317767
A27: chr14 | B27: RP11-614O9.1 | C27: -4.855195406 | D27: -2.128606978 | E27: -12.95944944 | F27: 1.69E-21 | G27: 6.82E-19 | H27: 38.09135951
A28: chr10 | B28: OIT3 | C28: -2.148132427 | D28: 5.186524123 | E28: -12.8655401 | F28: 2.53E-21 | G28: 9.86E-19 | H28: 38.02589604
A29: chr16 | B29: LCAT | C29: -3.394800799 | D29: 5.384085566 | E29: -12.86148737 | F29: 2.80E-21 | G29: 1.06E-18 | H29: 37.94562332
A30: chr17 | B30: BIRC5 | C30: 3.732827634 | D30: 0.9141152017 | E30: 12.72517474 | F30: 4.83E-21 | G30: 1.71E-18 | H30: 37.43943763
A31: chr6 | B31: KIFC1 | C31: 2.528154671 | D31: 1.505370816 | E31: 12.7000508 | F31: 5.09E-21 | G31: 1.76E-18 | H31: 37.3964662
A32: chr3 | B32: AMIGO3 | C32: 2.042737951 | D32: 0.4344837427 | E32: 12.54946992 | F32: 9.72E-21 | G32: 2.94E-18 | H32: 36.71958525
A33: chr11 | B33: IGF2-AS | C33: -6.334966587 | D33: 0.7543092457 | E33: -12.52708234 | F33: 1.17E-20 | G33: 3.45E-18 | H33: 36.55298708
A34: chr2 | B34: PLGLA | C34: -2.542192858 | D34: 4.178931788 | E34: -12.49304786 | F34: 1.32E-20 | G34: 3.81E-18 | H34: 36.38446232
A35: chr1 | B35: RP11-25K21.1 | C35: -3.93887367 | D35: 0.3998209698 | E35: -12.44504392 | F35: 1.63E-20 | G35: 4.57E-18 | H35: 36.23021977
A36: chr5 | B36: PTTG1 | C36: 3.249371571 | D36: 0.8050333326 | E36: 12.41871075 | F36: 1.73E-20 | G36: 4.64E-18 | H36: 36.18044732
A37: chr8 | B37: NAT2 | C37: -4.041536702 | D37: 2.540327047 | E37: -12.41194796 | F37: 1.92E-20 | G37: 4.96E-18 | H37: 36.07426982
A38: chr4 | B38: HAND2 | C38: -3.967685766 | D38: 0.2460669383 | E38: -12.40224027 | F38: 1.93E-20 | G38: 4.96E-18 | H38: 36.04763009
A39: chr5 | B39: KIF20A | C39: 2.691467271 | D39: 0.8829165377 | E39: 12.3250248 | F39: 2.56E-20 | G39: 6.32E-18 | H39: 35.79138881
A40: chr3 | B40: DNASE1L3 | C40: -3.629491775 | D40: 4.200096335 | E40: -12.34508989 | F40: 2.56E-20 | G40: 6.32E-18 | H40: 35.74751928
A41: chr11 | B41: TTC36 | C41: -4.320327604 | D41: 3.403564162 | E41: -12.33857134 | F41: 2.64E-20 | G41: 6.37E-18 | H41: 35.74042789
A42: chr12 | B42: CDCA3 | C42: 2.794284034 | D42: 0.0212622343 | E42: 11.99633104 | F42: 1.07E-19 | G42: 2.40E-17 | H42: 34.33648746
A43: chr5 | B43: CCNB1 | C43: 2.889594096 | D43: 1.580333656 | E43: 11.97281446 | F43: 1.20E-19 | G43: 2.64E-17 | H43: 34.2817157
A44: chr12 | B44: GPR182 | C44: -4.765604109 | D44: -0.5182988914 | E44: -11.96753168 | F44: 1.32E-19 | G44: 2.84E-17 | H44: 34.13746499
A45: chr16 | B45: PLK1 | C45: 3.101817866 | D45: 0.4191690938 | E45: 11.78637847 | F45: 2.69E-19 | G45: 5.50E-17 | H45: 33.46796835
A46: chr11 | B46: BCO2 | C46: -3.282376992 | D46: 3.3331472 | E46: -11.80735118 | F46: 2.65E-19 | G46: 5.50E-17 | H46: 33.44711443
A47: chr15 | B47: PRC1 | C47: 2.867834318 | D47: 1.640520416 | E47: 11.76879203 | F47: 2.95E-19 | G47: 5.83E-17 | H47: 33.39599437
A48: chr20 | B48: UBE2C | C48: 3.764636163 | D48: 0.2672866622 | E48: 11.76682386 | F48: 3.06E-19 | G48: 5.96E-17 | H48: 33.3393545
A49: chr12 | B49: TROAP | C49: 3.652662066 | D49: -0.4701184902 | E49: 11.75428903 | F49: 3.12E-19 | G49: 5.98E-17 | H49: 33.27447884
A50: chr12 | B50: FOXM1 | C50: 3.05584901 | D50: 1.766927364 | E50: 11.73833275 | F50: 3.46E-19 | G50: 6.52E-17 | H50: 33.23698882
A51: chr1 | B51: THEM5 | C51: 2.51564778 | D51: 1.503141901 | E51: 11.68589895 | F51: 4.18E-19 | G51: 7.77E-17 | H51: 33.05135039
A52: chr20 | B52: RP4-568C11.4 | C52: -4.286381441 | D52: 0.370956809 | E52: -11.66339973 | F52: 4.98E-19 | G52: 8.98E-17 | H52: 32.86407115
A53: chr18 | B53: SMUG1P1 | C53: -4.570824039 | D53: -1.828349448 | E53: -11.67769344 | F53: 4.46E-19 | G53: 8.16E-17 | H53: 32.81500453
A54: chr1 | B54: CDC20 | C54: 3.7215106 | D54: 0.4525864365 | E54: 11.6332807 | F54: 5.55E-19 | G54: 9.86E-17 | H54: 32.76204703
A55: chr15 | B55: PRC1-AS1 | C55: 2.864892112 | D55: 1.526982931 | E55: 11.60738475 | F55: 5.99E-19 | G55: 1.05E-16 | H55: 32.69621007
A56: chr1 | B56: UBE2T | C56: 3.090619074 | D56: 0.3817997005 | E56: 11.34003773 | F56: 1.93E-18 | G56: 3.09E-16 | H56: 31.53381407
A57: chr17 | B57: AURKB | C57: 2.831423421 | D57: -0.1539342401 | E57: 11.33805222 | F57: 1.94E-18 | G57: 3.09E-16 | H57: 31.50420785
A58: chr11 | B58: FAM99A | C58: -5.082633034 | D58: 1.937674411 | E58: -11.32008271 | F58: 2.26E-18 | G58: 3.38E-16 | H58: 31.3676222
A59: chr16 | B59: IGFALS | C59: -5.065654563 | D59: 3.891292654 | E59: -11.30664817 | F59: 2.40E-18 | G59: 3.49E-16 | H59: 31.27231491
A60: chr2 | B60: STEAP3 | C60: -2.204354479 | D60: 6.388446187 | E60: -11.30251357 | F60: 2.33E-18 | G60: 3.44E-16 | H60: 31.25930181
A61: chr16 | B61: CTD-2196E14.5 | C61: 3.634994904 | D61: -2.400099655 | E61: 11.3031688 | F61: 2.27E-18 | G61: 3.38E-16 | H61: 31.10191763
A62: chr16 | B62: MT1F | C62: -5.184196841 | D62: 4.017553706 | E62: -11.24660719 | F62: 3.13E-18 | G62: 4.35E-16 | H62: 31.014575
A63: chr1 | B63: CD5L | C63: -4.762970694 | D63: 2.816829015 | E63: -11.22803875 | F63: 3.40E-18 | G63: 4.67E-16 | H63: 30.92738595
A64: chr1 | B64: CD34 | C64: 2.13742442 | D64: 3.516915038 | E64: 11.17036943 | F64: 4.11E-18 | G64: 5.58E-16 | H64: 30.73410373
A65: chr5 | B65: CDHR2 | C65: -4.456934611 | D65: 3.8616535 | E65: -11.06390013 | F65: 7.04E-18 | G65: 9.35E-16 | H65: 30.18766597
A66: chr4 | B66: AADAT | C66: -2.953624619 | D66: 3.22688448 | E66: -11.04681304 | F66: 7.60E-18 | G66: 9.87E-16 | H66: 30.1004005
A67: chr10 | B67: CDK1 | C67: 3.174177621 | D67: 0.7843817704 | E67: 10.99505306 | F67: 9.27E-18 | G67: 1.15E-15 | H67: 29.99981569
A68: chr11 | B68: FAM99B | C68: -4.492437257 | D68: 0.600631185 | E68: -10.92467722 | F68: 1.31E-17 | G68: 1.53E-15 | H68: 29.66135479
A69: chr3 | B69: UROC1 | C69: -5.543107414 | D69: 4.356889515 | E69: -10.91271935 | F69: 1.38E-17 | G69: 1.60E-15 | H69: 29.53490741
A70: chr12 | B70: APOF | C70: -3.981742009 | D70: 5.528870427 | E70: -10.91158579 | F70: 1.39E-17 | G70: 1.60E-15 | H70: 29.5043069
A71: chr1 | B71: CD1D | C71: -2.414830523 | D71: 2.210078191 | E71: -10.88451921 | F71: 1.49E-17 | G71: 1.68E-15 | H71: 29.48871409
A72: chr16 | B72: KDM8 | C72: -2.792253378 | D72: 4.155497285 | E72: -10.77997123 | F72: 2.50E-17 | G72: 2.77E-15 | H72: 28.89727443
A73: chr17 | B73: MFAP4 | C73: -3.55623177 | D73: 3.059097674 | E73: -10.74869323 | F73: 2.87E-17 | G73: 3.15E-15 | H73: 28.8005585
A74: chr1 | B74: RAB25 | C74: -4.712084836 | D74: -1.464746838 | E74: -10.65682972 | F74: 4.33E-17 | G74: 4.43E-15 | H74: 28.42288789
A75: chr12 | B75: DCN | C75: -4.057787822 | D75: 5.707233002 | E75: -10.65838106 | F75: 4.30E-17 | G75: 4.43E-15 | H75: 28.37492475
A76: chr8 | B76: ADRA1A | C76: -3.884912376 | D76: 4.463800662 | E76: -10.58433711 | F76: 5.99E-17 | G76: 6.08E-15 | H76: 28.03779437
A77: chr8 | B77: ZFP41 | C77: 2.018370456 | D77: 2.163608523 | E77: 10.5167313 | F77: 7.64E-17 | G77: 7.38E-15 | H77: 27.89130498
A78: chr11 | B78: RPS12P21 | C78: -3.250241234 | D78: -2.603965308 | E78: -10.52300857 | F78: 7.43E-17 | G78: 7.29E-15 | H78: 27.80271833
A79: chr4 | B79: HSD17B13 | C79: -5.995135516 | D79: 5.657517988 | E79: -10.51484414 | F79: 8.19E-17 | G79: 7.77E-15 | H79: 27.7783089
A80: chr4 | B80: JCHAIN | C80: -4.70824184 | D80: 2.666380469 | E80: -10.51182022 | F80: 8.30E-17 | G80: 7.77E-15 | H80: 27.77800154
A81: chr18 | B81: CNDP1 | C81: -5.896804386 | D81: 2.077325598 | E81: -10.49440302 | F81: 8.97E-17 | G81: 8.34E-15 | H81: 27.74413048
A82: chr17 | B82: GGT6 | C82: -4.345155021 | D82: -2.275455534 | E82: -10.40918489 | F82: 1.26E-16 | G82: 1.13E-14 | H82: 27.28551895
A83: chr14 | B83: ASPG | C83: -4.86773439 | D83: 3.662075882 | E83: -10.3701249 | F83: 1.57E-16 | G83: 1.37E-14 | H83: 27.11887979
A84: chr8 | B84: C8orf4 | C84: -2.66441212 | D84: 5.016811664 | E84: -10.31916982 | F84: 1.97E-16 | G84: 1.67E-14 | H84: 26.81977643
A85: chr2 | B85: HOXD9 | C85: 4.762318243 | D85: -3.102065588 | E85: 10.2936396 | F85: 2.13E-16 | G85: 1.79E-14 | H85: 26.68867553
A86: chr22 | B86: GGT5 | C86: -2.278657264 | D86: 4.146566914 | E86: -10.27042728 | F86: 2.46E-16 | G86: 2.02E-14 | H86: 26.59563612
A87: chr7 | B87: IGFBP3 | C87: -2.480253008 | D87: 7.285488898 | E87: -10.18867104 | F87: 3.51E-16 | G87: 2.82E-14 | H87: 26.33353972
A88: chr17 | B88: UBE2SP2 | C88: 2.055758722 | D88: -1.691522363 | E88: 10.17417365 | F88: 3.59E-16 | G88: 2.85E-14 | H88: 26.33199827
A89: chr17 | B89: CCL14 | C89: -2.342978231 | D89: 4.828644359 | E89: -10.17899942 | F89: 3.71E-16 | G89: 2.93E-14 | H89: 26.17759568
A90: chr2 | B90: IGKV2D-30 | C90: -4.373683212 | D90: -1.651577878 | E90: -10.12983334 | F90: 4.58E-16 | G90: 3.52E-14 | H90: 26.1161253
A91: chr17 | B91: CTB-186H2.3 | C91: -2.327578574 | D91: 4.831170824 | E91: -10.14907803 | F91: 4.25E-16 | G91: 3.31E-14 | H91: 26.0428245
A92: chr19 | B92: CTD-2527I21.5 | C92: -3.615323192 | D92: 3.402463845 | E92: -10.1079396 | F92: 5.12E-16 | G92: 3.91E-14 | H92: 25.9202937
A93: chr2 | B93: PLGLB2 | C93: -2.507833237 | D93: 5.520394071 | E93: -10.01623974 | F93: 7.74E-16 | G93: 5.88E-14 | H93: 25.46801854
A94: chr6 | B94: TCF19 | C94: 2.318477803 | D94: 1.76675613 | E94: 9.96086167 | F94: 9.48E-16 | G94: 6.95E-14 | H94: 25.41495438
A95: chr17 | B95: TOP2A | C95: 3.451125428 | D95: 2.085064717 | E95: 9.971047282 | F95: 9.50E-16 | G95: 6.95E-14 | H95: 25.40258063
A96: chr8 | B96: RECQL4 | C96: 2.025093188 | D96: 1.927098811 | E96: 9.928200932 | F96: 1.09E-15 | G96: 7.91E-14 | H96: 25.26743802
A97: chr12 | B97: NDUFA4L2 | C97: 2.3950251 | D97: 1.898583507 | E97: 9.802372593 | F97: 1.96E-15 | G97: 1.29E-13 | H97: 24.69511818
A98: chr14 | B98: GSTZ1 | C98: -2.194235618 | D98: 5.178390702 | E98: -9.828372339 | F98: 1.81E-15 | G98: 1.22E-13 | H98: 24.60424132
A99: chr20 | B99: ID1 | C99: -2.848605954 | D99: 4.118319377 | E99: -9.823880632 | F99: 1.85E-15 | G99: 1.24E-13 | H99: 24.60053687
A100: chr16 | B100: MT1G | C100: -5.837402785 | D100: 5.714263859 | E100: -9.784935381 | F100: 2.21E-15 | G100: 1.42E-13 | H100: 24.53552504
A101: chr3 | B101: CSRNP1 | C101: -2.02673817 | D101: 4.940411962 | E101: -9.807812637 | F101: 1.97E-15 | G101: 1.30E-13 | H101: 24.51732363
A102: chr22 | B102: IGLV2-8 | C102: -4.574355103 | D102: 0.1694419403 | E102: -9.736397968 | F102: 2.75E-15 | G102: 1.73E-13 | H102: 24.41032249
A103: chr20 | B103: RP4-616B8.5 | C103: 3.297968239 | D103: -4.240693468 | E103: 9.803229107 | F103: 1.93E-15 | G103: 1.28E-13 | H103: 24.40192282
A104: chr16 | B104: MT1E | C104: -4.429641173 | D104: 5.984768823 | E104: -9.746412865 | F104: 2.63E-15 | G104: 1.66E-13 | H104: 24.33738119
A105: chr1 | B105: RP11-169K16.4 | C105: -2.751313056 | D105: 3.454388172 | E105: -9.756636198 | F105: 2.51E-15 | G105: 1.60E-13 | H105: 24.32172196
A106: chr19 | B106: NAPSB | C106: -2.328293436 | D106: 1.589710236 | E106: -9.677733094 | F106: 3.46E-15 | G106: 2.09E-13 | H106: 24.12556434
A107: chr2 | B107: IGKV2D-28 | C107: -4.498980489 | D107: -0.4543528443 | E107: -9.665014917 | F107: 3.80E-15 | G107: 2.24E-13 | H107: 24.09493399
A108: chr1 | B108: TMEM82 | C108: -3.105946427 | D108: 3.104347059 | E108: -9.689516555 | F108: 3.40E-15 | G108: 2.07E-13 | H108: 24.03933009
A109: chr16 | B109: CETP | C109: -2.895858789 | D109: 2.697040595 | E109: -9.68383976 | F109: 3.49E-15 | G109: 2.10E-13 | H109: 24.03925057
A110: chr14 | B110: SLC25A47 | C110: -5.271440047 | D110: 5.701030281 | E110: -9.667440898 | F110: 3.76E-15 | G110: 2.23E-13 | H110: 23.9722092
A111: chr19 | B111: FOSB | C111: -4.369932634 | D111: 4.009974296 | E111: -9.670117007 | F111: 3.71E-15 | G111: 2.21E-13 | H111: 23.9596177
A112: chr11 | B112: MS4A6A | C112: -2.282585892 | D112: 4.202339948 | E112: -9.654653388 | F112: 3.98E-15 | G112: 2.32E-13 | H112: 23.82297916
A113: chr2 | B113: IGKV4-1 | C113: -4.531186616 | D113: 1.601679477 | E113: -9.588440158 | F113: 5.38E-15 | G113: 3.04E-13 | H113: 23.69369247
A114: chr20 | B114: E2F1 | C114: 3.431896419 | D114: 0.9730264793 | E114: 9.575834427 | F114: 5.70E-15 | G114: 3.17E-13 | H114: 23.6767655
A115: chr14 | B115: IGHM | C115: -4.723217177 | D115: 4.07866287 | E115: -9.550023162 | F115: 6.41E-15 | G115: 3.53E-13 | H115: 23.41615009
A116: chr2 | B116: IGKV2-30 | C116: -4.31437159 | D116: -0.5564488682 | E116: -9.486043463 | F116: 8.57E-15 | G116: 4.52E-13 | H116: 23.29916996
A117: chr14 | B117: IGHA2 | C117: -4.314487291 | D117: 3.342669628 | E117: -9.495415984 | F117: 8.21E-15 | G117: 4.39E-13 | H117: 23.18229787
A118: chr16 | B118: MT1M | C118: -5.152036876 | D118: 3.136264002 | E118: -9.421777887 | F118: 1.15E-14 | G118: 5.85E-13 | H118: 22.8873509
A119: chr1 | B119: HAO2 | C119: -4.022043792 | D119: 4.939418697 | E119: -9.423080036 | F119: 1.14E-14 | G119: 5.84E-13 | H119: 22.82473601
A120: chr2 | B120: RGPD2 | C120: -2.008057033 | D120: 6.11193503 | E120: -9.386465936 | F120: 1.33E-14 | G120: 6.62E-13 | H120: 22.66459704
A121: chr2 | B121: RGPD1 | C121: -2.08081012 | D121: 5.782330032 | E121: -9.389499755 | F121: 1.33E-14 | G121: 6.62E-13 | H121: 22.64272792
A122: chr7 | B122: HOXA13 | C122: 6.193875312 | D122: -2.873845667 | E122: 9.341302199 | F122: 1.66E-14 | G122: 8.06E-13 | H122: 22.55839245
A123: chr1 | B123: CDKN2C | C123: 2.088335531 | D123: 1.887180639 | E123: 9.30790136 | F123: 1.85E-14 | G123: 8.70E-13 | H123: 22.4684849
A124: chr14 | B124: FOS | C124: -3.581260865 | D124: 6.002447316 | E124: -9.326854172 | F124: 1.77E-14 | G124: 8.51E-13 | H124: 22.39830521
A125: chr2 | B125: IGKV2-28 | C125: -4.737293336 | D125: 0.2751065114 | E125: -9.266419783 | F125: 2.33E-14 | G125: 1.06E-12 | H125: 22.31314369
A126: chr20 | B126: AURKA | C126: 2.235168633 | D126: 1.713848984 | E126: 9.256685829 | F126: 2.35E-14 | G126: 1.07E-12 | H126: 22.24094845
A127: chr16 | B127: MT1JP | C127: -5.310167591 | D127: 1.903619185 | E127: -9.226412627 | F127: 2.79E-14 | G127: 1.24E-12 | H127: 22.05047592
A128: chr17 | B128: C1QTNF1 | C128: -2.316166695 | D128: 4.331794583 | E128: -9.25739052 | F128: 2.43E-14 | G128: 1.09E-12 | H128: 22.02405102
A129: chr18 | B129: RP11-231E4.3 | C129: -5.478020023 | D129: -1.604120445 | E129: -9.196234536 | F129: 3.20E-14 | G129: 1.38E-12 | H129: 21.99042365
A130: chr2 | B130: STEAP3-AS1 | C130: -2.327103455 | D130: 3.566496181 | E130: -9.232973174 | F130: 2.71E-14 | G130: 1.21E-12 | H130: 21.96667547
A131: chr1 | B131: RP11-196G18.24 | C131: 2.456353371 | D131: -1.196415593 | E131: 9.173061625 | F131: 3.41E-14 | G131: 1.44E-12 | H131: 21.93555118
A132: chr10 | B132: MKI67 | C132: 2.982926416 | D132: 1.893603274 | E132: 9.183393813 | F132: 3.40E-14 | G132: 1.44E-12 | H132: 21.87324952
A133: chr22 | B133: IGLV6-57 | C133: -4.423825396 | D133: -1.027176516 | E133: -9.164106292 | F133: 3.71E-14 | G133: 1.55E-12 | H133: 21.8658455
A134: chr1 | B134: CDA | C134: -2.289539806 | D134: 3.510799795 | E134: -9.212165478 | F134: 2.98E-14 | G134: 1.31E-12 | H134: 21.86052338
A135: chr2 | B135: PLGLB1 | C135: -2.333840587 | D135: 5.878932579 | E135: -9.203601968 | F135: 3.10E-14 | G135: 1.36E-12 | H135: 21.81138961
A136: chr22 | B136: IGLV7-46 | C136: -4.156807066 | D136: -2.144933726 | E136: -9.136968172 | F136: 4.17E-14 | G136: 1.72E-12 | H136: 21.72916603
A137: chr1 | B137: DIRAS3 | C137: -3.429416036 | D137: 0.2278893405 | E137: -9.133221653 | F137: 4.27E-14 | G137: 1.75E-12 | H137: 21.71289419
A138: chrX | B138: APLN | C138: 3.722814368 | D138: -0.3814347555 | E138: 9.120174272 | F138: 4.53E-14 | G138: 1.82E-12 | H138: 21.67148794
A139: chr19 | B139: PGLYRP2 | C139: -3.00617144 | D139: 6.247905693 | E139: -9.15009325 | F139: 3.95E-14 | G139: 1.65E-12 | H139: 21.59513239
A140: chr16 | B140: CDT1 | C140: 3.089962964 | D140: 0.2762196936 | E140: 9.096762074 | F140: 4.95E-14 | G140: 1.97E-12 | H140: 21.57945201
A141: chr11 | B141: MDK | C141: 3.137833169 | D141: 3.90156194 | E141: 9.124940116 | F141: 4.43E-14 | G141: 1.80E-12 | H141: 21.52304526
A142: chr9 | B142: ADAMTSL2 | C142: -2.584877091 | D142: 3.826044782 | E142: -9.134391377 | F142: 4.25E-14 | G142: 1.74E-12 | H142: 21.49133435
A143: chr22 | B143: IGLV2-11 | C143: -4.504106372 | D143: 0.3988370554 | E143: -9.082376359 | F143: 5.38E-14 | G143: 2.11E-12 | H143: 21.48200452
A144: chr14 | B144: RP11-731F5.2 | C144: -4.371324034 | D144: 2.600490112 | E144: -9.110663071 | F144: 4.73E-14 | G144: 1.90E-12 | H144: 21.48176609
A145: chr5 | B145: GHR | C145: -2.631078261 | D145: 5.815880595 | E145: -9.10717771 | F145: 4.81E-14 | G145: 1.92E-12 | H145: 21.37110101
A146: chr1 | B146: TACSTD2 | C146: -3.842190025 | D146: 0.7926461798 | E146: -9.060103622 | F146: 5.96E-14 | G146: 2.31E-12 | H146: 21.3627623
A147: chr19 | B147: LILRB5 | C147: -2.161856544 | D147: 2.445605904 | E147: -9.06672158 | F147: 5.71E-14 | G147: 2.22E-12 | H147: 21.28234743
A148: chr12 | B148: CD4 | C148: -2.178641343 | D148: 5.468170232 | E148: -9.081042228 | F148: 5.41E-14 | G148: 2.12E-12 | H148: 21.22623185
A149: chr1 | B149: CYP4A22-AS1 | C149: -2.464480432 | D149: 6.893910869 | E149: -9.057696583 | F149: 6.02E-14 | G149: 2.32E-12 | H149: 21.20685628
A150: chr12 | B150: PMCH | C150: 2.442057691 | D150: -1.447387412 | E150: 9.00435925 | F150: 7.36E-14 | G150: 2.75E-12 | H150: 21.17909698
A151: chr16 | B151: MT1H | C151: -6.537377039 | D151: 2.233472977 | E151: -9.016862391 | F151: 7.25E-14 | G151: 2.72E-12 | H151: 21.13590415
A152: chr1 | B152: TNFRSF4 | C152: 2.468476773 | D152: -0.6630982872 | E152: 8.986028155 | F152: 8.01E-14 | G152: 2.97E-12 | H152: 21.11371487
A153: chr1 | B153: MFSD2A | C153: -3.611857981 | D153: 4.641367159 | E153: -9.006646075 | F153: 7.60E-14 | G153: 2.82E-12 | H153: 20.9297901
A154: chr5 | B154: CTD-2201I18.1 | C154: 3.732253613 | D154: 0.6074464817 | E154: 8.947146601 | F154: 9.97E-14 | G154: 3.60E-12 | H154: 20.87791479
A155: chr1 | B155: CYP4A22 | C155: -2.493062943 | D155: 6.858060812 | E155: -8.980073013 | F155: 8.58E-14 | G155: 3.16E-12 | H155: 20.85500924
A156: chr14 | B156: IGHV2-5 | C156: -4.034463828 | D156: -1.503678303 | E156: -8.936846825 | F156: 1.04E-13 | G156: 3.75E-12 | H156: 20.85370199
A157: chr6 | B157: RP11-349J5.2 | C157: -2.141148071 | D157: 1.611330231 | E157: -8.940752143 | F157: 9.96E-14 | G157: 3.60E-12 | H157: 20.80103764
A158: chr5 | B158: CTD-2325A15.3 | C158: 2.861822087 | D158: -3.401602736 | E158: 8.955652517 | F158: 9.20E-14 | G158: 3.37E-12 | H158: 20.80077306
A159: chr1 | B159: HIST2H2BD | C159: 2.369437931 | D159: -2.553257104 | E159: 8.928025802 | F159: 1.04E-13 | G159: 3.75E-12 | H159: 20.76464369
A160: chr2 | B160: RRM2 | C160: 2.908955367 | D160: 1.950173264 | E160: 8.931513248 | F160: 1.07E-13 | G160: 3.84E-12 | H160: 20.74473401
A161: chr7 | B161: TFPI2 | C161: -3.142533174 | D161: 0.6919455469 | E161: -8.911678227 | F161: 1.17E-13 | G161: 4.14E-12 | H161: 20.70725338
A162: chr12 | B162: SLCO1B3 | C162: -4.95125065 | D162: 3.534496945 | E162: -8.91956225 | F162: 1.13E-13 | G162: 4.01E-12 | H162: 20.59663356
A163: chrX | B163: DUSP9 | C163: 3.482796985 | D163: -0.09448363355 | E163: 8.855950371 | F163: 1.50E-13 | G163: 5.18E-12 | H163: 20.500952
A164: chr17 | B164: CDC6 | C164: 2.728502253 | D164: 0.8939958932 | E164: 8.85560715 | F164: 1.49E-13 | G164: 5.15E-12 | H164: 20.47530142
A165: chr14 | B165: IGHV3-7 | C165: -4.486433472 | D165: -0.2760622754 | E165: -8.837895492 | F165: 1.64E-13 | G165: 5.56E-12 | H165: 20.41021713
A166: chr22 | B166: IGLV1-40 | C166: -4.16476724 | D166: 0.7471299579 | E166: -8.844456385 | F166: 1.59E-13 | G166: 5.43E-12 | H166: 20.40592576
A167: chr12 | B167: DTX1 | C167: -2.849695216 | D167: 3.595361059 | E167: -8.87778372 | F167: 1.37E-13 | G167: 4.79E-12 | H167: 20.35948034
A168: chr14 | B168: IGHJ1 | C168: -3.718670591 | D168: -3.654915135 | E168: -8.828776859 | F168: 1.64E-13 | G168: 5.56E-12 | H168: 20.31583056
A169: chr1 | B169: RP11-196G18.22 | C169: 2.155426032 | D169: 0.6632220691 | E169: 8.808518474 | F169: 1.80E-13 | G169: 6.00E-12 | H169: 20.28631809
A170: chr1 | B170: PRELP | C170: -2.57245674 | D170: 3.463296545 | E170: -8.853465746 | F170: 1.53E-13 | G170: 5.24E-12 | H170: 20.25396579
A171: chr2 | B171: IGKJ1 | C171: -4.496565934 | D171: 1.764966894 | E171: -8.815686895 | F171: 1.81E-13 | G171: 6.02E-12 | H171: 20.20991069
A172: chr22 | B172: IGLV1-44 | C172: -4.331566789 | D172: 0.288905635 | E172: -8.769776538 | F172: 2.24E-13 | G172: 7.15E-12 | H172: 20.09381285
A173: chr14 | B173: IGHA1 | C173: -4.372556087 | D173: 5.197190737 | E173: -8.814608483 | F173: 1.82E-13 | G173: 6.03E-12 | H173: 20.07001661
A174: chr1 | B174: RP11-495P10.5 | C174: 5.363845995 | D174: -4.543653648 | E174: 8.796545301 | F174: 1.97E-13 | G174: 6.45E-12 | H174: 20.02200904
A175: chr14 | B175: IGHV5-51 | C175: -4.48046024 | D175: -0.3296663059 | E175: -8.743398541 | F175: 2.52E-13 | G175: 7.93E-12 | H175: 19.99181295
A176: chr3 | B176: ZIC4-AS1 | C176: 3.874810359 | D176: -5.081600315 | E176: 8.809458987 | F176: 1.79E-13 | G176: 6.00E-12 | H176: 19.98987182
A177: chr9 | B177: DBH | C177: -2.221304229 | D177: 3.864152518 | E177: -8.804207454 | F177: 1.91E-13 | G177: 6.29E-12 | H177: 19.98757365
A178: chr4 | B178: MT2P1 | C178: -3.594979686 | D178: 2.173795316 | E178: -8.76704814 | F178: 2.26E-13 | G178: 7.20E-12 | H178: 19.9491596
A179: chr2 | B179: IGKV2-24 | C179: -4.101650276 | D179: -1.339040292 | E179: -8.726196115 | F179: 2.73E-13 | G179: 8.45E-12 | H179: 19.91957023
A180: chr6 | B180: ALDH8A1 | C180: -2.031403475 | D180: 6.131636218 | E180: -8.771930187 | F180: 2.21E-13 | G180: 7.10E-12 | H180: 19.86539434
A181: chr14 | B181: IGHV3-74 | C181: -4.201083615 | D181: -1.006211387 | E181: -8.711957368 | F181: 2.91E-13 | G181: 8.95E-12 | H181: 19.85311773
A182: chr14 | B182: RP11-349I1.2 | C182: -2.650743298 | D182: 6.803721549 | E182: -8.746380868 | F182: 2.49E-13 | G182: 7.85E-12 | H182: 19.79170261
A183: chr14 | B183: SERPINA11 | C183: -2.661931092 | D183: 6.77727563 | E183: -8.731439697 | F183: 2.66E-13 | G183: 8.27E-12 | H183: 19.72202727
A184: chr15 | B184: CYP1A2 | C184: -5.63020451 | D184: 4.499522369 | E184: -8.716085105 | F184: 2.86E-13 | G184: 8.80E-12 | H184: 19.70578654
A185: chr4 | B185: SPARCL1 | C185: 2.462974684 | D185: 4.74825198 | E185: 8.732258449 | F185: 2.65E-13 | G185: 8.27E-12 | H185: 19.68798123
A186: chr16 | B186: CTD-3203P2.1 | C186: -2.615600846 | D186: 1.206632405 | E186: -8.682908571 | F186: 3.29E-13 | G186: 1.00E-11 | H186: 19.67220494
A187: chr19 | B187: NOTCH3 | C187: 2.042790807 | D187: 3.45273303 | E187: 8.705209207 | F187: 2.97E-13 | G187: 9.11E-12 | H187: 19.64281526
A188: chr2 | B188: IGKJ2 | C188: -4.412568649 | D188: 1.113209586 | E188: -8.662570817 | F188: 3.65E-13 | G188: 1.09E-11 | H188: 19.56601298
A189: chr2 | B189: IGKV2D-29 | C189: -3.801708414 | D189: -3.007797108 | E189: -8.634194896 | F189: 4.05E-13 | G189: 1.19E-11 | H189: 19.49225769
A190: chr17 | B190: MAFG-AS1 | C190: 2.683377173 | D190: -1.449022212 | E190: 8.605150293 | F190: 4.56E-13 | G190: 1.31E-11 | H190: 19.40613164
A191: chr2 | B191: SLC19A3 | C191: -2.101818743 | D191: 3.45666303 | E191: -8.655277532 | F191: 3.77E-13 | G191: 1.12E-11 | H191: 19.35208279
A192: chr1 | B192: RBP7 | C192: 2.220541675 | D192: 1.444204958 | E192: 8.610281529 | F192: 4.51E-13 | G192: 1.31E-11 | H192: 19.34136378
A193: chr4 | B193: SLC34A2 | C193: -3.794388453 | D193: -0.3480917419 | E193: -8.59678583 | F193: 4.92E-13 | G193: 1.40E-11 | H193: 19.33798631
A194: chr2 | B194: SRD5A2 | C194: -3.036776121 | D194: 3.688789208 | E194: -8.644438589 | F194: 3.96E-13 | G194: 1.17E-11 | H194: 19.28041753
A195: chrX | B195: BGN | C195: -2.213591384 | D195: 7.133980039 | E195: -8.62324758 | F195: 4.36E-13 | G195: 1.28E-11 | H195: 19.24475938
A196: chr16 | B196: PRSS8 | C196: -3.95607837 | D196: 2.320905225 | E196: -8.605212408 | F196: 4.74E-13 | G196: 1.36E-11 | H196: 19.21770814
A197: chr1 | B197: HIST2H4A | C197: 2.130935617 | D197: 1.169327072 | E197: 8.568531479 | F197: 5.40E-13 | G197: 1.53E-11 | H197: 19.18867797
A198: chr12 | B198: GLS2 | C198: -3.811707754 | D198: 5.286423557 | E198: -8.613198303 | F198: 4.57E-13 | G198: 1.31E-11 | H198: 19.15617176
A199: chr12 | B199: NXPH4 | C199: 3.467299201 | D199: -2.332357277 | E199: 8.532439278 | F199: 6.39E-13 | G199: 1.78E-11 | H199: 19.05201053
A200: chr16 | B200: MT2A | C200: -3.308051715 | D200: 8.08213748 | E200: -8.527650807 | F200: 6.74E-13 | G200: 1.87E-11 | H200: 18.89453711
A201: chr14 | B201: IGHV6-1 | C201: -4.047721841 | D201: -2.393775056 | E201: -8.490403488 | F201: 7.91E-13 | G201: 2.16E-11 | H201: 18.85146111
... 517 more rows

Sheet Supplementary Table 8.
A1: Table S8. Differentially expressed genes between matched female tumor and tumor-adjacent samples with an FDR-adjusted p-value ≤ 0.01 and an absolute log2 fold-change ≥ 2. N sample pairs = 18.
A3: Chromosome | B3: Gene name | C3: log2FC | D3: Average expression | E3: t-statistic | F3: p-value | G3: FDR adjusted p-value | H3: B-statistic
A4: chr10 | B4: GDF2 | C4: -7.743699818 | D4: -0.7929489346 | E4: -15.87391637 | F4: 1.24E-26 | G4: 1.49E-22 | H4: 48.66689398
A5: chr5 | B5: CXCL14 | C5: -5.718803338 | D5: 1.336212172 | E5: -14.18322405 | F5: 1.12E-23 | G5: 6.76E-20 | H5: 43.24872271
A6: chr1 | B6: ECM1 | C6: -2.903409047 | D6: 3.367762887 | E6: -13.87348755 | F6: 3.59E-23 | G6: 1.08E-19 | H6: 42.29168738
A7: chr19 | B7: CLEC4G | C7: -7.018544327 | D7: 1.383892673 | E7: -13.90470815 | F7: 3.52E-23 | G7: 1.08E-19 | H7: 41.98233352
A8: chr8 | B8: RP11-278I4.2 | C8: -4.938920793 | D8: -0.6568866193 | E8: -13.6971232 | F8: 7.48E-23 | G8: 1.81E-19 | H8: 40.92888403
A9: chr9 | B9: FCN2 | C9: -6.753974185 | D9: 1.778842179 | E9: -12.60405196 | F9: 8.42E-21 | G9: 1.69E-17 | H9: 36.75433768
A10: chr5 | B10: CRHBP | C10: -5.194309835 | D10: 2.459890556 | E10: -12.48858481 | F10: 1.38E-20 | G10: 2.38E-17 | H10: 36.39029998
A11: chr19 | B11: PLVAP | C11: 2.921861939 | D11: 4.191640042 | E11: 12.31286419 | F11: 2.76E-20 | G11: 4.17E-17 | H11: 35.73195307
A12: chr19 | B12: CLEC4M | C12: -7.557263064 | D12: -0.006415347405 | E12: -12.26647733 | F12: 3.60E-20 | G12: 4.83E-17 | H12: 35.06180653
A13: chr4 | B13: LINC01093 | C13: -5.676415057 | D13: 1.521336979 | E13: -11.77668803 | F13: 3.03E-19 | G13: 3.66E-16 | H13: 33.32837498
A14: chr8 | B14: NAT2 | C14: -4.747553878 | D14: 2.540327047 | E14: -11.45204991 | F14: 1.26E-18 | G14: 1.28E-15 | H14: 31.96067974
A15: chr11 | B15: BCO2 | C15: -3.8298231 | D15: 3.3331472 | E15: -11.44219566 | F15: 1.32E-18 | G15: 1.28E-15 | H15: 31.91750781
A16: chrX | B16: CFP | C16: -3.558620321 | D16: 2.314978078 | E16: -11.43110879 | F16: 1.38E-18 | G16: 1.28E-15 | H16: 31.87958322
A17: chr1 | B17: FCN3 | C17: -4.363090294 | D17: 3.521930965 | E17: -10.95703062 | F17: 1.13E-17 | G17: 9.12E-15 | H17: 29.79657413
A18: chr11 | B18: RPS12P21 | C18: -4.264314988 | D18: -2.603965308 | E18: -11.05733106 | F18: 6.77E-18 | G18: 5.84E-15 | H18: 29.63980964
A19: chr2 | B19: MARCO | C19: -6.448112611 | D19: 1.937632605 | E19: -10.7897258 | F19: 2.39E-17 | G19: 1.80E-14 | H19: 29.04121536
A20: chr10 | B20: SFRP5 | C20: -5.499067584 | D20: 0.3258883851 | E20: -10.71931254 | F20: 3.27E-17 | G20: 2.20E-14 | H20: 28.65288615
A21: chr4 | B21: AADAT | C21: -3.502214996 | D21: 3.22688448 | E21: -10.62818287 | F21: 4.92E-17 | G21: 2.97E-14 | H21: 28.34160262
A22: chr18 | B22: SMUG1P1 | C22: -5.404677315 | D22: -1.828349448 | E22: -10.71602115 | F22: 3.19E-17 | G22: 2.20E-14 | H22: 28.30380753
A23: chr3 | B23: SLC26A6 | C23: 2.203154789 | D23: 2.132899807 | E23: 10.49974653 | F23: 8.25E-17 | G23: 4.53E-14 | H23: 27.85091844
A24: chr17 | B24: AURKB | C24: 3.160903687 | D24: -0.1539342401 | E24: 10.51586074 | F24: 7.67E-17 | G24: 4.41E-14 | H24: 27.7971723
A25: chr16 | B25: MT1F | C25: -5.882683139 | D25: 4.017553706 | E25: -10.45522244 | F25: 1.07E-16 | G25: 5.38E-14 | H25: 27.58890731
A26: chr12 | B26: TROAP | C26: 3.930132984 | D26: -0.4701184902 | E26: 10.45070156 | F26: 1.04E-16 | G26: 5.38E-14 | H26: 27.47757852
A27: chr16 | B27: MT1E | C27: -5.684753823 | D27: 5.984768823 | E27: -10.34742892 | F27: 1.74E-16 | G27: 8.07E-14 | H27: 27.11060311
A28: chr5 | B28: KIF20A | C28: 2.713059054 | D28: 0.8829165377 | E28: 10.32176503 | F28: 1.84E-16 | G28: 8.23E-14 | H28: 27.03545197
A29: chr14 | B29: RP11-614O9.1 | C29: -4.753593048 | D29: -2.128606978 | E29: -10.38105815 | F29: 1.42E-16 | G29: 6.84E-14 | H29: 26.8987485
A30: chr16 | B30: PLK1 | C30: 3.261144109 | D30: 0.4191690938 | E30: 10.28984225 | F30: 2.13E-16 | G30: 8.85E-14 | H30: 26.8663053
A31: chr5 | B31: PTTG1 | C31: 3.255003225 | D31: 0.8050333326 | E31: 10.25908354 | F31: 2.46E-16 | G31: 9.90E-14 | H31: 26.75136683
A32: chr17 | B32: BIRC5 | C32: 3.62951975 | D32: 0.9141152017 | E32: 10.21410151 | F32: 3.10E-16 | G32: 1.21E-13 | H32: 26.5342094
A33: chr1 | B33: CD34 | C33: 2.333560182 | D33: 3.516915038 | E33: 10.18769114 | F33: 3.39E-16 | G33: 1.28E-13 | H33: 26.4426391
A34: chr11 | B34: THY1 | C34: 3.532579932 | D34: 3.460443494 | E34: 10.15849568 | F34: 4.07E-16 | G34: 1.49E-13 | H34: 26.26910292
A35: chr11 | B35: RP11-334E6.12 | C35: 3.519273749 | D35: 2.896760152 | E35: 10.13122002 | F35: 4.61E-16 | G35: 1.64E-13 | H35: 26.15665008
A36: chr10 | B36: CDK1 | C36: 3.510759649 | D36: 0.7843817704 | E36: 10.04259702 | F36: 6.70E-16 | G36: 2.31E-13 | H36: 25.78029811
A37: chr15 | B37: PRC1 | C37: 2.93776953 | D37: 1.640520416 | E37: 10.01752591 | F37: 7.36E-16 | G37: 2.47E-13 | H37: 25.7016901
A38: chr10 | B38: CYP2C19 | C38: -3.806505019 | D38: 4.566259673 | E38: -9.932122194 | F38: 1.13E-15 | G38: 3.60E-13 | H38: 25.2130971
A39: chr12 | B39: RP11-341G23.4 | C39: -3.558437241 | D39: 1.435671244 | E39: -9.916318594 | F39: 1.22E-15 | G39: 3.67E-13 | H39: 25.21062504
A40: chr3 | B40: DNASE1L3 | C40: -3.560599552 | D40: 4.200096335 | E40: -9.917937588 | F40: 1.21E-15 | G40: 3.67E-13 | H40: 25.16613163
A41: chr1 | B41: CDC20 | C41: 3.828000476 | D41: 0.4525864365 | E41: 9.86048793 | F41: 1.54E-15 | G41: 4.54E-13 | H41: 24.94839267
A42: chr15 | B42: PRC1-AS1 | C42: 2.92646 | D42: 1.526982931 | E42: 9.847782469 | F42: 1.59E-15 | G42: 4.57E-13 | H42: 24.9469976
A43: chr5 | B43: CTC-505O3.2 | C43: -4.30470841 | D43: 2.131705432 | E43: -9.828279605 | F43: 1.81E-15 | G43: 5.09E-13 | H43: 24.8198017
A44: chr16 | B44: RP11-510M2.5 | C44: -4.144078968 | D44: -1.275885419 | E44: -9.785369912 | F44: 2.12E-15 | G44: 5.82E-13 | H44: 24.51841743
A45: chr20 | B45: UBE2C | C45: 3.774309624 | D45: 0.2672866622 | E45: 9.749874269 | F45: 2.53E-15 | G45: 6.79E-13 | H45: 24.45873551
A46: chr12 | B46: CDCA3 | C46: 2.720753658 | D46: 0.0212622343 | E46: 9.696805789 | F46: 3.13E-15 | G46: 8.22E-13 | H46: 24.22141481
A47: chr12 | B47: SPX | C47: -3.233159966 | D47: 4.351184158 | E47: -9.682069654 | F47: 3.52E-15 | G47: 9.04E-13 | H47: 24.08922184
A48: chr16 | B48: MT1G | C48: -6.900082555 | D48: 5.714263859 | E48: -9.578872295 | F48: 5.62E-15 | G48: 1.39E-12 | H48: 23.69573649
A49: chr1 | B49: UBE2T | C49: 3.152689109 | D49: 0.3817997005 | E49: 9.53840063 | F49: 6.45E-15 | G49: 1.56E-12 | H49: 23.55075522
A50: chr15 | B50: CYP1A2 | C50: -8.03129613 | D50: 4.499522369 | E50: -9.484864603 | F50: 8.62E-15 | G50: 2.04E-12 | H50: 23.2873325
A51: chr12 | B51: FOXM1 | C51: 2.972353863 | D51: 1.766927364 | E51: 9.464017399 | F51: 9.26E-15 | G51: 2.15E-12 | H51: 23.22086087
A52: chr5 | B52: RP11-175K6.2 | C52: 3.560932272 | D52: -3.763399988 | E52: 9.640523727 | F52: 4.04E-15 | G52: 1.02E-12 | H52: 23.19437113
A53: chr6 | B53: KIFC1 | C53: 2.248276338 | D53: 1.505370816 | E53: 9.370979918 | F53: 1.38E-14 | G53: 3.09E-12 | H53: 22.83098998
A54: chr5 | B54: CCNB1 | C54: 2.719389184 | D54: 1.580333656 | E54: 9.358781889 | F54: 1.47E-14 | G54: 3.23E-12 | H54: 22.77002574
A55: chr19 | B55: NOTCH3 | C55: 2.62457164 | D55: 3.45273303 | E55: 9.354605468 | F55: 1.54E-14 | G55: 3.32E-12 | H55: 22.68178591
A56: chr17 | B56: TOP2A | C56: 3.883586742 | D56: 2.085064717 | E56: 9.329468754 | F56: 1.75E-14 | G56: 3.70E-12 | H56: 22.59507083
A57: chr16 | B57: PKMYT1 | C57: 2.365906276 | D57: 2.085164834 | E57: 9.306478397 | F57: 1.85E-14 | G57: 3.76E-12 | H57: 22.53502205
A58: chr11 | B58: TTC36 | C58: -3.908925486 | D58: 3.403564162 | E58: -9.314839946 | F58: 1.87E-14 | G58: 3.76E-12 | H58: 22.47470333
A59: chr4 | B59: FAM13A-AS1 | C59: -2.921523312 | D59: 3.959293404 | E59: -9.267376704 | F59: 2.32E-14 | G59: 4.59E-12 | H59: 22.23378225
A60: chr12 | B60: APOF | C60: -4.034562562 | D60: 5.528870427 | E60: -9.261455562 | F60: 2.38E-14 | G60: 4.64E-12 | H60: 22.22427964
A61: chr16 | B61: MT1M | C61: -6.430154841 | D61: 3.136264002 | E61: -9.229530642 | F61: 2.75E-14 | G61: 5.20E-12 | H61: 22.13908259
A62: chr12 | B62: GYS2 | C62: -3.693843159 | D62: 4.973519061 | E62: -9.175796538 | F62: 3.52E-14 | G62: 6.43E-12 | H62: 21.81712017
A63: chr11 | B63: MOGAT2 | C63: -3.988136016 | D63: 4.303477723 | E63: -9.16786259 | F63: 3.65E-14 | G63: 6.57E-12 | H63: 21.80158757
A64: chr11 | B64: IGF2-AS | C64: -5.595981328 | D64: 0.7543092457 | E64: -9.112062767 | F64: 4.70E-14 | G64: 8.35E-12 | H64: 21.6299401
A65: chr1 | B65: CD5L | C65: -5.295518167 | D65: 2.816829015 | E65: -9.101154229 | F65: 4.94E-14 | G65: 8.65E-12 | H65: 21.5717897
A66: chr8 | B66: ADRA1A | C66: -3.968209497 | D66: 4.463800662 | E66: -9.061370678 | F66: 5.92E-14 | G66: 1.01E-11 | H66: 21.31280331
A67: chr22 | B67: MMP11 | C67: 3.660773261 | D67: 1.11458179 | E67: 9.008525959 | F67: 7.53E-14 | G67: 1.25E-11 | H67: 21.17479659
A68: chr16 | B68: CTD-2196E14.5 | C68: 3.488232363 | D68: -2.400099655 | E68: 8.991105181 | F68: 7.82E-14 | G68: 1.28E-11 | H68: 20.86410359
A69: chr11 | B69: FAM99A | C69: -4.721805104 | D69: 1.937674411 | E69: -8.923641933 | F69: 1.11E-13 | G69: 1.74E-11 | H69: 20.7641882
A70: chr1 | B70: DIRAS3 | C70: -4.142842693 | D70: 0.2278893405 | E70: -8.911241885 | F70: 1.17E-13 | G70: 1.82E-11 | H70: 20.73376035
A71: chr11 | B71: GLYAT | C71: -3.848736121 | D71: 5.900574446 | E71: -8.900543969 | F71: 1.23E-13 | G71: 1.88E-11 | H71: 20.58726925
A72: chr16 | B72: CHST4 | C72: -3.747508611 | D72: 0.5030109509 | E72: -8.875081496 | F72: 1.38E-13 | G72: 2.01E-11 | H72: 20.58078826
A73: chr17 | B73: NGFR | C73: -2.433738956 | D73: 2.998964979 | E73: -8.840745818 | F73: 1.61E-13 | G73: 2.26E-11 | H73: 20.34888335
A74: chr10 | B74: PBLD | C74: -2.218092255 | D74: 6.219307206 | E74: -8.841107491 | F74: 1.60E-13 | G74: 2.26E-11 | H74: 20.32494024
A75: chr10 | B75: MKI67 | C75: 3.438124025 | D75: 1.893603274 | E75: 8.810401799 | F75: 1.86E-13 | G75: 2.49E-11 | H75: 20.27767208
A76: chr16 | B76: MT1X | C76: -4.837294011 | D76: 6.419929347 | E76: -8.821309834 | F76: 1.77E-13 | G76: 2.43E-11 | H76: 20.27035387
A77: chr16 | B77: RP11-343H19.2 | C77: -4.840433133 | D77: 6.423668635 | E77: -8.815747121 | F77: 1.81E-13 | G77: 2.46E-11 | H77: 20.24549952
A78: chr16 | B78: PAQR4 | C78: 2.219028843 | D78: 1.788189753 | E78: 8.785574908 | F78: 2.00E-13 | G78: 2.64E-11 | H78: 20.2081304
A79: chr22 | B79: AP000349.2 | C79: 3.829911357 | D79: 0.1877913254 | E79: 8.744923616 | F79: 2.50E-13 | G79: 3.21E-11 | H79: 19.99837039
A80: chr2 | B80: PLGLA | C80: -2.106563091 | D80: 4.178931788 | E80: -8.754157347 | F80: 2.38E-13 | G80: 3.09E-11 | H80: 19.89980938
A81: chr1 | B81: RP11-393N21.2 | C81: -3.943250495 | D81: 1.581577048 | E81: -8.715113012 | F81: 2.87E-13 | G81: 3.57E-11 | H81: 19.86273894
A82: chr16 | B82: LCAT | C82: -2.72115429 | D82: 5.384085566 | E82: -8.715375179 | F82: 2.87E-13 | G82: 3.57E-11 | H82: 19.73572643
A83: chr19 | B83: ASPDH | C83: -2.853969123 | D83: 4.647164407 | E83: -8.687800708 | F83: 3.25E-13 | G83: 4.01E-11 | H83: 19.60117019
A84: chr16 | B84: KDM8 | C84: -2.613983002 | D84: 4.155497285 | E84: -8.674313826 | F84: 3.46E-13 | G84: 4.22E-11 | H84: 19.54359373
A85: chr10 | B85: LINC00844 | C85: -5.535647678 | D85: 2.05496812 | E85: -8.595207238 | F85: 4.96E-13 | G85: 5.76E-11 | H85: 19.3359112
A86: chr14 | B86: GSTZ1 | C86: -2.304970542 | D86: 5.178390702 | E86: -8.629311369 | F86: 4.24E-13 | G86: 5.02E-11 | H86: 19.32822709
A87: chr18 | B87: CNDP1 | C87: -5.280354162 | D87: 2.077325598 | E87: -8.589401967 | F87: 5.09E-13 | G87: 5.85E-11 | H87: 19.2624639
A88: chr9 | B88: PHYHD1 | C88: -2.973465803 | D88: 3.586901446 | E88: -8.597008284 | F88: 4.92E-13 | G88: 5.76E-11 | H88: 19.24269145
A89: chr6 | B89: TCF19 | C89: 2.406111243 | D89: 1.76675613 | E89: 8.563318175 | F89: 5.55E-13 | G89: 6.32E-11 | H89: 19.20956968
A90: chr21 | B90: RCAN1 | C90: -2.301201684 | D90: 5.773402399 | E90: -8.512962891 | F90: 7.21E-13 | G90: 8.06E-11 | H90: 18.8169303
A91: chr20 | B91: MT1P3 | C91: -4.04574229 | D91: -0.3118851905 | E91: -8.467147921 | F91: 8.87E-13 | G91: 9.56E-11 | H91: 18.7542424
A92: chr20 | B92: FOXS1 | C92: 3.416214237 | D92: -1.728370253 | E92: 8.479107727 | F92: 8.12E-13 | G92: 8.99E-11 | H92: 18.74238937
A93: chr13 | B93: COL4A2 | C93: 2.23785787 | D93: 6.175445421 | E93: 8.479474473 | F93: 8.36E-13 | G93: 9.18E-11 | H93: 18.68132483
A94: chr20 | B94: E2F1 | C94: 3.674870175 | D94: 0.9730264793 | E94: 8.420242987 | F94: 1.10E-12 | G94: 1.14E-10 | H94: 18.55956936
A95: chr3 | B95: CSRNP1 | C95: -2.074555952 | D95: 4.940411962 | E95: -8.432956456 | F95: 1.03E-12 | G95: 1.08E-10 | H95: 18.44359248
A96: chr16 | B96: MT1H | C96: -7.293345176 | D96: 2.233472977 | E96: -8.393089179 | F96: 1.24E-12 | G96: 1.26E-10 | H96: 18.41948242
A97: chr12 | B97: NXPH4 | C97: 4.080882476 | D97: -2.332357277 | E97: 8.414220137 | F97: 1.10E-12 | G97: 1.14E-10 | H97: 18.37829016
A98: chr4 | B98: MT2P1 | C98: -4.285260359 | D98: 2.173795316 | E98: -8.387205382 | F98: 1.28E-12 | G98: 1.29E-10 | H98: 18.36812656
A99: chr2 | B99: RRM2 | C99: 3.273273998 | D99: 1.950173264 | E99: 8.344917512 | F99: 1.55E-12 | G99: 1.51E-10 | H99: 18.20166936
A100: chr11 | B100: MDK | C100: 3.415552743 | D100: 3.90156194 | E100: 8.356512263 | F100: 1.47E-12 | G100: 1.44E-10 | H100: 18.17919169
A101: chr5 | B101: TSLP | C101: -3.121908987 | D101: 0.8160329381 | E101: -8.308730294 | F101: 1.82E-12 | G101: 1.74E-10 | H101: 18.06346397
A102: chr16 | B102: C16orf59 | C102: 3.017322339 | D102: -0.4845052241 | E102: 8.281460719 | F102: 2.00E-12 | G102: 1.86E-10 | H102: 17.95401571
A103: chr12 | B103: SLCO1B3 | C103: -5.804662377 | D103: 3.534496945 | E103: -8.275771773 | F103: 2.12E-12 | G103: 1.94E-10 | H103: 17.84743795
A104: chr11 | B104: FAM99B | C104: -3.952925214 | D104: 0.600631185 | E104: -8.233494919 | F104: 2.57E-12 | G104: 2.32E-10 | H104: 17.72224908
A105: chr1 | B105: MT1XP1 | C105: -4.783424287 | D105: -0.352147584 | E105: -8.231442654 | F105: 2.60E-12 | G105: 2.32E-10 | H105: 17.71713345
A106: chr15 | B106: CTD-2026K11.1 | C106: 3.020856535 | D106: -1.492186896 | E106: 8.220191473 | F106: 2.65E-12 | G106: 2.33E-10 | H106: 17.64103876
A107: chr16 | B107: MT1JP | C107: -6.232215707 | D107: 1.903619185 | E107: -8.204628423 | F107: 2.93E-12 | G107: 2.55E-10 | H107: 17.58901747
A108: chr5 | B108: AGXT2 | C108: -2.761578001 | D108: 4.91531869 | E108: -8.210479367 | F108: 2.86E-12 | G108: 2.50E-10 | H108: 17.4499229
A109: chr13 | B109: COL4A1 | C109: 2.368948928 | D109: 6.021184111 | E109: 8.163220048 | F109: 3.54E-12 | G109: 3.03E-10 | H109: 17.25297862
A110: chr2 | B110: SRD5A2 | C110: -3.529431987 | D110: 3.688789208 | E110: -8.129012262 | F110: 4.14E-12 | G110: 3.47E-10 | H110: 17.12220615
A111: chr16 | B111: MT2A | C111: -3.725771687 | D111: 8.08213748 | E111: -8.078359127 | F111: 5.21E-12 | G111: 4.22E-10 | H111: 16.98633859
A112: chr10 | B112: CXCL12 | C112: -2.704401749 | D112: 5.548015189 | E112: -8.095099644 | F112: 4.83E-12 | G112: 3.97E-10 | H112: 16.95529222
A113: chr13 | B113: ZIC2 | C113: 6.144169586 | D113: -3.019504123 | E113: 8.120474003 | F113: 4.30E-12 | G113: 3.58E-10 | H113: 16.95507754
A114: chr16 | B114: MT1A | C114: -4.336812467 | D114: 3.140148738 | E114: -8.021537491 | F114: 6.74E-12 | G114: 5.29E-10 | H114: 16.69670517
A115: chr16 | B115: RP11-715J22.4 | C115: 2.32989848 | D115: 0.3227105223 | E115: 7.981851719 | F115: 7.83E-12 | G115: 6.02E-10 | H115: 16.65379289
A116: chr16 | B116: DHODH | C116: -2.145298109 | D116: 5.51460793 | E116: -8.00786727 | F116: 7.17E-12 | G116: 5.55E-10 | H116: 16.53448112
A117: chr13 | B117: FGF14-AS2 | C117: -2.191950351 | D117: 0.134735368 | E117: -7.927762037 | F117: 1.00E-11 | G117: 7.42E-10 | H117: 16.41520586
A118: chr1 | B118: CD1D | C118: -2.095266477 | D118: 2.210078191 | E118: -7.871650706 | F118: 1.30E-11 | G118: 8.99E-10 | H118: 16.07291565
A119: chr1 | B119: HAO2 | C119: -4.018990322 | D119: 4.939418697 | E119: -7.894563329 | F119: 1.20E-11 | G119: 8.47E-10 | H119: 16.07086912
A120: chr10 | B120: HOGA1 | C120: -2.640043859 | D120: 4.152088717 | E120: -7.89705895 | F120: 1.19E-11 | G120: 8.43E-10 | H120: 16.05930853
A121: chr18 | B121: RP11-231E4.3 | C121: -5.440044014 | D121: -1.604120445 | E121: -7.854136058 | F121: 1.44E-11 | G121: 9.68E-10 | H121: 16.03503583
A122: chr8 | B122: C8orf4 | C122: -2.412330364 | D122: 5.016811664 | E122: -7.8711186 | F122: 1.33E-11 | G122: 9.10E-10 | H122: 15.92355225
A123: chr19 | B123: CTD-2527I21.5 | C123: -3.333632749 | D123: 3.402463845 | E123: -7.829757903 | F123: 1.61E-11 | G123: 1.07E-09 | H123: 15.79124144
A124: chr20 | B124: AURKA | C124: 2.273936049 | D124: 1.713848984 | E124: 7.793540222 | F124: 1.85E-11 | G124: 1.21E-09 | H124: 15.77073825
A125: chr4 | B125: RP11-6E9.4 | C125: -2.390128212 | D125: 3.995138457 | E125: -7.827934916 | F125: 1.62E-11 | G125: 1.07E-09 | H125: 15.73646047
A126: chr16 | B126: CDT1 | C126: 3.18044519 | D126: 0.2762196936 | E126: 7.774710212 | F126: 2.04E-11 | G126: 1.32E-09 | H126: 15.72672932
A127: chrX | B127: BX842568.2 | C127: -2.224972844 | D127: -0.1245793209 | E127: -7.750805176 | F127: 2.24E-11 | G127: 1.41E-09 | H127: 15.63709136
A128: chr12 | B128: GPR182 | C128: -3.6963637 | D128: -0.5182988914 | E128: -7.735526664 | F128: 2.46E-11 | G128: 1.53E-09 | H128: 15.54444174
A129: chr4 | B129: UGT2B7 | C129: -2.397995579 | D129: 7.915038292 | E129: -7.715001063 | F129: 2.69E-11 | G129: 1.67E-09 | H129: 15.35583261
A130: chr4 | B130: MAD2L1 | C130: 2.161880027 | D130: 0.8797837401 | E130: 7.666260116 | F130: 3.28E-11 | G130: 1.97E-09 | H130: 15.25262558
A131: chr4 | B131: UGT2B25P | C131: -2.080033784 | D131: 2.858567546 | E131: -7.698998784 | F131: 2.88E-11 | G131: 1.76E-09 | H131: 15.2515549
A132: chr1 | B132: TNFRSF4 | C132: 2.540956417 | D132: -0.6630982872 | E132: 7.66045856 | F132: 3.37E-11 | G132: 2.00E-09 | H132: 15.23609775
A133: chr4 | B133: HAND2 | C133: -2.876742875 | D133: 0.2460669383 | E133: -7.648943135 | F133: 3.60E-11 | G133: 2.10E-09 | H133: 15.16782873
A134: chr12 | B134: PMCH | C134: 2.491020645 | D134: -1.447387412 | E134: 7.641908371 | F134: 3.66E-11 | G134: 2.13E-09 | H134: 15.12455061
A135: chr10 | B135: CYP2C9 | C135: -2.951143846 | D135: 8.432838943 | E135: -7.654346125 | F135: 3.56E-11 | G135: 2.09E-09 | H135: 15.11480037
A136: chr10 | B136: ZWINT | C136: 2.359801533 | D136: 1.588890818 | E136: 7.637208126 | F136: 3.77E-11 | G136: 2.17E-09 | H136: 15.08469966
A137: chr21 | B137: FTCD-AS1 | C137: -2.695688971 | D137: 4.844405671 | E137: -7.683798706 | F137: 3.11E-11 | G137: 1.89E-09 | H137: 15.08088117
A138: chr16 | B138: CTD-2194A8.2 | C138: -3.138374829 | D138: 5.106055995 | E138: -7.681580226 | F138: 3.15E-11 | G138: 1.90E-09 | H138: 15.07637794
A139: chr16 | B139: MT1L | C139: -4.292313702 | D139: 2.062124097 | E139: -7.636375434 | F139: 3.86E-11 | G139: 2.21E-09 | H139: 15.04226169
A140: chr4 | B140: MFAP3L | C140: -2.331491043 | D140: 4.06401819 | E140: -7.666468329 | F140: 3.37E-11 | G140: 2.00E-09 | H140: 15.01151839
A141: chr16 | B141: IGFALS | C141: -3.733501017 | D141: 3.891292654 | E141: -7.606220004 | F141: 4.42E-11 | G141: 2.45E-09 | H141: 14.77546414
A142: chr12 | B142: NDUFA4L2 | C142: 2.212976473 | D142: 1.898583507 | E142: 7.565538999 | F142: 5.21E-11 | G142: 2.81E-09 | H142: 14.75658059
A143: chr1 | B143: ADORA2BP1 | C143: -3.083070754 | D143: -0.2697142529 | E143: -7.548683778 | F143: 5.63E-11 | G143: 3.00E-09 | H143: 14.74373215
A144: chr13 | B144: COL4A2-AS1 | C144: 2.030059647 | D144: 3.868469266 | E144: 7.545804281 | F144: 5.78E-11 | G144: 3.04E-09 | H144: 14.52284374
A145: chr17 | B145: C1QTNF1 | C145: -2.290890186 | D145: 4.331794583 | E145: -7.547566216 | F145: 5.76E-11 | G145: 3.04E-09 | H145: 14.48440697
A146: chr7 | B146: AKR1D1 | C146: -3.323666107 | D146: 5.199643166 | E146: -7.522421266 | F146: 6.45E-11 | G146: 3.34E-09 | H146: 14.39180499
A147: chr13 | B147: SLC46A3 | C147: -2.449803494 | D147: 4.976551942 | E147: -7.512351064 | F147: 6.75E-11 | G147: 3.47E-09 | H147: 14.31465951
A148: chr5 | B148: C9 | C148: -3.337393059 | D148: 8.043305236 | E148: -7.474985802 | F148: 7.99E-11 | G148: 3.99E-09 | H148: 14.31353494
A149: chr1 | B149: TMEM82 | C149: -2.870233566 | D149: 3.104347059 | E149: -7.481581032 | F149: 7.75E-11 | G149: 3.88E-09 | H149: 14.24612741
A150: chr16 | B150: ZG16 | C150: -3.533014729 | D150: 2.586226934 | E150: -7.441860088 | F150: 9.27E-11 | G150: 4.48E-09 | H150: 14.13521456
A151: chr19 | B151: C3P1 | C151: -3.105947628 | D151: 5.503382829 | E151: -7.460377707 | F151: 8.53E-11 | G151: 4.17E-09 | H151: 14.11532116
A152: chr7 | B152: CYP3A4 | C152: -5.414489913 | D152: 8.510801819 | E152: -7.422845878 | F152: 1.01E-10 | G152: 4.84E-09 | H152: 14.10360822
A153: chr8 | B153: NKX3-1 | C153: -2.156168421 | D153: 0.5687485246 | E153: -7.406278818 | F153: 1.06E-10 | G153: 5.05E-09 | H153: 14.10358869
A154: chr14 | B154: AL589743.1 | C154: 4.06677985 | D154: -2.395919276 | E154: 7.393459931 | F154: 1.14E-10 | G154: 5.37E-09 | H154: 13.97926316
A155: chr6 | B155: SLC17A2 | C155: -2.179211369 | D155: 4.445256197 | E155: -7.433818712 | F155: 9.61E-11 | G155: 4.62E-09 | H155: 13.97511226
A156: chr7 | B156: HOXA13 | C156: 5.91451007 | D156: -2.873845667 | E156: 7.369657868 | F156: 1.28E-10 | G156: 5.93E-09 | H156: 13.86272016
A157: chr8 | B157: PTP4A3 | C157: 2.389478212 | D157: 2.292876291 | E157: 7.356986482 | F157: 1.35E-10 | G157: 6.23E-09 | H157: 13.7942785
A158: chr19 | B158: HAMP | C158: -5.134143634 | D158: 4.226977895 | E158: -7.352564293 | F158: 1.38E-10 | G158: 6.33E-09 | H158: 13.74628687
A159: chr4 | B159: FGFBP2 | C159: -2.494499808 | D159: -0.2243337393 | E159: -7.315122621 | F159: 1.60E-10 | G159: 7.21E-09 | H159: 13.73403084
A160: chr8 | B160: LY6E | C160: -3.347078373 | D160: 6.307798213 | E160: -7.356838459 | F160: 1.36E-10 | G160: 6.24E-09 | H160: 13.69585223
A161: chrX | B161: APLN | C161: 3.588669872 | D161: -0.3814347555 | E161: 7.267372578 | F161: 2.03E-10 | G161: 8.88E-09 | H161: 13.50789395
A162: chr6 | B162: IYD | C162: -2.382487752 | D162: 3.843758919 | E162: -7.302222457 | F162: 1.74E-10 | G162: 7.74E-09 | H162: 13.41323405
A163: chr16 | B163: CETP | C163: -2.692870737 | D163: 2.697040595 | E163: -7.271553437 | F163: 1.99E-10 | G163: 8.77E-09 | H163: 13.36590058
A164: chr3 | B164: MCM2 | C164: 2.33195803 | D164: 2.592727174 | E164: 7.234269766 | F164: 2.35E-10 | G164: 9.77E-09 | H164: 13.2478103
A165: chr16 | B165: CTD-3203P2.1 | C165: -2.532658125 | D165: 1.206632405 | E165: -7.217851096 | F165: 2.52E-10 | G165: 1.04E-08 | H165: 13.23748262
A166: chr4 | B166: CXCL2 | C166: -2.937167701 | D166: 4.299718353 | E166: -7.265008259 | F166: 2.05E-10 | G166: 8.91E-09 | H166: 13.23655451
A167: chr6 | B167: LPA | C167: -2.383211537 | D167: 6.086558305 | E167: -7.244339496 | F167: 2.25E-10 | G167: 9.50E-09 | H167: 13.17174981
A168: chr9 | B168: MT1P1 | C168: -3.61957981 | D168: -0.7662960083 | E168: -7.18249286 | F168: 2.97E-10 | G168: 1.17E-08 | H168: 13.14128369
A169: chr6 | B169: RP11-349J5.2 | C169: -2.077447107 | D169: 1.611330231 | E169: -7.196428701 | F169: 2.74E-10 | G169: 1.10E-08 | H169: 13.120383
A170: chr16 | B170: ACSM5 | C170: -2.775094832 | D170: 6.219155034 | E170: -7.222690554 | F170: 2.48E-10 | G170: 1.03E-08 | H170: 13.05790382
A171: chr18 | B171: LRRC37A7P | C171: -3.21817926 | D171: 0.7669029646 | E171: -7.166078038 | F171: 3.19E-10 | G171: 1.25E-08 | H171: 13.04052449
A172: chr17 | B172: CTD-2510F5.4 | C172: 2.468666062 | D172: -1.521540032 | E172: 7.151365891 | F172: 3.33E-10 | G172: 1.29E-08 | H172: 13.01958852
A173: chr5 | B173: LINC01018 | C173: -4.190113166 | D173: 3.99530396 | E173: -7.196270325 | F173: 2.79E-10 | G173: 1.12E-08 | H173: 12.98343839
A174: chr11 | B174: GLYATL1 | C174: -2.102314971 | D174: 6.349162751 | E174: -7.19822638 | F174: 2.77E-10 | G174: 1.11E-08 | H174: 12.97668483
A175: chr12 | B175: PZP | C175: -2.356290097 | D175: 5.40333345 | E175: -7.190932429 | F175: 2.86E-10 | G175: 1.14E-08 | H175: 12.89574826
A176: chr19 | B176: FOSB | C176: -3.748808184 | D176: 4.009974296 | E176: -7.178480602 | F176: 3.02E-10 | G176: 1.19E-08 | H176: 12.89263267
A177: chr12 | B177: RDH16 | C177: -3.198370301 | D177: 6.641893161 | E177: -7.140122973 | F177: 3.59E-10 | G177: 1.37E-08 | H177: 12.75289274
A178: chr1 | B178: MFSD2A | C178: -3.390949297 | D178: 4.641367159 | E178: -7.144540365 | F178: 3.52E-10 | G178: 1.35E-08 | H178: 12.72472974
A179: chr17 | B179: CDC6 | C179: 2.62769268 | D179: 0.8939958932 | E179: 7.064453092 | F179: 4.98E-10 | G179: 1.76E-08 | H179: 12.60823085
A180: chr19 | B180: CTD-2619J13.27 | C180: -2.514690871 | D180: 5.673884326 | E180: -7.116945578 | F180: 3.98E-10 | G180: 1.51E-08 | H180: 12.59149263
A181: chr5 | B181: C6 | C181: -2.190760672 | D181: 7.771126945 | E181: -7.08517661 | F181: 4.57E-10 | G181: 1.67E-08 | H181: 12.57840463
A182: chr11 | B182: RP11-142C4.6 | C182: -2.078104567 | D182: 6.370805889 | E182: -7.099571546 | F182: 4.30E-10 | G182: 1.60E-08 | H182: 12.54369716
A183: chr1 | B183: FCGR2B | C183: -2.244830948 | D183: 2.325486085 | E183: -7.079144282 | F183: 4.71E-10 | G183: 1.71E-08 | H183: 12.50503812
A184: chr1 | B184: RP11-196G18.24 | C184: 2.268172686 | D184: -1.196415593 | E184: 7.025702077 | F184: 5.85E-10 | G184: 2.03E-08 | H184: 12.48401759
A185: chr18 | B185: RP11-549B18.3 | C185: -3.157723004 | D185: -1.33527263 | E185: -7.025046006 | F185: 5.90E-10 | G185: 2.05E-08 | H185: 12.47519007
A186: chrX | B186: BX842568.1 | C186: -2.970952645 | D186: -2.457306852 | E186: -6.96249954 | F186: 7.75E-10 | G186: 2.56E-08 | H186: 12.18046293
A187: chr6 | B187: RP3-523E19.2 | C187: 3.036378357 | D187: -1.402859691 | E187: 6.941611065 | F187: 8.53E-10 | G187: 2.77E-08 | H187: 12.12184336
A188: chr19 | B188: LGI4 | C188: -2.922508869 | D188: 5.364069684 | E188: -6.998187186 | F188: 6.75E-10 | G188: 2.30E-08 | H188: 12.0748961
A189: chr12 | B189: RP11-424C20.2 | C189: 3.471221502 | D189: -2.803617947 | E189: 6.938094258 | F189: 8.64E-10 | G189: 2.79E-08 | H189: 12.03770432
A190: chr2 | B190: SLC19A3 | C190: -2.011304076 | D190: 3.45666303 | E190: -6.975426452 | F190: 7.47E-10 | G190: 2.50E-08 | H190: 11.99724221
A191: chr7 | B191: AC092171.4 | C191: 2.306488478 | D191: 1.149184472 | E191: 6.893186736 | F191: 1.06E-09 | G191: 3.34E-08 | H191: 11.86416845
A192: chr6 | B192: AMD1P4 | C192: -3.623520957 | D192: -1.542478294 | E192: -6.882950311 | F192: 1.12E-09 | G192: 3.49E-08 | H192: 11.86052021
A193: chr1 | B193: RP11-169K16.4 | C193: -2.302001679 | D193: 3.454388172 | E193: -6.92449505 | F193: 9.36E-10 | G193: 2.98E-08 | H193: 11.76154111
A194: chr1 | B194: ALPL | C194: -2.396226143 | D194: 4.837272736 | E194: -6.93083239 | F194: 9.10E-10 | G194: 2.91E-08 | H194: 11.75839457
A195: chr7 | B195: MAGI2-AS3 | C195: -2.699470332 | D195: 2.944980886 | E195: -6.896342651 | F195: 1.06E-09 | G195: 3.34E-08 | H195: 11.71203783
A196: chr9 | B196: DMRTA1 | C196: -2.849382087 | D196: 2.329810011 | E196: -6.881175855 | F196: 1.13E-09 | G196: 3.51E-08 | H196: 11.707573
A197: chr19 | B197: CTD-2527I21.4 | C197: -3.153228604 | D197: 5.298778536 | E197: -6.89064351 | F197: 1.09E-09 | G197: 3.40E-08 | H197: 11.6107893
A198: chr19 | B198: FXYD1 | C198: -3.159198982 | D198: 5.286184113 | E198: -6.885300059 | F198: 1.11E-09 | G198: 3.47E-08 | H198: 11.58744577
A199: chr4 | B199: ADH6 | C199: -2.009383691 | D199: 7.310687782 | E199: -6.865968506 | F199: 1.21E-09 | G199: 3.73E-08 | H199: 11.58284746
A200: chr5 | B200: CTD-2201I18.1 | C200: 3.379731626 | D200: 0.6074464817 | E200: 6.785147439 | F200: 1.74E-09 | G200: 5.12E-08 | H200: 11.40070733
A201: chr8 | B201: DPYS | C201: -2.139190698 | D201: 7.261375035 | E201: -6.816705571 | F201: 1.51E-09 | G201: 4.52E-08 | H201: 11.35974335
... 344 more rows

Sheet Supplementary Table 9.
A1: Table S9. Overrepresented GO terms and canonical pathways in the sex-shared tumor vs. tumor-adjacent DEGs. Significant terms and pathways were selected based on an FDR-adjusted p-value threshold of 0.01.
A3: GO Biological Process | B3: GO term | C3: H. sapiens reference list | D3: Genes expected | E3: Genes detected | F3: Nominal p-value | G3: FDR-adjusted p-value
B4: Mitotic cell cycle | C4: 968 | D4: 194 | E4: 398 | F4: 8.48E-55 | G4: 6.95E-52
B5: Regulation of cell cycle | C5: 886 | D5: 178 | E5: 367 | F5: 2.81E-51 | G5: 1.15e-48
B6: Cell cycle phase | C6: 1070 | D6: 215 | E6: 405 | F6: 1.67E-44 | G6: 4.56e-42
B7: Interphase of mitotic cell cycle | C7: 435 | D7: 87.3 | E7: 214 | F7: 1.81E-43 | G7: 3.71e-41
B8: Interphase | C8: 443 | D8: 88.9 | E8: 216 | F8: 4.37e-43 | G8: 6.44E-41
B9: Cell cycle | C9: 1860 | D9: 373 | E9: 606 | F9: 4.71E-43 | G9: 6.44E-41
B10: Negative regulation of cell cycle | C10: 520 | D10: 104 | E10: 240 | F10: 1.15e-42 | G10: 1.35e-40
B11: Viral reproductive process | C11: 597 | D11: 120 | E11: 261 | F11: 3.86E-41 | G11: 3.96E-39
B12: Interaction with host | C12: 426 | D12: 85.5 | E12: 205 | F12: 8.13E-40 | G12: 7.40E-38
B13: Cell cycle process | C13: 1420 | D13: 284 | E13: 483 | F13: 1.78E-39 | G13: 1.46e-37
B14: Negative regulation of cellular metabolic process | C14: 1660 | D14: 334 | E14: 546 | F14: 2.40E-39 | G14: 1.79e-37
B15: G1/S transition of mitotic cell cycle | C15: 209 | D15: 41.9 | E15: 127 | F15: 2.22e-38 | G15: 1.51E-36
B16: Cell cycle checkpoint | C16: 281 | D16: 56.4 | E16: 153 | F16: 6.13E-38 | G16: 3.87E-36
B17: Regulation of cellular protein metabolic process | C17: 1560 | D17: 313 | E17: 515 | F17: 6.75E-38 | G17: 3.96E-36
B18: Cell division | C18: 507 | D18: 102 | E18: 226 | F18: 3.20E-37 | G18: 1.75e-35
B19: Cell cycle arrest | C19: 428 | D19: 85.9 | E19: 201 | F19: 4.13E-37 | G19: 2.11E-35
B20: Regulation of protein modification process | C20: 1250 | D20: 250 | E20: 432 | F20: 1.06e-36 | G20: 5.14E-35
B21: Negative regulation of metabolic process | C21: 1820 | D21: 365 | E21: 577 | F21: 1.20E-36 | G21: 5.47E-35
B22: Positive regulation of cellular metabolic process | C22: 2530 | D22: 507 | E22: 746 | F22: 1.27E-36 | G22: 5.48E-35
B23: Regulation of mitotic cell cycle | C23: 351 | D23: 70.4 | E23: 175 | F23: 1.37E-36 | G23: 5.63E-35
B24: Viral reproduction | C24: 803 | D24: 161 | E24: 310 | F24: 6.25E-36 | G24: 2.44e-34
B25: Regulation of protein metabolic process | C25: 1820 | D25: 366 | E25: 575 | F25: 8.66E-36 | G25: 3.23E-34
B26: Negative regulation of protein metabolic process | C26: 540 | D26: 108 | E26: 232 | F26: 4.06E-35 | G26: 1.45e-33
B27: Negative regulation of cellular protein metabolic process | C27: 463 | D27: 92.9 | E27: 207 | F27: 2.41E-34 | G27: 8.22e-33
B28: Positive regulation of metabolic process | C28: 2690 | D28: 540 | E28: 775 | F28: 4.72E-34 | G28: 1.55E-32
B29: Protein catabolic process | C29: 644 | D29: 129 | E29: 258 | F29: 6.47E-33 | G29: 2.04e-31
B30: S phase | C30: 153 | D30: 30.7 | E30: 98 | F30: 1.36e-32 | G30: 4.14E-31
B31: S phase of mitotic cell cycle | C31: 144 | D31: 28.9 | E31: 94 | F31: 2.74E-32 | G31: 8.01E-31
B32: Positive regulation of cellular protein metabolic process | C32: 968 | D32: 194 | E32: 346 | F32: 3.15E-32 | G32: 8.91e-31
B33: Positive regulation of transcription from RNA polymerase II promoter | C33: 800 | D33: 160 | E33: 300 | F33: 4.43e-32 | G33: 1.21e-30
B34: Positive regulation of protein metabolic process | C34: 1080 | D34: 217 | E34: 376 | F34: 4.72E-32 | G34: 1.25E-30
B35: Cellular protein catabolic process | C35: 518 | D35: 104 | E35: 219 | F35: 6.17E-32 | G35: 1.58E-30
B36: Mitosis | C36: 420 | D36: 84.2 | E36: 187 | F36: 8.51E-31 | G36: 2.11E-29
B37: Cellular macromolecule catabolic process | C37: 849 | D37: 170 | E37: 310 | F37: 1.03E-30 | G37: 2.47E-29
B38: Regulation of transcription from RNA polymerase II promoter | C38: 1610 | D38: 323 | E38: 505 | F38: 1.13E-30 | G38: 2.64E-29
B39: Mitotic cell cycle checkpoint | C39: 149 | D39: 29.9 | E39: 94 | F39: 1.53E-30 | G39: 3.49e-29
B40: Protein modification by small protein conjugation | C40: 713 | D40: 143 | E40: 272 | F40: 1.72e-30 | G40: 3.82E-29
B41: Macromolecule catabolic process | C41: 1070 | D41: 215 | E41: 368 | F41: 2.56E-30 | G41: 5.39E-29
B42: Macromolecule catabolic process | C42: 1070 | D42: 215 | E42: 368 | F42: 2.56E-30 | G42: 5.39E-29
B43: Protein polyubiquitination | C43: 177 | D43: 35.5 | E43: 104 | F43: 7.20E-30 | G43: 1.48E-28
B44: Protein ubiquitination | C44: 658 | D44: 132 | E44: 255 | F44: 7.83E-30 | G44: 1.57E-28
B45: M phase of mitotic cell cycle | C45: 447 | D45: 89.7 | E45: 193 | F45: 1.25e-29 | G45: 2.44e-28
B46: Positive regulation of protein modification process | C46: 867 | D46: 174 | E46: 311 | F46: 3.14E-29 | G46: 5.98E-28
B47: Positive regulation of nucleobase_containing compound metabolic process | C47: 1490 | D47: 299 | E47: 468 | F47: 2.69E-28 | G47: 4.91e-27
B48: Positive regulation of transcription DNA_dependent | C48: 1260 | D48: 252 | E48: 410 | F48: 2.76e-28 | G48: 4.91e-27
B49: Positive regulation of transcription DNA_dependent | C49: 1260 | D49: 252 | E49: 410 | F49: 2.76e-28 | G49: 4.91e-27
B50: Positive regulation of RNA metabolic process | C50: 1330 | D50: 267 | E50: 428 | F50: 5.24E-28 | G50: 9.13E-27
B51: Chromatin modification | C51: 512 | D51: 103 | E51: 208 | F51: 1.48E-27 | G51: 2.53e-26
B52: Chromosome organization | C52: 878 | D52: 176 | E52: 309 | F52: 2.15e-27 | G52: 3.59E-26
B53: Covalent chromatin modification | C53: 320 | D53: 64.2 | E53: 147 | F53: 4.19E-26 | G53: 6.87E-25
B54: Negative regulation of transcription from RNA polymerase II promoter | C54: 552 | D54: 111 | E54: 216 | F54: 5.49E-26 | G54: 8.83E-25
B55: Histone modification | C55: 312 | D55: 62.6 | E55: 144 | F55: 7.55E-26 | G55: 1.19E-24
B56: Transcription from RNA polymerase II promoter | C56: 1930 | D56: 387 | E56: 565 | F56: 8.79E-26 | G56: 1.36e-24
B57: Negative regulation of nucleobase_containing compound metabolic process | C57: 1130 | D57: 227 | E57: 368 | F57: 3.70E-25 | G57: 5.62E-24
B58: Protein modification process | C58: 3290 | D58: 660 | E58: 872 | F58: 7.15e-25 | G58: 1.05e-23
B59: Negative regulation of biosynthetic process | C59: 1240 | D59: 249 | E59: 395 | F59: 7.19E-25 | G59: 1.05e-23
B60: Negative regulation of cellular biosynthetic process | C60: 1220 | D60: 245 | E60: 389 | F60: 1.44e-24 | G60: 2.07E-23
B61: Regulation of programmed cell death | C61: 1550 | D61: 312 | E61: 469 | F61: 3.56E-24 | G61: 5.03E-23
B62: Negative regulation of transcription DNA_dependent | C62: 987 | D62: 198 | E62: 328 | F62: 4.06E-24 | G62: 5.55E-23
B63: Negative regulation of transcription DNA_dependent | C63: 987 | D63: 198 | E63: 328 | F63: 4.06E-24 | G63: 5.55E-23
B64: Chromatin organization | C64: 637 | D64: 128 | E64: 235 | F64: 4.98E-24 | G64: 6.70E-23
B65: Regulation of apoptotic process | C65: 1540 | D65: 308 | E65: 464 | F65: 5.33e-24 | G65: 7.05E-23
B66: Cell proliferation | C66: 1900 | D66: 382 | E66: 551 | F66: 8.89E-24 | G66: 1.16E-22
B67: Multi_organism process | C67: 1710 | D67: 342 | E67: 503 | F67: 2.21e-23 | G67: 2.83e-22
B68: Negative regulation of RNA metabolic process | C68: 1020 | D68: 205 | E68: 335 | F68: 2.53e-23 | G68: 3.19E-22
B69: Positive regulation of catalytic activity | C69: 1070 | D69: 214 | E69: 346 | F69: 3.44E-23 | G69: 4.28e-22
B70: Regulation of organelle organization | C70: 589 | D70: 118 | E70: 219 | F70: 6.17E-23 | G70: 7.55E-22
B71: M phase | C71: 671 | D71: 135 | E71: 240 | F71: 2.07E-22 | G71: 2.50E-21
B72: Macromolecule modification | C72: 3430 | D72: 688 | E72: 887 | F72: 9.87E-22 | G72: 1.17e-20
B73: Regulation of catalytic activity | C73: 1730 | D73: 347 | E73: 502 | F73: 1.26e-21 | G73: 1.47E-20
B74: Regulation of cell proliferation | C74: 1430 | D74: 286 | E74: 428 | F74: 2.79E-21 | G74: 3.22E-20
B75: Negative regulation of apoptotic process | C75: 679 | D75: 136 | E75: 238 | F75: 6.61E-21 | G75: 7.43E-20
B76: Negative regulation of apoptotic process | C76: 679 | D76: 136 | E76: 238 | F76: 6.61E-21 | G76: 7.43E-20
B77: Negative regulation of programmed cell death | C77: 691 | D77: 139 | E77: 241 | F77: 7.75e-21 | G77: 8.59E-20
B78: Organelle organization | C78: 2820 | D78: 565 | E78: 747 | F78: 8.07E-21 | G78: 8.82E-20
B79: Regulation of cellular component organization | C79: 1520 | D79: 306 | E79: 449 | F79: 9.69E-21 | G79: 1.05E-19
B80: Regulation of transferase activity | C80: 768 | D80: 154 | E80: 261 | F80: 9.83E-21 | G80: 1.05E-19
B81: Regulation of kinase activity | C81: 743 | D81: 149 | E81: 254 | F81: 1.39E-20 | G81: 1.47E-19
B82: Cellular response to stress | C82: 1620 | D82: 326 | E82: 470 | F82: 5.51e-20 | G82: 5.72E-19
B83: Regulation of protein kinase activity | C83: 698 | D83: 140 | E83: 240 | F83: 7.61E-20 | G83: 7.80E-19
B84: Signal transduction in response to DNA damage | C84: 129 | D84: 25.9 | E84: 72 | F84: 2.62E-19 | G84: 2.65E-18
B85: Reproduction | C85: 1860 | D85: 372 | E85: 521 | F85: 2.72E-19 | G85: 2.72E-18
B86: Negative regulation of catalytic activity | C86: 568 | D86: 114 | E86: 203 | F86: 5.02E-19 | G86: 4.92e-18
B87: Macromolecular complex assembly | C87: 1120 | D87: 225 | E87: 345 | F87: 5.04E-19 | G87: 4.92e-18
B88: Negative regulation of cellular process | C88: 4110 | D88: 824 | E88: 1020 | F88: 5.86e-19 | G88: 5.65e-18
B89: Regulation of molecular function | C89: 2250 | D89: 451 | E89: 609 | F89: 8.71E-19 | G89: 8.31E-18
B90: Regulation of mitosis | C90: 99 | D90: 19.9 | E90: 60 | F90: 1.02e-18 | G90: 9.64E-18
B91: Reproductive process | C91: 1740 | D91: 350 | E91: 492 | F91: 1.41e-18 | G91: 1.32E-17
B92: DNA damage response signal transduction by p53 class mediator | C92: 117 | D92: 23.5 | E92: 66 | F92: 3.85E-18 | G92: 3.55E-17
B93: Regulation of phosphorylation | C93: 1070 | D93: 214 | E93: 328 | F93: 4.47E-18 | G93: 4.07E-17
B94: Regulation of protein phosphorylation | C94: 987 | D94: 198 | E94: 306 | F94: 1.84E-17 | G94: 1.65E-16
B95: Intracellular receptor mediated signaling pathway | C95: 270 | D95: 54.2 | E95: 114 | F95: 4.71E-17 | G95: 4.20E-16
B96: Response to hormone stimulus | C96: 751 | D96: 151 | E96: 244 | F96: 1.09e-16 | G96: 9.59e-16
B97: DNA damage checkpoint | C97: 143 | D97: 28.7 | E97: 73 | F97: 1.12e-16 | G97: 9.77E-16
B98: DNA integrity checkpoint | C98: 152 | D98: 30.5 | E98: 76 | F98: 1.20E-16 | G98: 1.03e-15
B99: Cytokine_mediated signaling pathway | C99: 374 | D99: 75 | E99: 143 | F99: 1.64e-16 | G99: 1.40E-15
B100: Nuclear transport | C100: 392 | D100: 78.6 | E100: 148 | F100: 1.73e-16 | G100: 1.46E-15
B101: Apoptotic process | C101: 2130 | D101: 427 | E101: 570 | F101: 2.42E-16 | G101: 2.00E-15
B102: Apoptotic process | C102: 2130 | D102: 427 | E102: 570 | F102: 2.42E-16 | G102: 2.00E-15
B103: Nucleocytoplasmic transport | C103: 388 | D103: 77.8 | E103: 146 | F103: 3.89E-16 | G103: 3.19E-15
B104: Programmed cell death | C104: 2160 | D104: 432 | E104: 575 | F104: 4.01E-16 | G104: 3.25e-15
B105: Negative regulation of cell proliferation | C105: 585 | D105: 117 | E105: 199 | F105: 4.81E-16 | G105: 3.86E-15
B106: Positive regulation of cellular component organization | C106: 560 | D106: 112 | E106: 192 | F106: 6.62E-16 | G106: 5.27e-15
B107: Response to endogenous stimulus | C107: 1360 | D107: 274 | E107: 391 | F107: 6.87E-16 | G107: 5.42E-15
B108: Protein complex assembly | C108: 861 | D108: 173 | E108: 269 | F108: 6.98e-16 | G108: 5.45E-15
B109: Response to hypoxia | C109: 245 | D109: 49.1 | E109: 104 | F109: 7.30E-16 | G109: 5.65E-15
B110: Protein phosphorylation | C110: 1480 | D110: 298 | E110: 418 | F110: 1.50E-15 | G110: 1.15e-14
B111: DNA replication | C111: 346 | D111: 69.4 | E111: 132 | F111: 3.01e-15 | G111: 2.28E-14
B112: Negative regulation of biological process | C112: 4590 | D112: 921 | E112: 1100 | F112: 6.31E-15 | G112: 4.75e-14
B113: Regulation of DNA metabolic process | C113: 235 | D113: 47.1 | E113: 99 | F113: 6.59E-15 | G113: 4.91e-14
B114: Regulation of chromosome organization | C114: 122 | D114: 24.5 | E114: 63 | F114: 6.86E-15 | G114: 5.07E-14
B115: Response to organic substance | C115: 2500 | D115: 501 | E115: 645 | F115: 7.49E-15 | G115: 5.49E-14
B116: Transcription initiation from RNA polymerase II promoter | C116: 219 | D116: 43.9 | E116: 94 | F116: 7.93E-15 | G116: 5.76E-14
B117: Response to abiotic stimulus | C117: 876 | D117: 176 | E117: 268 | F117: 1.37E-14 | G117: 9.86E-14
B118: Negative regulation of cellular component organization | C118: 370 | D118: 74.2 | E118: 137 | F118: 1.43e-14 | G118: 1.02E-13
B119: Protein import into nucleus | C119: 228 | D119: 45.7 | E119: 96 | F119: 1.77e-14 | G119: 1.25e-13
B120: Innate immune response | C120: 638 | D120: 128 | E120: 206 | F120: 6.29E-14 | G120: 4.41E-13
B121: Nuclear import | C121: 232 | D121: 46.5 | E121: 96 | F121: 6.43E-14 | G121: 4.47E-13
B122: Peptidyl_amino acid modification | C122: 739 | D122: 148 | E122: 231 | F122: 8.81E-14 | G122: 6.07E-13
B123: Chromosome segregation | C123: 174 | D123: 34.9 | E123: 78 | F123: 9.60E-14 | G123: 6.56E-13
A124: GO Molecular Function | B124: GO term | C124: H. sapiens reference list | D124: Genes expected | E124: Genes detected | F124: Nominal p-value | G124: FDR-adjusted p-value
B125: Enzyme binding | C125: 1200 | D125: 227 | E125: 461 | F125: 1.85e-61 | G125: 7.17e-59
B126: Kinase binding | C126: 418 | D126: 79.3 | E126: 196 | F126: 1.05e-39 | G126: 2.04E-37
B127: Protein kinase binding | C127: 376 | D127: 71.3 | E127: 179 | F127: 2.13E-37 | G127: 2.76E-35
B128: Positive regulation of transcription DNA_dependent | C128: 1260 | D128: 239 | E128: 410 | F128: 7.04E-34 | G128: 6.83E-32
B129: Transcription from RNA polymerase II promoter | C129: 1930 | D129: 366 | E129: 565 | F129: 1.43e-32 | G129: 1.11e-30
B130: Transcription factor binding | C130: 509 | D130: 96.5 | E130: 205 | F130: 5.84E-30 | G130: 3.78E-28
B131: Negative regulation of transcription DNA_dependent | C131: 987 | D131: 187 | E131: 328 | F131: 1.29E-28 | G131: 7.15E-27
B132: Chromatin binding | C132: 338 | D132: 64.1 | E132: 152 | F132: 1.86e-28 | G132: 9.03E-27
B133: Sequence_specific DNA binding | C133: 732 | D133: 139 | E133: 243 | F133: 3.68E-21 | G133: 1.59E-19
B134: Small conjugating protein ligase activity | C134: 313 | D134: 59.4 | E134: 128 | F134: 1.00E-19 | G134: 3.53E-18
B135: Small conjugating protein ligase activity | C135: 313 | D135: 59.4 | E135: 128 | F135: 1.00E-19 | G135: 3.53E-18
B136: Protein binding transcription factor activity | C136: 600 | D136: 114 | E136: 202 | F136: 1.78E-18 | G136: 5.77E-17
B137: Ubiquitin_protein ligase activity | C137: 291 | D137: 55.2 | E137: 119 | F137: 2.01E-18 | G137: 5.99E-17
B138: Transcription cofactor activity | C138: 552 | D138: 105 | E138: 189 | F138: 3.24E-18 | G138: 8.98e-17
B139: ATP binding | C139: 1490 | D139: 282 | E139: 409 | F139: 1.37e-17 | G139: 3.53E-16
B140: Acid_amino acid ligase activity | C140: 349 | D140: 66.2 | E140: 133 | F140: 2.33E-17 | G140: 5.65E-16
B141: Adenyl ribonucleotide binding | C141: 1530 | D141: 289 | E141: 413 | F141: 1.57E-16 | G141: 3.59E-15
B142: Adenyl nucleotide binding | C142: 1530 | D142: 290 | E142: 413 | F142: 2.52e-16 | G142: 5.43E-15
B143: Ligase activity forming carbon_nitrogen bonds | C143: 393 | D143: 74.5 | E143: 142 | F143: 3.85E-16 | G143: 7.87E-15
B144: Transcription coactivator activity | C144: 312 | D144: 59.2 | E144: 119 | F144: 1.08e-15 | G144: 2.09E-14
B145: Identical protein binding | C145: 910 | D145: 173 | E145: 267 | F145: 3.39E-15 | G145: 6.26E-14
B146: Purine ribonucleotide binding | C146: 1890 | D146: 359 | E146: 482 | F146: 4.15e-14 | G146: 7.31E-13
B147: Purine nucleotide binding | C147: 1900 | D147: 360 | E147: 482 | F147: 7.39E-14 | G147: 1.25E-12
B148: Ligase activity | C148: 572 | D148: 108 | E148: 181 | F148: 9.14E-14 | G148: 1.48e-12
B149: Protein complex binding | C149: 339 | D149: 64.3 | E149: 119 | F149: 9.83E-13 | G149: 1.53E-11
B150: Nucleotide binding | C150: 2470 | D150: 469 | E150: 591 | F150: 9.45E-12 | G150: 1.41e-10
B151: Protein domain specific binding | C151: 560 | D151: 106 | E151: 171 | F151: 1.28e-11 | G151: 1.84E-10
B152: Small conjugating protein binding | C152: 75 | D152: 14.2 | E152: 40 | F152: 2.63E-11 | G152: 3.65E-10
B153: Hormone receptor binding | C153: 176 | D153: 33.4 | E153: 69 | F153: 2.78E-10 | G153: 3.71E-09
B154: Ubiquitin binding | C154: 63 | D154: 11.9 | E154: 34 | F154: 5.33E-10 | G154: 6.89E-09
B155: Steroid hormone receptor binding | C155: 69 | D155: 13.1 | E155: 36 | F155: 5.82E-10 | G155: 7.28E-09
B156: Structure_specific DNA binding | C156: 242 | D156: 45.9 | E156: 85 | F156: 1.69E-09 | G156: 2.05E-08
B157: Histone deacetylase binding | C157: 65 | D157: 12.3 | E157: 33 | F157: 7.44E-09 | G157: 8.74E-08
B158: Protein N_terminus binding | C158: 86 | D158: 16.3 | E158: 39 | F158: 1.98E-08 | G158: 2.25E-07
B159: Nuclear hormone receptor binding | C159: 153 | D159: 29 | E159: 57 | F159: 8.02E-08 | G159: 8.89E-07
B160: Protein dimerization activity | C160: 996 | D160: 189 | E160: 251 | F160: 2.92E-07 | G160: 3.14E-06
B161: Transcription corepressor activity | C161: 208 | D161: 39.4 | E161: 70 | F161: 3.02E-07 | G161: 3.17E-06
B162: Telomeric DNA binding | C162: 17 | D162: 3.22 | E162: 13 | F162: 4.41E-07 | G162: 4.51E-06
B163: Protein C_terminus binding | C163: 160 | D163: 30.3 | E163: 57 | F163: 4.60E-07 | G163: 4.58E-06
B164: Receptor signaling protein activity | C164: 110 | D164: 20.9 | E164: 43 | F164: 6.74E-07 | G164: 6.54E-06
B165: DNA_dependent ATPase activity | C165: 80 | D165: 15.2 | E165: 34 | F165: 1.03E-06 | G165: 9.77E-06
B166: Protein homodimerization activity | C166: 573 | D166: 109 | E166: 154 | F166: 1.44E-06 | G166: 1.33E-05
B167: Regulation of DNA_dependent transcription elongation | C167: 37 | D167: 7.02 | E167: 20 | F167: 1.91E-06 | G167: 1.72E-05
B168: Kinase regulator activity | C168: 144 | D168: 27.3 | E168: 51 | F168: 2.22E-06 | G168: 1.95E-05
B169: Insulin_like growth factor receptor binding | C169: 14 | D169: 2.65 | E169: 11 | F169: 2.31E-06 | G169: 1.99E-05
B170: Protein heterodimerization activity | C170: 374 | D170: 70.9 | E170: 107 | F170: 3.01E-06 | G170: 2.54E-05
B171: RNA polymerase II distal enhancer sequence_specific DNA binding transcription factor activity | C171: 110 | D171: 20.9 | E171: 41 | F171: 5.03E-06 | G171: 4.16E-05
B172: Structural constituent of cytoskeleton | C172: 78 | D172: 14.8 | E172: 32 | F172: 5.30E-06 | G172: 4.28E-05
B173: Tubulin binding | C173: 180 | D173: 34.1 | E173: 59 | F173: 6.43E-06 | G173: 5.09E-05
B174: Microtubule binding | C174: 115 | D174: 21.8 | E174: 42 | F174: 7.05E-06 | G174: 5.47E-05
B175: Phosphatase binding | C175: 116 | D175: 22 | E175: 42 | F175: 9.04E-06 | G175: 6.88E-05
B176: Steroid hormone receptor activity | C176: 56 | D176: 10.6 | E176: 25 | F176: 9.58E-06 | G176: 7.15E-05
B177: Histone methyltransferase activity | C177: 60 | D177: 11.4 | E177: 26 | F177: 1.24E-05 | G177: 9.05E-05
B178: Protein phosphatase binding | C178: 74 | D178: 14 | E178: 30 | F178: 1.37E-05 | G178: 9.83E-05
B179: Double_stranded DNA binding | C179: 149 | D179: 28.3 | E179: 50 | F179: 1.55E-05 | G179: 0.00011
B180: SMAD binding | C180: 68 | D180: 12.9 | E180: 28 | F180: 1.86E-05 | G180: 0.000129
B181: Protein serine/threonine kinase activity | C181: 572 | D181: 108 | E181: 148 | F181: 2.09E-05 | G181: 0.000142
B182: Receptor signaling protein serine/threonine kinase activity | C182: 52 | D182: 9.86 | E182: 23 | F182: 2.60E-05 | G182: 0.000174
B183: DNA binding | C183: 2760 | D183: 523 | E183: 598 | F183: 3.54E-05 | G183: 0.000233
B184: Ligand_activated sequence_specific DNA binding RNA polymerase II transcription factor activity | C184: 57 | D184: 10.8 | E184: 24 | F184: 4.69E-05 | G184: 0.000303
B185: Protein binding bridging | C185: 135 | D185: 25.6 | E185: 45 | F185: 4.87E-05 | G185: 0.00031
B186: Oxygen binding | C186: 36 | D186: 6.83 | E186: 17 | F186: 0.000108 | G186: 0.000665
B187: ATP_dependent DNA helicase activity | C187: 36 | D187: 6.83 | E187: 17 | F187: 0.000108 | G187: 0.000665
B188: Non_membrane spanning protein tyrosine kinase activity | C188: 46 | D188: 8.72 | E188: 20 | F188: 0.000116 | G188: 0.000702
B189: Binding bridging | C189: 148 | D189: 28.1 | E189: 47 | F189: 0.000128 | G189: 0.000764
B190: Growth factor binding | C190: 125 | D190: 23.7 | E190: 41 | F190: 0.000154 | G190: 0.000906
B191: Unfolded protein binding | C191: 130 | D191: 24.7 | E191: 42 | F191: 0.000188 | G191: 0.00109
B192: Single_stranded DNA binding | C192: 65 | D192: 12.3 | E192: 25 | F192: 0.000191 | G192: 0.00109
B193: Ribonucleoprotein complex binding | C193: 58 | D193: 11 | E193: 23 | F193: 2.00E-04 | G193: 0.00112
B194: Protein kinase regulator activity | C194: 123 | D194: 23.3 | E194: 40 | F194: 0.000226 | G194: 0.00125
B195: Helicase activity | C195: 176 | D195: 33.4 | E195: 53 | F195: 0.000228 | G195: 0.00125
B196: Cytokine receptor binding | C196: 266 | D196: 50.4 | E196: 74 | F196: 0.000249 | G196: 0.00134
B197: ATP_dependent helicase activity | C197: 112 | D197: 21.2 | E197: 37 | F197: 0.000269 | G197: 0.00143
B198: Drug binding | C198: 85 | D198: 16.1 | E198: 30 | F198: 0.000277 | G198: 0.00145
B199: Protein serine/threonine/tyrosine kinase activity | C199: 38 | D199: 7.21 | E199: 16 | F199: 0.000846 | G199: 0.00437
B200: ATPase activity | C200: 417 | D200: 79.1 | E200: 105 | F200: 0.000896 | G200: 0.00458
B201: ATPase activity coupled | C201: 313 | D201: 59.4 | E201: 82 | F201: 0.000925 | G201: 0.00466
... 318 more rows

Sheet Supplementary Table 10.
A1: Table S10. Overrepresented GO terms and canonical pathways in the male-specific tumor vs. tumor-adjacent DEGs. Significant terms and pathways were selected based on an FDR-adjusted p-value threshold of 0.01.
A3: GO Biological Process | B3: GO term | C3: H. sapiens reference list | D3: Genes expected | E3: Genes detected | F3: Nominal p-value | G3: FDR-adjusted p-value
B4: Mitotic cell cycle | C4: 968 | D4: 205 | E4: 407 | F4: 2.27E-52 | G4: 1.86E-49
B5: Regulation of cell cycle | C5: 886 | D5: 188 | E5: 375 | F5: 6.36E-49 | G5: 2.47E-46
B6: Viral reproductive process | C6: 597 | D6: 127 | E6: 284 | F6: 9.02E-49 | G6: 2.47E-46
B7: Interaction with host | C7: 426 | D7: 90.3 | E7: 219 | F7: 2.17E-44 | G7: 4.46e-42
B8: Negative regulation of cellular metabolic process | C8: 1660 | D8: 353 | E8: 578 | F8: 1.48E-42 | G8: 2.43e-40
B9: Viral reproduction | C9: 803 | D9: 170 | E9: 336 | F9: 2.14E-42 | G9: 2.93e-40
B10: Regulation of protein modification process | C10: 1250 | D10: 264 | E10: 464 | F10: 3.27E-42 | G10: 3.83E-40
B11: Interphase | C11: 443 | D11: 93.9 | E11: 219 | F11: 7.01E-41 | G11: 7.19E-39
B12: Interphase of mitotic cell cycle | C12: 435 | D12: 92.2 | E12: 216 | F12: 1.04e-40 | G12: 9.50E-39
B13: Negative regulation of cell cycle | C13: 520 | D13: 110 | E13: 244 | F13: 1.40E-40 | G13: 1.07E-38
B14: Regulation of cellular protein metabolic process | C14: 1560 | D14: 330 | E14: 544 | F14: 1.43E-40 | G14: 1.07E-38
B15: Cell cycle phase | C15: 1070 | D15: 227 | E15: 410 | F15: 2.51E-40 | G15: 1.72e-38
B16: Cell cycle | C16: 1860 | D16: 394 | E16: 621 | F16: 9.87E-40 | G16: 6.22E-38
B17: Negative regulation of metabolic process | C17: 1820 | D17: 386 | E17: 609 | F17: 4.75E-39 | G17: 2.78E-37
B18: Positive regulation of cellular metabolic process | C18: 2530 | D18: 536 | E18: 784 | F18: 5.22E-38 | G18: 2.85E-36
B19: Regulation of protein metabolic process | C19: 1820 | D19: 387 | E19: 606 | F19: 7.55E-38 | G19: 3.87E-36
B20: Regulation of mitotic cell cycle | C20: 351 | D20: 74.4 | E20: 182 | F20: 1.29E-37 | G20: 6.21E-36
B21: Cell division | C21: 507 | D21: 107 | E21: 234 | F21: 1.78e-37 | G21: 8.09E-36
B22: G1/S transition of mitotic cell cycle | C22: 209 | D22: 44.3 | E22: 129 | F22: 2.34E-37 | G22: 1.01e-35
B23: Negative regulation of protein metabolic process | C23: 540 | D23: 114 | E23: 244 | F23: 3.52E-37 | G23: 1.44E-35
B24: Chromatin modification | C24: 512 | D24: 109 | E24: 234 | F24: 1.24e-36 | G24: 4.85E-35
B25: Cell cycle checkpoint | C25: 281 | D25: 59.6 | E25: 155 | F25: 2.52E-36 | G25: 9.41E-35
B26: Positive regulation of metabolic process | C26: 2690 | D26: 571 | E26: 817 | F26: 6.13E-36 | G26: 2.19E-34
B27: Cell cycle arrest | C27: 428 | D27: 90.7 | E27: 205 | F27: 9.57E-36 | G27: 3.27e-34
B28: Negative regulation of cellular protein metabolic process | C28: 463 | D28: 98.1 | E28: 216 | F28: 1.76E-35 | G28: 5.78E-34
B29: Covalent chromatin modification | C29: 320 | D29: 67.8 | E29: 167 | F29: 4.97e-35 | G29: 1.57E-33
B30: Histone modification | C30: 312 | D30: 66.1 | E30: 164 | F30: 6.45E-35 | G30: 1.96E-33
B31: Cell cycle process | C31: 1420 | D31: 300 | E31: 489 | F31: 7.38E-35 | G31: 2.16E-33
B32: Positive regulation of cellular protein metabolic process | C32: 968 | D32: 205 | E32: 366 | F32: 1.01e-34 | G32: 2.87E-33
B33: Positive regulation of protein metabolic process | C33: 1080 | D33: 230 | E33: 398 | F33: 1.26E-34 | G33: 3.45e-33
B34: Chromosome organization | C34: 878 | D34: 186 | E34: 340 | F34: 1.36E-34 | G34: 3.60E-33
B35: Positive regulation of transcription from RNA polymerase II promoter | C35: 800 | D35: 170 | E35: 315 | F35: 1.35e-33 | G35: 3.45E-32
B36: Positive regulation of protein modification process | C36: 867 | D36: 184 | E36: 334 | F36: 1.87e-33 | G36: 4.65E-32
B37: Chromatin organization | C37: 637 | D37: 135 | E37: 265 | F37: 7.61E-33 | G37: 1.84e-31
B38: Regulation of transcription from RNA polymerase II promoter | C38: 1610 | D38: 341 | E38: 529 | F38: 1.92E-31 | G38: 4.49E-30
B39: S phase | C39: 153 | D39: 32.4 | E39: 99 | F39: 2.18e-31 | G39: 4.96e-30
B40: S phase of mitotic cell cycle | C40: 144 | D40: 30.5 | E40: 94 | F40: 2.58e-30 | G40: 5.72E-29
B41: Mitotic cell cycle checkpoint | C41: 149 | D41: 31.6 | E41: 96 | F41: 2.98e-30 | G41: 6.43E-29
B42: Protein catabolic process | C42: 644 | D42: 136 | E42: 260 | F42: 9.81E-30 | G42: 2.06E-28
B43: Protein polyubiquitination | C43: 177 | D43: 37.5 | E43: 106 | F43: 2.76E-29 | G43: 5.66E-28
B44: Protein modification process | C44: 3290 | D44: 698 | E44: 933 | F44: 3.78E-29 | G44: 7.56E-28
B45: Positive regulation of transcription DNA_dependent | C45: 1260 | D45: 267 | E45: 429 | F45: 6.26e-29 | G45: 1.19E-27
B46: Positive regulation of transcription DNA_dependent | C46: 1260 | D46: 267 | E46: 429 | F46: 6.26e-29 | G46: 1.19E-27
B47: Macromolecule catabolic process | C47: 1070 | D47: 227 | E47: 378 | F47: 1.06e-28 | G47: 1.94e-27
B48: Macromolecule catabolic process | C48: 1070 | D48: 227 | E48: 378 | F48: 1.06e-28 | G48: 1.94e-27
B49: Positive regulation of RNA metabolic process | C49: 1330 | D49: 282 | E49: 448 | F49: 1.17e-28 | G49: 2.09E-27
B50: Positive regulation of nucleobase_containing compound metabolic process | C50: 1490 | D50: 316 | E50: 489 | F50: 1.24E-28 | G50: 2.13E-27
B51: Mitosis | C51: 420 | D51: 89 | E51: 189 | F51: 1.25e-28 | G51: 2.13E-27
B52: Cellular protein catabolic process | C52: 518 | D52: 110 | E52: 219 | F52: 2.29E-28 | G52: 3.83E-27
B53: Negative regulation of nucleobase_containing compound metabolic process | C53: 1130 | D53: 240 | E53: 393 | F53: 2.77E-28 | G53: 4.55e-27
B54: Negative regulation of transcription from RNA polymerase II promoter | C54: 552 | D54: 117 | E54: 229 | F54: 3.22E-28 | G54: 5.18E-27
B55: Cellular macromolecule catabolic process | C55: 849 | D55: 180 | E55: 315 | F55: 4.08E-28 | G55: 6.44E-27
B56: Protein modification by small protein conjugation | C56: 713 | D56: 151 | E56: 276 | F56: 5.18E-28 | G56: 8.01E-27
B57: M phase of mitotic cell cycle | C57: 447 | D57: 94.7 | E57: 195 | F57: 2.15e-27 | G57: 3.26e-26
B58: Transcription from RNA polymerase II promoter | C58: 1930 | D58: 409 | E58: 596 | F58: 2.61E-27 | G58: 3.88E-26
B59: Protein ubiquitination | C59: 658 | D59: 139 | E59: 258 | F59: 3.43E-27 | G59: 5.02E-26
B60: Negative regulation of biosynthetic process | C60: 1240 | D60: 263 | E60: 419 | F60: 4.06E-27 | G60: 5.85E-26
B61: Multi_organism process | C61: 1710 | D61: 362 | E61: 538 | F61: 9.64E-27 | G61: 1.36E-25
B62: Negative regulation of cellular biosynthetic process | C62: 1220 | D62: 259 | E62: 412 | F62: 1.37E-26 | G62: 1.91E-25
B63: Positive regulation of catalytic activity | C63: 1070 | D63: 227 | E63: 371 | F63: 1.50E-26 | G63: 2.06E-25
B64: Cell proliferation | C64: 1900 | D64: 403 | E64: 584 | F64: 7.05E-26 | G64: 9.48E-25
B65: Negative regulation of transcription DNA_dependent | C65: 987 | D65: 209 | E65: 346 | F65: 1.26E-25 | G65: 1.64E-24
B66: Negative regulation of transcription DNA_dependent | C66: 987 | D66: 209 | E66: 346 | F66: 1.26E-25 | G66: 1.64E-24
B67: Negative regulation of RNA metabolic process | C67: 1020 | D67: 217 | E67: 356 | F67: 1.29e-25 | G67: 1.65E-24
B68: Regulation of catalytic activity | C68: 1730 | D68: 367 | E68: 540 | F68: 1.39e-25 | G68: 1.76E-24
B69: Regulation of kinase activity | C69: 743 | D69: 157 | E69: 278 | F69: 1.76E-25 | G69: 2.19e-24
B70: Regulation of transferase activity | C70: 768 | D70: 163 | E70: 285 | F70: 1.85e-25 | G70: 2.27E-24
B71: Macromolecule modification | C71: 3430 | D71: 727 | E71: 947 | F71: 3.43E-25 | G71: 4.13E-24
B72: Regulation of protein kinase activity | C72: 698 | D72: 148 | E72: 264 | F72: 5.04E-25 | G72: 5.99E-24
B73: Regulation of organelle organization | C73: 589 | D73: 125 | E73: 232 | F73: 8.10E-25 | G73: 9.49E-24
B74: Regulation of cellular component organization | C74: 1520 | D74: 323 | E74: 483 | F74: 1.95e-24 | G74: 2.25E-23
B75: Regulation of cell proliferation | C75: 1430 | D75: 303 | E75: 456 | F75: 9.08E-24 | G75: 1.03E-22
B76: Organelle organization | C76: 2820 | D76: 597 | E76: 794 | F76: 3.27E-23 | G76: 3.67e-22
B77: Regulation of phosphorylation | C77: 1070 | D77: 226 | E77: 357 | F77: 2.51E-22 | G77: 2.78E-21
B78: Reproduction | C78: 1860 | D78: 393 | E78: 557 | F78: 3.98E-22 | G78: 4.33E-21
B79: Regulation of molecular function | C79: 2250 | D79: 476 | E79: 653 | F79: 4.02e-22 | G79: 4.33E-21
B80: Regulation of protein phosphorylation | C80: 987 | D80: 209 | E80: 335 | F80: 4.21E-22 | G80: 4.48E-21
B81: Response to hormone stimulus | C81: 751 | D81: 159 | E81: 270 | F81: 8.20E-22 | G81: 8.62E-21
B82: Reproductive process | C82: 1740 | D82: 370 | E82: 528 | F82: 9.13E-22 | G82: 9.48E-21
B83: Regulation of programmed cell death | C83: 1550 | D83: 329 | E83: 480 | F83: 1.03E-21 | G83: 1.06e-20
B84: Regulation of apoptotic process | C84: 1540 | D84: 325 | E84: 475 | F84: 1.36E-21 | G84: 1.38E-20
B85: Macromolecular complex assembly | C85: 1120 | D85: 238 | E85: 368 | F85: 2.62E-21 | G85: 2.62e-20
B86: Peptidyl_amino acid modification | C86: 739 | D86: 157 | E86: 265 | F86: 3.08E-21 | G86: 3.05E-20
B87: Negative regulation of catalytic activity | C87: 568 | D87: 120 | E87: 216 | F87: 6.36e-21 | G87: 6.21E-20
B88: Signal transduction in response to DNA damage | C88: 129 | D88: 27.3 | E88: 76 | F88: 9.35E-21 | G88: 9.02E-20
B89: M phase | C89: 671 | D89: 142 | E89: 242 | F89: 8.15E-20 | G89: 7.77E-19
B90: Negative regulation of apoptotic process | C90: 679 | D90: 144 | E90: 243 | F90: 2.12E-19 | G90: 1.98E-18
B91: Negative regulation of apoptotic process | C91: 679 | D91: 144 | E91: 243 | F91: 2.12E-19 | G91: 1.98E-18
B92: Negative regulation of programmed cell death | C92: 691 | D92: 146 | E92: 246 | F92: 2.71E-19 | G92: 2.49E-18
B93: Regulation of mitosis | C93: 99 | D93: 21 | E93: 62 | F93: 4.48E-19 | G93: 4.08E-18
B94: Negative regulation of cellular process | C94: 4110 | D94: 870 | E94: 1070 | F94: 4.58E-19 | G94: 4.13E-18
B95: DNA damage response signal transduction by p53 class mediator | C95: 117 | D95: 24.8 | E95: 69 | F95: 5.29E-19 | G95: 4.72E-18
B96: Cellular response to stress | C96: 1620 | D96: 344 | E96: 486 | F96: 8.53E-19 | G96: 7.52e-18
B97: Protein phosphorylation | C97: 1480 | D97: 315 | E97: 449 | F97: 2.80E-18 | G97: 2.45E-17
B98: Negative regulation of cellular component organization | C98: 370 | D98: 78.4 | E98: 151 | F98: 3.94E-18 | G98: 3.40E-17
B99: Response to endogenous stimulus | C99: 1360 | D99: 289 | E99: 418 | F99: 4.09E-18 | G99: 3.49E-17
B100: Transmembrane receptor protein tyrosine kinase signaling pathway | C100: 782 | D100: 166 | E100: 265 | F100: 1.80E-17 | G100: 1.52e-16
B101: Protein complex assembly | C101: 861 | D101: 182 | E101: 286 | F101: 1.84E-17 | G101: 1.54E-16
B102: Positive regulation of cellular component organization | C102: 560 | D102: 119 | E102: 204 | F102: 2.21E-17 | G102: 1.83E-16
B103: Regulation of chromosome organization | C103: 122 | D103: 25.9 | E103: 68 | F103: 5.92E-17 | G103: 4.85E-16
B104: Response to organic substance | C104: 2500 | D104: 530 | E104: 687 | F104: 7.91E-17 | G104: 6.42E-16
B105: Negative regulation of cell proliferation | C105: 585 | D105: 124 | E105: 209 | F105: 1.03e-16 | G105: 8.31E-16
B106: DNA damage checkpoint | C106: 143 | D106: 30.3 | E106: 75 | F106: 1.46E-16 | G106: 1.16E-15
B107: DNA integrity checkpoint | C107: 152 | D107: 32.2 | E107: 78 | F107: 1.84E-16 | G107: 1.45E-15
B108: Positive regulation of protein phosphorylation | C108: 681 | D108: 144 | E108: 234 | F108: 2.64e-16 | G108: 2.06E-15
B109: DNA replication | C109: 346 | D109: 73.3 | E109: 139 | F109: 4.16E-16 | G109: 3.22E-15
B110: Response to hypoxia | C110: 245 | D110: 51.9 | E110: 108 | F110: 4.56E-16 | G110: 3.50E-15
B111: Response to abiotic stimulus | C111: 876 | D111: 186 | E111: 285 | F111: 4.65E-16 | G111: 3.53E-15
B112: Immune system development | C112: 722 | D112: 153 | E112: 244 | F112: 5.46e-16 | G112: 4.11E-15
B113: Positive regulation of phosphorylation | C113: 697 | D113: 148 | E113: 237 | F113: 6.68E-16 | G113: 4.98E-15
B114: Nuclear transport | C114: 392 | D114: 83.1 | E114: 152 | F114: 6.90E-16 | G114: 5.10E-15
B115: Transcription initiation from RNA polymerase II promoter | C115: 219 | D115: 46.4 | E115: 99 | F115: 1.03e-15 | G115: 7.55e-15
B116: Regulation of DNA metabolic process | C116: 235 | D116: 49.8 | E116: 104 | F116: 1.16E-15 | G116: 8.40E-15
B117: Nucleocytoplasmic transport | C117: 388 | D117: 82.2 | E117: 150 | F117: 1.45E-15 | G117: 1.05E-14
B118: Hematopoietic or lymphoid organ development | C118: 679 | D118: 144 | E118: 231 | F118: 1.50E-15 | G118: 1.07e-14
B119: Apoptotic process | C119: 2130 | D119: 451 | E119: 592 | F119: 2.04e-15 | G119: 1.43e-14
B120: Apoptotic process | C120: 2130 | D120: 451 | E120: 592 | F120: 2.04e-15 | G120: 1.43e-14
B121: Enzyme linked receptor protein signaling pathway | C121: 1180 | D121: 249 | E121: 359 | F121: 2.31E-15 | G121: 1.61E-14
B122: Programmed cell death | C122: 2160 | D122: 457 | E122: 598 | F122: 2.44E-15 | G122: 1.68E-14
B123: Phosphorylation | C123: 1680 | D123: 356 | E123: 483 | F123: 2.75E-15 | G123: 1.88E-14
A124: GO Molecular Function | B124: GO term | C124: H. sapiens reference list | D124: Genes expected | E124: Genes detected | F124: Nominal p-value | G124: FDR-adjusted p-value
B125: Enzyme binding | C125: 1200 | D125: 241 | E125: 474 | F125: 2.26E-59 | G125: 8.76E-57
B126: Kinase binding | C126: 418 | D126: 84 | E126: 201 | F126: 7.20E-39 | G126: 1.40E-36
B127: Protein kinase binding | C127: 376 | D127: 75.5 | E127: 184 | F127: 6.37e-37 | G127: 8.23E-35
B128: Positive regulation of transcription DNA_dependent | C128: 1260 | D128: 253 | E128: 429 | F128: 1.76E-34 | G128: 1.71e-32
B129: Transcription from RNA polymerase II promoter | C129: 1930 | D129: 388 | E129: 596 | F129: 3.56e-34 | G129: 2.76e-32
B130: Transcription factor binding | C130: 509 | D130: 102 | E130: 218 | F130: 1.16e-32 | G130: 7.53E-31
B131: Negative regulation of transcription DNA_dependent | C131: 987 | D131: 198 | E131: 346 | F131: 3.49e-30 | G131: 1.94e-28
B132: Chromatin binding | C132: 338 | D132: 67.9 | E132: 156 | F132: 7.77E-28 | G132: 3.77E-26
B133: Protein binding transcription factor activity | C133: 600 | D133: 121 | E133: 219 | F133: 1.16E-21 | G133: 4.99E-20
B134: Sequence_specific DNA binding | C134: 732 | D134: 147 | E134: 254 | F134: 1.79E-21 | G134: 6.93E-20
B135: Transcription cofactor activity | C135: 552 | D135: 111 | E135: 205 | F135: 2.36e-21 | G135: 8.32E-20
B136: ATP binding | C136: 1490 | D136: 299 | E136: 433 | F136: 9.78E-19 | G136: 3.16E-17
B137: Small conjugating protein ligase activity | C137: 313 | D137: 62.9 | E137: 129 | F137: 5.07e-18 | G137: 1.40E-16
B138: Small conjugating protein ligase activity | C138: 313 | D138: 62.9 | E138: 129 | F138: 5.07e-18 | G138: 1.40E-16
B139: Adenyl ribonucleotide binding | C139: 1530 | D139: 307 | E139: 436 | F139: 2.62E-17 | G139: 6.79E-16
B140: Adenyl nucleotide binding | C140: 1530 | D140: 307 | E140: 436 | F140: 4.33E-17 | G140: 1.05E-15
B141: Ubiquitin_protein ligase activity | C141: 291 | D141: 58.5 | E141: 120 | F141: 7.12E-17 | G141: 1.57E-15
B142: Protein complex binding | C142: 339 | D142: 68.1 | E142: 134 | F142: 7.29E-17 | G142: 1.57E-15
B143: Acid_amino acid ligase activity | C143: 349 | D143: 70.1 | E143: 134 | F143: 1.16E-15 | G143: 2.38e-14
B144: Purine ribonucleotide binding | C144: 1890 | D144: 380 | E144: 511 | F144: 3.98e-15 | G144: 7.72E-14
B145: Transcription coactivator activity | C145: 312 | D145: 62.7 | E145: 122 | F145: 4.70E-15 | G145: 8.68E-14
B146: Identical protein binding | C146: 910 | D146: 183 | E146: 278 | F146: 6.35E-15 | G146: 1.12e-13
B147: Purine nucleotide binding | C147: 1900 | D147: 381 | E147: 511 | F147: 7.43E-15 | G147: 1.25e-13
B148: Ligase activity forming carbon_nitrogen bonds | C148: 393 | D148: 78.9 | E148: 142 | F148: 5.19E-14 | G148: 8.38E-13
B149: Ligase activity | C149: 572 | D149: 115 | E149: 188 | F149: 1.56E-13 | G149: 2.43E-12
B150: Nucleotide binding | C150: 2470 | D150: 496 | E150: 627 | F150: 1.17E-12 | G150: 1.74E-11
B151: Transcription corepressor activity | C151: 208 | D151: 41.8 | E151: 83 | F151: 3.33E-11 | G151: 4.74E-10
B152: Protein domain specific binding | C152: 560 | D152: 112 | E152: 177 | F152: 3.42E-11 | G152: 4.74E-10
B153: Small conjugating protein binding | C153: 75 | D153: 15.1 | E153: 40 | F153: 1.67E-10 | G153: 2.24E-09
B154: Hormone receptor binding | C154: 176 | D154: 35.4 | E154: 71 | F154: 4.91E-10 | G154: 6.36E-09
B155: Steroid hormone receptor binding | C155: 69 | D155: 13.9 | E155: 37 | F155: 6.60E-10 | G155: 8.26E-09
B156: Ubiquitin binding | C156: 63 | D156: 12.7 | E156: 34 | F156: 2.60E-09 | G156: 3.15E-08
B157: Structure_specific DNA binding | C157: 242 | D157: 48.6 | E157: 87 | F157: 5.51E-09 | G157: 6.48E-08
B158: Histone deacetylase binding | C158: 65 | D158: 13.1 | E158: 34 | F158: 7.58E-09 | G158: 8.64E-08
B159: Protein N_terminus binding | C159: 86 | D159: 17.3 | E159: 41 | F159: 7.98E-09 | G159: 8.85E-08
B160: Histone methyltransferase activity | C160: 60 | D160: 12.1 | E160: 32 | F160: 1.12E-08 | G160: 1.21E-07
B161: Receptor signaling protein activity | C161: 110 | D161: 22.1 | E161: 48 | F161: 1.63E-08 | G161: 1.71E-07
B162: Protein dimerization activity | C162: 996 | D162: 200 | E162: 270 | F162: 1.90E-08 | G162: 1.94E-07
B163: Protein heterodimerization activity | C163: 374 | D163: 75.1 | E163: 119 | F163: 3.96E-08 | G163: 3.93E-07
B164: Telomeric DNA binding | C164: 17 | D164: 3.42 | E164: 14 | F164: 6.22E-08 | G164: 6.03E-07
B165: Protein homodimerization activity | C165: 573 | D165: 115 | E165: 167 | F165: 8.22E-08 | G165: 7.78E-07
B166: Nuclear hormone receptor binding | C166: 153 | D166: 30.7 | E166: 59 | F166: 9.57E-08 | G166: 8.84E-07
B167: Protein C_terminus binding | C167: 160 | D167: 32.1 | E167: 59 | F167: 5.75E-07 | G167: 5.19E-06
B168: Tubulin binding | C168: 180 | D168: 36.2 | E168: 63 | F168: 1.95E-06 | G168: 1.72E-05
B169: Kinase regulator activity | C169: 144 | D169: 28.9 | E169: 53 | F169: 2.26E-06 | G169: 1.95E-05
B170: Protein binding bridging | C170: 135 | D170: 27.1 | E170: 50 | F170: 3.52E-06 | G170: 2.97E-05
B171: DNA_dependent ATPase activity | C171: 80 | D171: 16.1 | E171: 34 | F171: 4.02E-06 | G171: 3.32E-05
B172: Insulin_like growth factor receptor binding | C172: 14 | D172: 2.81 | E172: 11 | F172: 4.20E-06 | G172: 3.39E-05
B173: Receptor signaling protein serine/threonine kinase activity | C173: 52 | D173: 10.4 | E173: 25 | F173: 5.39E-06 | G173: 4.27E-05
B174: Structural constituent of cytoskeleton | C174: 78 | D174: 15.7 | E174: 33 | F174: 6.24E-06 | G174: 4.84E-05
B175: Protein methyltransferase activity | C175: 86 | D175: 17.3 | E175: 35 | F175: 9.38E-06 | G175: 7.14E-05
B176: Growth factor binding | C176: 125 | D176: 25.1 | E176: 46 | F176: 1.03E-05 | G176: 7.72E-05
B177: Binding bridging | C177: 148 | D177: 29.7 | E177: 52 | F177: 1.31E-05 | G177: 9.60E-05
B178: Phosphatase binding | C178: 116 | D178: 23.3 | E178: 43 | F178: 1.61E-05 | G178: 0.000116
B179: SMAD binding | C179: 68 | D179: 13.7 | E179: 29 | F179: 1.86E-05 | G179: 0.000132
B180: Single_stranded DNA binding | C180: 65 | D180: 13.1 | E180: 28 | F180: 2.06E-05 | G180: 0.000143
B181: RNA polymerase II distal enhancer sequence_specific DNA binding transcription factor activity | C181: 110 | D181: 22.1 | E181: 41 | F181: 2.16E-05 | G181: 0.000147
B182: Regulation of DNA_dependent transcription elongation | C182: 37 | D182: 7.43 | E182: 19 | F182: 2.22E-05 | G182: 0.000148
B183: Steroid hormone receptor activity | C183: 56 | D183: 11.2 | E183: 25 | F183: 2.71E-05 | G183: 0.000178
B184: Double_stranded DNA binding | C184: 149 | D184: 29.9 | E184: 51 | F184: 3.55E-05 | G184: 0.000229
B185: DNA binding | C185: 2760 | D185: 554 | E185: 630 | F185: 4.06E-05 | G185: 0.000258
B186: Protein phosphatase binding | C186: 74 | D186: 14.9 | E186: 30 | F186: 4.35E-05 | G186: 0.000272
B187: Microtubule binding | C187: 115 | D187: 23.1 | E187: 41 | F187: 7.10E-05 | G187: 0.000437
B188: Protein serine/threonine kinase activity | C188: 572 | D188: 115 | E188: 152 | F188: 7.95E-05 | G188: 0.000476
B189: Protein kinase regulator activity | C189: 123 | D189: 24.7 | E189: 43 | F189: 8.10E-05 | G189: 0.000476
B190: S_adenosylmethionine_dependent methyltransferase activity | C190: 123 | D190: 24.7 | E190: 43 | F190: 8.10E-05 | G190: 0.000476
B191: N_methyltransferase activity | C191: 84 | D191: 16.9 | E191: 32 | F191: 0.000103 | G191: 0.000597
B192: Ligand_activated sequence_specific DNA binding RNA polymerase II transcription factor activity | C192: 57 | D192: 11.5 | E192: 24 | F192: 0.000122 | G192: 0.000698
B193: Protein tyrosine phosphatase activity | C193: 119 | D193: 23.9 | E193: 41 | F193: 0.000169 | G193: 0.000949
B194: ATP_dependent DNA helicase activity | C194: 36 | D194: 7.23 | E194: 17 | F194: 0.000226 | G194: 0.00125
B195: Non_membrane spanning protein tyrosine kinase activity | C195: 46 | D195: 9.24 | E195: 20 | F195: 0.000263 | G195: 0.00142
B196: Ras GTPase binding | C196: 125 | D196: 25.1 | E196: 42 | F196: 0.000264 | G196: 0.00142
B197: Structural molecule activity | C197: 666 | D197: 134 | E197: 170 | F197: 0.000286 | G197: 0.00152
B198: MAP kinase kinase kinase activity | C198: 19 | D198: 3.82 | E198: 11 | F198: 0.000319 | G198: 0.00167
B199: Heparin binding | C199: 130 | D199: 26.1 | E199: 43 | F199: 0.00033 | G199: 0.00171
B200: Helicase activity | C200: 176 | D200: 35.4 | E200: 54 | F200: 0.000527 | G200: 0.00269
B201: Histone acetyltransferase activity | C201: 52 | D201: 10.4 | E201: 21 | F201: 0.000627 | G201: 0.00316
... 339 more rows

Sheet Supplementary Table 11.
A1: Table S11. Overrepresented GO terms and canonical pathways in the female-specific tumor vs. tumor-adjacent DEGs. Significant terms and pathways were selected based on an FDR-adjusted p-value threshold of 0.01.
A3: GO Biological Process | B3: GO term | C3: H. sapiens reference list | D3: Genes expected | E3: Genes detected | F3: Nominal p-value | G3: FDR-adjusted p-value
B4: Mitotic cell cycle | C4: 968 | D4: 163 | E4: 376 | F4: 6.45E-65 | G4: 5.29E-62
B5: Regulation of cell cycle | C5: 886 | D5: 149 | E5: 348 | F5: 3.11E-61 | G5: 1.28e-58
B6: Cell cycle | C6: 1860 | D6: 313 | E6: 563 | F6: 3.09E-54 | G6: 8.44e-52
B7: Cell cycle phase | C7: 1070 | D7: 181 | E7: 376 | F7: 1.73e-51 | G7: 3.54E-49
B8: Cell cycle process | C8: 1420 | D8: 238 | E8: 453 | F8: 6.07E-50 | G8: 9.95E-48
B9: Negative regulation of cell cycle | C9: 520 | D9: 87.6 | E9: 229 | F9: 8.11E-50 | G9: 1.11E-47
B10: Interphase of mitotic cell cycle | C10: 435 | D10: 73.3 | E10: 199 | F10: 2.37e-46 | G10: 2.77E-44
B11: Interphase | C11: 443 | D11: 74.7 | E11: 201 | F11: 3.92E-46 | G11: 4.01E-44
B12: Cell cycle arrest | C12: 428 | D12: 72.1 | E12: 196 | F12: 9.77e-46 | G12: 8.90E-44
B13: Cell cycle checkpoint | C13: 281 | D13: 47.4 | E13: 148 | F13: 8.75E-44 | G13: 7.17E-42
B14: Cell division | C14: 507 | D14: 85.4 | E14: 215 | F14: 1.54E-43 | G14: 1.15E-41
B15: Regulation of cellular protein metabolic process | C15: 1560 | D15: 263 | E15: 462 | F15: 7.29E-41 | G15: 4.98E-39
B16: Viral reproductive process | C16: 597 | D16: 101 | E16: 234 | F16: 1.62e-40 | G16: 1.02e-38
B17: G1/S transition of mitotic cell cycle | C17: 209 | D17: 35.2 | E17: 119 | F17: 6.97E-40 | G17: 4.08E-38
B18: Regulation of mitotic cell cycle | C18: 351 | D18: 59.2 | E18: 163 | F18: 4.93e-39 | G18: 2.69e-37
B19: Regulation of protein modification process | C19: 1250 | D19: 210 | E19: 388 | F19: 5.92e-39 | G19: 2.98e-37
B20: Cellular protein catabolic process | C20: 518 | D20: 87.3 | E20: 210 | F20: 6.18E-39 | G20: 2.98e-37
B21: Protein catabolic process | C21: 644 | D21: 109 | E21: 242 | F21: 2.59E-38 | G21: 1.18E-36
B22: Regulation of protein metabolic process | C22: 1820 | D22: 308 | E22: 512 | F22: 3.09E-38 | G22: 1.33e-36
B23: Viral reproduction | C23: 803 | D23: 135 | E23: 281 | F23: 6.77E-38 | G23: 2.78e-36
B24: Negative regulation of cellular metabolic process | C24: 1660 | D24: 280 | E24: 476 | F24: 1.19e-37 | G24: 4.66E-36
B25: Interaction with host | C25: 426 | D25: 71.8 | E25: 181 | F25: 8.33E-37 | G25: 3.10E-35
B26: Negative regulation of metabolic process | C26: 1820 | D26: 307 | E26: 505 | F26: 4.13E-36 | G26: 1.47E-34
B27: Mitosis | C27: 420 | D27: 70.8 | E27: 178 | F27: 4.99E-36 | G27: 1.70E-34
B28: S phase of mitotic cell cycle | C28: 144 | D28: 24.3 | E28: 91 | F28: 8.51E-36 | G28: 2.79E-34
B29: Cellular macromolecule catabolic process | C29: 849 | D29: 143 | E29: 287 | F29: 1.39e-35 | G29: 4.39e-34
B30: S phase | C30: 153 | D30: 25.8 | E30: 94 | F30: 1.79E-35 | G30: 5.43E-34
B31: Negative regulation of protein metabolic process | C31: 540 | D31: 91 | E31: 209 | F31: 3.11E-35 | G31: 9.10E-34
B32: M phase of mitotic cell cycle | C32: 447 | D32: 75.3 | E32: 184 | F32: 3.46E-35 | G32: 9.78E-34
B33: Mitotic cell cycle checkpoint | C33: 149 | D33: 25.1 | E33: 92 | F33: 5.41E-35 | G33: 1.48e-33
B34: Positive regulation of cellular metabolic process | C34: 2530 | D34: 426 | E34: 644 | F34: 1.39e-34 | G34: 3.69E-33
B35: Negative regulation of cellular protein metabolic process | C35: 463 | D35: 78 | E35: 186 | F35: 6.95E-34 | G35: 1.78e-32
B36: Macromolecule catabolic process | C36: 1070 | D36: 180 | E36: 334 | F36: 1.41E-33 | G36: 3.41E-32
B37: Macromolecule catabolic process | C37: 1070 | D37: 180 | E37: 334 | F37: 1.41E-33 | G37: 3.41E-32
B38: Positive regulation of metabolic process | C38: 2690 | D38: 454 | E38: 671 | F38: 5.34E-33 | G38: 1.25E-31
B39: Positive regulation of cellular protein metabolic process | C39: 968 | D39: 163 | E39: 308 | F39: 1.19e-32 | G39: 2.70E-31
B40: Protein polyubiquitination | C40: 177 | D40: 29.8 | E40: 98 | F40: 1.17e-31 | G40: 2.59E-30
B41: Positive regulation of protein metabolic process | C41: 1080 | D41: 183 | E41: 331 | F41: 2.15e-31 | G41: 4.64E-30
B42: Protein modification by small protein conjugation | C42: 713 | D42: 120 | E42: 242 | F42: 3.02E-30 | G42: 6.35E-29
B43: Positive regulation of protein modification process | C43: 867 | D43: 146 | E43: 277 | F43: 1.24e-29 | G43: 2.54E-28
B44: Regulation of programmed cell death | C44: 1550 | D44: 262 | E44: 425 | F44: 1.31E-28 | G44: 2.62e-27
B45: Regulation of apoptotic process | C45: 1540 | D45: 259 | E45: 421 | F45: 1.52E-28 | G45: 2.97E-27
B46: Protein ubiquitination | C46: 658 | D46: 111 | E46: 223 | F46: 8.89e-28 | G46: 1.69E-26
B47: Positive regulation of transcription from RNA polymerase II promoter | C47: 800 | D47: 135 | E47: 256 | F47: 1.72e-27 | G47: 3.21E-26
B48: Regulation of transcription from RNA polymerase II promoter | C48: 1610 | D48: 271 | E48: 432 | F48: 3.18E-27 | G48: 5.80E-26
B49: M phase | C49: 671 | D49: 113 | E49: 224 | F49: 7.19E-27 | G49: 1.28e-25
B50: Cellular response to stress | C50: 1620 | D50: 274 | E50: 430 | F50: 1.37e-25 | G50: 2.40E-24
B51: Multi_organism process | C51: 1710 | D51: 288 | E51: 445 | F51: 4.75E-25 | G51: 8.12E-24
B52: Negative regulation of transcription from RNA polymerase II promoter | C52: 552 | D52: 93 | E52: 190 | F52: 1.20E-24 | G52: 2.02e-23
B53: Regulation of catalytic activity | C53: 1730 | D53: 292 | E53: 445 | F53: 1.24e-23 | G53: 2.04e-22
B54: Protein modification process | C54: 3290 | D54: 555 | E54: 747 | F54: 2.05E-23 | G54: 3.29E-22
B55: Negative regulation of cellular biosynthetic process | C55: 1220 | D55: 206 | E55: 338 | F55: 2.25E-23 | G55: 3.55E-22
B56: Negative regulation of biosynthetic process | C56: 1240 | D56: 209 | E56: 342 | F56: 2.71E-23 | G56: 4.19e-22
B57: Negative regulation of nucleobase_containing compound metabolic process | C57: 1130 | D57: 191 | E57: 318 | F57: 3.18E-23 | G57: 4.82E-22
B58: Transcription from RNA polymerase II promoter | C58: 1930 | D58: 325 | E58: 482 | F58: 6.62E-23 | G58: 9.86E-22
B59: Regulation of molecular function | C59: 2250 | D59: 379 | E59: 545 | F59: 7.24E-23 | G59: 1.06E-21
B60: Positive regulation of transcription DNA_dependent | C60: 1260 | D60: 212 | E60: 343 | F60: 1.45E-22 | G60: 2.05e-21
B61: Positive regulation of transcription DNA_dependent | C61: 1260 | D61: 212 | E61: 343 | F61: 1.45E-22 | G61: 2.05e-21
B62: Positive regulation of catalytic activity | C62: 1070 | D62: 180 | E62: 302 | F62: 2.15E-22 | G62: 2.99e-21
B63: Signal transduction in response to DNA damage | C63: 129 | D63: 21.7 | E63: 70 | F63: 2.77E-22 | G63: 3.78e-21
B64: Macromolecular complex assembly | C64: 1120 | D64: 189 | E64: 313 | F64: 2.94E-22 | G64: 3.96E-21
B65: Positive regulation of nucleobase_containing compound metabolic process | C65: 1490 | D65: 251 | E65: 390 | F65: 3.89E-22 | G65: 5.14E-21
B66: Positive regulation of RNA metabolic process | C66: 1330 | D66: 225 | E66: 356 | F66: 9.62E-22 | G66: 1.25e-20
B67: Apoptotic process | C67: 2130 | D67: 359 | E67: 515 | F67: 2.96e-21 | G67: 3.74E-20
B68: Apoptotic process | C68: 2130 | D68: 359 | E68: 515 | F68: 2.96e-21 | G68: 3.74E-20
B69: Reproduction | C69: 1860 | D69: 313 | E69: 460 | F69: 4.55E-21 | G69: 5.66E-20
B70: Negative regulation of programmed cell death | C70: 691 | D70: 116 | E70: 214 | F70: 4.69E-21 | G70: 5.68E-20
B71: Negative regulation of transcription DNA_dependent | C71: 987 | D71: 166 | E71: 280 | F71: 4.78E-21 | G71: 5.68E-20
B72: Negative regulation of transcription DNA_dependent | C72: 987 | D72: 166 | E72: 280 | F72: 4.78E-21 | G72: 5.68E-20
B73: Negative regulation of apoptotic process | C73: 679 | D73: 114 | E73: 211 | F73: 5.77E-21 | G73: 6.66E-20
B74: Negative regulation of apoptotic process | C74: 679 | D74: 114 | E74: 211 | F74: 5.77E-21 | G74: 6.66E-20
B75: Regulation of protein kinase activity | C75: 698 | D75: 118 | E75: 215 | F75: 7.85E-21 | G75: 8.94E-20
B76: DNA damage response signal transduction by p53 class mediator | C76: 117 | D76: 19.7 | E76: 64 | F76: 9.76E-21 | G76: 1.10E-19
B77: Programmed cell death | C77: 2160 | D77: 363 | E77: 518 | F77: 1.04E-20 | G77: 1.15E-19
B78: Regulation of organelle organization | C78: 589 | D78: 99.3 | E78: 189 | F78: 1.48E-20 | G78: 1.62E-19
B79: Regulation of transferase activity | C79: 768 | D79: 129 | E79: 230 | F79: 1.63E-20 | G79: 1.76E-19
B80: Intracellular receptor mediated signaling pathway | C80: 270 | D80: 45.5 | E80: 109 | F80: 1.97E-20 | G80: 2.09e-19
B81: Regulation of kinase activity | C81: 743 | D81: 125 | E81: 224 | F81: 2.19E-20 | G81: 2.30E-19
B82: Reproductive process | C82: 1740 | D82: 294 | E82: 435 | F82: 2.29E-20 | G82: 2.38e-19
B83: Macromolecule modification | C83: 3430 | D83: 578 | E83: 758 | F83: 2.46E-20 | G83: 2.52E-19
B84: Negative regulation of RNA metabolic process | C84: 1020 | D84: 173 | E84: 285 | F84: 4.20E-20 | G84: 4.26E-19
B85: DNA integrity checkpoint | C85: 152 | D85: 25.6 | E85: 74 | F85: 8.20E-20 | G85: 8.20E-19
B86: Cell proliferation | C86: 1900 | D86: 321 | E86: 464 | F86: 1.05E-19 | G86: 1.04E-18
B87: DNA damage checkpoint | C87: 143 | D87: 24.1 | E87: 71 | F87: 1.13e-19 | G87: 1.10E-18
B88: Regulation of cellular component organization | C88: 1520 | D88: 257 | E88: 387 | F88: 1.89E-19 | G88: 1.82E-18
B89: Response to hormone stimulus | C89: 751 | D89: 127 | E89: 223 | F89: 2.08e-19 | G89: 1.98E-18
B90: Chromosome organization | C90: 878 | D90: 148 | E90: 251 | F90: 2.28E-19 | G90: 2.15E-18
B91: Protein complex assembly | C91: 861 | D91: 145 | E91: 246 | F91: 5.88E-19 | G91: 5.48E-18
B92: Transcription initiation from RNA polymerase II promoter | C92: 219 | D92: 36.9 | E92: 92 | F92: 8.39E-19 | G92: 7.73E-18
B93: Negative regulation of cellular process | C93: 4110 | D93: 692 | E93: 873 | F93: 9.87E-19 | G93: 9.00E-18
B94: Negative regulation of catalytic activity | C94: 568 | D94: 95.7 | E94: 179 | F94: 1.35E-18 | G94: 1.22e-17
B95: Organelle organization | C95: 2820 | D95: 475 | E95: 635 | F95: 1.41e-18 | G95: 1.25e-17
B96: Response to DNA damage stimulus | C96: 862 | D96: 145 | E96: 245 | F96: 1.44e-18 | G96: 1.27e-17
B97: Regulation of phosphorylation | C97: 1070 | D97: 180 | E97: 289 | F97: 1.51E-18 | G97: 1.32E-17
B98: Regulation of mitosis | C98: 99 | D98: 16.7 | E98: 55 | F98: 1.99E-18 | G98: 1.72E-17
B99: Chromatin modification | C99: 512 | D99: 86.3 | E99: 165 | F99: 2.94E-18 | G99: 2.51e-17
B100: Regulation of protein phosphorylation | C100: 987 | D100: 166 | E100: 270 | F100: 5.81E-18 | G100: 4.91E-17
B101: Response to endogenous stimulus | C101: 1360 | D101: 230 | E101: 348 | F101: 8.62E-18 | G101: 7.22E-17
B102: Chromosome segregation | C102: 174 | D102: 29.3 | E102: 77 | F102: 1.66E-17 | G102: 1.37E-16
B103: Proteolysis | C103: 1100 | D103: 185 | E103: 291 | F103: 1.97E-17 | G103: 1.62E-16
B104: Response to abiotic stimulus | C104: 876 | D104: 148 | E104: 243 | F104: 5.29e-17 | G104: 4.30E-16
B105: Regulation of cell proliferation | C105: 1430 | D105: 241 | E105: 357 | F105: 8.93E-17 | G105: 7.18E-16
B106: Cellular protein metabolic process | C106: 4540 | D106: 765 | E106: 939 | F106: 1.05E-16 | G106: 8.33E-16
B107: Histone modification | C107: 312 | D107: 52.6 | E107: 112 | F107: 1.94e-16 | G107: 1.53e-15
B108: Covalent chromatin modification | C108: 320 | D108: 53.9 | E108: 114 | F108: 1.97e-16 | G108: 1.54e-15
B109: Response to organic substance | C109: 2500 | D109: 421 | E109: 563 | F109: 3.56E-16 | G109: 2.76E-15
B110: Regulation of sequence_specific DNA binding transcription factor activity | C110: 372 | D110: 62.7 | E110: 126 | F110: 4.74E-16 | G110: 3.64e-15
B111: Cytokine_mediated signaling pathway | C111: 374 | D111: 63 | E111: 126 | F111: 7.59E-16 | G111: 5.76E-15
B112: Negative regulation of cellular component organization | C112: 370 | D112: 62.4 | E112: 125 | F112: 7.79E-16 | G112: 5.86E-15
B113: Negative regulation of biological process | C113: 4590 | D113: 774 | E113: 942 | F113: 1.29E-15 | G113: 9.65E-15
B114: Response to hypoxia | C114: 245 | D114: 41.3 | E114: 93 | F114: 1.35e-15 | G114: 9.98E-15
B115: DNA_dependent transcription initiation | C115: 257 | D115: 43.3 | E115: 96 | F115: 1.56E-15 | G115: 1.14E-14
B116: Protein phosphorylation | C116: 1480 | D116: 250 | E116: 363 | F116: 1.83E-15 | G116: 1.33E-14
B117: DNA replication | C117: 346 | D117: 58.3 | E117: 118 | F117: 2.36E-15 | G117: 1.69E-14
B118: Response to drug | C118: 344 | D118: 58 | E118: 117 | F118: 3.88E-15 | G118: 2.76e-14
B119: Cellular component assembly | C119: 1790 | D119: 302 | E119: 421 | F119: 5.13E-15 | G119: 3.63E-14
B120: Regulation of chromosome organization | C120: 122 | D120: 20.6 | E120: 57 | F120: 1.41e-14 | G120: 9.87E-14
B121: Response to steroid hormone stimulus | C121: 267 | D121: 45 | E121: 96 | F121: 2.52E-14 | G121: 1.75E-13
B122: Chromatin organization | C122: 637 | D122: 107 | E122: 182 | F122: 3.17e-14 | G122: 2.18E-13
A123: GO Molecular Function | B123: GO term | C123: H. sapiens reference list | D123: Genes expected | E123: Genes detected | F123: Nominal p-value | G123: FDR-adjusted p-value
B124: Enzyme binding | C124: 1200 | D124: 192 | E124: 414 | F124: 6.89E-62 | G124: 2.67E-59
B125: Kinase binding | C125: 418 | D125: 66.8 | E125: 174 | F125: 4.13E-37 | G125: 8.01E-35
B126: Protein kinase binding | C126: 376 | D126: 60.1 | E126: 158 | F126: 2.51E-34 | G126: 3.24E-32
B127: Transcription factor binding | C127: 509 | D127: 81.3 | E127: 187 | F127: 3.01E-31 | G127: 2.92E-29
B128: Transcription from RNA polymerase II promoter | C128: 1930 | D128: 308 | E128: 482 | F128: 2.13E-28 | G128: 1.66E-26
B129: Positive regulation of transcription DNA_dependent | C129: 1260 | D129: 201 | E129: 343 | F129: 7.66E-27 | G129: 4.96E-25
B130: Negative regulation of transcription DNA_dependent | C130: 987 | D130: 158 | E130: 280 | F130: 1.16e-24 | G130: 6.44E-23
B131: Chromatin binding | C131: 338 | D131: 54 | E131: 131 | F131: 1.33E-24 | G131: 6.44E-23
B132: Sequence_specific DNA binding | C132: 732 | D132: 117 | E132: 216 | F132: 2.42E-21 | G132: 1.04e-19
B133: Protein binding transcription factor activity | C133: 600 | D133: 95.8 | E133: 183 | F133: 7.32E-20 | G133: 2.84E-18
B134: Transcription cofactor activity | C134: 552 | D134: 88.2 | E134: 171 | F134: 2.26E-19 | G134: 7.97e-18
B135: Small conjugating protein ligase activity | C135: 313 | D135: 50 | E135: 112 | F135: 4.44E-18 | G135: 1.33E-16
B136: Small conjugating protein ligase activity | C136: 313 | D136: 50 | E136: 112 | F136: 4.44E-18 | G136: 1.33E-16
B137: Ubiquitin_protein ligase activity | C137: 291 | D137: 46.5 | E137: 102 | F137: 7.03E-16 | G137: 1.95E-14
B138: Transcription coactivator activity | C138: 312 | D138: 49.8 | E138: 107 | F138: 7.69E-16 | G138: 1.99E-14
B139: Acid_amino acid ligase activity | C139: 349 | D139: 55.7 | E139: 115 | F139: 1.71e-15 | G139: 4.16E-14
B140: Protein complex binding | C140: 339 | D140: 54.1 | E140: 112 | F140: 3.27E-15 | G140: 7.47e-14
B141: Ligase activity forming carbon_nitrogen bonds | C141: 393 | D141: 62.8 | E141: 123 | F141: 1.34e-14 | G141: 2.89E-13
B142: ATP binding | C142: 1490 | D142: 238 | E142: 344 | F142: 1.98E-14 | G142: 4.05E-13
B143: Identical protein binding | C143: 910 | D143: 145 | E143: 231 | F143: 3.16E-14 | G143: 6.13E-13
B144: Protein domain specific binding | C144: 560 | D144: 89.4 | E144: 158 | F144: 5.66e-14 | G144: 1.05e-12
B145: Adenyl ribonucleotide binding | C145: 1530 | D145: 244 | E145: 347 | F145: 1.69E-13 | G145: 2.99e-12
B146: Adenyl nucleotide binding | C146: 1530 | D146: 244 | E146: 347 | F146: 2.47E-13 | G146: 4.17E-12
B147: Hormone receptor binding | C147: 176 | D147: 28.1 | E147: 68 | F147: 2.63E-13 | G147: 4.25E-12
B148: Structure_specific DNA binding | C148: 242 | D148: 38.7 | E148: 84 | F148: 4.82E-13 | G148: 7.48E-12
B149: Ligase activity | C149: 572 | D149: 91.4 | E149: 156 | F149: 1.70E-12 | G149: 2.53E-11
B150: Small conjugating protein binding | C150: 75 | D150: 12 | E150: 38 | F150: 3.02E-12 | G150: 4.34e-11
B151: Purine ribonucleotide binding | C151: 1890 | D151: 302 | E151: 408 | F151: 4.04E-12 | G151: 5.59E-11
B152: Purine nucleotide binding | C152: 1900 | D152: 303 | E152: 408 | F152: 6.50E-12 | G152: 8.70E-11
B153: Steroid hormone receptor binding | C153: 69 | D153: 11 | E153: 35 | F153: 2.09e-11 | G153: 2.70E-10
B154: Histone deacetylase binding | C154: 65 | D154: 10.4 | E154: 33 | F154: 7.57E-11 | G154: 9.47E-10
B155: Ubiquitin binding | C155: 63 | D155: 10.1 | E155: 32 | F155: 1.44E-10 | G155: 1.75E-09
B156: Nuclear hormone receptor binding | C156: 153 | D156: 24.4 | E156: 56 | F156: 3.81E-10 | G156: 4.48E-09
B157: Nucleotide binding | C157: 2470 | D157: 395 | E157: 497 | F157: 1.03E-09 | G157: 1.18E-08
B158: Steroid hormone receptor activity | C158: 56 | D158: 8.94 | E158: 28 | F158: 3.23E-09 | G158: 3.58E-08
B159: Protein N_terminus binding | C159: 86 | D159: 13.7 | E159: 34 | F159: 1.23E-07 | G159: 1.32E-06
B160: Ligand_activated sequence_specific DNA binding RNA polymerase II transcription factor activity | C160: 57 | D160: 9.1 | E160: 26 | F160: 1.28E-07 | G160: 1.34E-06
B161: Transcription corepressor activity | C161: 208 | D161: 33.2 | E161: 62 | F161: 3.48E-07 | G161: 3.56E-06
B162: Double_stranded DNA binding | C162: 149 | D162: 23.8 | E162: 48 | F162: 6.12E-07 | G162: 6.09E-06
B163: Telomeric DNA binding | C163: 17 | D163: 2.72 | E163: 12 | F163: 7.54E-07 | G163: 7.32E-06
B164: Receptor signaling protein activity | C164: 110 | D164: 17.6 | E164: 38 | F164: 1.32E-06 | G164: 1.22E-05
B165: Receptor signaling protein serine/threonine kinase activity | C165: 52 | D165: 8.31 | E165: 23 | F165: 1.32E-06 | G165: 1.22E-05
B166: Tubulin binding | C166: 180 | D166: 28.8 | E166: 54 | F166: 1.56E-06 | G166: 1.41E-05
B167: Structural constituent of cytoskeleton | C167: 78 | D167: 12.5 | E167: 29 | F167: 4.42E-06 | G167: 3.84E-05
B168: Protein homodimerization activity | C168: 573 | D168: 91.5 | E168: 132 | F168: 4.45E-06 | G168: 3.84E-05
B169: Protein dimerization activity | C169: 996 | D169: 159 | E169: 210 | F169: 6.21E-06 | G169: 5.24E-05
B170: Kinase regulator activity | C170: 144 | D170: 23 | E170: 44 | F170: 8.37E-06 | G170: 6.91E-05
B171: Single_stranded DNA binding | C171: 65 | D171: 10.4 | E171: 25 | F171: 9.96E-06 | G171: 8.05E-05
B172: Microtubule binding | C172: 115 | D172: 18.4 | E172: 37 | F172: 1.18E-05 | G172: 9.37E-05
B173: Protein C_terminus binding | C173: 160 | D173: 25.6 | E173: 47 | F173: 1.35E-05 | G173: 0.000104
B174: Phosphatase binding | C174: 116 | D174: 18.5 | E174: 36 | F174: 3.71E-05 | G174: 0.000282
B175: Unfolded protein binding | C175: 130 | D175: 20.8 | E175: 39 | F175: 4.22E-05 | G175: 0.000315
B176: Collagen binding | C176: 47 | D176: 7.51 | E176: 19 | F176: 5.10E-05 | G176: 0.000373
B177: Structural molecule activity | C177: 666 | D177: 106 | E177: 144 | F177: 5.35E-05 | G177: 0.000384
B178: Insulin_like growth factor receptor binding | C178: 14 | D178: 2.24 | E178: 9 | F178: 6.19E-05 | G178: 0.000437
B179: RNA polymerase II distal enhancer sequence_specific DNA binding transcription factor activity | C179: 110 | D179: 17.6 | E179: 34 | F179: 6.60E-05 | G179: 0.000457
B180: SMAD binding | C180: 68 | D180: 10.9 | E180: 24 | F180: 7.67E-05 | G180: 0.000522
B181: Protein serine/threonine kinase activity | C181: 572 | D181: 91.4 | E181: 125 | F181: 0.000102 | G181: 0.000682
B182: Protein binding bridging | C182: 135 | D182: 21.6 | E182: 39 | F182: 0.000105 | G182: 0.000686
B183: DNA binding | C183: 2760 | D183: 441 | E183: 506 | F183: 0.000106 | G183: 0.000686
B184: Protein phosphatase binding | C184: 74 | D184: 11.8 | E184: 25 | F184: 0.000124 | G184: 0.000787
B185: Chaperone binding | C185: 46 | D185: 7.35 | E185: 18 | F185: 0.000132 | G185: 0.000813
B186: Non_membrane spanning protein tyrosine kinase activity | C186: 46 | D186: 7.35 | E186: 18 | F186: 0.000132 | G186: 0.000813
B187: Oxygen binding | C187: 36 | D187: 5.75 | E187: 15 | F187: 0.000209 | G187: 0.00127
B188: RNA binding | C188: 976 | D188: 156 | E188: 196 | F188: 0.000242 | G188: 0.00144
B189: Translation factor activity nucleic acid binding | C189: 108 | D189: 17.3 | E189: 32 | F189: 0.000255 | G189: 0.0015
B190: Protein heterodimerization activity | C190: 374 | D190: 59.7 | E190: 85 | F190: 0.000347 | G190: 0.00201
B191: Binding bridging | C191: 148 | D191: 23.6 | E191: 40 | F191: 0.000403 | G191: 0.0023
B192: Ribonucleoprotein complex binding | C192: 58 | D192: 9.26 | E192: 20 | F192: 0.000422 | G192: 0.00237
B193: DNA_dependent ATPase activity | C193: 80 | D193: 12.8 | E193: 25 | F193: 0.000485 | G193: 0.00269
B194: ATP_dependent helicase activity | C194: 112 | D194: 17.9 | E194: 32 | F194: 0.000521 | G194: 0.00285
B195: Protein deacetylase activity | C195: 39 | D195: 6.23 | E195: 15 | F195: 0.000587 | G195: 0.00316
B196: Translation initiation factor activity | C196: 64 | D196: 10.2 | E196: 21 | F196: 0.000654 | G196: 0.00347
B197: Protein kinase regulator activity | C197: 123 | D197: 19.6 | E197: 34 | F197: 0.000686 | G197: 0.00359
B198: Nucleoside_triphosphatase activity | C198: 888 | D198: 142 | E198: 177 | F198: 0.000699 | G198: 0.00362
B199: Growth factor binding | C199: 125 | D199: 20 | E199: 34 | F199: 0.000936 | G199: 0.00478
B200: RNA_dependent ATPase activity | C200: 22 | D200: 3.51 | E200: 10 | F200: 0.00107 | G200: 0.0054
B201: Beta_tubulin binding | C201: 26 | D201: 4.15 | E201: 11 | F201: 0.00126 | G201: 0.00624
... 312 more rows

Sheet Supplementary Table 12.
A1: Table S12. cis-eQTLs detected in the combined analysis of both sexes. N=367 (N males = 248, N females = 119). Significant eQTLs were selected based on an FDR-adjusted p-value threshold of 0.01.
A3: Chromosome | B3: Gene name | C3: Start position | D3: End position | E3: Total number of variants tested in cis | F3: The distance between the gene and the top variant | G3: Position of the top variants | H3: The nominal p-value of association between the top phenotype and the top variant in cis | I3: The corresponding regression slope | J3: The p-value of association adjusted for the number of variants and phenotypes tested in cis given by the direct method | K3: The p-value of association adjusted for the number of variants and phenotypes tested in cis given by the fitted beta distribution | L3: q-value, i.e. FDR adjusted p-value
A4: chr15 | B4: RP11-32B5.7 | C4: 21298234 | D4: 21325241 | E4: 12 | F4: 604745 | G4: 21929986 | H4: 5.28E-07 | I4: -0.466307 | J4: 1.00E-04 | K4: 5.99E-06 | L4: 2.14E-05
A5: chr9 | B5: RBMXP2 | C5: 30689106 | D5: 30690272 | E5: 22 | F5: 0 | G5: 30689913 | H5: 2.11E-08 | I5: 0.507175 | J5: 1.00E-04 | K5: 6.24E-07 | L5: 1.57E-05
A6: chrX | B6: RP11-218L14.4 | C6: 155468287 | D6: 155487046 | E6: 23 | F6: -552312 | G6: 154915975 | H6: 2.98E-06 | I6: 0.260918 | J6: 1.00E-04 | K6: 4.17E-05 | L6: 1.32E-05
A7: chr1 | B7: SRGAP2-AS1 | C7: 121360157 | D7: 121398806 | E7: 24 | F7: -174626 | G7: 121185531 | H7: 3.95E-08 | I7: 0.33389 | J7: 1.00E-04 | K7: 1.18E-06 | L7: 1.28E-05
A8: chr2 | B8: NRIR | C8: 6828515 | D8: 6840464 | E8: 22 | F8: 9425 | G8: 6849889 | H8: 6.41E-12 | I8: 0.55953 | J8: 1.00E-04 | K8: 3.60E-10 | L8: 1.11E-05
A9: chr10 | B9: RP11-324I22.4 | C9: 35314553 | D9: 35336401 | E9: 39 | F9: 147073 | G9: 35483474 | H9: 8.01E-06 | I9: 0.24807 | J9: 0.00019998 | K9: 0.000228818 | L9: 9.54E-06
A10: chr6 | B10: TBC1D7 | C10: 13266543 | D10: 13328583 | E10: 57 | F10: 0 | G10: 13285970 | H10: 4.19E-07 | I10: -0.359419 | J10: 1.00E-04 | K10: 2.87E-05 | L10: 8.93E-06
A11: chr11 | B11: RP11-164N3.3 | C11: 88098592 | D11: 88115835 | E11: 38 | F11: 59343 | G11: 88175178 | H11: 3.12E-06 | I11: 0.308289 | J11: 1.00E-04 | K11: 0.000127945 | L11: 8.60E-06
A12: chr7 | B12: AGMO | C12: 15200319 | D12: 15562015 | E12: 72 | F12: 50774 | G12: 15612789 | H12: 4.43E-06 | I12: -0.310971 | J12: 0.00029997 | K12: 0.000330478 | L12: 7.38E-06
A13: chr10 | B13: MRPL35P2 | C13: 63634318 | D13: 63634827 | E13: 37 | F13: 0 | G13: 63634693 | H13: 1.43E-08 | I13: -0.374093 | J13: 1.00E-04 | K13: 8.61E-07 | L13: 7.38E-06
A14: chr6 | B14: LINC01277 | C14: 142966422 | D14: 143038077 | E14: 76 | F14: 22896 | G14: 143060973 | H14: 7.64E-07 | I14: -0.35733 | J14: 1.00E-04 | K14: 6.69E-05 | L14: 7.08E-06
A15: chr6 | B15: RP11-425D10.10 | C15: 109382796 | D15: 109383666 | E15: 104 | F15: 70567 | G15: 109454233 | H15: 5.69E-06 | I15: 0.306738 | J15: 0.00019998 | K15: 0.000427562 | L15: 7.06E-06
A16: chr8 | B16: MMP16 | C16: 88032010 | D16: 88328025 | E16: 11 | F16: 157014 | G16: 88485039 | H16: 3.06E-06 | I16: -0.280391 | J16: 1.00E-04 | K16: 4.24E-05 | L16: 6.64E-06
A17: chr17 | B17: RP11-257O5.4 | C17: 54964475 | D17: 54964679 | E17: 48 | F17: 0 | G17: 54964604 | H17: 5.31E-11 | I17: 0.523171 | J17: 1.00E-04 | K17: 7.48E-09 | L17: 6.59E-06
A18: chr18 | B18: RP11-380M21.4 | C18: 47878296 | D18: 47882444 | E18: 45 | F18: -33158 | G18: 47845138 | H18: 2.28E-14 | I18: 0.466732 | J18: 1.00E-04 | K18: 2.12E-12 | L18: 6.51E-06
A19: chr6 | B19: MTO1 | C19: 73461579 | D19: 73509236 | E19: 107 | F19: 0 | G19: 73482699 | H19: 6.22E-07 | I19: -0.457259 | J19: 1.00E-04 | K19: 6.06E-05 | L19: 6.48E-06
A20: chr6 | B20: RP11-505P4.6 | C20: 73492026 | D20: 73492742 | E20: 107 | F20: -9327 | G20: 73482699 | H20: 3.16E-07 | I20: -0.427411 | J20: 1.00E-04 | K20: 3.41E-05 | L20: 6.32E-06
A21: chr10 | B21: TECTB | C21: 112283736 | D21: 112305035 | E21: 60 | F21: 0 | G21: 112286517 | H21: 4.40E-08 | I21: 0.467937 | J21: 1.00E-04 | K21: 2.66E-06 | L21: 6.00E-06
A22: chr7 | B22: RP11-166O4.6 | C22: 67333048 | D22: 67334383 | E22: 118 | F22: -12898 | G22: 67320150 | H22: 9.56E-07 | I22: 0.325592 | J22: 0.00019998 | K22: 0.000106571 | L22: 5.93E-06
A23: chr12 | B23: IKBIP | C23: 98613406 | D23: 98645113 | E23: 49 | F23: 4316 | G23: 98649429 | H23: 1.31E-09 | I23: 0.472277 | J23: 1.00E-04 | K23: 1.22E-07 | L23: 5.84E-06
A24: chr2 | B24: MED28P3 | C24: 186364599 | D24: 186365128 | E24: 54 | F24: 0 | G24: 186364944 | H24: 3.24E-06 | I24: -0.263562 | J24: 0.00029997 | K24: 0.000150785 | L24: 5.74E-06
A25: chr6 | B25: RP3-406P24.3 | C25: 4018844 | D25: 4021215 | E25: 121 | F25: 53163 | G25: 4074378 | H25: 1.39E-06 | I25: -0.307036 | J25: 0.00029997 | K25: 0.000143384 | L25: 5.53E-06
A26: chr9 | B26: TRMT112P4 | C26: 101356467 | D26: 101356844 | E26: 59 | F26: 11212 | G26: 101368056 | H26: 2.47E-11 | I26: -0.70356 | J26: 1.00E-04 | K26: 3.45E-09 | L26: 5.37E-06
A27: chr4 | B27: AGA | C27: 177430771 | D27: 177442503 | E27: 42 | F27: 0 | G27: 177438565 | H27: 2.09E-06 | I27: -0.307161 | J27: 1.00E-04 | K27: 9.98E-05 | L27: 5.19E-06
A28: chr7 | B28: PRR15 | C28: 29563812 | D28: 29567295 | E28: 115 | F28: 0 | G28: 29566981 | H28: 3.73E-11 | I28: -0.558476 | J28: 1.00E-04 | K28: 7.43E-09 | L28: 5.03E-06
A29: chr6 | B29: MIR4645 | C29: 2854032 | D29: 2854107 | E29: 126 | F29: 19450 | G29: 2873557 | H29: 1.43e-10 | I29: 0.635203 | J29: 1.00E-04 | K29: 2.86E-08 | L29: 4.86E-06
A30: chr6 | B30: SERPINB9P1 | C30: 2854658 | D30: 2881407 | E30: 126 | F30: 0 | G30: 2873557 | H30: 2.62E-11 | I30: 0.631398 | J30: 1.00E-04 | K30: 5.89E-09 | L30: 4.85E-06
A31: chr9 | B31: BAATP1 | C31: 101334085 | D31: 101339347 | E31: 63 | F31: 28709 | G31: 101368056 | H31: 2.62E-08 | I31: -0.519952 | J31: 1.00E-04 | K31: 2.67E-06 | L31: 4.58E-06
A32: chr4 | B32: RP11-6L6.4 | C32: 146180852 | D32: 146181316 | E32: 45 | F32: 8423 | G32: 146189739 | H32: 7.09E-07 | I32: -0.415217 | J32: 0.00019998 | K32: 4.23E-05 | L32: 4.42E-06
A33: chr9 | B33: S1PR3 | C33: 88991448 | D33: 89005010 | E33: 77 | F33: 151223 | G33: 89156233 | H33: 3.60E-06 | I33: 0.405757 | J33: 0.00029997 | K33: 0.000255793 | L33: 4.39E-06
A34: chr9 | B34: LINC00476 | C34: 95759232 | D34: 95875977 | E34: 80 | F34: 29 | G34: 95876006 | H34: 4.07E-10 | I34: 0.423084 | J34: 1.00E-04 | K34: 5.20E-08 | L34: 4.34E-06
A35: chr7 | B35: RP11-208G20.2 | C35: 152367172 | D35: 152367260 | E35: 116 | F35: 0 | G35: 152367174 | H35: 4.06E-12 | I35: 0.679975 | J35: 1.00E-04 | K35: 1.01E-09 | L35: 4.24E-06
A36: chr7 | B36: AC144652.1 | C36: 155295919 | D36: 155297541 | E36: 141 | F36: 3791 | G36: 155301332 | H36: 4.45E-07 | I36: 0.331441 | J36: 0.00039996 | K36: 6.68E-05 | L36: 4.23E-06
A37: chr11 | B37: RP11-108O10.2 | C37: 111768669 | D37: 111778350 | E37: 80 | F37: 98353 | G37: 111876703 | H37: 1.02E-06 | I37: 0.29816 | J37: 0.00019998 | K37: 9.38E-05 | L37: 4.22E-06
A38: chr18 | B38: ZADH2 | C38: 75195109 | D38: 75209348 | E38: 74 | F38: 0 | G38: 75202325 | H38: 5.66E-07 | I38: -0.301082 | J38: 1.00E-04 | K38: 3.85E-05 | L38: 4.19E-06
A39: chr16 | B39: MIR3180-3 | C39: 18402147 | D39: 18403604 | E39: 85 | F39: 97466 | G39: 18501070 | H39: 8.03E-07 | I39: 0.43564 | J39: 1.00E-04 | K39: 6.00E-05 | L39: 4.17E-06
A40: chr1 | B40: RP11-306I1.2 | C40: 165598464 | D40: 165623331 | E40: 79 | F40: -34696 | G40: 165563768 | H40: 1.69E-06 | I40: 0.357187 | J40: 0.00029997 | K40: 0.000131394 | L40: 4.11E-06
A41: chrX | B41: SSXP4 | C41: 52598495 | D41: 52603289 | E41: 44 | F41: 9698 | G41: 52612987 | H41: 2.89E-07 | I41: 0.599016 | J41: 1.00E-04 | K41: 1.14E-05 | L41: 4.06E-06
A42: chr5 | B42: RP11-118M9.3 | C42: 146099407 | D42: 146120412 | E42: 103 | F42: 21 | G42: 146120433 | H42: 1.16E-06 | I42: 0.266668 | J42: 1.00E-04 | K42: 7.26E-05 | L42: 4.05E-06
A43: chr1 | B43: PPM1J | C43: 112709995 | D43: 112715477 | E43: 81 | F43: -3 | G43: 112709992 | H43: 2.92E-06 | I43: 0.291915 | J43: 0.00029997 | K43: 0.000224002 | L43: 4.04E-06
A44: chr5 | B44: RP11-98J23.1 | C44: 69898868 | D44: 69903198 | E44: 69 | F44: 519480 | G44: 70422678 | H44: 2.16E-06 | I44: -0.277146 | J44: 0.00029997 | K44: 0.000135839 | L44: 3.91E-06
A45: chr16 | B45: RP11-1212A22.4 | C45: 18358087 | D45: 18379331 | E45: 85 | F45: -9582 | G45: 18348505 | H45: 1.58E-06 | I45: -0.372001 | J45: 0.00019998 | K45: 0.000122825 | L45: 3.90E-06
A46: chr7 | B46: RP11-479O9.4 | C46: 65647011 | D46: 65770810 | E46: 161 | F46: -578380 | G46: 65068631 | H46: 6.71E-07 | I46: 0.320587 | J46: 1.00E-04 | K46: 0.000103374 | L46: 3.88E-06
A47: chr1 | B47: CDC14A | C47: 100345026 | D47: 100520277 | E47: 104 | F47: 0 | G47: 100353172 | H47: 7.38E-08 | I47: -0.34043 | J47: 1.00E-04 | K47: 7.78E-06 | L47: 3.82E-06
A48: chr6 | B48: LINC00680 | C48: 57946075 | D48: 57961501 | E48: 193 | F48: 329164 | G48: 58290665 | H48: 3.65E-20 | I48: 0.590903 | J48: 1.00E-04 | K48: 6.92e-16 | L48: 3.74E-06
A49: chr10 | B49: RP11-95I16.4 | C49: 120879257 | D49: 120880667 | E49: 85 | F49: -696 | G49: 120878561 | H49: 1.60E-23 | I49: -0.558099 | J49: 1.00E-04 | K49: 2.00E-20 | L49: 3.71E-06
A50: chr1 | B50: RP5-837M10.4 | C50: 100462400 | D50: 100485997 | E50: 104 | F50: -109228 | G50: 100353172 | H50: 4.65E-07 | I50: -0.309625 | J50: 1.00E-04 | K50: 4.45E-05 | L50: 3.68E-06
A51: chr10 | B51: CPXM2 | C51: 123706208 | D51: 123940267 | E51: 78 | F51: 0 | G51: 123891277 | H51: 3.64E-07 | I51: -0.298535 | J51: 0.00019998 | K51: 3.04E-05 | L51: 3.67E-06
A52: chrX | B52: RP11-552J9.1 | C52: 52583990 | D52: 52586312 | E52: 43 | F52: 66948 | G52: 52653260 | H52: 2.83E-07 | I52: 0.565628 | J52: 1.00E-04 | K52: 1.30E-05 | L52: 3.58E-06
A53: chr2 | B53: TMEM17 | C53: 62500222 | D53: 62511894 | E53: 62 | F53: 0 | G53: 62506118 | H53: 1.22E-07 | I53: -0.316971 | J53: 1.00E-04 | K53: 1.18E-05 | L53: 3.57E-06
A54: chr6 | B54: XXbac-BPGBPG55C20.1 | C54: 57855892 | D54: 57856468 | E54: 199 | F54: 869956 | G54: 58726424 | H54: 2.03E-08 | I54: -0.429325 | J54: 1.00E-04 | K54: 6.80E-06 | L54: 3.57E-06
A55: chr1 | B55: DDX11L1 | C55: 11870 | D55: 14409 | E55: 76 | F55: 170904 | G55: 185313 | H55: 2.80E-11 | I55: 0.639281 | J55: 1.00E-04 | K55: 4.71E-09 | L55: 3.55E-06
A56: chr16 | B56: SLC5A11 | C56: 24845842 | D56: 24911628 | E56: 86 | F56: -115477 | G56: 24730365 | H56: 2.02E-06 | I56: -0.381614 | J56: 0.00029997 | K56: 0.000173151 | L56: 3.53E-06
A57: chr2 | B57: AC012360.4 | C57: 105324211 | D57: 105330529 | E57: 73 | F57: 6952 | G57: 105337481 | H57: 1.29E-06 | I57: -0.346695 | J57: 0.00019998 | K57: 0.00010084 | L57: 3.51E-06
A58: chr6 | B58: RP1-71H19.2 | C58: 57493856 | D58: 57497691 | E58: 195 | F58: -80914 | G58: 57412942 | H58: 7.95E-07 | I58: -0.341952 | J58: 0.00029997 | K58: 0.000159024 | L58: 3.47E-06
A59: chr7 | B59: ERV3-1 | C59: 64990810 | D59: 65006743 | E59: 172 | F59: -11487 | G59: 64979323 | H59: 5.25E-10 | I59: 0.410643 | J59: 1.00E-04 | K59: 2.12E-07 | L59: 3.38E-06
A60: chr5 | B60: RP11-848G14.5 | C60: 69631964 | D60: 69636399 | E60: 73 | F60: 786279 | G60: 70422678 | H60: 5.22E-07 | I60: -0.297311 | J60: 1.00E-04 | K60: 4.45E-05 | L60: 3.30E-06
A61: chr1 | B61: RP11-34P13.15 | C61: 135142 | D61: 135895 | E61: 98 | F61: -120465 | G61: 14677 | H61: 1.78E-08 | I61: 0.514026 | J61: 1.00E-04 | K61: 2.08E-06 | L61: 3.28E-06
A62: chr7 | B62: ABHD11-AS1 | C62: 73735039 | D62: 73736054 | E62: 175 | F62: 836 | G62: 73736890 | H62: 3.54E-08 | I62: -0.336918 | J62: 1.00E-04 | K62: 8.57E-06 | L62: 3.27E-06
A63: chr22 | B63: GAPDHP37 | C63: 40673485 | D63: 40674451 | E63: 176 | F63: 5240 | G63: 40679691 | H63: 1.31E-06 | I63: -0.349737 | J63: 1.00E-04 | K63: 0.000232585 | L63: 3.27E-06
A64: chr10 | B64: TNKS2-AS1 | C64: 91782840 | D64: 91798291 | E64: 93 | F64: 59258 | G64: 91857549 | H64: 6.32E-17 | I64: -0.554485 | J64: 1.00E-04 | K64: 5.05E-14 | L64: 3.24E-06
A65: chr10 | B65: RP11-129M16.4 | C65: 117267117 | D65: 117268668 | E65: 104 | F65: 8446 | G65: 117277114 | H65: 5.43e-14 | I65: 0.586384 | J65: 1.00E-04 | K65: 1.37e-11 | L65: 3.20E-06
A66: chr1 | B66: SRGAP2C | C66: 121184811 | D66: 121392822 | E66: 71 | F66: 0 | G66: 121185531 | H66: 1.21E-07 | I66: 0.325668 | J66: 1.00E-04 | K66: 1.42E-05 | L66: 3.20E-06
A67: chr7 | B67: RP11-90P13.1 | C67: 161766 | D67: 164972 | E67: 135 | F67: 2806 | G67: 167778 | H67: 3.61E-13 | I67: 0.681515 | J67: 1.00E-04 | K67: 2.59E-10 | L67: 3.17E-06
A68: chr17 | B68: RP11-583F2.1 | C68: 64927635 | D68: 64934203 | E68: 134 | F68: -30341 | G68: 64897294 | H68: 1.52E-07 | I68: 0.567533 | J68: 1.00E-04 | K68: 1.81E-05 | L68: 3.15E-06
A69: chr7 | B69: WBSCR27 | C69: 73834591 | D69: 73842535 | E69: 180 | F69: -2460 | G69: 73832131 | H69: 2.54E-21 | I69: -0.570435 | J69: 1.00E-04 | K69: 6.73E-18 | L69: 3.15E-06
A70: chr2 | B70: AC007038.7 | C70: 210030734 | D70: 210064356 | E70: 89 | F70: -1072 | G70: 210029659 | H70: 2.32E-06 | I70: -0.333833 | J70: 0.00039996 | K70: 0.00019242 | L70: 3.14E-06
A71: chr5 | B71: CFL1P5 | C71: 69313372 | D71: 69313872 | E71: 60 | F71: -710626 | G71: 68602746 | H71: 1.08E-08 | I71: -0.356972 | J71: 1.00E-04 | K71: 1.63E-06 | L71: 3.13E-06
A72: chr9 | B72: GXYLT1P5 | C72: 42974856 | D72: 42978320 | E72: 110 | F72: -80608 | G72: 42894248 | H72: 3.25e-19 | I72: -0.478444 | J72: 1.00E-04 | K72: 4.23E-16 | L72: 3.13E-06
A73: chr17 | B73: RP11-227G15.2 | C73: 32328442 | D73: 32329395 | E73: 105 | F73: 2592 | G73: 32331987 | H73: 2.01e-10 | I73: -0.407376 | J73: 1.00E-04 | K73: 4.11E-08 | L73: 3.08E-06
A74: chr5 | B74: LARS | C74: 146113039 | D74: 146182660 | E74: 103 | F74: 0 | G74: 146128894 | H74: 1.77E-06 | I74: 0.315713 | J74: 0.00019998 | K74: 0.000140515 | L74: 3.08E-06
A75: chr10 | B75: METTL10 | C75: 124748150 | D75: 124791870 | E75: 84 | F75: 37550 | G75: 124829420 | H75: 1.51E-07 | I75: -0.333571 | J75: 0.00019998 | K75: 1.68E-05 | L75: 2.98E-06
A76: chr7 | B76: RP11-797H7.5 | C76: 64888528 | D76: 64890100 | E76: 166 | F76: -25427 | G76: 64863101 | H76: 2.69E-07 | I76: -0.335 | J76: 1.00E-04 | K76: 6.50E-05 | L76: 2.95E-06
A77: chr7 | B77: GTF2IP14 | C77: 65084104 | D77: 65100232 | E77: 175 | F77: 50057 | G77: 65150289 | H77: 2.06E-08 | I77: 0.49233 | J77: 1.00E-04 | K77: 6.78E-06 | L77: 2.94E-06
A78: chr18 | B78: RP11-49I11.3 | C78: 36278736 | D78: 36279119 | E78: 98 | F78: -10036 | G78: 36268700 | H78: 4.80E-14 | I78: -0.677997 | J78: 1.00E-04 | K78: 1.49E-11 | L78: 2.93E-06
A79: chr1 | B79: SNORA2 | C79: 84277322 | D79: 84277457 | E79: 111 | F79: 807478 | G79: 85084935 | H79: 2.35E-06 | I79: -0.370871 | J79: 0.00029997 | K79: 0.000245208 | L79: 2.92E-06
A80: chr16 | B80: NOMO2 | C80: 18417326 | D80: 18562211 | E80: 128 | F80: 0 | G80: 18434675 | H80: 4.55E-08 | I80: -0.567057 | J80: 1.00E-04 | K80: 5.80E-06 | L80: 2.92E-06
A81: chr1 | B81: RP4-730K3.3 | C81: 113698885 | D81: 113699631 | E81: 115 | F81: 13575 | G81: 113713206 | H81: 1.51E-06 | I81: -0.437831 | J81: 0.00029997 | K81: 0.000165962 | L81: 2.90E-06
A82: chr7 | B82: AC093627.10 | C82: 149598 | D82: 155465 | E82: 131 | F82: 12313 | G82: 167778 | H82: 3.19E-11 | I82: -0.610209 | J82: 1.00E-04 | K82: 1.81E-08 | L82: 2.87E-06
A83: chr9 | B83: RP11-60I3.4 | C83: 99915078 | D83: 99929896 | E83: 90 | F83: 21402 | G83: 99951298 | H83: 9.05E-08 | I83: 0.338486 | J83: 0.00019998 | K83: 1.48E-05 | L83: 2.84E-06
A84: chr7 | B84: CYP3A5 | C84: 99648195 | D84: 99679998 | E84: 235 | F84: -28394 | G84: 99619801 | H84: 2.29E-16 | I84: 0.575135 | J84: 1.00E-04 | K84: 1.04e-12 | L84: 2.84E-06
A85: chr15 | B85: RP11-632K20.7 | C85: 32519849 | D85: 32536926 | E85: 98 | F85: -19971 | G85: 32499878 | H85: 3.66E-07 | I85: -0.29265 | J85: 1.00E-04 | K85: 4.10E-05 | L85: 2.84E-06
A86: chr9 | B86: RP11-459O16.9 | C86: 42978852 | D86: 42979918 | E86: 110 | F86: -6173 | G86: 42972679 | H86: 1.98E-13 | I86: 0.443821 | J86: 1.00E-04 | K86: 1.00E-10 | L86: 2.83E-06
A87: chr9 | B87: FBP2 | C87: 94558721 | D87: 94593793 | E87: 117 | F87: 0 | G87: 94559226 | H87: 6.38E-08 | I87: -0.356378 | J87: 1.00E-04 | K87: 1.04E-05 | L87: 2.79E-06
A88: chr7 | B88: PMS2P5 | C88: 74894117 | D88: 74897835 | E88: 200 | F88: -96104 | G88: 74798013 | H88: 1.65E-08 | I88: -0.477735 | J88: 1.00E-04 | K88: 4.47E-06 | L88: 2.79E-06
A89: chr15 | B89: RP11-632K20.2 | C89: 32494004 | D89: 32500346 | E89: 98 | F89: 0 | G89: 32499878 | H89: 1.19e-30 | I89: 0.889296 | J89: 1.00E-04 | K89: 1.88E-27 | L89: 2.77E-06
A90: chr9 | B90: RP11-459O16.8 | C90: 42981773 | D90: 42988167 | E90: 110 | F90: -107933 | G90: 42873840 | H90: 2.38E-22 | I90: -0.54324 | J90: 1.00E-04 | K90: 1.11E-18 | L90: 2.75E-06
A91: chr6 | B91: BTN3A2 | C91: 26365160 | D91: 26378320 | E91: 228 | F91: 0 | G91: 26376640 | H91: 2.50E-06 | I91: -0.41251 | J91: 0.00039996 | K91: 0.000478843 | L91: 2.74E-06
A92: chr7 | B92: RP11-114G11.5 | C92: 57404772 | D92: 57416203 | E92: 181 | F92: 64673 | G92: 57480876 | H92: 9.05E-07 | I92: -0.331716 | J92: 0.00049995 | K92: 0.000177548 | L92: 2.71E-06
A93: chr11 | B93: RP11-750H9.5 | C93: 47383149 | D93: 47409190 | E93: 181 | F93: 4036 | G93: 47413226 | H93: 6.41E-08 | I93: 0.311334 | J93: 1.00E-04 | K93: 1.31E-05 | L93: 2.71E-06
A94: chr9 | B94: PCAT7 | C94: 94555070 | D94: 94568127 | E94: 118 | F94: 0 | G94: 94559226 | H94: 1.37e-11 | I94: -0.455697 | J94: 1.00E-04 | K94: 5.44E-09 | L94: 2.71E-06
A95: chr10 | B95: DCLRE1CP1 | C95: 15015371 | D95: 15021863 | E95: 93 | F95: -80956 | G95: 14934415 | H95: 2.98e-10 | I95: 0.38981 | J95: 1.00E-04 | K95: 5.23E-08 | L95: 2.70E-06
A96: chr7 | B96: EEF1DP4 | C96: 64863000 | D96: 64864370 | E96: 174 | F96: -563783 | G96: 64299217 | H96: 2.21E-18 | I96: 0.557019 | J96: 1.00E-04 | K96: 2.93E-14 | L96: 2.68E-06
A97: chr9 | B97: CYP4F25P | C97: 64465464 | D97: 64466498 | E97: 133 | F97: -74841 | G97: 64390623 | H97: 2.69E-13 | I97: -0.539499 | J97: 1.00E-04 | K97: 4.78E-11 | L97: 2.67E-06
A98: chr18 | B98: RP11-674N23.4 | C98: 8801657 | D98: 8802305 | E98: 89 | F98: -422560 | G98: 8379097 | H98: 1.01E-06 | I98: -0.362967 | J98: 0.00019998 | K98: 0.000104211 | L98: 2.66E-06
A99: chr9 | B99: PSMD5-AS1 | C99: 120824829 | D99: 120851355 | E99: 132 | F99: -370 | G99: 120824459 | H99: 7.78E-08 | I99: -0.3031 | J99: 1.00E-04 | K99: 1.40E-05 | L99: 2.65E-06
A100: chr9 | B100: TAL2 | C100: 105662458 | D100: 105663112 | E100: 100 | F100: 0 | G100: 105663101 | H100: 3.30E-07 | I100: -0.371296 | J100: 1.00E-04 | K100: 4.90E-05 | L100: 2.65E-06
A101: chr9 | B101: NUTM2F | C101: 94318197 | D101: 94328644 | E101: 119 | F101: 0 | G101: 94318728 | H101: 3.43E-08 | I101: 0.537102 | J101: 1.00E-04 | K101: 6.79E-06 | L101: 2.58E-06
A102: chr17 | B102: RP13-753N3.3 | C102: 30899111 | D102: 30899651 | E102: 188 | F102: -64168 | G102: 30834937 | H102: 4.43E-08 | I102: -0.506646 | J102: 1.00E-04 | K102: 8.00E-06 | L102: 2.58E-06
A103: chr17 | B103: C17orf78 | C103: 37375987 | D103: 37392708 | E103: 145 | F103: 0 | G103: 37386072 | H103: 1.95E-09 | I103: 0.334636 | J103: 1.00E-04 | K103: 4.31E-07 | L103: 2.55E-06
A104: chr8 | B104: SNX16 | C104: 81799582 | D104: 81842866 | E104: 46 | F104: 0 | G104: 81829341 | H104: 1.65E-07 | I104: -0.299687 | J104: 1.00E-04 | K104: 7.02E-06 | L104: 2.54E-06
A105: chr8 | B105: RP13-923O23.6 | C105: 81791824 | D105: 81815714 | E105: 46 | F105: 13627 | G105: 81829341 | H105: 5.22E-07 | I105: -0.282261 | J105: 1.00E-04 | K105: 2.05E-05 | L105: 2.53E-06
A106: chr10 | B106: C1DP1 | C106: 32511337 | D106: 32511737 | E106: 142 | F106: -36 | G106: 32511301 | H106: 7.52E-25 | I106: 0.874924 | J106: 1.00E-04 | K106: 6.46E-21 | L106: 2.52E-06
A107: chr6 | B107: C6orf163 | C107: 87344850 | D107: 87365463 | E107: 312 | F107: 703805 | G107: 88069268 | H107: 2.10E-06 | I107: -0.409286 | J107: 0.00039996 | K107: 0.000486476 | L107: 2.50E-06
A108: chr15 | B108: RP11-632K20.6 | C108: 32489268 | D108: 32491586 | E108: 98 | F108: 8292 | G108: 32499878 | H108: 4.72E-20 | I108: 0.726929 | J108: 1.00E-04 | K108: 3.73E-17 | L108: 2.48E-06
A109: chr11 | B109: TAF1D | C109: 93729949 | D109: 93784391 | E109: 128 | F109: 0 | G109: 93747542 | H109: 1.87E-06 | I109: -0.253491 | J109: 0.00019998 | K109: 0.000260323 | L109: 2.47E-06
A110: chr9 | B110: CYP4F60P | C110: 42950567 | D110: 42951630 | E110: 127 | F110: -56319 | G110: 42894248 | H110: 4.06E-29 | I110: -0.601806 | J110: 1.00E-04 | K110: 5.77E-25 | L110: 2.45E-06
A111: chr6 | B111: TCP11 | C111: 35118072 | D111: 35148610 | E111: 262 | F111: -54031 | G111: 35064041 | H111: 2.85E-07 | I111: -0.363905 | J111: 0.00019998 | K111: 8.38E-05 | L111: 2.44E-06
A112: chr7 | B112: SPDYE6 | C112: 102347207 | D112: 102356444 | E112: 210 | F112: 140611 | G112: 102497055 | H112: 2.07e-11 | I112: 0.6218 | J112: 1.00E-04 | K112: 1.24E-08 | L112: 2.43E-06
A113: chr7 | B113: RP4-545C24.1 | C113: 144194859 | D113: 144280547 | E113: 229 | F113: -622179 | G113: 143572680 | H113: 6.87E-11 | I113: 0.630978 | J113: 1.00E-04 | K113: 3.00E-08 | L113: 2.43E-06
A114: chr18 | B114: RP11-567M16.3 | C114: 79638929 | D114: 79679745 | E114: 93 | F114: 30377 | G114: 79710122 | H114: 4.07E-14 | I114: 0.467695 | J114: 1.00E-04 | K114: 2.40E-11 | L114: 2.42E-06
A115: chr10 | B115: NUDT13 | C115: 73110376 | D115: 73131828 | E115: 203 | F115: 191373 | G115: 73323201 | H115: 1.51E-08 | I115: -0.493683 | J115: 1.00E-04 | K115: 3.26E-06 | L115: 2.41E-06
A116: chr18 | B116: PIGN | C116: 62043568 | D116: 62187118 | E116: 108 | F116: 0 | G116: 62147035 | H116: 1.21E-06 | I116: -0.299058 | J116: 0.00029997 | K116: 0.000140543 | L116: 2.40E-06
A117: chr6 | B117: RP11-568A7.1 | C117: 167208632 | D117: 167208897 | E117: 249 | F117: 106389 | G117: 167315286 | H117: 2.83E-07 | I117: 0.357512 | J117: 1.00E-04 | K117: 6.95E-05 | L117: 2.39E-06
A118: chr7 | B118: TYW1B | C118: 72558745 | D118: 72828198 | E118: 206 | F118: -310124 | G118: 72248621 | H118: 5.45E-35 | I118: 0.967775 | J118: 1.00E-04 | K118: 1.79E-29 | L118: 2.38E-06
A119: chr7 | B119: UPK3BL | C119: 102637026 | D119: 102642791 | E119: 223 | F119: -140930 | G119: 102496096 | H119: 7.88E-10 | I119: 0.547877 | J119: 1.00E-04 | K119: 3.44E-07 | L119: 2.36E-06
A120: chr2 | B120: GTF2A1L | C120: 48617799 | D120: 48733148 | E120: 89 | F120: -22557 | G120: 48595242 | H120: 1.10E-08 | I120: 0.368881 | J120: 1.00E-04 | K120: 1.88E-06 | L120: 2.36E-06
A121: chr6 | B121: LPA | C121: 160531484 | D121: 160664259 | E121: 246 | F121: 88655 | G121: 160752914 | H121: 1.46E-07 | I121: 0.343467 | J121: 1.00E-04 | K121: 4.29E-05 | L121: 2.36E-06
A122: chr1 | B122: FO538757.2 | C122: 182394 | D122: 184158 | E122: 104 | F122: 1155 | G122: 185313 | H122: 8.57e-15 | I122: 0.868395 | J122: 1.00E-04 | K122: 5.13E-12 | L122: 2.35E-06
A123: chr7 | B123: RP11-155G14.5 | C123: 128466564 | D123: 128469171 | E123: 257 | F123: 9897 | G123: 128479068 | H123: 4.97E-07 | I123: 0.436701 | J123: 0.00019998 | K123: 0.000134851 | L123: 2.35E-06
A124: chr11 | B124: C1QTNF4 | C124: 47589665 | D124: 47594659 | E124: 193 | F124: 30055 | G124: 47624714 | H124: 5.20E-15 | I124: 0.551814 | J124: 1.00E-04 | K124: 1.86E-11 | L124: 2.34E-06
A125: chr7 | B125: RP11-514P8.7 | C125: 102541502 | D125: 102592444 | E125: 235 | F125: -44447 | G125: 102497055 | H125: 2.69E-08 | I125: 0.486129 | J125: 1.00E-04 | K125: 8.57E-06 | L125: 2.34E-06
A126: chr6 | B126: ZNF602P | C126: 28115629 | D126: 28116551 | E126: 246 | F126: -37326 | G126: 28078303 | H126: 9.71E-12 | I126: 0.578113 | J126: 1.00E-04 | K126: 1.81E-08 | L126: 2.34E-06
A127: chr1 | B127: FNBP1L | C127: 93448132 | D127: 93554661 | E127: 124 | F127: 339890 | G127: 93894551 | H127: 2.07E-06 | I127: 0.323294 | J127: 0.00029997 | K127: 0.000270478 | L127: 2.32E-06
A128: chr6 | B128: ZSCAN23 | C128: 28431931 | D128: 28443502 | E128: 258 | F128: -40466 | G128: 28391465 | H128: 8.69E-09 | I128: -0.394855 | J128: 1.00E-04 | K128: 5.10E-06 | L128: 2.31E-06
A129: chr17 | B129: RP13-753N3.1 | C129: 30863922 | D129: 30864940 | E129: 181 | F129: -6774 | G129: 30857148 | H129: 1.02e-19 | I129: 0.845123 | J129: 1.00E-04 | K129: 4.57E-16 | L129: 2.29E-06
A130: chr7 | B130: AC091729.9 | C130: 1160375 | D130: 1165267 | E130: 200 | F130: 39028 | G130: 1204295 | H130: 1.20E-18 | I130: -0.54754 | J130: 1.00E-04 | K130: 3.34E-15 | L130: 2.29E-06
A131: chr9 | B131: ANKRD20A4 | C131: 64369395 | D131: 64413142 | E131: 140 | F131: 0 | G131: 64390623 | H131: 8.32E-12 | I131: -0.478762 | J131: 1.00E-04 | K131: 1.89E-09 | L131: 2.29E-06
A132: chr16 | B132: RP11-426C22.6 | C132: 29262274 | D132: 29264479 | E132: 111 | F132: 15271 | G132: 29279750 | H132: 7.00E-14 | I132: -0.493267 | J132: 1.00E-04 | K132: 4.46e-11 | L132: 2.26E-06
A133: chr7 | B133: CTAGE8 | C133: 144266702 | D133: 144269288 | E133: 229 | F133: -694022 | G133: 143572680 | H133: 1.56E-06 | I133: 0.461684 | J133: 1.00E-04 | K133: 0.000379368 | L133: 2.25E-06
A134: chr16 | B134: RP11-426C22.8 | C134: 29272221 | D134: 29272772 | E134: 105 | F134: 8282 | G134: 29281054 | H134: 4.33E-07 | I134: 0.330355 | J134: 1.00E-04 | K134: 6.24E-05 | L134: 2.24E-06
A135: chr7 | B135: DNAAF5 | C135: 726702 | D135: 786475 | E135: 191 | F135: 98229 | G135: 884704 | H135: 5.24E-08 | I135: -0.332577 | J135: 1.00E-04 | K135: 1.52E-05 | L135: 2.24E-06
A136: chr7 | B136: SPDYE2 | C136: 102551233 | D136: 102562308 | E136: 223 | F136: -54178 | G136: 102497055 | H136: 4.08E-10 | I136: 0.565587 | J136: 1.00E-04 | K136: 2.09E-07 | L136: 2.24E-06
A137: chr22 | B137: SMC1B | C137: 45344064 | D137: 45413619 | E137: 277 | F137: 124 | G137: 45413743 | H137: 5.67E-07 | I137: -0.305365 | J137: 1.00E-04 | K137: 0.000145127 | L137: 2.23E-06
A138: chr22 | B138: DNAJB7 | C138: 40859550 | D138: 40862126 | E138: 220 | F138: 506982 | G138: 41369108 | H138: 5.60E-39 | I138: -0.764839 | J138: 1.00E-04 | K138: 1.21E-31 | L138: 2.23E-06
A139: chr22 | B139: LL22NC03-80A10.6 | C139: 22303225 | D139: 22310401 | E139: 271 | F139: 387988 | G139: 22698389 | H139: 1.17E-06 | I139: -0.313635 | J139: 0.00019998 | K139: 0.000313052 | L139: 2.22E-06
A140: chr4 | B140: DDX60L | C140: 168356736 | D140: 168537786 | E140: 123 | F140: 0 | G140: 168430768 | H140: 1.53E-06 | I140: -0.29305 | J140: 0.00019998 | K140: 0.000166179 | L140: 2.22E-06
A141: chr7 | B141: INTS1 | C141: 1470278 | D141: 1504367 | E141: 276 | F141: 0 | G141: 1500413 | H141: 1.13E-06 | I141: -0.27887 | J141: 0.00019998 | K141: 0.000287575 | L141: 2.22E-06
A142: chr4 | B142: PDE5A | C142: 119494396 | D142: 119628991 | E142: 133 | F142: -99476 | G142: 119394920 | H142: 1.57E-06 | I142: -0.314663 | J142: 0.00029997 | K142: 0.000172248 | L142: 2.19E-06
A143: chr18 | B143: RP11-567M16.6 | C143: 79677288 | D143: 79679358 | E143: 93 | F143: 30764 | G143: 79710122 | H143: 6.47E-18 | I143: 0.564768 | J143: 1.00E-04 | K143: 1.24e-14 | L143: 2.19E-06
A144: chr3 | B144: MRPS18AP1 | C144: 48256351 | D144: 48256938 | E144: 129 | F144: 40059 | G144: 48296997 | H144: 2.89E-09 | I144: 0.47789 | J144: 1.00E-04 | K144: 7.06E-07 | L144: 2.18E-06
A145: chr17 | B145: ATAD5 | C145: 30831971 | D145: 30895869 | E145: 189 | F145: 0 | G145: 30832386 | H145: 3.88E-09 | I145: 0.405603 | J145: 1.00E-04 | K145: 1.14E-06 | L145: 2.18E-06
A146: chr5 | B146: CTD-2081C10.7 | C146: 53880294 | D146: 53881051 | E146: 97 | F146: -19979 | G146: 53860315 | H146: 4.16E-07 | I146: 0.40079 | J146: 1.00E-04 | K146: 5.11E-05 | L146: 2.18E-06
A147: chr2 | B147: IGKV2-29 | C147: 89234175 | D147: 89234912 | E147: 130 | F147: 0 | G147: 89234206 | H147: 4.13E-07 | I147: 0.256943 | J147: 1.00E-04 | K147: 5.62E-05 | L147: 2.18E-06
A148: chr9 | B148: RP11-390F4.3 | C148: 6716496 | D148: 6727438 | E148: 120 | F148: 7559 | G148: 6734997 | H148: 3.72E-07 | I148: 0.441004 | J148: 1.00E-04 | K148: 6.12E-05 | L148: 2.17E-06
A149: chr16 | B149: EIF3C | C149: 28688559 | D149: 28735730 | E149: 184 | F149: 94726 | G149: 28830456 | H149: 4.66E-07 | I149: 0.321546 | J149: 1.00E-04 | K149: 7.11E-05 | L149: 2.17E-06
A150: chr17 | B150: RP11-259G18.2 | C150: 46243607 | D150: 46245044 | E150: 283 | F150: 85594 | G150: 46330638 | H150: 5.23E-07 | I150: 0.383173 | J150: 1.00E-04 | K150: 8.81E-05 | L150: 2.17E-06
A151: chrX | B151: ZFX | C151: 24149174 | D151: 24216255 | E151: 65 | F151: -81121 | G151: 24068053 | H151: 5.22E-10 | I151: -0.602068 | J151: 1.00E-04 | K151: 5.66E-08 | L151: 2.17E-06
A152: chr16 | B152: RP11-426C22.7 | C152: 29225595 | D152: 29226348 | E152: 117 | F152: 24567 | G152: 29250915 | H152: 3.73E-07 | I152: 0.484032 | J152: 1.00E-04 | K152: 5.65E-05 | L152: 2.15E-06
A153: chr16 | B153: RP11-347C12.1 | C153: 30222938 | D153: 30254510 | E153: 168 | F153: 26669 | G153: 30281179 | H153: 7.87E-08 | I153: 0.272974 | J153: 1.00E-04 | K153: 1.48E-05 | L153: 2.14E-06
A154: chr7 | B154: ZFAND2A | C154: 1152072 | D154: 1160759 | E154: 200 | F154: 43536 | G154: 1204295 | H154: 1.72E-06 | I154: -0.29822 | J154: 0.00029997 | K154: 0.000380422 | L154: 2.14E-06
A155: chr22 | B155: APOBEC3B | C155: 38982348 | D155: 38992804 | E155: 274 | F155: 351112 | G155: 39343916 | H155: 6.24E-08 | I155: -0.350053 | J155: 1.00E-04 | K155: 2.34E-05 | L155: 2.14E-06
A156: chr7 | B156: RP11-514P8.6 | C156: 102582524 | D156: 102642869 | E156: 228 | F156: -86428 | G156: 102496096 | H156: 7.53E-08 | I156: 0.471413 | J156: 1.00E-04 | K156: 2.56E-05 | L156: 2.12E-06
A157: chr16 | B157: RP11-358L22.3 | C157: 78123244 | D157: 78124332 | E157: 138 | F157: -73399 | G157: 78049845 | H157: 7.10E-07 | I157: -0.288254 | J157: 0.00019998 | K157: 0.000105788 | L157: 2.12E-06
A158: chr2 | B158: RP11-310N16.1 | C158: 48632292 | D158: 48755724 | E158: 89 | F158: -37050 | G158: 48595242 | H158: 1.16E-08 | I158: 0.364113 | J158: 1.00E-04 | K158: 2.33E-06 | L158: 2.12E-06
A159: chr2 | B159: TRAPPC12-AS1 | C159: 3481243 | D159: 3482409 | E159: 129 | F159: -3157 | G159: 3478086 | H159: 1.12E-07 | I159: -0.311892 | J159: 1.00E-04 | K159: 1.71E-05 | L159: 2.12E-06
A160: chr7 | B160: BNIP3P11 | C160: 64678955 | D160: 64687393 | E160: 217 | F160: -564392 | G160: 64114563 | H160: 7.67E-09 | I160: 0.418392 | J160: 1.00E-04 | K160: 4.02E-06 | L160: 2.11E-06
A161: chr17 | B161: ARL17A | C161: 46516703 | D161: 46579682 | E161: 299 | F161: 0 | G161: 46553269 | H161: 4.32E-08 | I161: -0.339304 | J161: 1.00E-04 | K161: 9.37E-06 | L161: 2.11E-06
A162: chr7 | B162: OR2A7 | C162: 144258608 | D162: 144259722 | E162: 229 | F162: -685928 | G162: 143572680 | H162: 3.03E-10 | I162: 0.576494 | J162: 1.00E-04 | K162: 1.70E-07 | L162: 2.09E-06
A163: chr17 | B163: TCAM1P | C163: 63849293 | D163: 63864379 | E163: 179 | F163: -23474 | G163: 63825819 | H163: 7.07E-10 | I163: -0.393307 | J163: 1.00E-04 | K163: 2.75E-07 | L163: 2.09E-06
A164: chr3 | B164: NPHP3 | C164: 132680610 | D164: 132722442 | E164: 158 | F164: 0 | G164: 132705936 | H164: 1.37E-06 | I164: 0.395442 | J164: 1.00E-04 | K164: 0.000156394 | L164: 2.09E-06
A165: chr7 | B165: STAG3L5P-PVRIG2P-PILRB | C165: 100336105 | D165: 100367831 | E165: 354 | F165: 0 | G165: 100358243 | H165: 1.51e-10 | I165: 0.511376 | J165: 1.00E-04 | K165: 1.14E-07 | L165: 2.09E-06
A166: chr7 | B166: OR2A1-AS1 | C166: 144251265 | D166: 144356181 | E166: 229 | F166: -678585 | G166: 143572680 | H166: 5.05E-09 | I166: 0.563699 | J166: 1.00E-04 | K166: 2.17E-06 | L166: 2.08E-06
A167: chr16 | B167: RP11-105C19.2 | C167: 22610532 | D167: 22612196 | E167: 154 | F167: -800785 | G167: 21809747 | H167: 2.21E-07 | I167: -0.363803 | J167: 1.00E-04 | K167: 3.68E-05 | L167: 2.07E-06
A168: chr16 | B168: RP11-666O2.5 | C168: 28602341 | D168: 28604519 | E168: 174 | F168: -10671 | G168: 28591670 | H168: 3.09e-12 | I168: 0.611978 | J168: 1.00E-04 | K168: 1.75E-09 | L168: 2.07E-06
A169: chr7 | B169: SPDYE2B | C169: 102650326 | D169: 102661398 | E169: 224 | F169: -153271 | G169: 102497055 | H169: 5.07E-10 | I169: 0.57463 | J169: 1.00E-04 | K169: 2.90E-07 | L169: 2.07E-06
A170: chr22 | B170: PI4KAP1 | C170: 18533647 | D170: 18577968 | E170: 239 | F170: 0 | G170: 18540119 | H170: 4.48E-24 | I170: -0.79463 | J170: 1.00E-04 | K170: 3.45E-20 | L170: 2.06E-06
A171: chr1 | B171: RP4-736L20.3 | C171: 10429882 | D171: 10430677 | E171: 186 | F171: 11573 | G171: 10442250 | H171: 8.06E-07 | I171: 0.487795 | J171: 0.00019998 | K171: 0.000129367 | L171: 2.05E-06
A172: chr6 | B172: ZNF603P | C172: 28176189 | D172: 28176674 | E172: 251 | F172: -75549 | G172: 28100640 | H172: 1.25e-13 | I172: -0.49772 | J172: 1.00E-04 | K172: 6.31E-10 | L172: 2.05E-06
A173: chr7 | B173: CTAGE4 | C173: 144183467 | D173: 144186053 | E173: 229 | F173: -610787 | G173: 143572680 | H173: 1.50E-06 | I173: 0.469211 | J173: 0.00049995 | K173: 0.00040216 | L173: 2.04E-06
A174: chr22 | B174: TMEM191B | C174: 18527803 | D174: 18530573 | E174: 239 | F174: 92978 | G174: 18623551 | H174: 5.71E-13 | I174: -0.367642 | J174: 1.00E-04 | K174: 4.80E-10 | L174: 2.04E-06
A175: chr18 | B175: SNORD58C | C175: 49489246 | D175: 49489308 | E175: 157 | F175: -663 | G175: 49488583 | H175: 9.91E-07 | I175: -0.295147 | J175: 1.00E-04 | K175: 0.000132665 | L175: 2.04E-06
A176: chr3 | B176: P2RY12 | C176: 151337381 | D176: 151384812 | E176: 106 | F176: 28583 | G176: 151413395 | H176: 1.74E-06 | I176: -0.281749 | J176: 1.00E-04 | K176: 0.00019862 | L176: 2.04E-06
A177: chr22 | B177: APOBEC3B-AS1 | C177: 38991560 | D177: 38998209 | E177: 274 | F177: 345707 | G177: 39343916 | H177: 1.36E-08 | I177: -0.359552 | J177: 1.00E-04 | K177: 6.41E-06 | L177: 2.03E-06
A178: chr6 | B178: CENPQ | C178: 49463379 | D178: 49493107 | E178: 314 | F178: -5544 | G178: 49457835 | H178: 1.96E-12 | I178: 0.387532 | J178: 1.00E-04 | K178: 3.38E-09 | L178: 2.01E-06
A179: chr9 | B179: CR848007.2 | C179: 42901239 | D179: 42920095 | E179: 151 | F179: -44779 | G179: 42856460 | H179: 3.44E-29 | I179: -0.533511 | J179: 1.00E-04 | K179: 6.21E-25 | L179: 2.01E-06
A180: chr11 | B180: FOXRED1 | C180: 126269056 | D180: 126278131 | E180: 173 | F180: 15665 | G180: 126293796 | H180: 8.61E-07 | I180: 0.438067 | J180: 0.00029997 | K180: 0.00015584 | L180: 2.00E-06
A181: chr22 | B181: COX5BP7 | C181: 39120294 | D181: 39120566 | E181: 286 | F181: 375846 | G181: 39496412 | H181: 6.65E-07 | I181: 0.328383 | J181: 1.00E-04 | K181: 0.000213489 | L181: 1.98E-06
A182: chr7 | B182: OR2A9P | C182: 144294481 | D182: 144300934 | E182: 229 | F182: -721801 | G182: 143572680 | H182: 4.44E-07 | I182: 0.497723 | J182: 0.00019998 | K182: 0.000137146 | L182: 1.98E-06
A183: chr6 | B183: GUSBP2 | C183: 26871485 | D183: 26956554 | E183: 270 | F183: 0 | G183: 26930299 | H183: 1.16E-06 | I183: -0.354849 | J183: 0.00049995 | K183: 0.000361715 | L183: 1.97E-06
A184: chr9 | B184: ANKRD20A7P | C184: 42852676 | D184: 42894751 | E184: 151 | F184: 0 | G184: 42856460 | H184: 1.40E-25 | I184: -0.50963 | J184: 1.00E-04 | K184: 1.30E-21 | L184: 1.97E-06
A185: chr7 | B185: RP11-577H5.5 | C185: 102637050 | D185: 102671641 | E185: 224 | F185: -162686 | G185: 102474364 | H185: 2.94E-07 | I185: 0.471309 | J185: 1.00E-04 | K185: 9.68E-05 | L185: 1.96E-06
A186: chr7 | B186: PILRB | C186: 100352177 | D186: 100367733 | E186: 354 | F186: 0 | G186: 100358243 | H186: 1.20E-11 | I186: 0.542547 | J186: 1.00E-04 | K186: 1.36E-08 | L186: 1.95E-06
A187: chr7 | B187: PILRA | C187: 100367531 | D187: 100400099 | E187: 353 | F187: -38632 | G187: 100328899 | H187: 1.01e-10 | I187: 0.517807 | J187: 1.00E-04 | K187: 8.98E-08 | L187: 1.94E-06
A188: chr15 | B188: ULK4P2 | C188: 30572739 | D188: 30600647 | E188: 153 | F188: 58341 | G188: 30658988 | H188: 6.32E-07 | I188: -0.374461 | J188: 0.00029997 | K188: 0.00010631 | L188: 1.93E-06
A189: chr17 | B189: RP11-259G18.3 | C189: 46259552 | D189: 46260606 | E189: 277 | F189: 6623 | G189: 46267229 | H189: 2.25e-32 | I189: 1.26518 | J189: 1.00E-04 | K189: 3.08e-27 | L189: 1.92E-06
A190: chr7 | B190: POLR2J3 | C190: 102537919 | D190: 102572656 | E190: 234 | F190: -40864 | G190: 102497055 | H190: 4.10E-07 | I190: 0.436422 | J190: 1.00E-04 | K190: 0.000133431 | L190: 1.92E-06
A191: chr12 | B191: RP11-834C11.4 | C191: 54126099 | D191: 54142493 | E191: 162 | F191: 39523 | G191: 54182016 | H191: 1.72E-06 | I191: 0.301387 | J191: 0.00019998 | K191: 0.000260912 | L191: 1.92E-06
A192: chr16 | B192: NPIPA1 | C192: 14922803 | D192: 14952060 | E192: 173 | F192: -43868 | G192: 14878935 | H192: 2.55E-07 | I192: -0.460861 | J192: 0.00019998 | K192: 4.60E-05 | L192: 1.92E-06
A193: chr15 | B193: DNM1P35 | C193: 75727671 | D193: 75738623 | E193: 140 | F193: 42254 | G193: 75780877 | H193: 8.95E-08 | I193: -0.335849 | J193: 0.00029997 | K193: 1.82E-05 | L193: 1.91E-06
A194: chr12 | B194: ADAM1B | C194: 111927019 | D194: 111929017 | E194: 178 | F194: 779409 | G194: 112708426 | H194: 4.54e-11 | I194: 0.491365 | J194: 1.00E-04 | K194: 3.09E-08 | L194: 1.91E-06
A195: chr16 | B195: RP11-57A19.4 | C195: 28659697 | D195: 28740781 | E195: 184 | F195: 89675 | G195: 28830456 | H195: 4.64E-07 | I195: 0.315517 | J195: 0.00019998 | K195: 8.17E-05 | L195: 1.90E-06
A196: chr2 | B196: ZNF514 | C196: 95147331 | D196: 95165413 | E196: 121 | F196: 964792 | G196: 96130205 | H196: 6.27E-07 | I196: 0.29077 | J196: 0.00019998 | K196: 9.31E-05 | L196: 1.89E-06
A197: chr17 | B197: KANSL1-AS1 | C197: 46193577 | D197: 46196723 | E197: 287 | F197: -606696 | G197: 45586881 | H197: 7.16E-21 | I197: 1.01419 | J197: 1.00E-04 | K197: 3.62E-17 | L197: 1.89E-06
A198: chr17 | B198: LRRC37A | C198: 46292734 | D198: 46337794 | E198: 284 | F198: 215475 | G198: 46553269 | H198: 6.91E-09 | I198: -0.348594 | J198: 1.00E-04 | K198: 2.16E-06 | L198: 1.88E-06
A199: chr16 | B199: SMG1P5 | C199: 30267554 | D199: 30335374 | E199: 179 | F199: 0 | G199: 30281179 | H199: 3.13E-12 | I199: -0.407794 | J199: 1.00E-04 | K199: 2.12E-09 | L199: 1.87E-06
A200: chr5 | B200: CTC-351M12.1 | C200: 69186360 | D200: 69189452 | E200: 97 | F200: -678725 | G200: 68507635 | H200: 9.73E-07 | I200: -0.283178 | J200: 0.00019998 | K200: 0.00012734 | L200: 1.87E-06
A201: chr7 | B201: RP11-514P8.8 | C201: 102483345 | D201: 102543764 | E201: 230 | F201: 0 | G201: 102496096 | H201: 6.48E-07 | I201: 0.448462 | J201: 0.00019998 | K201: 0.00020621 | L201: 1.87E-06
... 1006 more rows

Sheet Supplementary Table 13.
A1: Table S13. cis-eQTLs detected in the male-specific analysis. N=248. Significant eQTLs were selected based on an FDR-adjusted p-value threshold of 0.01.
A3: Chromosome | B3: Gene name | C3: Start position | D3: End position | E3: Total number of variants tested in cis | F3: The distance between the gene and the top variant | G3: Position of the top variants | H3: The nominal p-value of association between the top phenotype and the top variant in cis | I3: The corresponding regression slope | J3: The p-value of association adjusted for the number of variants and phenotypes tested in cis given by the direct method | K3: The p-value of association adjusted for the number of variants and phenotypes tested in cis given by the fitted beta distribution | L3: q-value, i.e. FDR adjusted p-value
A4: chr18 | B4: RP11-861E21.2 | C4: 12438891 | D4: 12448205 | E4: 412 | F4: 263907 | G4: 12712112 | H4: 8.62E-09 | I4: 0.394872 | J4: 1.00E-04 | K4: 6.45E-06 | L4: 4.98E-08
A5: chr10 | B5: ADARB2 | C5: 1177319 | D5: 1737476 | E5: 819 | F5: 0 | G5: 1282828 | H5: 2.54e-10 | I5: -0.507678 | J5: 1.00E-04 | K5: 5.23E-07 | L5: 5.44E-08
A6: chr8 | B6: RP11-661A12.4 | C6: 143542111 | D6: 143542400 | E6: 407 | F6: -12552 | G6: 143529559 | H6: 1.27e-30 | I6: -0.838403 | J6: 1.00E-04 | K6: 3.31E-25 | L6: 6.09E-08
A7: chr14 | B7: CH17-224D4.2 | C7: 106107973 | D7: 106108407 | E7: 500 | F7: 8349 | G7: 106116756 | H7: 1.52E-10 | I7: -0.404574 | J7: 1.00E-04 | K7: 2.33E-07 | L7: 6.26E-08
A8: chr10 | B8: RP11-295P9.2 | C8: 13591461 | D8: 13592323 | E8: 781 | F8: 60507 | G8: 13652830 | H8: 2.88E-09 | I8: -0.353387 | J8: 1.00E-04 | K8: 3.85E-06 | L8: 6.30E-08
A9: chr10 | B9: C1QL3 | C9: 16513744 | D9: 16522005 | E9: 584 | F9: 34705 | G9: 16556710 | H9: 5.82E-41 | I9: -0.975313 | J9: 1.00E-04 | K9: 5.43E-34 | L9: 6.81E-08
A10: chr8 | B10: RP11-661A12.5 | C10: 143541974 | D10: 143549729 | E10: 409 | F10: -12415 | G10: 143529559 | H10: 1.47E-18 | I10: -0.651104 | J10: 1.00E-04 | K10: 9.39E-15 | L10: 7.01E-08
A11: chr14 | B11: IGHV1-3 | C11: 106005096 | D11: 106005574 | E11: 505 | F11: 0 | G11: 106005239 | H11: 1.55E-11 | I11: -0.385221 | J11: 1.00E-04 | K11: 2.59E-08 | L11: 7.04E-08
A12: chr14 | B12: CH17-262H11.1 | C12: 106025146 | D12: 106025630 | E12: 501 | F12: -46524 | G12: 105978622 | H12: 5.75E-09 | I12: 0.382663 | J12: 1.00E-04 | K12: 4.78E-06 | L12: 7.30E-08
A13: chr10 | B13: KIAA1462 | C13: 30012801 | D13: 30115494 | E13: 734 | F13: -760236 | G13: 29252565 | H13: 3.95E-08 | I13: -0.396275 | J13: 1.00E-04 | K13: 3.67E-05 | L13: 7.31E-08
A14: chr19 | B14: DNAAF3 | C14: 55158662 | D14: 55166722 | E14: 1239 | F14: 0 | G14: 55166155 | H14: 9.38E-09 | I14: 0.457939 | J14: 1.00E-04 | K14: 1.23E-05 | L14: 7.46E-08
A15: chr8 | B15: RN7SKP175 | C15: 143542111 | D15: 143542398 | E15: 407 | F15: -12552 | G15: 143529559 | H15: 1.57e-30 | I15: -0.840133 | J15: 1.00E-04 | K15: 1.48E-25 | L15: 7.48E-08
A16: chr10 | B16: IDI2 | C16: 1018908 | D16: 1025859 | E16: 516 | F16: -2307 | G16: 1016601 | H16: 1.22E-11 | I16: 0.396179 | J16: 1.00E-04 | K16: 2.65E-08 | L16: 7.89E-08
A17: chr8 | B17: RP11-661A12.12 | C17: 143632072 | D17: 143633756 | E17: 408 | F17: -18743 | G17: 143613329 | H17: 2.02e-20 | I17: 0.559309 | J17: 1.00E-04 | K17: 1.31E-16 | L17: 8.11E-08
A18: chr20 | B18: SIRPB2 | C18: 1470742 | D18: 1491587 | E18: 707 | F18: -2825 | G18: 1467917 | H18: 1.56E-09 | I18: 0.293826 | J18: 1.00E-04 | K18: 1.98E-06 | L18: 8.72E-08
A19: chr10 | B19: RP11-383B4.4 | C19: 18531850 | D19: 18533336 | E19: 493 | F19: 287849 | G19: 18821185 | H19: 4.79E-11 | I19: 0.425358 | J19: 1.00E-04 | K19: 8.05E-08 | L19: 8.90E-08
A20: chr14 | B20: EMC9 | C20: 24138960 | D20: 24141588 | E20: 358 | F20: -20530 | G20: 24118430 | H20: 9.95E-09 | I20: -0.379607 | J20: 1.00E-04 | K20: 6.45E-06 | L20: 8.98E-08
A21: chr20 | B21: RP11-19D2.1 | C21: 7256581 | D21: 7258214 | E21: 626 | F21: -23753 | G21: 7232828 | H21: 2.00E-09 | I21: 0.770654 | J21: 1.00E-04 | K21: 2.53E-06 | L21: 9.08E-08
A22: chr20 | B22: SPTLC3 | C22: 13008980 | D22: 13169103 | E22: 584 | F22: -65243 | G22: 12943737 | H22: 3.34E-09 | I22: -0.450695 | J22: 0.00019998 | K22: 3.94E-06 | L22: 9.12E-08
A23: chr20 | B23: FLJ33581 | C23: 24199768 | D23: 24224588 | E23: 557 | F23: 0 | G23: 24219927 | H23: 7.38E-09 | I23: 0.491306 | J23: 1.00E-04 | K23: 8.66E-06 | L23: 9.17E-08
A24: chr10 | B24: SVILP1 | C24: 30655490 | D24: 30717266 | E24: 609 | F24: -891831 | G24: 29763659 | H24: 9.03E-13 | I24: 0.544321 | J24: 1.00E-04 | K24: 1.73E-09 | L24: 9.40E-08
A25: chr3 | B25: SCAANT1 | C25: 63911519 | D25: 63911772 | E25: 657 | F25: 86100 | G25: 63997872 | H25: 1.49E-11 | I25: -0.616132 | J25: 1.00E-04 | K25: 4.34E-08 | L25: 9.40E-08
A26: chr19 | B26: RPS28 | C26: 8321159 | D26: 8323340 | E26: 722 | F26: 10307 | G26: 8333647 | H26: 1.51E-08 | I26: -0.334111 | J26: 1.00E-04 | K26: 1.65E-05 | L26: 9.45E-08
A27: chr10 | B27: RP11-159H3.1 | C27: 121133091 | D27: 121133723 | E27: 506 | F27: 806994 | G27: 121940717 | H27: 6.06E-08 | I27: -0.346527 | J27: 1.00E-04 | K27: 4.29E-05 | L27: 9.52E-08
A28: chr14 | B28: RP11-468E2.5 | C28: 24139446 | D28: 24140444 | E28: 358 | F28: -21016 | G28: 24118430 | H28: 3.61E-08 | I28: -0.36699 | J28: 1.00E-04 | K28: 1.89E-05 | L28: 9.72E-08
A29: chr20 | B29: LINC01428 | C29: 7146468 | D29: 7254202 | E29: 645 | F29: 0 | G29: 7232828 | H29: 7.44E-08 | I29: 0.682508 | J29: 1.00E-04 | K29: 5.81E-05 | L29: 1.01E-07
A30: chr5 | B30: CTB-78F1.2 | C30: 167721364 | D30: 167729124 | E30: 687 | F30: -889670 | G30: 166831694 | H30: 3.54E-08 | I30: 0.461835 | J30: 1.00E-04 | K30: 3.89E-05 | L30: 1.02E-07
A31: chr8 | B31: XKR9 | C31: 70669366 | D31: 70790371 | E31: 417 | F31: 863716 | G31: 71654087 | H31: 2.18E-14 | I31: -0.517144 | J31: 1.00E-04 | K31: 6.48E-11 | L31: 1.02E-07
A32: chr16 | B32: MAFTRR | C32: 79715233 | D32: 79770563 | E32: 1094 | F32: 0 | G32: 79750512 | H32: 1.47e-12 | I32: 0.542477 | J32: 1.00E-04 | K32: 9.36E-09 | L32: 1.03E-07
A33: chr16 | B33: RP11-358L22.3 | C33: 78123244 | D33: 78124332 | E33: 1121 | F33: 57654 | G33: 78181986 | H33: 2.88E-08 | I33: -0.474271 | J33: 0.00019998 | K33: 5.38E-05 | L33: 1.08E-07
A34: chr8 | B34: CPSF1 | C34: 144393230 | D34: 144409349 | E34: 265 | F34: 0 | G34: 144399893 | H34: 1.01E-09 | I34: 0.412583 | J34: 1.00E-04 | K34: 5.23E-07 | L34: 1.09E-07
A35: chr19 | B35: ZNF749 | C35: 57435330 | D35: 57445485 | E35: 503 | F35: 451249 | G35: 57896734 | H35: 6.41E-20 | I35: -0.664027 | J35: 1.00E-04 | K35: 7.92E-16 | L35: 1.13E-07
A36: chr3 | B36: C3orf20 | C36: 14675100 | D36: 14773034 | E36: 549 | F36: 0 | G36: 14700046 | H36: 6.93E-31 | I36: -0.813383 | J36: 1.00E-04 | K36: 2.90E-25 | L36: 1.14E-07
A37: chr19 | B37: WDR18 | C37: 984272 | D37: 998438 | E37: 579 | F37: 0 | G37: 991063 | H37: 5.25E-09 | I37: 0.563329 | J37: 1.00E-04 | K37: 5.13E-06 | L37: 1.15E-07
A38: chr19 | B38: SIGLEC16 | C38: 49969674 | D38: 49975814 | E38: 573 | F38: -9204 | G38: 49960470 | H38: 2.61E-15 | I38: 0.762543 | J38: 1.00E-04 | K38: 1.13E-11 | L38: 1.16E-07
A39: chr16 | B39: LINC01229 | C39: 79676109 | D39: 79807922 | E39: 1129 | F39: 0 | G39: 79745487 | H39: 9.07E-10 | I39: -0.494141 | J39: 1.00E-04 | K39: 2.24E-06 | L39: 1.16E-07
A40: chr5 | B40: FBLL1 | C40: 168529117 | D40: 168530634 | E40: 692 | F40: -571563 | G40: 167957554 | H40: 6.89E-11 | I40: 0.47234 | J40: 1.00E-04 | K40: 1.11E-07 | L40: 1.20E-07
A41: chr19 | B41: LLNLR-470E3.1 | C41: 51639479 | D41: 51639931 | E41: 433 | F41: 487122 | G41: 52127053 | H41: 1.02E-07 | I41: -0.354463 | J41: 1.00E-04 | K41: 6.85E-05 | L41: 1.21E-07
A42: chr19 | B42: SIGLEC14 | C42: 51642554 | D42: 51646801 | E42: 433 | F42: 480252 | G42: 52127053 | H42: 5.55E-08 | I42: -0.338517 | J42: 0.00019998 | K42: 3.90E-05 | L42: 1.22E-07
A43: chr5 | B43: RP11-89G4.1 | C43: 132488383 | D43: 132488702 | E43: 573 | F43: -663897 | G43: 131824486 | H43: 2.40E-15 | I43: -0.584048 | J43: 1.00E-04 | K43: 1.43e-11 | L43: 1.24E-07
A44: chr8 | B44: CTD-3025N20.3 | C44: 65591851 | D44: 65592472 | E44: 301 | F44: 911091 | G44: 66503563 | H44: 2.81E-12 | I44: -0.514664 | J44: 1.00E-04 | K44: 5.27E-09 | L44: 1.24E-07
A45: chr5 | B45: AC008937.3 | C45: 56900042 | D45: 56910714 | E45: 515 | F45: -666501 | G45: 56233541 | H45: 2.19e-13 | I45: 0.496582 | J45: 1.00E-04 | K45: 9.88E-10 | L45: 1.24E-07
A46: chr1 | B46: ARHGEF19-AS1 | C46: 16197855 | D46: 16198357 | E46: 952 | F46: 8978 | G46: 16207335 | H46: 1.05E-09 | I46: -0.421221 | J46: 1.00E-04 | K46: 2.39E-06 | L46: 1.25E-07
A47: chr3 | B47: ACTR8 | C47: 53867067 | D47: 53882202 | E47: 507 | F47: 39021 | G47: 53921223 | H47: 1.56E-08 | I47: 0.423203 | J47: 1.00E-04 | K47: 1.43E-05 | L47: 1.32E-07
A48: chr13 | B48: SMIM2-AS1 | C48: 44110452 | D48: 44240517 | E48: 600 | F48: 470044 | G48: 44710561 | H48: 4.10E-08 | I48: 0.381259 | J48: 1.00E-04 | K48: 3.66E-05 | L48: 1.33E-07
A49: chr13 | B49: SMIM2 | C49: 44143544 | D49: 44161257 | E49: 585 | F49: 549304 | G49: 44710561 | H49: 9.49E-10 | I49: 0.429255 | J49: 1.00E-04 | K49: 1.30E-06 | L49: 1.34E-07
A50: chr3 | B50: FLJ42393 | C50: 188178544 | D50: 188180812 | E50: 543 | F50: -275612 | G50: 187902932 | H50: 5.55E-15 | I50: 0.608689 | J50: 1.00E-04 | K50: 1.94E-11 | L50: 1.37E-07
A51: chr19 | B51: CTD-2553L13.4 | C51: 34638123 | D51: 34640689 | E51: 389 | F51: 465167 | G51: 35105856 | H51: 9.76E-14 | I51: 0.778882 | J51: 1.00E-04 | K51: 2.21E-10 | L51: 1.38E-07
A52: chr19 | B52: LLNLR-249E10.1 | C52: 15760376 | D52: 15770828 | E52: 541 | F52: 36817 | G52: 15807645 | H52: 1.04E-08 | I52: -0.544509 | J52: 1.00E-04 | K52: 8.10E-06 | L52: 1.43E-07
A53: chr13 | B53: RP1-257C22.2 | C53: 31960326 | D53: 31961946 | E53: 580 | F53: 563592 | G53: 32525538 | H53: 5.00E-09 | I53: -0.563942 | J53: 1.00E-04 | K53: 5.00E-06 | L53: 1.43E-07
A54: chr15 | B54: ST20-AS1 | C54: 79922772 | D54: 79926993 | E54: 621 | F54: 281171 | G54: 80208164 | H54: 8.46E-08 | I54: 0.422918 | J54: 0.00029997 | K54: 7.73E-05 | L54: 1.44E-07
A55: chr19 | B55: CTD-2619J13.19 | C55: 58440449 | D55: 58445849 | E55: 372 | F55: 514632 | G55: 58960481 | H55: 2.13E-10 | I55: -0.492234 | J55: 1.00E-04 | K55: 2.43E-07 | L55: 1.46E-07
A56: chr2 | B56: TTC32 | C56: 19896644 | D56: 19901986 | E56: 637 | F56: 253559 | G56: 20155545 | H56: 4.31E-22 | I56: -0.823576 | J56: 1.00E-04 | K56: 1.85E-17 | L56: 1.46E-07
A57: chr3 | B57: MIR570 | C57: 195699402 | D57: 195699497 | E57: 529 | F57: -15397 | G57: 195684005 | H57: 5.16E-08 | I57: 0.563901 | J57: 1.00E-04 | K57: 4.59E-05 | L57: 1.46E-07
A58: chr2 | B58: RNASEH1-AS1 | C58: 3558493 | D58: 3561745 | E58: 601 | F58: 47011 | G58: 3608756 | H58: 1.10E-17 | I58: -0.570033 | J58: 1.00E-04 | K58: 8.91E-14 | L58: 1.50E-07
A59: chr19 | B59: SIGLEC12 | C59: 51491358 | D59: 51501789 | E59: 421 | F59: 500940 | G59: 52002729 | H59: 2.33e-21 | I59: 0.577223 | J59: 1.00E-04 | K59: 1.49E-17 | L59: 1.50E-07
A60: chr3 | B60: RP11-475O23.2 | C60: 58572745 | D60: 58574319 | E60: 412 | F60: -12702 | G60: 58560043 | H60: 8.40E-08 | I60: 0.421454 | J60: 1.00E-04 | K60: 5.75E-05 | L60: 1.52E-07
A61: chr13 | B61: SMIM2-IT1 | C61: 44146471 | D61: 44158222 | E61: 585 | F61: 552339 | G61: 44710561 | H61: 5.06E-09 | I61: 0.413512 | J61: 1.00E-04 | K61: 4.80E-06 | L61: 1.55E-07
A62: chr1 | B62: ARHGEF19 | C62: 16197855 | D62: 16212609 | E62: 952 | F62: 0 | G62: 16207335 | H62: 1.62E-09 | I62: -0.444553 | J62: 1.00E-04 | K62: 2.59E-06 | L62: 1.57E-07
A63: chr16 | B63: RP11-483P21.6 | C63: 83929797 | D63: 83931223 | E63: 1014 | F63: 48806 | G63: 83980029 | H63: 4.79E-12 | I63: -0.547869 | J63: 1.00E-04 | K63: 1.17E-08 | L63: 1.59E-07
A64: chr3 | B64: RP11-141C7.2 | C64: 195701619 | D64: 195711643 | E64: 537 | F64: -81431 | G64: 195620188 | H64: 1.05E-07 | I64: 0.514814 | J64: 0.00019998 | K64: 7.95E-05 | L64: 1.59E-07
A65: chr19 | B65: SH2D3A | C65: 6752161 | D65: 6767588 | E65: 533 | F65: 0 | G65: 6752423 | H65: 9.86E-08 | I65: -0.407569 | J65: 1.00E-04 | K65: 5.36E-05 | L65: 1.62E-07
A66: chr3 | B66: RP11-64D22.5 | C66: 151797048 | D66: 151808249 | E66: 413 | F66: -316716 | G66: 151480332 | H66: 2.99E-19 | I66: 0.82502 | J66: 1.00E-04 | K66: 3.73E-15 | L66: 1.64E-07
A67: chr13 | B67: LINC01068 | C67: 79566728 | D67: 79571436 | E67: 474 | F67: 522389 | G67: 80093825 | H67: 6.59e-10 | I67: -0.533025 | J67: 1.00E-04 | K67: 7.96E-07 | L67: 1.65E-07
A68: chr16 | B68: RP11-463O9.9 | C68: 86520384 | D68: 86523897 | E68: 852 | F68: 33687 | G68: 86557584 | H68: 5.59E-08 | I68: 0.429545 | J68: 1.00E-04 | K68: 6.44E-05 | L68: 1.66E-07
A69: chr5 | B69: SETD9 | C69: 56909261 | D69: 56925532 | E69: 516 | F69: -709875 | G69: 56199386 | H69: 1.59E-09 | I69: 0.379597 | J69: 1.00E-04 | K69: 1.56E-06 | L69: 1.66E-07
A70: chr15 | B70: PRKXP1 | C70: 100553530 | D70: 100558954 | E70: 590 | F70: 543558 | G70: 101102512 | H70: 7.00E-11 | I70: -0.574331 | J70: 1.00E-04 | K70: 1.06E-07 | L70: 1.67E-07
A71: chr15 | B71: RP11-209E8.1 | C71: 53116366 | D71: 53129698 | E71: 538 | F71: 294913 | G71: 53424611 | H71: 6.75E-18 | I71: 0.58159 | J71: 1.00E-04 | K71: 9.59e-14 | L71: 1.69E-07
A72: chr14 | B72: TC2N | C72: 91779752 | D72: 91867536 | E72: 443 | F72: 452243 | G72: 92319779 | H72: 3.99E-08 | I72: 0.357024 | J72: 1.00E-04 | K72: 3.17E-05 | L72: 1.69E-07
A73: chr19 | B73: MAG | C73: 35292126 | D73: 35313804 | E73: 353 | F73: 486858 | G73: 35800662 | H73: 9.28e-10 | I73: -0.647832 | J73: 1.00E-04 | K73: 6.58E-07 | L73: 1.73E-07
A74: chr5 | B74: CTC-455F18.1 | C74: 170747048 | D74: 170788650 | E74: 481 | F74: -534921 | G74: 170212127 | H74: 1.05E-08 | I74: -0.546957 | J74: 1.00E-04 | K74: 7.69E-06 | L74: 1.74E-07
A75: chr5 | B75: RP11-43F13.1 | C75: 1598921 | D75: 1634005 | E75: 533 | F75: 3456 | G75: 1637461 | H75: 4.97e-12 | I75: 0.631072 | J75: 1.00E-04 | K75: 5.69E-09 | L75: 1.74E-07
A76: chr13 | B76: RBM26-AS1 | C76: 79406310 | D76: 79424328 | E76: 477 | F76: 598348 | G76: 80022676 | H76: 1.09E-08 | I76: -0.597897 | J76: 1.00E-04 | K76: 9.00E-06 | L76: 1.74E-07
A77: chr3 | B77: ANAPC13 | C77: 134477707 | D77: 134486716 | E77: 525 | F77: -266058 | G77: 134211649 | H77: 8.39E-13 | I77: -0.557142 | J77: 1.00E-04 | K77: 1.50E-09 | L77: 1.74E-07
A78: chr2 | B78: LINC01320 | C78: 34677556 | D78: 34738231 | E78: 564 | F78: 207694 | G78: 34945925 | H78: 3.77E-08 | I78: -0.507857 | J78: 1.00E-04 | K78: 3.11E-05 | L78: 1.75E-07
A79: chr19 | B79: U2AF1L4 | C79: 35742465 | D79: 35745445 | E79: 401 | F79: 13913 | G79: 35759358 | H79: 7.26E-08 | I79: -0.415958 | J79: 1.00E-04 | K79: 3.82E-05 | L79: 1.76E-07
A80: chr14 | B80: RP11-298I3.6 | C80: 23023084 | D80: 23024217 | E80: 554 | F80: 465571 | G80: 23489788 | H80: 7.34E-09 | I80: -0.393102 | J80: 1.00E-04 | K80: 6.19E-06 | L80: 1.77E-07
A81: chr3 | B81: KRT18P34 | C81: 157162664 | D81: 157163932 | E81: 415 | F81: -153751 | G81: 157008913 | H81: 4.43E-08 | I81: 0.399658 | J81: 1.00E-04 | K81: 2.86E-05 | L81: 1.78E-07
A82: chr14 | B82: CATSPERB | C82: 91580697 | D82: 91780707 | E82: 465 | F82: 539072 | G82: 92319779 | H82: 3.29E-08 | I82: 0.363365 | J82: 1.00E-04 | K82: 2.53E-05 | L82: 1.78E-07
A83: chr3 | B83: EFHB | C83: 19879473 | D83: 19947025 | E83: 375 | F83: 45112 | G83: 19992137 | H83: 1.34e-11 | I83: -0.697065 | J83: 1.00E-04 | K83: 2.17E-08 | L83: 1.78E-07
A84: chr14 | B84: ABHD12B | C84: 50872161 | D84: 50904970 | E84: 424 | F84: 503788 | G84: 51408758 | H84: 6.51E-08 | I84: 0.404066 | J84: 1.00E-04 | K84: 4.57E-05 | L84: 1.84E-07
A85: chr5 | B85: CTD-2203K17.1 | C85: 33424026 | D85: 33440619 | E85: 447 | F85: 20736 | G85: 33461355 | H85: 1.02e-20 | I85: 0.816494 | J85: 1.00E-04 | K85: 1.05E-16 | L85: 1.86E-07
A86: chr15 | B86: RP11-526I2.5 | C86: 100547766 | D86: 100550153 | E86: 590 | F86: 552359 | G86: 101102512 | H86: 1.22E-08 | I86: -0.550924 | J86: 1.00E-04 | K86: 1.00E-05 | L86: 1.88E-07
A87: chr13 | B87: PCCA-AS1 | C87: 100464441 | D87: 100481157 | E87: 462 | F87: 656504 | G87: 101137661 | H87: 4.13E-12 | I87: 0.676398 | J87: 1.00E-04 | K87: 7.36E-09 | L87: 1.88E-07
A88: chr14 | B88: LINC00216 | C88: 58288034 | D88: 58289158 | E88: 407 | F88: 473039 | G88: 58762197 | H88: 2.12E-09 | I88: -0.42972 | J88: 1.00E-04 | K88: 2.19E-06 | L88: 1.88E-07
A89: chr15 | B89: RP11-775C24.5 | C89: 80999594 | D89: 80999981 | E89: 509 | F89: 279155 | G89: 81279136 | H89: 2.12E-11 | I89: 0.610117 | J89: 1.00E-04 | K89: 3.44E-08 | L89: 1.88E-07
A90: chr19 | B90: TMEM147 | C90: 35545596 | D90: 35547526 | E90: 324 | F90: 490864 | G90: 36038390 | H90: 6.16E-12 | I90: 0.489537 | J90: 1.00E-04 | K90: 6.20E-09 | L90: 1.89E-07
A91: chr19 | B91: TMEM147-AS1 | C91: 35540739 | D91: 35546029 | E91: 406 | F91: 8704 | G91: 35554733 | H91: 1.69E-07 | I91: 0.397602 | J91: 0.00029997 | K91: 7.68E-05 | L91: 1.90E-07
A92: chr2 | B92: C2orf54 | C92: 240886049 | D92: 240896889 | E92: 531 | F92: 937817 | G92: 241834706 | H92: 4.39E-21 | I92: 0.656336 | J92: 1.00E-04 | K92: 3.41E-17 | L92: 1.93E-07
A93: chr1 | B93: NTPCR | C93: 232950606 | D93: 232983882 | E93: 689 | F93: 86921 | G93: 233070803 | H93: 1.56E-13 | I93: 0.666279 | J93: 1.00E-04 | K93: 5.51E-10 | L93: 1.95E-07
A94: chr5 | B94: CTD-2260A17.1 | C94: 96784778 | D94: 96785999 | E94: 360 | F94: -658470 | G94: 96126308 | H94: 5.21E-10 | I94: -0.32582 | J94: 1.00E-04 | K94: 5.75E-07 | L94: 1.96E-07
A95: chr14 | B95: AMN | C95: 102922657 | D95: 102933596 | E95: 184 | F95: 0 | G95: 102922666 | H95: 1.40E-08 | I95: 0.4872 | J95: 1.00E-04 | K95: 4.32E-06 | L95: 1.98E-07
A96: chr3 | B96: RP11-555M1.3 | C96: 157163453 | D96: 157169133 | E96: 416 | F96: -272351 | G96: 156891102 | H96: 3.72E-22 | I96: -0.702856 | J96: 1.00E-04 | K96: 1.01e-17 | L96: 1.99E-07
A97: chr5 | B97: ERAP1 | C97: 96760811 | D97: 96808100 | E97: 371 | F97: -634503 | G97: 96126308 | H97: 1.02E-08 | I97: -0.385619 | J97: 1.00E-04 | K97: 7.38E-06 | L97: 2.00E-07
A98: chr1 | B98: RP5-827C21.4 | C98: 234372808 | D98: 234373593 | E98: 610 | F98: 153275 | G98: 234526868 | H98: 1.83E-09 | I98: -0.33394 | J98: 1.00E-04 | K98: 2.54E-06 | L98: 2.00E-07
A99: chr15 | B99: C15orf38-AP3S2 | C99: 89834309 | D99: 89912882 | E99: 463 | F99: 515873 | G99: 90428755 | H99: 7.49e-10 | I99: 0.494806 | J99: 1.00E-04 | K99: 8.39E-07 | L99: 2.01E-07
A100: chr5 | B100: CTD-2260A17.2 | C100: 96814029 | D100: 96935809 | E100: 399 | F100: -568511 | G100: 96245518 | H100: 1.35e-46 | I100: -0.936088 | J100: 1.00E-04 | K100: 4.06E-39 | L100: 2.01E-07
A101: chr3 | B101: AADACP1 | C101: 151770429 | D101: 151784894 | E101: 413 | F101: -290097 | G101: 151480332 | H101: 2.97e-18 | I101: 0.776046 | J101: 1.00E-04 | K101: 1.47e-14 | L101: 2.02E-07
A102: chr15 | B102: DISP2 | C102: 40358236 | D102: 40378639 | E102: 418 | F102: 266459 | G102: 40645098 | H102: 4.07E-11 | I102: -0.797505 | J102: 1.00E-04 | K102: 7.40E-08 | L102: 2.03E-07
A103: chr2 | B103: RP11-562I5.2 | C103: 231497091 | D103: 231507256 | E103: 410 | F103: 874042 | G103: 232381298 | H103: 1.45E-07 | I103: -0.382383 | J103: 1.00E-04 | K103: 8.99E-05 | L103: 2.04E-07
A104: chr2 | B104: C2orf74 | C104: 61145069 | D104: 61164829 | E104: 392 | F104: 211634 | G104: 61376463 | H104: 5.25E-27 | I104: -0.763567 | J104: 1.00E-04 | K104: 1.28E-21 | L104: 2.06E-07
A105: chr2 | B105: RP11-342K6.1 | C105: 75660463 | D105: 75662208 | E105: 521 | F105: 220647 | G105: 75882855 | H105: 4.09E-09 | I105: 0.484068 | J105: 1.00E-04 | K105: 3.49E-06 | L105: 2.06E-07
A106: chr5 | B106: RP11-1277A3.1 | C106: 177611254 | D106: 177619754 | E106: 336 | F106: -552488 | G106: 177058766 | H106: 7.47E-08 | I106: 0.417209 | J106: 1.00E-04 | K106: 4.08E-05 | L106: 2.06E-07
A107: chr15 | B107: AP3S2 | C107: 89830600 | D107: 89894638 | E107: 455 | F107: 534117 | G107: 90428755 | H107: 5.29E-15 | I107: 0.673038 | J107: 1.00E-04 | K107: 1.96E-11 | L107: 2.08E-07
A108: chr3 | B108: RP11-77P16.4 | C108: 130112551 | D108: 130120579 | E108: 315 | F108: -284473 | G108: 129828078 | H108: 1.08E-08 | I108: 0.621261 | J108: 1.00E-04 | K108: 7.38E-06 | L108: 2.10E-07
A109: chr13 | B109: LINC00539 | C109: 21303516 | D109: 21348721 | E109: 389 | F109: 559803 | G109: 21908524 | H109: 3.69E-20 | I109: 0.710339 | J109: 1.00E-04 | K109: 4.65E-16 | L109: 2.10E-07
A110: chr2 | B110: SNORD89 | C110: 101272937 | D110: 101273049 | E110: 486 | F110: 616257 | G110: 101889306 | H110: 3.90E-16 | I110: -0.572893 | J110: 1.00E-04 | K110: 2.32E-12 | L110: 2.11E-07
A111: chr19 | B111: LINC01595 | C111: 47863484 | D111: 47865341 | E111: 385 | F111: 20765 | G111: 47886106 | H111: 7.02E-12 | I111: 0.772668 | J111: 1.00E-04 | K111: 6.91E-09 | L111: 2.12E-07
A112: chr19 | B112: RP11-678G14.2 | C112: 21554641 | D112: 21569237 | E112: 309 | F112: 171695 | G112: 21740932 | H112: 2.33E-16 | I112: 0.643657 | J112: 1.00E-04 | K112: 1.11E-12 | L112: 2.12E-07
A113: chr1 | B113: RP11-345P4.6 | C113: 1671991 | D113: 1674397 | E113: 597 | F113: 1850 | G113: 1676247 | H113: 7.86E-09 | I113: -0.482233 | J113: 1.00E-04 | K113: 9.06E-06 | L113: 2.15E-07
A114: chr2 | B114: GPR1 | C114: 206175317 | D114: 206218047 | E114: 444 | F114: 612023 | G114: 206830070 | H114: 9.46E-08 | I114: -0.406019 | J114: 0.00019998 | K114: 5.82E-05 | L114: 2.18E-07
A115: chr1 | B115: COA6 | C115: 234373457 | D115: 234384049 | E115: 611 | F115: 145521 | G115: 234529570 | H115: 9.37E-08 | I115: -0.279829 | J115: 0.00019998 | K115: 7.69E-05 | L115: 2.19E-07
A116: chr2 | B116: RBM44 | C116: 237798390 | D116: 237842808 | E116: 480 | F116: 845467 | G116: 238688275 | H116: 2.01E-07 | I116: -0.42109 | J116: 0.00019998 | K116: 0.000112676 | L116: 2.20E-07
A117: chr21 | B117: PTTG1IP | C117: 44849586 | D117: 44873903 | E117: 444 | F117: 0 | G117: 44851537 | H117: 5.35E-11 | I117: -0.458902 | J117: 1.00E-04 | K117: 6.83E-08 | L117: 2.23E-07
A118: chr2 | B118: DDX11L2 | C118: 113599037 | D118: 113601261 | E118: 398 | F118: 846956 | G118: 114448217 | H118: 1.99E-12 | I118: 0.627872 | J118: 1.00E-04 | K118: 4.89E-09 | L118: 2.23E-07
A119: chr2 | B119: LINC01291 | C119: 74918149 | D119: 74938418 | E119: 487 | F119: 251606 | G119: 75190024 | H119: 3.82E-44 | I119: -0.978451 | J119: 1.00E-04 | K119: 5.57E-38 | L119: 2.24E-07
A120: chr15 | B120: TTLL13P | C120: 90249531 | D120: 90265482 | E120: 465 | F120: 555239 | G120: 90820721 | H120: 5.37E-10 | I120: 0.473539 | J120: 1.00E-04 | K120: 5.52E-07 | L120: 2.24E-07
A121: chr2 | B121: RP13-539J13.1 | C121: 739589 | D121: 740164 | E121: 429 | F121: 23247 | G121: 763411 | H121: 4.37E-09 | I121: -0.547768 | J121: 1.00E-04 | K121: 3.64E-06 | L121: 2.27E-07
A122: chr1 | B122: DUTP6 | C122: 166868749 | D122: 166869209 | E122: 615 | F122: -43903 | G122: 166824846 | H122: 4.16e-12 | I122: -0.488789 | J122: 1.00E-04 | K122: 9.76E-09 | L122: 2.27E-07
A123: chr2 | B123: AC104135.2 | C123: 74919556 | D123: 74924846 | E123: 485 | F123: 293485 | G123: 75218331 | H123: 4.25E-29 | I123: -0.854065 | J123: 1.00E-04 | K123: 2.28E-24 | L123: 2.28E-07
A124: chr2 | B124: TMEM177 | C124: 119679168 | D124: 119686507 | E124: 447 | F124: 660340 | G124: 120346847 | H124: 1.39E-07 | I124: -0.533786 | J124: 1.00E-04 | K124: 7.82E-05 | L124: 2.28E-07
A125: chr2 | B125: LINC01293 | C125: 74940259 | D125: 74942670 | E125: 483 | F125: 296955 | G125: 75239625 | H125: 1.82E-09 | I125: -0.505401 | J125: 1.00E-04 | K125: 1.51E-06 | L125: 2.29E-07
A126: chr2 | B126: ABCA12 | C126: 214931543 | D126: 215138428 | E126: 395 | F126: 506707 | G126: 215645135 | H126: 1.49E-07 | I126: -0.457837 | J126: 1.00E-04 | K126: 8.41E-05 | L126: 2.30E-07
A127: chr19 | B127: SLC25A41 | C127: 6426038 | D127: 6433779 | E127: 363 | F127: 8031 | G127: 6441810 | H127: 8.32E-09 | I127: 0.455483 | J127: 1.00E-04 | K127: 3.78E-06 | L127: 2.32E-07
A128: chr2 | B128: FAM228A | C128: 24175070 | D128: 24200849 | E128: 396 | F128: 213153 | G128: 24414002 | H128: 1.59E-10 | I128: 0.56608 | J128: 1.00E-04 | K128: 1.92E-07 | L128: 2.34E-07
A129: chr14 | B129: RP11-80A15.1 | C129: 24501595 | D129: 24508688 | E129: 460 | F129: 434913 | G129: 24943601 | H129: 8.13E-08 | I129: -0.417612 | J129: 1.00E-04 | K129: 4.33E-05 | L129: 2.34E-07
A130: chr1 | B130: WNT2B | C130: 112466542 | D130: 112530165 | E130: 565 | F130: 532960 | G130: 113063125 | H130: 1.52E-09 | I130: 0.435169 | J130: 1.00E-04 | K130: 1.81E-06 | L130: 2.36E-07
A131: chr5 | B131: ERAP2 | C131: 96875940 | D131: 96919716 | E131: 371 | F131: -630422 | G131: 96245518 | H131: 1.25e-49 | I131: -0.958145 | J131: 1.00E-04 | K131: 4.03E-42 | L131: 2.40E-07
A132: chr5 | B132: RP11-1277A3.2 | C132: 177619060 | D132: 177672209 | E132: 367 | F132: -560294 | G132: 177058766 | H132: 1.36E-09 | I132: 0.471688 | J132: 1.00E-04 | K132: 8.68E-07 | L132: 2.42E-07
A133: chr1 | B133: SLC44A3 | C133: 94820343 | D133: 94895246 | E133: 536 | F133: 392441 | G133: 95287687 | H133: 1.71E-07 | I133: 0.386925 | J133: 1.00E-04 | K133: 0.000119786 | L133: 2.44E-07
A134: chr16 | B134: RP11-212I21.2 | C134: 55426798 | D134: 55462297 | E134: 613 | F134: 17390 | G134: 55479687 | H134: 1.44e-23 | I134: 0.786159 | J134: 1.00E-04 | K134: 3.25e-19 | L134: 2.44E-07
A135: chr1 | B135: EFCAB2 | C135: 244969706 | D135: 245127164 | E135: 575 | F135: 32658 | G135: 245159822 | H135: 7.77e-14 | I135: 0.496804 | J135: 1.00E-04 | K135: 2.15E-10 | L135: 2.45E-07
A136: chr15 | B136: RP11-64K12.4 | C136: 40368926 | D136: 40369640 | E136: 409 | F136: 275458 | G136: 40645098 | H136: 8.97E-11 | I136: -0.735748 | J136: 1.00E-04 | K136: 1.05E-07 | L136: 2.51E-07
A137: chr2 | B137: PAX8-AS1 | C137: 113211523 | D137: 113276581 | E137: 394 | F137: 712686 | G137: 113989267 | H137: 3.16E-13 | I137: -0.584119 | J137: 1.00E-04 | K137: 7.49e-10 | L137: 2.51E-07
A138: chr2 | B138: RP11-378A13.1 | C138: 218255320 | D138: 218257366 | E138: 466 | F138: 913825 | G138: 219171191 | H138: 6.36E-09 | I138: 0.415367 | J138: 1.00E-04 | K138: 4.21E-06 | L138: 2.52E-07
A139: chr19 | B139: CARD8-AS1 | C139: 48255676 | D139: 48258199 | E139: 274 | F139: 501779 | G139: 48759978 | H139: 1.04e-12 | I139: 0.556702 | J139: 1.00E-04 | K139: 8.14E-10 | L139: 2.56E-07
A140: chr1 | B140: ST7L | C140: 112523519 | D140: 112620825 | E140: 572 | F140: 438395 | G140: 113059220 | H140: 1.84E-12 | I140: 0.484886 | J140: 1.00E-04 | K140: 3.65E-09 | L140: 2.60E-07
A141: chr19 | B141: MRI1 | C141: 13764533 | D141: 13774282 | E141: 296 | F141: -5194 | G141: 13759339 | H141: 1.53E-09 | I141: -0.448705 | J141: 1.00E-04 | K141: 7.52E-07 | L141: 2.60E-07
A142: chr2 | B142: RP11-341N2.1 | C142: 242087352 | D142: 242088457 | E142: 357 | F142: 891071 | G142: 242979528 | H142: 4.62E-08 | I142: 0.39044 | J142: 1.00E-04 | K142: 2.57E-05 | L142: 2.60E-07
A143: chr2 | B143: RP11-493E12.3 | C143: 61115788 | D143: 61164825 | E143: 400 | F143: 211638 | G143: 61376463 | H143: 4.71E-14 | I143: -0.518585 | J143: 1.00E-04 | K143: 1.20E-10 | L143: 2.62E-07
A144: chr21 | B144: AP001505.10 | C144: 44978833 | D144: 44979274 | E144: 454 | F144: -2089 | G144: 44976744 | H144: 7.99E-10 | I144: 0.47046 | J144: 1.00E-04 | K144: 6.00E-07 | L144: 2.62E-07
A145: chr3 | B145: LINC00960 | C145: 75672392 | D145: 75679303 | E145: 280 | F145: 47622 | G145: 75726925 | H145: 8.89E-14 | I145: -0.611469 | J145: 1.00E-04 | K145: 1.89E-10 | L145: 2.63E-07
A146: chr1 | B146: DDX59 | C146: 200623897 | D146: 200669969 | E146: 560 | F146: 0 | G146: 200645938 | H146: 1.16E-07 | I146: 0.298119 | J146: 1.00E-04 | K146: 7.72E-05 | L146: 2.68E-07
A147: chr16 | B147: RP11-278A23.2 | C147: 87739772 | D147: 87747706 | E147: 497 | F147: 1928 | G147: 87749634 | H147: 2.37e-13 | I147: 0.569112 | J147: 1.00E-04 | K147: 6.08E-10 | L147: 2.68E-07
A148: chr1 | B148: UBE2U | C148: 64203628 | D148: 64267368 | E148: 536 | F148: 387422 | G148: 64654790 | H148: 2.05e-11 | I148: -0.521909 | J148: 1.00E-04 | K148: 3.41E-08 | L148: 2.71E-07
A149: chr19 | B149: CTB-5E10.3 | C149: 13772119 | D149: 13774118 | E149: 291 | F149: -12780 | G149: 13759339 | H149: 8.08E-09 | I149: -0.443523 | J149: 1.00E-04 | K149: 3.29E-06 | L149: 2.75E-07
A150: chr16 | B150: RP11-413H22.3 | C150: 56465643 | D150: 56466162 | E150: 488 | F150: 100942 | G150: 56567104 | H150: 2.29E-09 | I150: -0.653512 | J150: 1.00E-04 | K150: 2.30E-06 | L150: 2.76E-07
A151: chr2 | B151: AC068282.3 | C151: 127389131 | D151: 127400580 | E151: 393 | F151: 681652 | G151: 128082232 | H151: 2.51E-18 | I151: 0.748485 | J151: 1.00E-04 | K151: 1.53E-14 | L151: 2.78E-07
A152: chr2 | B152: PAX8 | C152: 113215998 | D152: 113278950 | E152: 394 | F152: 710317 | G152: 113989267 | H152: 3.39E-13 | I152: -0.58428 | J152: 1.00E-04 | K152: 6.49E-10 | L152: 2.83E-07
A153: chr21 | B153: YBEY | C153: 46286338 | D153: 46297751 | E153: 369 | F153: 0 | G153: 46291315 | H153: 5.48E-09 | I153: -0.462766 | J153: 1.00E-04 | K153: 3.80E-06 | L153: 2.83E-07
A154: chr2 | B154: RP11-301O19.1 | C154: 86195591 | D154: 86196049 | E154: 359 | F154: 215226 | G154: 86411275 | H154: 5.96E-17 | I154: -0.619025 | J154: 1.00E-04 | K154: 3.38E-13 | L154: 2.84E-07
A155: chr6 | B155: HLA-DRB5 | C155: 32517344 | D155: 32530287 | E155: 1180 | F155: 0 | G155: 32519491 | H155: 3.23E-10 | I155: -0.356602 | J155: 1.00E-04 | K155: 1.33E-06 | L155: 2.85E-07
A156: chr1 | B156: RP11-357P18.2 | C156: 207372560 | D156: 207373252 | E156: 459 | F156: 179516 | G156: 207552768 | H156: 8.09e-11 | I156: 0.48108 | J156: 1.00E-04 | K156: 1.25E-07 | L156: 2.87E-07
A157: chr2 | B157: HIBCH | C157: 190189736 | D157: 190344193 | E157: 263 | F157: 833274 | G157: 191177467 | H157: 1.81E-07 | I157: -0.366309 | J157: 1.00E-04 | K157: 8.09E-05 | L157: 2.92E-07
A158: chr1 | B158: TEX35 | C158: 178513078 | D158: 178548602 | E158: 426 | F158: 0 | G158: 178532188 | H158: 2.58E-14 | I158: -0.495946 | J158: 1.00E-04 | K158: 1.17E-10 | L158: 2.93E-07
A159: chr9 | B159: MAN1B1-AS1 | C159: 137084947 | D159: 137086817 | E159: 507 | F159: -5579 | G159: 137079368 | H159: 3.10E-08 | I159: 0.369376 | J159: 1.00E-04 | K159: 2.35E-05 | L159: 2.93E-07
A160: chr21 | B160: PWP2 | C160: 44107291 | D160: 44131181 | E160: 385 | F160: -17522 | G160: 44089769 | H160: 3.29e-10 | I160: 0.515227 | J160: 1.00E-04 | K160: 2.51E-07 | L160: 2.93E-07
A161: chr1 | B161: SLC2A1-AS1 | C161: 42959050 | D161: 42983358 | E161: 450 | F161: 430295 | G161: 43413653 | H161: 2.43E-08 | I161: 0.442829 | J161: 1.00E-04 | K161: 1.84E-05 | L161: 3.01E-07
A162: chr4 | B162: RP11-293A21.1 | C162: 26859807 | D162: 26860599 | E162: 461 | F162: 0 | G162: 26860413 | H162: 3.12e-12 | I162: -0.49644 | J162: 1.00E-04 | K162: 7.14E-09 | L162: 3.03E-07
A163: chr5 | B163: GTF2H2 | C163: 71032671 | D163: 71067689 | E163: 317 | F163: -352139 | G163: 70680532 | H163: 1.51E-09 | I163: -0.424313 | J163: 1.00E-04 | K163: 8.37E-07 | L163: 3.05E-07
A164: chr15 | B164: CIB2 | C164: 78104607 | D164: 78131544 | E164: 340 | F164: 287932 | G164: 78419476 | H164: 7.70E-12 | I164: -0.58507 | J164: 1.00E-04 | K164: 9.48E-09 | L164: 3.06E-07
A165: chr1 | B165: GBP3 | C165: 89006667 | D165: 89022894 | E165: 406 | F165: 452241 | G165: 89475135 | H165: 3.08E-22 | I165: -0.729563 | J165: 1.00E-04 | K165: 8.75E-18 | L165: 3.06E-07
A166: chr11 | B166: HSD17B12 | C166: 43680559 | D166: 43856617 | E166: 600 | F166: 12034 | G166: 43868651 | H166: 5.49E-09 | I166: -0.463282 | J166: 1.00E-04 | K166: 6.77E-06 | L166: 3.10E-07
A167: chr6 | B167: RNU1-61P | C167: 32549941 | D167: 32550090 | E167: 1142 | F167: -76568 | G167: 32473373 | H167: 2.77E-24 | I167: 0.843382 | J167: 1.00E-04 | K167: 1.21E-18 | L167: 3.10E-07
A168: chr11 | B168: RP11-109L13.1 | C168: 117135529 | D168: 117138582 | E168: 614 | F168: -64672 | G168: 117070857 | H168: 8.75E-09 | I168: 0.341857 | J168: 1.00E-04 | K168: 9.54E-06 | L168: 3.12E-07
A169: chr6 | B169: XXbac-BPG246D15.9 | C169: 32813768 | D169: 32838822 | E169: 1136 | F169: 0 | G169: 32829332 | H169: 1.32e-11 | I169: 0.492248 | J169: 1.00E-04 | K169: 7.61E-08 | L169: 3.12E-07
A170: chr16 | B170: RP11-863P13.5 | C170: 88079162 | D170: 88087383 | E170: 405 | F170: 29632 | G170: 88117015 | H170: 9.86E-12 | I170: 0.656448 | J170: 1.00E-04 | K170: 1.58E-08 | L170: 3.14E-07
A171: chr3 | B171: MBD4 | C171: 129430945 | D171: 129440179 | E171: 259 | F171: -238035 | G171: 129192910 | H171: 2.38E-07 | I171: 0.384817 | J171: 1.00E-04 | K171: 7.48E-05 | L171: 3.16E-07
A172: chr1 | B172: VASH2 | C172: 212950521 | D172: 212992037 | E172: 411 | F172: 112547 | G172: 213104584 | H172: 1.70E-07 | I172: 0.439083 | J172: 1.00E-04 | K172: 9.47E-05 | L172: 3.17E-07
A173: chr1 | B173: RP5-1061H20.5 | C173: 229223462 | D173: 229227562 | E173: 451 | F173: 131774 | G173: 229359336 | H173: 6.99E-09 | I173: 0.656951 | J173: 1.00E-04 | K173: 5.39E-06 | L173: 3.17E-07
A174: chr11 | B174: CMB9-55F22.1 | C174: 779618 | D174: 780755 | E174: 620 | F174: 19730 | G174: 800485 | H174: 1.58E-29 | I174: 0.734288 | J174: 1.00E-04 | K174: 1.43e-24 | L174: 3.19E-07
A175: chr6 | B175: HLA-DRB6 | C175: 32552714 | D175: 32560022 | E175: 1142 | F175: 21797 | G175: 32581819 | H175: 2.07E-20 | I175: 0.652386 | J175: 1.00E-04 | K175: 2.12E-15 | L175: 3.24E-07
A176: chr12 | B176: RP11-989F5.3 | C176: 130810822 | D176: 130812622 | E176: 707 | F176: 506477 | G176: 131319099 | H176: 5.06E-15 | I176: -0.702093 | J176: 1.00E-04 | K176: 2.12E-11 | L176: 3.25E-07
A177: chr11 | B177: RP11-680F20.9 | C177: 125903248 | D177: 125938916 | E177: 675 | F177: -262390 | G177: 125640858 | H177: 1.52E-07 | I177: -0.518671 | J177: 0.00019998 | K177: 0.000122618 | L177: 3.25E-07
A178: chr11 | B178: AP006621.5 | C178: 777579 | D178: 784297 | E178: 620 | F178: 19915 | G178: 804212 | H178: 3.32e-13 | I178: 0.539426 | J178: 1.00E-04 | K178: 7.47E-10 | L178: 3.26E-07
A179: chr2 | B179: RP11-410E4.1 | C179: 186354571 | D179: 186356773 | E179: 275 | F179: 908213 | G179: 187264986 | H179: 2.91E-09 | I179: 0.456105 | J179: 1.00E-04 | K179: 2.31E-06 | L179: 3.29E-07
A180: chr16 | B180: DCTN5 | C180: 23641393 | D180: 23677455 | E180: 454 | F180: 0 | G180: 23677111 | H180: 2.61E-09 | I180: -0.443123 | J180: 1.00E-04 | K180: 2.08E-06 | L180: 3.31E-07
A181: chr1 | B181: RP1-224A6.3 | C181: 22023991 | D181: 22026048 | E181: 377 | F181: 322508 | G181: 22348556 | H181: 3.91E-09 | I181: -0.457558 | J181: 1.00E-04 | K181: 3.12E-06 | L181: 3.32E-07
A182: chr1 | B182: RP5-1065P14.3 | C182: 229022774 | D182: 229038274 | E182: 452 | F182: 315371 | G182: 229353645 | H182: 1.28E-07 | I182: 0.421657 | J182: 0.00019998 | K182: 6.95E-05 | L182: 3.33E-07
A183: chr1 | B183: PDC | C183: 186443567 | D183: 186461122 | E183: 408 | F183: -39167 | G183: 186404400 | H183: 5.05E-09 | I183: 0.433937 | J183: 1.00E-04 | K183: 4.27E-06 | L183: 3.34E-07
A184: chr11 | B184: TTC12 | C184: 113314530 | D184: 113383544 | E184: 610 | F184: -74821 | G184: 113239709 | H184: 8.36E-09 | I184: -0.394848 | J184: 1.00E-04 | K184: 9.14E-06 | L184: 3.37E-07
A185: chr1 | B185: RP11-399E6.1 | C185: 41242374 | D185: 41284861 | E185: 400 | F185: 416886 | G185: 41701747 | H185: 1.71E-23 | I185: 0.975719 | J185: 1.00E-04 | K185: 3.96e-19 | L185: 3.38E-07
A186: chr11 | B186: DDX25 | C186: 125903349 | D186: 125943702 | E186: 676 | F186: -262491 | G186: 125640858 | H186: 2.86E-07 | I186: -0.502258 | J186: 1.00E-04 | K186: 0.000208852 | L186: 3.39E-07
A187: chr6 | B187: HLA-DRB9 | C187: 32459822 | D187: 32473500 | E187: 1215 | F187: 45898 | G187: 32519398 | H187: 2.17e-10 | I187: 0.752131 | J187: 1.00E-04 | K187: 7.07E-07 | L187: 3.40E-07
A188: chr11 | B188: RP11-159N11.4 | C188: 113368479 | D188: 113369117 | E188: 591 | F188: -86204 | G188: 113282275 | H188: 2.04E-08 | I188: 0.399433 | J188: 1.00E-04 | K188: 2.00E-05 | L188: 3.45E-07
A189: chr19 | B189: CTD-2192J16.21 | C189: 12529769 | D189: 12532973 | E189: 185 | F189: 106938 | G189: 12639911 | H189: 8.57E-14 | I189: 0.513251 | J189: 1.00E-04 | K189: 7.72E-11 | L189: 3.45E-07
A190: chr6 | B190: HLA-DQB1 | C190: 32659468 | D190: 32668383 | E190: 1103 | F190: 0 | G190: 32662070 | H190: 3.34E-20 | I190: -0.651649 | J190: 1.00E-04 | K190: 2.49E-15 | L190: 3.45E-07
A191: chr1 | B191: FOXO6 | C191: 41361923 | D191: 41383590 | E191: 417 | F191: 318157 | G191: 41701747 | H191: 3.41E-09 | I191: 0.56022 | J191: 1.00E-04 | K191: 2.57E-06 | L191: 3.45E-07
A192: chr16 | B192: FAHD1 | C192: 1826942 | D192: 1840207 | E192: 559 | F192: 4822 | G192: 1845029 | H192: 9.10E-18 | I192: 0.934017 | J192: 1.00E-04 | K192: 1.13e-13 | L192: 3.46E-07
A193: chr9 | B193: ABO | C193: 133250402 | D193: 133275214 | E193: 412 | F193: 0 | G193: 133257521 | H193: 2.57e-17 | I193: 0.59921 | J193: 1.00E-04 | K193: 1.40E-13 | L193: 3.46E-07
A194: chrX | B194: MOSPD2 | C194: 14873442 | D194: 14922327 | E194: 403 | F194: 0 | G194: 14902889 | H194: 1.15E-08 | I194: 0.274994 | J194: 1.00E-04 | K194: 1.13E-05 | L194: 3.46E-07
A195: chr16 | B195: PLLP | C195: 57248548 | D195: 57284687 | E195: 436 | F195: 16425 | G195: 57301112 | H195: 6.67E-09 | I195: -0.408996 | J195: 1.00E-04 | K195: 4.47E-06 | L195: 3.47E-07
A196: chr7 | B196: ICA1 | C196: 8113185 | D196: 8262687 | E196: 795 | F196: 26018 | G196: 8288705 | H196: 5.50E-16 | I196: -0.67321 | J196: 1.00E-04 | K196: 3.84E-12 | L196: 3.47E-07
A197: chr1 | B197: RP11-365O16.3 | C197: 224208748 | D197: 224213279 | E197: 391 | F197: 190490 | G197: 224403769 | H197: 6.47E-12 | I197: 0.613253 | J197: 1.00E-04 | K197: 1.07E-08 | L197: 3.48E-07
A198: chr6 | B198: TAP2 | C198: 32821834 | D198: 32838780 | E198: 1134 | F198: 0 | G198: 32829332 | H198: 1.93E-12 | I198: 0.514258 | J198: 1.00E-04 | K198: 1.16E-08 | L198: 3.48E-07
A199: chr15 | B199: SCAMP5 | C199: 74957220 | D199: 75021496 | E199: 252 | F199: 293832 | G199: 75315328 | H199: 2.36e-21 | I199: 0.701303 | J199: 1.00E-04 | K199: 3.98E-17 | L199: 3.49E-07
A200: chr1 | B200: PRMT6 | C200: 107056680 | D200: 107059294 | E200: 380 | F200: 565269 | G200: 107624563 | H200: 2.28E-17 | I200: -0.614029 | J200: 1.00E-04 | K200: 1.45E-13 | L200: 3.50E-07
A201: chr11 | B201: TRIM66 | C201: 8612038 | D201: 8671866 | E201: 508 | F201: 29970 | G201: 8701836 | H201: 1.07E-08 | I201: 0.393035 | J201: 1.00E-04 | K201: 1.12E-05 | L201: 3.51E-07
... 563 more rows

Sheet Supplementary Table 14.
A1: Table S14. cis-eQTLs detected in the female-specific analysis. N=119. Significant eQTLs were selected based on an FDR-adjusted p-value threshold of 0.01.
A3: Chromosome | B3: Gene name | C3: Start position | D3: End position | E3: Total number of variants tested in cis | F3: The distance between the gene and the top variant | G3: Position of the top variants | H3: The nominal p-value of association between the top phenotype and the top variant in cis | I3: The corresponding regression slope | J3: The p-value of association adjusted for the number of variants and phenotypes tested in cis given by the direct method | K3: The p-value of association adjusted for the number of variants and phenotypes tested in cis given by the fitted beta distribution | L3: q-value, i.e. FDR adjusted p-value
A4: chr1 | B4: AC000032.2 | C4: 109693118 | D4: 109693742 | E4: 256 | F4: -2602 | G4: 109690516 | H4: 1.77E-08 | I4: -0.499145 | J4: 1.00E-04 | K4: 7.93E-06 | L4: 6.95E-08
A5: chr5 | B5: AC034243.1 | C5: 138744435 | D5: 138753309 | E5: 227 | F5: -683094 | G5: 138061341 | H5: 4.64E-11 | I5: -0.801519 | J5: 1.00E-04 | K5: 2.40E-08 | L5: 1.18E-07
A6: chr2 | B6: AC068282.3 | C6: 127389131 | D6: 127400580 | E6: 198 | F6: -139716 | G6: 127249415 | H6: 7.29E-11 | I6: 0.701423 | J6: 1.00E-04 | K6: 4.22E-08 | L6: 7.96E-08
A7: chr2 | B7: AC104135.2 | C7: 74919556 | D7: 74924846 | E7: 485 | F7: 265178 | G7: 75190024 | H7: 1.76E-17 | I7: -0.939162 | J7: 1.00E-04 | K7: 1.23E-13 | L7: 1.20E-07
A8: chr17 | B8: AC108004.3 | C8: 404469 | D8: 414023 | E8: 222 | F8: -143722 | G8: 260747 | H8: 1.74E-08 | I8: -0.716724 | J8: 1.00E-04 | K8: 5.22E-06 | L8: 2.79E-07
A9: chr10 | B9: AGAP9 | C9: 47501855 | D9: 47523638 | E9: 195 | F9: -23607 | G9: 47478248 | H9: 3.13E-09 | I9: -0.61386 | J9: 1.00E-04 | K9: 1.51E-06 | L9: 2.56E-07
A10: chr1 | B10: AMIGO1 | C10: 109504176 | D10: 109509738 | E10: 319 | F10: 551310 | G10: 110061048 | H10: 1.59E-09 | I10: 0.698574 | J10: 1.00E-04 | K10: 7.97E-07 | L10: 4.86E-07
A11: chr9 | B11: ANKRD20A4 | C11: 64369395 | D11: 64413142 | E11: 140 | F11: 0 | G11: 64390623 | H11: 1.18E-07 | I11: -0.596566 | J11: 1.00E-04 | K11: 3.46E-05 | L11: 5.57E-07
A12: chr9 | B12: ANKRD20A7P | C12: 42852676 | D12: 42894751 | E12: 151 | F12: -31558 | G12: 42821118 | H12: 1.08e-10 | I12: -0.797984 | J12: 1.00E-04 | K12: 3.22E-08 | L12: 9.49E-07
A13: chr22 | B13: AP000350.5 | C13: 23901433 | D13: 23907068 | E13: 389 | F13: 20204 | G13: 23927272 | H13: 9.28E-13 | I13: 0.746583 | J13: 1.00E-04 | K13: 1.36E-09 | L13: 2.07E-07
A14: chr22 | B14: AP000350.6 | C14: 23926901 | D14: 23929574 | E14: 385 | F14: 0 | G14: 23927272 | H14: 2.91E-09 | I14: 0.58769 | J14: 1.00E-04 | K14: 1.86E-06 | L14: 2.20E-07
A15: chr11 | B15: AP003068.23 | C15: 65177607 | D15: 65181834 | E15: 373 | F15: 1538 | G15: 65183372 | H15: 2.46E-13 | I15: -0.759008 | J15: 1.00E-04 | K15: 5.32E-10 | L15: 9.22E-08
A16: chr11 | B16: AP006621.5 | C16: 777579 | D16: 784297 | E16: 620 | F16: 17334 | G16: 801631 | H16: 1.68E-09 | I16: 0.630439 | J16: 1.00E-04 | K16: 1.92E-06 | L16: 5.48E-08
A17: chr11 | B17: APIP | C17: 34853095 | D17: 34916499 | E17: 130 | F17: 410 | G17: 34916909 | H17: 2.17E-07 | I17: -0.762702 | J17: 1.00E-04 | K17: 2.71E-05 | L17: 3.66E-07
A18: chr17 | B18: ARL16 | C18: 81681175 | D18: 81683924 | E18: 490 | F18: -13431 | G18: 81667744 | H18: 4.95E-08 | I18: -0.654848 | J18: 1.00E-04 | K18: 3.05E-05 | L18: 1.56E-07
A19: chr17 | B19: BRCA1 | C19: 43044296 | D19: 43170245 | E19: 241 | F19: -16449 | G19: 43027847 | H19: 4.27E-08 | I19: -0.465084 | J19: 1.00E-04 | K19: 1.26E-05 | L19: 3.71E-07
A20: chr12 | B20: C12orf73 | C20: 103950203 | D20: 103965708 | E20: 183 | F20: -2583 | G20: 103947620 | H20: 1.86E-08 | I20: 0.515003 | J20: 1.00E-04 | K20: 5.85E-06 | L20: 2.65E-07
A21: chr17 | B21: C17orf97 | C21: 410328 | D21: 431062 | E21: 226 | F21: -149581 | G21: 260747 | H21: 3.85E-09 | I21: -0.768036 | J21: 1.00E-04 | K21: 1.29E-06 | L21: 2.76E-07
A22: chr10 | B22: C1DP1 | C22: 32511337 | D22: 32511737 | E22: 142 | F22: -36 | G22: 32511301 | H22: 6.15E-12 | I22: 1.04809 | J22: 1.00E-04 | K22: 3.29E-09 | L22: 5.18E-07
A23: chr10 | B23: C1QL3 | C23: 16513744 | D23: 16522005 | E23: 584 | F23: 34705 | G23: 16556710 | H23: 8.19E-13 | I23: -0.831683 | J23: 1.00E-04 | K23: 2.41E-09 | L23: 9.57E-09
A24: chr2 | B24: C2orf54 | C24: 240886049 | D24: 240896889 | E24: 561 | F24: 0 | G24: 240891527 | H24: 4.01E-10 | I24: 0.721343 | J24: 1.00E-04 | K24: 4.98E-07 | L24: 2.66E-08
A25: chr2 | B25: C2orf74 | C25: 61145069 | D25: 61164829 | E25: 392 | F25: 225962 | G25: 61390791 | H25: 1.37E-09 | I25: -0.700555 | J25: 1.00E-04 | K25: 1.19E-06 | L25: 1.50E-07
A26: chr16 | B26: CDC37P1 | C26: 28700295 | D26: 28701540 | E26: 183 | F26: -93821 | G26: 28606474 | H26: 6.17E-10 | I26: 0.679904 | J26: 1.00E-04 | K26: 1.58E-07 | L26: 3.36E-07
A27: chr17 | B27: CDRT15P1 | C27: 14024515 | D27: 14025488 | E27: 46 | F27: 0 | G27: 14024532 | H27: 2.48E-08 | I27: -0.628775 | J27: 1.00E-04 | K27: 1.69E-06 | L27: 1.64E-06
A28: chr6 | B28: CENPQ | C28: 49463379 | D28: 49493107 | E28: 40 | F28: 0 | G28: 49492265 | H28: 4.19E-07 | I28: 0.46983 | J28: 1.00E-04 | K28: 2.20E-05 | L28: 4.29E-06
A29: chr14 | B29: CH17-224D4.1 | C29: 106088123 | D29: 106088573 | E29: 500 | F29: 28390 | G29: 106116963 | H29: 2.28E-08 | I29: -0.475054 | J29: 1.00E-04 | K29: 1.62E-05 | L29: 1.17E-07
A30: chr14 | B30: CH17-224D4.2 | C30: 106107973 | D30: 106108407 | E30: 500 | F30: -45374 | G30: 106062599 | H30: 9.82E-09 | I30: -0.527409 | J30: 1.00E-04 | K30: 7.95E-06 | L30: 1.13E-07
A31: chr15 | B31: CHRNA5 | C31: 78565521 | D31: 78595269 | E31: 481 | F31: -20062 | G31: 78545459 | H31: 2.17E-09 | I31: -0.535341 | J31: 1.00E-04 | K31: 1.60E-06 | L31: 1.08E-07
A32: chr11 | B32: CMB9-55F22.1 | C32: 779618 | D32: 780755 | E32: 620 | F32: -7128 | G32: 772490 | H32: 9.64E-15 | I32: 0.685227 | J32: 1.00E-04 | K32: 4.64E-11 | L32: 5.05E-08
A33: chr10 | B33: COX20P1 | C33: 68632372 | D33: 68632727 | E33: 232 | F33: 0 | G33: 68632713 | H33: 4.15E-12 | I33: 1.26034 | J33: 1.00E-04 | K33: 4.55E-09 | L33: 2.32E-07
A34: chr9 | B34: CR848007.2 | C34: 42901239 | D34: 42920095 | E34: 151 | F34: -80121 | G34: 42821118 | H34: 4.26E-10 | I34: -0.808263 | J34: 1.00E-04 | K34: 1.09E-07 | L34: 9.70E-07
A35: chr22 | B35: CRYBB2 | C35: 25219523 | D35: 25231869 | E35: 395 | F35: 642595 | G35: 25874464 | H35: 5.09E-12 | I35: -1.15228 | J35: 1.00E-04 | K35: 5.14E-09 | L35: 2.05E-07
A36: chr22 | B36: CRYBB2P1 | C36: 25448106 | D36: 25520854 | E36: 470 | F36: 353610 | G36: 25874464 | H36: 4.42E-08 | I36: -0.77791 | J36: 1.00E-04 | K36: 3.04E-05 | L36: 1.49E-07
A37: chr19 | B37: CTD-2192J16.21 | C37: 12529769 | D37: 12532973 | E37: 185 | F37: 106938 | G37: 12639911 | H37: 1.88E-08 | I37: 0.563628 | J37: 1.00E-04 | K37: 4.87E-06 | L37: 1.45E-07
A38: chr5 | B38: CTD-2203K17.1 | C38: 33424026 | D38: 33440619 | E38: 97 | F38: 20631 | G38: 33461250 | H38: 6.26E-08 | I38: -0.784836 | J38: 1.00E-04 | K38: 7.45E-06 | L38: 3.78E-07
A39: chr5 | B39: CTD-2260A17.2 | C39: 96814029 | D39: 96935809 | E39: 399 | F39: -569480 | G39: 96244549 | H39: 4.97E-22 | I39: -1.11559 | J39: 1.00E-04 | K39: 1.13e-17 | L39: 4.90E-08
A40: chr9 | B40: CYP4F60P | C40: 42950567 | D40: 42951630 | E40: 127 | F40: -56319 | G40: 42894248 | H40: 8.12E-09 | I40: -0.48254 | J40: 1.00E-04 | K40: 1.20E-06 | L40: 1.31E-06
A41: chr22 | B41: DDT | C41: 23971366 | D41: 23980469 | E41: 320 | F41: 261142 | G41: 24241611 | H41: 4.73E-10 | I41: -0.682225 | J41: 1.00E-04 | K41: 3.91E-07 | L41: 2.12E-07
A42: chr22 | B42: DDTL | C42: 23966902 | D42: 23972532 | E42: 320 | F42: 269079 | G42: 24241611 | H42: 5.46E-10 | I42: -0.668568 | J42: 1.00E-04 | K42: 3.75E-07 | L42: 2.37E-07
A43: chr12 | B43: DDX11 | C43: 31073846 | D43: 31104791 | E43: 661 | F43: 152904 | G43: 31257695 | H43: 9.27E-09 | I43: 0.499124 | J43: 1.00E-04 | K43: 9.31E-06 | L43: 2.86E-08
A44: chr2 | B44: DDX11L2 | C44: 113599037 | D44: 113601261 | E44: 263 | F44: 0 | G44: 113601195 | H44: 9.15E-15 | I44: 0.913917 | J44: 1.00E-04 | K44: 4.90E-12 | L44: 9.40E-08
A45: chr12 | B45: DDX51 | C45: 132136595 | D45: 132144335 | E45: 257 | F45: 0 | G45: 132141098 | H45: 7.10E-08 | I45: 0.602644 | J45: 1.00E-04 | K45: 2.39E-05 | L45: 2.21E-07
A46: chr22 | B46: DNAJB7 | C46: 40859550 | D46: 40862126 | E46: 220 | F46: 506982 | G46: 41369108 | H46: 7.61E-16 | I46: -0.773786 | J46: 1.00E-04 | K46: 3.95E-12 | L46: 2.91E-07
A47: chr13 | B47: DNAJC15 | C47: 43023204 | D47: 43114224 | E47: 608 | F47: 499234 | G47: 43613458 | H47: 1.88E-08 | I47: -0.741925 | J47: 1.00E-04 | K47: 1.60E-05 | L47: 4.29E-07
A48: chr17 | B48: DND1P1 | C48: 45585872 | D48: 45586929 | E48: 269 | F48: -776871 | G48: 44809001 | H48: 1.60E-11 | I48: 1.06825 | J48: 1.00E-04 | K48: 1.75E-08 | L48: 2.07E-07
A49: chr7 | B49: EEF1DP4 | C49: 64863000 | D49: 64864370 | E49: 174 | F49: -563783 | G49: 64299217 | H49: 8.54E-09 | I49: 0.623334 | J49: 1.00E-04 | K49: 3.65E-06 | L49: 9.80E-08
A50: chr3 | B50: EFHB | C50: 19879473 | D50: 19947025 | E50: 375 | F50: 95809 | G50: 20042834 | H50: 6.74E-10 | I50: -0.685104 | J50: 1.00E-04 | K50: 7.35E-07 | L50: 2.27E-08
A51: chr5 | B51: ERAP2 | C51: 96875940 | D51: 96919716 | E51: 371 | F51: -631391 | G51: 96244549 | H51: 3.40E-23 | I51: -1.12943 | J51: 1.00E-04 | K51: 1.41e-18 | L51: 4.91E-08
A52: chr22 | B52: FAM118A | C52: 45308969 | D52: 45341955 | E52: 642 | F52: 394198 | G52: 45736153 | H52: 1.50E-10 | I52: 0.933699 | J52: 1.00E-04 | K52: 1.80E-07 | L52: 1.26E-07
A53: chr1 | B53: FLVCR1-AS1 | C53: 212852109 | D53: 212858088 | E53: 80 | F53: 1138 | G53: 212859226 | H53: 9.02E-15 | I53: 0.698236 | J53: 1.00E-04 | K53: 4.70E-12 | L53: 2.74E-07
A54: chr20 | B54: FRG1DP | C54: 29080391 | D54: 29102761 | E54: 267 | F54: 377418 | G54: 29480179 | H54: 3.08E-08 | I54: 0.998532 | J54: 1.00E-04 | K54: 7.92E-06 | L54: 3.61E-07
A55: chr10 | B55: FRMPD2B | C55: 46870859 | D55: 46894562 | E55: 198 | F55: -94961 | G55: 46775898 | H55: 1.49e-10 | I55: 0.968104 | J55: 1.00E-04 | K55: 1.18E-07 | L55: 2.23E-07
A56: chr16 | B56: FTLP14 | C56: 68822588 | D56: 68823070 | E56: 137 | F56: 468 | G56: 68823538 | H56: 2.07E-08 | I56: -0.57457 | J56: 1.00E-04 | K56: 4.55E-06 | L56: 3.15E-07
A57: chr1 | B57: GBP3 | C57: 89006667 | D57: 89022894 | E57: 406 | F57: 452241 | G57: 89475135 | H57: 1.39E-10 | I57: -0.750748 | J57: 1.00E-04 | K57: 1.69E-07 | L57: 3.05E-07
A58: chr1 | B58: GLMP | C58: 156290090 | D58: 156295689 | E58: 293 | F58: -13153 | G58: 156276937 | H58: 8.89E-08 | I58: -0.633951 | J58: 1.00E-04 | K58: 2.29E-05 | L58: 1.07E-07
A59: chr4 | B59: GNRHR | C59: 67739329 | D59: 67754360 | E59: 415 | F59: 844638 | G59: 68598998 | H59: 6.23E-09 | I59: -0.881428 | J59: 1.00E-04 | K59: 4.27E-06 | L59: 1.11E-07
A60: chr1 | B60: GSTM1 | C60: 109687815 | D60: 109709039 | E60: 256 | F60: 0 | G60: 109690516 | H60: 1.25E-08 | I60: -0.515741 | J60: 1.00E-04 | K60: 5.77E-06 | L60: 7.01E-08
A61: chr1 | B61: GSTM2 | C61: 109668023 | D61: 109709551 | E61: 299 | F61: 523530 | G61: 110233081 | H61: 5.34E-18 | I61: -1.03311 | J61: 1.00E-04 | K61: 1.95E-14 | L61: 4.36E-07
A62: chr1 | B62: GSTM4 | C62: 109656082 | D62: 109674836 | E62: 296 | F62: 558245 | G62: 110233081 | H62: 1.41E-08 | I62: -0.697874 | J62: 1.00E-04 | K62: 6.77E-06 | L62: 4.41E-07
A63: chr1 | B63: GSTM5 | C63: 109712256 | D63: 109775428 | E63: 302 | F63: 457653 | G63: 110233081 | H63: 3.05E-08 | I63: -0.61962 | J63: 1.00E-04 | K63: 1.04E-05 | L63: 5.49E-07
A64: chr7 | B64: GTF2IP14 | C64: 65084104 | D64: 65100232 | E64: 157 | F64: -208025 | G64: 64876079 | H64: 2.38E-08 | I64: -0.586934 | J64: 1.00E-04 | K64: 6.13E-06 | L64: 1.42E-07
A65: chr6 | B65: GUCA1A | C65: 42155407 | D65: 42180056 | E65: 264 | F65: 28955 | G65: 42209011 | H65: 5.88E-08 | I65: 0.535385 | J65: 1.00E-04 | K65: 1.56E-05 | L65: 8.18E-07
A66: chr6 | B66: HCG4 | C66: 29791754 | D66: 29792750 | E66: 527 | F66: 28300 | G66: 29821050 | H66: 1.59E-08 | I66: 0.852593 | J66: 0.00029997 | K66: 1.83E-05 | L66: 1.17E-07
A67: chr6 | B67: HCG4B | C67: 29925984 | D67: 29926973 | E67: 544 | F67: 9334 | G67: 29936307 | H67: 5.25e-11 | I67: 0.735513 | J67: 1.00E-04 | K67: 1.69E-07 | L67: 1.07E-07
A68: chr6 | B68: HCG9 | C68: 29975113 | D68: 29978410 | E68: 566 | F68: 0 | G68: 29978027 | H68: 5.59E-09 | I68: -0.850614 | J68: 1.00E-04 | K68: 8.51E-06 | L68: 1.03E-07
A69: chr11 | B69: HEPHL1 | C69: 94021362 | D69: 94113751 | E69: 500 | F69: -195762 | G69: 93825600 | H69: 1.98E-09 | I69: 0.702264 | J69: 1.00E-04 | K69: 1.93E-06 | L69: 7.42E-08
A70: chr6 | B70: HLA-C | C70: 31268750 | D70: 31272130 | E70: 1000 | F70: 0 | G70: 31271313 | H70: 3.51E-08 | I70: -0.82808 | J70: 0.00019998 | K70: 5.34E-05 | L70: 1.44E-07
A71: chr6 | B71: HLA-DPB2 | C71: 33112452 | D71: 33129084 | E71: 641 | F71: -62173 | G71: 33050279 | H71: 7.23E-15 | I71: 0.611488 | J71: 1.00E-04 | K71: 5.58E-11 | L71: 9.58E-08
A72: chr6 | B72: HLA-DQA2 | C72: 32741343 | D72: 32747215 | E72: 1137 | F72: -103913 | G72: 32637430 | H72: 1.42E-09 | I72: 0.494535 | J72: 1.00E-04 | K72: 4.11E-06 | L72: 1.16E-07
A73: chr6 | B73: HLA-DQB1 | C73: 32659468 | D73: 32668383 | E73: 1103 | F73: 0 | G73: 32662070 | H73: 6.30E-09 | I73: -0.578011 | J73: 1.00E-04 | K73: 1.29E-05 | L73: 1.31E-07
A74: chr6 | B74: HLA-DQB1-AS1 | C74: 32659881 | D74: 32660729 | E74: 1088 | F74: 1341 | G74: 32662070 | H74: 7.79E-09 | I74: -0.568176 | J74: 1.00E-04 | K74: 1.28E-05 | L74: 1.56E-07
A75: chr6 | B75: HLA-DQB2 | C75: 32756099 | D75: 32763534 | E75: 564 | F75: -151727 | G75: 32604372 | H75: 9.68E-10 | I75: -0.608446 | J75: 1.00E-04 | K75: 1.46E-06 | L75: 1.18E-07
A76: chr6 | B76: HLA-DRB5 | C76: 32517344 | D76: 32530287 | E76: 1180 | F76: 23019 | G76: 32553306 | H76: 1.75E-08 | I76: -0.380497 | J76: 1.00E-04 | K76: 3.09E-05 | L76: 1.32E-07
A77: chr6 | B77: HLA-J | C77: 30005972 | D77: 30009956 | E77: 573 | F77: -89467 | G77: 29916505 | H77: 4.04E-09 | I77: 0.646767 | J77: 1.00E-04 | K77: 6.38E-06 | L77: 1.03E-07
A78: chr6 | B78: IFITM4P | C78: 29750730 | D78: 29751148 | E78: 510 | F78: -51017 | G78: 29699713 | H78: 2.52E-09 | I78: -0.582364 | J78: 1.00E-04 | K78: 4.04E-06 | L78: 1.16E-07
A79: chr17 | B79: KANSL1-AS1 | C79: 46193577 | D79: 46196723 | E79: 287 | F79: -606696 | G79: 45586881 | H79: 1.18E-08 | I79: 1.03056 | J79: 1.00E-04 | K79: 3.73E-06 | L79: 4.02E-07
A80: chr22 | B80: KB-226F1.2 | C80: 23969212 | D80: 23969873 | E80: 385 | F80: -41940 | G80: 23927272 | H80: 1.22E-15 | I80: -0.729354 | J80: 1.00E-04 | K80: 3.02E-12 | L80: 2.14E-07
A81: chr7 | B81: KLHL7-AS1 | C81: 23101229 | D81: 23105703 | E81: 537 | F81: 43434 | G81: 23149137 | H81: 2.78E-09 | I81: 0.539687 | J81: 1.00E-04 | K81: 2.90E-06 | L81: 3.56E-08
A82: chr11 | B82: LDHC | C82: 18412308 | D82: 18452058 | E82: 358 | F82: 0 | G82: 18434634 | H82: 3.11e-15 | I82: -1.30478 | J82: 1.00E-04 | K82: 6.58E-12 | L82: 9.85E-08
A83: chr13 | B83: LINC00539 | C83: 21303516 | D83: 21348721 | E83: 389 | F83: 558405 | G83: 21907126 | H83: 9.62E-12 | I83: 0.717225 | J83: 1.00E-04 | K83: 1.47E-08 | L83: 5.81E-07
A84: chr6 | B84: LINC00680 | C84: 57946075 | D84: 57961501 | E84: 193 | F84: 329164 | G84: 58290665 | H84: 2.21E-07 | I84: 0.560477 | J84: 1.00E-04 | K84: 5.04E-05 | L84: 4.78E-07
A85: chr12 | B85: LINC01252 | C85: 11548031 | D85: 11590369 | E85: 226 | F85: -361617 | G85: 11186414 | H85: 3.84E-08 | I85: -0.611965 | J85: 1.00E-04 | K85: 9.59E-06 | L85: 3.13E-07
A86: chr2 | B86: LINC01291 | C86: 74918149 | D86: 74938418 | E86: 487 | F86: 251606 | G86: 75190024 | H86: 1.94e-25 | I86: -1.09701 | J86: 1.00E-04 | K86: 6.11e-21 | L86: 1.31E-07
A87: chr21 | B87: LINC01436 | C87: 36005339 | D87: 36007838 | E87: 123 | F87: 32616 | G87: 36040454 | H87: 1.07E-07 | I87: 0.623711 | J87: 1.00E-04 | K87: 1.97E-05 | L87: 3.02E-06
A88: chr12 | B88: LLPH-AS1 | C88: 66130752 | D88: 66134449 | E88: 388 | F88: 372182 | G88: 66506631 | H88: 1.07E-09 | I88: 0.754297 | J88: 1.00E-04 | K88: 8.42E-07 | L88: 4.84E-08
A89: chr6 | B89: MCCD1P2 | C89: 29994438 | D89: 29995314 | E89: 566 | F89: -89573 | G89: 29904865 | H89: 6.90E-08 | I89: -0.674017 | J89: 1.00E-04 | K89: 7.16E-05 | L89: 9.96E-08
A90: chr6 | B90: MICA | C90: 31399785 | D90: 31415315 | E90: 606 | F90: -46096 | G90: 31353689 | H90: 6.78E-12 | I90: 0.769184 | J90: 1.00E-04 | K90: 2.56E-08 | L90: 9.67E-08
A91: chr6 | B91: MICF | C91: 29852364 | D91: 29852491 | E91: 767 | F91: 74583 | G91: 29927074 | H91: 5.27E-08 | I91: 0.634967 | J91: 1.00E-04 | K91: 6.50E-05 | L91: 1.81E-07
A92: chr6 | B92: MIR6891 | C92: 31355225 | D92: 31355316 | E92: 1036 | F92: 0 | G92: 31355243 | H92: 4.41E-14 | I92: 1.06897 | J92: 1.00E-04 | K92: 4.12E-10 | L92: 1.50E-07
A93: chr9 | B93: MYO5BP2 | C93: 62857209 | D93: 62858484 | E93: 199 | F93: 39419 | G93: 62897903 | H93: 3.70E-11 | I93: -1.05923 | J93: 1.00E-04 | K93: 1.98E-08 | L93: 4.93E-07
A94: chr1 | B94: NBPF3 | C94: 21440129 | D94: 21485005 | E94: 378 | F94: 0 | G94: 21468895 | H94: 1.35e-10 | I94: -0.660956 | J94: 1.00E-04 | K94: 2.09E-07 | L94: 3.62E-08
A95: chr17 | B95: NBR2 | C95: 43125611 | D95: 43153671 | E95: 226 | F95: 0 | G95: 43139762 | H95: 7.57E-08 | I95: -0.54626 | J95: 1.00E-04 | K95: 1.83E-05 | L95: 4.25E-07
A96: chr16 | B96: NPIPB15 | C96: 74377879 | D96: 74392080 | E96: 187 | F96: 18780 | G96: 74410860 | H96: 3.39E-11 | I96: 0.917113 | J96: 1.00E-04 | K96: 2.25E-08 | L96: 1.79E-07
A97: chr2 | B97: NRIR | C97: 6828515 | D97: 6840464 | E97: 22 | F97: 9425 | G97: 6849889 | H97: 3.89E-07 | I97: 0.788791 | J97: 1.00E-04 | K97: 9.59E-06 | L97: 9.21E-07
A98: chr19 | B98: OR7D2 | C98: 9185595 | D98: 9188817 | E98: 267 | F98: 112349 | G98: 9301166 | H98: 2.91E-09 | I98: 1.00727 | J98: 1.00E-04 | K98: 1.35E-06 | L98: 9.05E-08
A99: chr2 | B99: PAX8 | C99: 113215998 | D99: 113278950 | E99: 394 | F99: 705353 | G99: 113984303 | H99: 1.54E-09 | I99: 0.747043 | J99: 1.00E-04 | K99: 1.16E-06 | L99: 1.68E-07
A100: chr2 | B100: PAX8-AS1 | C100: 113211523 | D100: 113276581 | E100: 394 | F100: 707722 | G100: 113984303 | H100: 1.41E-09 | I100: 0.749504 | J100: 1.00E-04 | K100: 1.35E-06 | L100: 1.41E-07
A101: chr16 | B101: PDPR | C101: 70113627 | D101: 70162537 | E101: 236 | F101: 0 | G101: 70130345 | H101: 1.26E-08 | I101: 0.896455 | J101: 1.00E-04 | K101: 5.07E-06 | L101: 1.63E-07
A102: chr6 | B102: PEX6 | C102: 42963871 | D102: 42979220 | E102: 219 | F102: -7185 | G102: 42956686 | H102: 1.19E-08 | I102: 0.57486 | J102: 1.00E-04 | K102: 3.83E-06 | L102: 8.29E-07
A103: chr22 | B103: PI4KAP1 | C103: 18533647 | D103: 18577968 | E103: 239 | F103: 0 | G103: 18543718 | H103: 1.36E-08 | I103: -0.53154 | J103: 1.00E-04 | K103: 4.68E-06 | L103: 3.59E-07
A104: chr19 | B104: PNMAL1 | C104: 46466492 | D104: 46471563 | E104: 320 | F104: 0 | G104: 46471050 | H104: 5.33E-09 | I104: -0.776414 | J104: 1.00E-04 | K104: 2.67E-06 | L104: 6.35E-08
A105: chr12 | B105: PRB2 | C105: 11391541 | D105: 11501041 | E105: 277 | F105: -329995 | G105: 11061546 | H105: 1.79E-07 | I105: 0.750478 | J105: 1.00E-04 | K105: 5.39E-05 | L105: 2.24E-07
A106: chr15 | B106: PRKXP1 | C106: 100553530 | D106: 100558954 | E106: 217 | F106: 0 | G106: 100553922 | H106: 7.29E-10 | I106: -0.571808 | J106: 1.00E-04 | K106: 1.91E-07 | L106: 2.82E-07
A107: chr1 | B107: PRMT6 | C107: 107056680 | D107: 107059294 | E107: 380 | F107: 558413 | G107: 107617707 | H107: 6.15E-12 | I107: -0.697072 | J107: 1.00E-04 | K107: 5.04E-09 | L107: 4.57E-07
A108: chr17 | B108: PROCA1 | C108: 28703198 | D108: 28711854 | E108: 226 | F108: -74886 | G108: 28628312 | H108: 6.33E-08 | I108: -0.871776 | J108: 1.00E-04 | K108: 1.83E-05 | L108: 3.54E-07
A109: chr7 | B109: PSPHP1 | C109: 55764798 | D109: 55773288 | E109: 383 | F109: 118613 | G109: 55891901 | H109: 1.70E-12 | I109: 0.652497 | J109: 1.00E-04 | K109: 3.99E-09 | L109: 4.46E-08
A110: chr21 | B110: PWP2 | C110: 44107291 | D110: 44131181 | E110: 385 | F110: -17522 | G110: 44089769 | H110: 3.99E-08 | I110: 0.643693 | J110: 1.00E-04 | K110: 1.93E-05 | L110: 1.16E-06
A111: chr12 | B111: PYROXD1 | C111: 21437616 | D111: 21471252 | E111: 224 | F111: 0 | G111: 21449364 | H111: 1.92E-07 | I111: -0.574913 | J111: 1.00E-04 | K111: 4.85E-05 | L111: 2.71E-07
A112: chr12 | B112: REP15 | C112: 27696520 | D112: 27697596 | E112: 490 | F112: 118676 | G112: 27816272 | H112: 1.20E-08 | I112: -0.927877 | J112: 1.00E-04 | K112: 9.51E-06 | L112: 3.64E-08
A113: chr8 | B113: RN7SKP175 | C113: 143542111 | D113: 143542398 | E113: 407 | F113: -12552 | G113: 143529559 | H113: 1.15e-14 | I113: -0.794744 | J113: 1.00E-04 | K113: 3.31E-11 | L113: 1.23E-07
A114: chr6 | B114: RNU1-61P | C114: 32549941 | D114: 32550090 | E114: 1142 | F114: 30316 | G114: 32580406 | H114: 4.26e-13 | I114: 1.11669 | J114: 1.00E-04 | K114: 5.04E-09 | L114: 1.03E-07
A115: chr15 | B115: RNU6-322P | C115: 100551821 | D115: 100551922 | E115: 217 | F115: 2000 | G115: 100553922 | H115: 2.15E-08 | I115: -0.617997 | J115: 1.00E-04 | K115: 4.79E-06 | L115: 2.80E-07
A116: chr1 | B116: RP1-140A9.1 | C116: 1891472 | D116: 1892658 | E116: 146 | F116: -113382 | G116: 1778090 | H116: 8.28E-08 | I116: 0.629175 | J116: 1.00E-04 | K116: 1.71E-05 | L116: 8.83E-07
A117: chr12 | B117: RP11-1060J15.4 | C117: 27696389 | D117: 27710770 | E117: 490 | F117: 105502 | G117: 27816272 | H117: 2.08E-08 | I117: -0.978921 | J117: 1.00E-04 | K117: 1.45E-05 | L117: 3.92E-08
A118: chr15 | B118: RP11-114H24.2 | C118: 77914218 | D118: 77926846 | E118: 446 | F118: 15916 | G118: 77942762 | H118: 1.84E-09 | I118: 0.723242 | J118: 1.00E-04 | K118: 1.33E-06 | L118: 1.16E-07
A119: chr10 | B119: RP11-153K11.3 | C119: 68233252 | D119: 68242379 | E119: 173 | F119: 41780 | G119: 68284159 | H119: 1.95E-07 | I119: -0.723116 | J119: 1.00E-04 | K119: 4.75E-05 | L119: 3.35E-07
A120: chr16 | B120: RP11-212I21.2 | C120: 55426798 | D120: 55462297 | E120: 613 | F120: 13439 | G120: 55475736 | H120: 4.75E-12 | I120: -0.89596 | J120: 1.00E-04 | K120: 7.18E-09 | L120: 1.64E-08
A121: chr17 | B121: RP11-259G18.3 | C121: 46259552 | D121: 46260606 | E121: 277 | F121: 6569 | G121: 46267175 | H121: 6.58E-13 | I121: 1.31556 | J121: 1.00E-04 | K121: 5.17E-10 | L121: 4.64E-07
A122: chr9 | B122: RP11-262H14.3 | C122: 62857000 | D122: 62898087 | E122: 202 | F122: 68 | G122: 62898155 | H122: 8.49E-14 | I122: -0.85291 | J122: 1.00E-04 | K122: 3.27E-11 | L122: 6.50E-07
A123: chr9 | B123: RP11-262H14.4 | C123: 62897450 | D123: 62900104 | E123: 201 | F123: 0 | G123: 62897904 | H123: 1.11E-13 | I123: -1.00513 | J123: 1.00E-04 | K123: 9.71E-11 | L123: 4.72E-07
A124: chr16 | B124: RP11-278A23.2 | C124: 87739772 | D124: 87747706 | E124: 497 | F124: 1928 | G124: 87749634 | H124: 1.73E-09 | I124: 0.644588 | J124: 1.00E-04 | K124: 1.89E-06 | L124: 1.44E-08
A125: chr2 | B125: RP11-287D1.4 | C125: 74130584 | D125: 74135395 | E125: 322 | F125: 202320 | G125: 74337715 | H125: 1.01E-08 | I125: -0.737181 | J125: 1.00E-04 | K125: 5.47E-06 | L125: 1.98E-07
A126: chr4 | B126: RP11-293A21.1 | C126: 26859807 | D126: 26860599 | E126: 461 | F126: 0 | G126: 26860413 | H126: 4.66E-13 | I126: -0.669504 | J126: 1.00E-04 | K126: 6.23E-10 | L126: 1.10E-07
A127: chr16 | B127: RP11-296I10.3 | C127: 70156341 | D127: 70173448 | E127: 234 | F127: -25996 | G127: 70130345 | H127: 1.08E-08 | I127: 0.909102 | J127: 1.00E-04 | K127: 3.72E-06 | L127: 1.89E-07
A128: chr14 | B128: RP11-298I3.6 | C128: 23023084 | D128: 23024217 | E128: 209 | F128: -46757 | G128: 22976327 | H128: 9.64E-09 | I128: -0.757519 | J128: 1.00E-04 | K128: 2.80E-06 | L128: 3.11E-07
A129: chr6 | B129: RP11-30P6.6 | C129: 85387220 | D129: 85390186 | E129: 35 | F129: 95394 | G129: 85485580 | H129: 1.00E-06 | I129: -0.514354 | J129: 1.00E-04 | K129: 4.12E-05 | L129: 4.92E-06
A130: chr12 | B130: RP11-434C1.2 | C130: 11541396 | D130: 11555838 | E130: 226 | F130: -354982 | G130: 11186414 | H130: 6.43E-09 | I130: -0.595164 | J130: 1.00E-04 | K130: 2.23E-06 | L130: 2.71E-07
A131: chr6 | B131: RP11-457M11.5 | C131: 26686242 | D131: 26687964 | E131: 293 | F131: 263714 | G131: 26951678 | H131: 4.13E-08 | I131: 0.53819 | J131: 1.00E-04 | K131: 2.09E-05 | L131: 2.47E-07
A132: chr16 | B132: RP11-467M13.2 | C132: 16394913 | D132: 16398594 | E132: 188 | F132: -125044 | G132: 16269869 | H132: 2.12E-08 | I132: 0.939333 | J132: 1.00E-04 | K132: 4.77E-06 | L132: 2.65E-07
A133: chr15 | B133: RP11-526I2.5 | C133: 100547766 | D133: 100550153 | E133: 217 | F133: 3769 | G133: 100553922 | H133: 4.90E-11 | I133: -0.701848 | J133: 1.00E-04 | K133: 2.25E-08 | L133: 2.20E-07
A134: chr12 | B134: RP11-585P4.5 | C134: 75483455 | D134: 75489820 | E134: 458 | F134: 404294 | G134: 75894114 | H134: 1.47E-09 | I134: 0.721366 | J134: 1.00E-04 | K134: 1.45E-06 | L134: 3.71E-08
A135: chr15 | B135: RP11-632K20.2 | C135: 32494004 | D135: 32500346 | E135: 98 | F135: 0 | G135: 32499956 | H135: 6.81E-14 | I135: 0.865125 | J135: 1.00E-04 | K135: 9.84E-12 | L135: 5.77E-07
A136: chr15 | B136: RP11-632K20.6 | C136: 32489268 | D136: 32491586 | E136: 98 | F136: 8370 | G136: 32499956 | H136: 5.73E-08 | I136: 0.643092 | J136: 1.00E-04 | K136: 8.30E-06 | L136: 4.20E-07
A137: chr15 | B137: RP11-650L12.2 | C137: 78589124 | D137: 78591276 | E137: 481 | F137: -43665 | G137: 78545459 | H137: 3.85E-08 | I137: -0.492501 | J137: 0.00019998 | K137: 1.93E-05 | L137: 1.20E-07
A138: chr8 | B138: RP11-661A12.4 | C138: 143542111 | D138: 143542400 | E138: 407 | F138: -12552 | G138: 143529559 | H138: 1.15e-14 | I138: -0.795231 | J138: 1.00E-04 | K138: 2.68E-11 | L138: 1.33E-07
A139: chr8 | B139: RP11-661A12.5 | C139: 143541974 | D139: 143549729 | E139: 409 | F139: -12415 | G139: 143529559 | H139: 2.34E-12 | I139: -0.752584 | J139: 1.00E-04 | K139: 2.66E-09 | L139: 1.46E-07
A140: chr11 | B140: RP11-685N10.1 | C140: 94472909 | D140: 94473570 | E140: 551 | F140: -260861 | G140: 94212048 | H140: 4.01E-09 | I140: 0.560245 | J140: 1.00E-04 | K140: 3.46E-06 | L140: 7.39E-08
A141: chr4 | B141: RP11-700J17.2 | C141: 44704406 | D141: 44704965 | E141: 283 | F141: 20369 | G141: 44725334 | H141: 7.46E-14 | I141: 1.05994 | J141: 1.00E-04 | K141: 1.37E-10 | L141: 1.57E-07
A142: chr4 | B142: RP11-738E22.3 | C142: 56960928 | D142: 56961373 | E142: 438 | F142: 825627 | G142: 57787000 | H142: 3.95E-10 | I142: -0.734859 | J142: 1.00E-04 | K142: 4.07E-07 | L142: 9.17E-08
A143: chr11 | B143: RP11-817J15.3 | C143: 102681311 | D143: 102683913 | E143: 472 | F143: -172840 | G143: 102508471 | H143: 1.90E-11 | I143: -0.950737 | J143: 1.00E-04 | K143: 3.36E-08 | L143: 7.07E-08
A144: chr12 | B144: RP11-834C11.10 | C144: 54162066 | D144: 54164452 | E144: 153 | F144: 17564 | G144: 54182016 | H144: 2.62E-10 | I144: 0.681737 | J144: 1.00E-04 | K144: 5.77E-08 | L144: 5.02E-07
A145: chr12 | B145: RP11-834C11.5 | C145: 54085133 | D145: 54125992 | E145: 175 | F145: 56024 | G145: 54182016 | H145: 1.97E-07 | I145: 0.501401 | J145: 1.00E-04 | K145: 4.32E-05 | L145: 3.15E-07
A146: chr12 | B146: RP11-834C11.8 | C146: 54163140 | D146: 54168595 | E146: 153 | F146: 13421 | G146: 54182016 | H146: 7.14E-11 | I146: 0.676268 | J146: 1.00E-04 | K146: 2.20E-08 | L146: 4.34E-07
A147: chr16 | B147: RP11-863P13.5 | C147: 88079162 | D147: 88087383 | E147: 405 | F147: -6588 | G147: 88072574 | H147: 6.00E-10 | I147: -0.874192 | J147: 1.00E-04 | K147: 5.70E-07 | L147: 1.85E-08
A148: chr10 | B148: RP11-95I16.4 | C148: 120879257 | D148: 120880667 | E148: 85 | F148: 8685 | G148: 120889352 | H148: 2.04E-09 | I148: -0.603434 | J148: 1.00E-04 | K148: 2.70E-07 | L148: 9.13E-07
A149: chr22 | B149: RP4-669P10.16 | C149: 42136434 | D149: 42139927 | E149: 413 | F149: -9823 | G149: 42126611 | H149: 1.84E-08 | I149: -0.520196 | J149: 1.00E-04 | K149: 1.21E-05 | L149: 2.05E-07
